Workbook

Sheet Índice
A3: CUENTAS NACIONALES ANUALES
A5: Matriz Insumo Producto (MIP) Base 2015
B8: Matriz insumo producto ambiental, actividad por actividad 2017
B9: Cuadro 1 | C9: Nacional e importada
B10: Cuadro 2 | C10: Matriz de multiplicadores
B11: Cuadro 3 | C11: Matriz de multiplicadores ambientales y económicos
B12: Instructivo | C12: Instructivo del simulador
B13: Cuadro 4 | C13: Simulador de choques de demanda, en producción y emisiones

Sheet Cuadro 1
A3: Matriz Insumo Producto (MIP), actividad por actividad, basada en supuesto de estructura fija de ventas de productos - Nacional e importada
A5: Valores a precios corrientes
A6: Año 2017
A7: Base 2015
A8: Miles de millones de pesos
A10: Agrupaciones de actividades cuentas nacionales, según CIIU Rev. 4 A.C. | B10: Concepto | C10: Consumo intermedio por agrupaciones de actividades económicas cuentas nacionales, según CIIU Rev. 4 A.C. | BU10: Gasto de consumo final | BV10: Formación bruta de capital | BW10: Exportaciones Netas
C11: A0101 | D11: 003 | E11: A0102 | F11: A02 | G11: A03 | H11: 17 | I11: 018 | J11: 019 | K11: 020 | L11: 021-022 | M11: 023-024-025 | N11: 026 | O11: 027 | P11: 028-032-035 | Q11: 029 | R11: 030-031 | S11: 033 | T11: 034 | U11: 036 | V11: 037 | W11: 038 | X11: 039 | Y11: 040 | Z11: 041 | AA11: 043-044 | AB11: 045-046 | AC11: 047 | AD11: 048 | AE11: 049 | AF11: 050-051 | AG11: 052 | AH11: 053-057 | AI11: 054 | AJ11: 055 | AK11: 056 | AL11: 058-059-060 | AM11: 061 | AN11: 062 | AO11: 063 | AP11: 064 | AQ11: 065 | AR11: 066 | AS11: 067 | AT11: 068 | AU11: 069 | AV11: 070 | AW11: 071 | AX11: 072-074 | AY11: 073 | AZ11: 075 | BA11: 076 | BB11: 077 | BC11: 078 | BD11: 079-080 | BE11: 081-082-084 | BF11: 083 | BG11: 085-086 | BH11: 087 | BI11: 088 | BJ11: 089 | BK11: 090-093 | BL11: 094-097 | BM11: 098-099 | BN11: 100-101 | BO11: 102-103 | BP11: 104-106 | BQ11: 107-108 | BR11: 109 | BS11: Total consumo intermedio | BX11: Total
C12: Agricultura y actividades de servicios conexas (excepto cultivo permanente de café) | D12: Cultivo permanente de café | E12: Ganadería | F12: Silvicultura y extracción de madera | G12: Pesca y acuicultura | H12: Extracción de carbón de piedra y lignito | I12: Extracción de petróleo crudo y gas natural | J12: Extracción de minerales metalíferos | K12: Extracción de otras minas y canteras | L12: Actividades de apoyo para actividades de explotación de minas y canteras | M12: Procesamiento y conservación de carne y productos cárnicos de bovinos, bufalinos, porcinos y otras carnes n.c.p.; procesamiento y conservación de carne y productos cárnicos de aves de corral y procesamiento y conservación de pescados, crustáceos y moluscos | N12: Elaboración de aceites y grasas de origen vegetal y animal | O12: Elaboración de productos lácteos | P12: Elaboración de productos de molinería, almidones y productos derivados del almidón; elaboración de productos de panadería; elaboración de macarrones, fideos, alcuzcuz, y productos farináceos similares y elaboración de alimentos preparados para animales | Q12: Elaboración de productos de café | R12: Elaboración de azúcar y elaboración de panela | S12: Elaboración de cacao, chocolate y productos de confitería | T12: Procesamiento y conservación de frutas, legumbres, hortalizas y tubérculos; elaboración de otros productos alimenticios (platos preparados y conservados mediante enlatado o congelado, elaboración de sopas y caldos en estado sólidos, polvo o instantáneas entre otros) | U12: Elaboración de bebidas (incluido el hielo) y elaboración de productos de tabaco | V12: Preparación, hilatura, tejeduría y acabado de productos textiles; fabricación de otros productos textiles | W12: Confección de prendas de vestir | X12: Curtido y recurtido de cueros; fabricación de calzado; fabricación de artículos de viaje, maletas, bolsos de mano y artículos similares, y fabricación de artículos de talabartería y guarnicionería; adobo y teñido de pieles | Y12: Transformación de la madera y fabricación de productos de madera y de corcho, excepto muebles; fabricación de artículos de cestería y espartería | Z12: Fabricación de papel, cartón y productos de papel y de cartón; actividades de impresión; producción de copias a partir de grabaciones originales (Copia a partir de un original en CD, DVD, Bluray) | AA12: Coquización, fabricación de productos de la refinación del petróleo y actividades de mezcla de combustibles | AB12: Fabricación de sustancias y productos químicos; | AC12: Fabricación de productos farmacéuticos, sustancias químicas medicinales y productos botánicos de uso farmacéutico | AD12: Fabricación de productos de caucho y de plástico | AE12: Fabricación de otros productos minerales no metálicos | AF12: Fabricación de productos metalúrgicos básicos; fabricación de productos elaborados de metal, excepto maquinaria y equipo | AG12: Fabricación de aparatos y equipo eléctrico; fabricación de productos informáticos, electrónicos y ópticos | AH12: Fabricación de maquinaria y equipo n.c.p.; instalación, mantenimiento y reparación especializado de maquinaria y equipo | AI12: Fabricación de vehículos automotores, remolques y semirremolques; fabricación de otros tipos de equipo de transporte | AJ12: Fabricación de muebles, colchones y somieres | AK12: Otras industrias manufactureras | AL12: Generación de energía eléctrica; transmisión de energía eléctrica y distribución y comercialización de energía eléctrica | AM12: Producción de gas; distribución de combustibles gaseosos por tuberías; suministro de vapor y aire acondicionado | AN12: Captación, tratamiento y distribución de agua | AO12: Evacuación y tratamiento de aguas residuales | AP12: Recolección, tratamiento y disposición de desechos | AQ12: Recuperación de materiales (reciclaje) | AR12: Actividades de saneamiento ambiental y otros servicios de gestión de desechos | AS12: Construcción de edificaciones residenciales y no residenciales | AT12: Construcción de carreteras y vías de ferrocarril, de proyectos de servicio público y de otras obras de ingeniería civil | AU12: Actividades especializadas para la construcción de edificaciones y obras de ingeniería civil (Alquiler de maquinaría y equipo de construcción con operadores) | AV12: Comercio al por mayor y en comisión o por contrata; comercio al por menor (incluso el comercio al por menor de combustibles); comercio de vehículos automotores y motocicletas, sus partes, piezas y accesorios | AW12: Mantenimiento y reparación de vehículos automotores y motocicletas | AX12: Transporte terrestre y transporte por tuberías | AY12: Transporte acuático | AZ12: Transporte aéreo | BA12: Almacenamiento y actividades complementarias al transporte | BB12: Actividades de correo y de servicios de mensajería | BC12: Alojamiento | BD12: Actividades de servicios de comidas y bebidas | BE12: Actividades de edición (libros, periódicos, otros); actividades cinematográficas, de video y producción de programas de televisión, grabación de sonido y edición de música; Actividades de programación, transmisión y/o difusión; desarrollo de sistemas informáticos (planificación, análisis, diseño, programación, pruebas), consultoría informática y actividades relacionadas; edición de software; actividades de servicios de información. | BF12: Telecomunicaciones | BG12: Actividades de servicios financieros de intermediación; servicios financieros de inversión, custodia y otros servicios conexos | BH12: Seguros, seguros sociales y fondos de pensiones, excepto la seguridad social | BI12: Actividades auxiliares complementarias de las actividades de servicios financieros y de seguros | BJ12: Actividades inmobiliarias | BK12: Actividades profesionales, científicas y técnicas | BL12: Actividades de servicios administrativos y de apoyo | BM12: Administración pública y defensa; planes de seguridad social de afiliación obligatoria | BN12: Educación | BO12: Actividades de atención de la salud humana y de servicios sociales | BP12: Actividades artísticas, de entretenimiento y recreación | BQ12: Otras actividades de servicios | BR12: Actividades de los hogares individuales en calidad de empleadores
A14: A0101 | B14: Agricultura y actividades de servicios conexas (excepto cultivo permanente de café) | C14: 2936.995352 | D14: 928.6323742 | E14: 1864.370651 | F14: 25.35161587 | G14: 0.6600784589 | H14: 0.5918888433 | I14: 0.2818774589 | J14: 0.1212726443 | K14: 0.1797524926 | L14: 4.290611176 | M14: 633.0390558 | N14: 2307.889023 | O14: 217.610519 | P14: 5936.536181 | Q14: 1.780047294 | R14: 3341.683592 | S14: 338.4968774 | T14: 500.2745155 | U14: 363.6420001 | V14: 168.2757101 | W14: 12.03097757 | X14: 15.99766111 | Y14: 26.13504936 | Z14: 38.77851424 | AA14: 1.262200921 | AB14: 423.7915082 | AC14: 11.78802379 | AD14: 81.24571653 | AE14: 0.9921444874 | AF14: 9.185822369 | AG14: 3.475704596 | AH14: 2.562704668 | AI14: 3.952086648 | AJ14: 22.19582484 | AK14: 27.78854818 | AL14: 4.417859529 | AM14: 0.4412136573 | AN14: 1.965517023 | AO14: 0.5553310509 | AP14: 1.60359573 | AQ14: 0.03925104953 | AR14: 0.03278934396 | AS14: 124.7588569 | AT14: 38.2346273 | AU14: 37.2114907 | AV14: 10.19646017 | AW14: 0.8917141952 | AX14: 3.273084569 | AY14: 0.02780168615 | AZ14: 0.5214294256 | BA14: 0.5996406722 | BB14: 0.08457026923 | BC14: 106.982223 | BD14: 3246.381074 | BE14: 1.87290241 | BF14: 0.8344545503 | BG14: 6.589147667 | BH14: 0.4308970268 | BI14: 0.1485531224 | BJ14: 6.285483773 | BK14: 4.643321003 | BL14: 1.582329941 | BM14: 17.54918985 | BN14: 56.13894354 | BO14: 95.92603699 | BP14: 13.2415729 | BQ14: 16.74066209 | BR14: 0 | BS14: 24052.08751 | BU14: 18437.47339 | BV14: 4204.008058 | BW14: 497.4310472 | BX14: 47191
A15: 003 | B15: Cultivo permanente de café | C15: 69.52524831 | D15: 22.02732817 | E15: 42.45591756 | F15: 0.5696941237 | G15: 0.01174469472 | H15: 0.121068479 | I15: 0.04407394655 | J15: 0.02948340466 | K15: 0.02147192499 | L15: 0.5064166376 | M15: 0.5356484285 | N15: 54.69569022 | O15: 1.943523521 | P15: 144.5398666 | Q15: 7408.055959 | R15: 80.69782472 | S15: 11.7342471 | T15: 14.17167944 | U15: 19.52031688 | V15: 4.040338367 | W15: 1.128732162 | X15: 0.1556917625 | Y15: 0.06136455801 | Z15: 1.825312846 | AA15: 0.1941843131 | AB15: 10.93511269 | AC15: 0.9944440071 | AD15: 2.062888128 | AE15: 0.1431917778 | AF15: 0.9451903671 | AG15: 0.3340272649 | AH15: 0.2972721357 | AI15: 0.6314864243 | AJ15: 0.4675339593 | AK15: 1.5384381 | AL15: 0.5193431976 | AM15: 0.0604719067 | AN15: 0.2247231129 | AO15: 0.06300328135 | AP15: 0.1867531478 | AQ15: 0.004855799942 | AR15: 0.005016144451 | AS15: 10.54284323 | AT15: 2.447490142 | AU15: 2.880639995 | AV15: 1.998867781 | AW15: 0.1432797914 | AX15: 0.4418609748 | AY15: 0.0074600959 | AZ15: 0.1376490068 | BA15: 0.09648680205 | BB15: 0.02436196397 | BC15: 2.678888697 | BD15: 80.01242578 | BE15: 0.3681294118 | BF15: 0.1324408835 | BG15: 0.6209465258 | BH15: 0.08716029427 | BI15: 0.02797480072 | BJ15: 0.7338000294 | BK15: 0.5910563664 | BL15: 0.3666173666 | BM15: 1.859130286 | BN15: 2.479050298 | BO15: 11.35887671 | BP15: 1.704679071 | BQ15: 0.6262045237 | BR15: 0 | BS15: 8020.394899 | BU15: 617.7063634 | BV15: 1107.889471 | BW15: 5.009266185 | BX15: 9751
A16: A0102 | B16: Ganadería | C16: 230.0955691 | D16: 36.51083378 | E16: 2121.35431 | F16: 1.304210158 | G16: 29.09742358 | H16: 0.6306124711 | I16: 1.146835762 | J16: 0.3538076087 | K16: 0.1484877073 | L16: 1.572427703 | M16: 14313.88635 | N16: 64.79692267 | O16: 4544.390327 | P16: 547.5557638 | Q16: 17.71865305 | R16: 91.63369777 | S16: 29.42678271 | T16: 72.83148138 | U16: 98.85494843 | V16: 10.3954473 | W16: 1.450911847 | X16: 349.6727539 | Y16: 0.8296470981 | Z16: 13.68333921 | AA16: 28.8177645 | AB16: 102.5818626 | AC16: 28.29853387 | AD16: 46.60914589 | AE16: 5.750636081 | AF16: 2.992285078 | AG16: 4.165776354 | AH16: 1.029811024 | AI16: 1.403110559 | AJ16: 0.9816992996 | AK16: 3.54094861 | AL16: 1.042787887 | AM16: 0.06876588118 | AN16: 1.062447189 | AO16: 0.2227411557 | AP16: 0.4480720387 | AQ16: 0 | AR16: 1.043975968 | AS16: 22.76716314 | AT16: 5.779482097 | AU16: 5.753100645 | AV16: 0.6277468681 | AW16: 2.971741136 | AX16: 0.1781504425 | AY16: 0 | AZ16: 0 | BA16: 0.05866100017 | BB16: 0 | BC16: 28.13377809 | BD16: 898.7948443 | BE16: 0.2774952486 | BF16: 0 | BG16: 0.2884058325 | BH16: 0.06022464016 | BI16: 0.02342179577 | BJ16: 1.569899859 | BK16: 0.2677394943 | BL16: 4.451685789 | BM16: 7.840660878 | BN16: 5.003093771 | BO16: 3.823090132 | BP16: 0.1371979543 | BQ16: 5.944860799 | BR16: 0 | BS16: 23804.15436 | BU16: 6309.765065 | BV16: 792.1249221 | BW16: -118.0443432 | BX16: 30788
A17: A02 | B17: Silvicultura y extracción de madera | C17: 74.7740351 | D17: 18.00393261 | E17: 34.65931089 | F17: 245.9838404 | G17: 0.0001813773869 | H17: 0.004431706392 | I17: 0 | J17: 0.0004968940114 | K17: 0.002406053085 | L17: 0.003822914659 | M17: 0.3365099321 | N17: 44.76749606 | O17: 0.4213190583 | P17: 114.7542077 | Q17: 0.02735415079 | R17: 77.50696037 | S17: 7.286323644 | T17: 9.58488317 | U17: 6.600824664 | V17: 3.254912407 | W17: 0.03382441407 | X17: 0 | Y17: 459.610935 | Z17: 98.89295474 | AA17: 0 | AB17: 9.806180777 | AC17: 1.009703664 | AD17: 26.2692102 | AE17: 0.9906841712 | AF17: 0.01250321242 | AG17: 0 | AH17: 0 | AI17: 0 | AJ17: 4.822003962 | AK17: 1.038195014 | AL17: 0.08229920012 | AM17: 0.02774289077 | AN17: 0.02744856523 | AO17: 0.006878827753 | AP17: 0.007214178904 | AQ17: 0 | AR17: 8.725932573e-05 | AS17: 115.6175605 | AT17: 235.805662 | AU17: 237.3703351 | AV17: 0.03923417926 | AW17: 0 | AX17: 0.6276898355 | AY17: 0 | AZ17: 0 | BA17: 0.00366631251 | BB17: 0 | BC17: 2.017383351 | BD17: 61.75450289 | BE17: 0.0002773630112 | BF17: 0 | BG17: 0.0448187089 | BH17: 0.00376404001 | BI17: 0.001463862235 | BJ17: 0.09811874117 | BK17: 0.01615378116 | BL17: 0.008194255341 | BM17: 0.1485844869 | BN17: 0.923458126 | BO17: 0.008375136568 | BP17: 0.008574872142 | BQ17: 0.3110290157 | BR17: 0 | BS17: 1895.419962 | BU17: 574.1740036 | BV17: 239.8008622 | BW17: 68.60517244 | BX17: 2778
A18: A03 | B18: Pesca y acuicultura | C18: 0 | D18: 0 | E18: 0 | F18: 0 | G18: 268.0485291 | H18: 0 | I18: 0 | J18: 0 | K18: 0 | L18: 0 | M18: 432.3184118 | N18: 0 | O18: 0 | P18: 0 | Q18: 0 | R18: 0 | S18: 0 | T18: 1.659804054 | U18: 0 | V18: 0 | W18: 0 | X18: 0 | Y18: 0 | Z18: 0 | AA18: 0 | AB18: 0 | AC18: 0 | AD18: 0 | AE18: 0 | AF18: 0 | AG18: 0 | AH18: 0 | AI18: 0 | AJ18: 0 | AK18: 0 | AL18: 0 | AM18: 0 | AN18: 0 | AO18: 0 | AP18: 0 | AQ18: 0 | AR18: 0 | AS18: 0 | AT18: 0 | AU18: 0 | AV18: 0 | AW18: 0 | AX18: 0 | AY18: 0 | AZ18: 0 | BA18: 0 | BB18: 0 | BC18: 16.90997783 | BD18: 337.1067843 | BE18: 0 | BF18: 0 | BG18: 0 | BH18: 0 | BI18: 0 | BJ18: 0 | BK18: 0 | BL18: 0 | BM18: 0 | BN18: 0 | BO18: 0 | BP18: 0 | BQ18: 0 | BR18: 0 | BS18: 1056.043507 | BU18: 1616.986091 | BV18: 0 | BW18: 41.97040157 | BX18: 2715
A19: 17 | B19: Extracción de carbón de piedra y lignito | C19: 2.040604036 | D19: 0.1202887142 | E19: 1.21939582 | F19: 0.03933707775 | G19: 0.06703189947 | H19: 4.580071527 | I19: 40.61578503 | J19: 1.949282568 | K19: 1.009534751 | L19: 0.2748400977 | M19: 6.528060002 | N19: 4.330668174 | O19: 0.2622320672 | P19: 0.4971720361 | Q19: 0.9157059861 | R19: 30.21182743 | S19: 0.04481963343 | T19: 0.1390984274 | U19: 0.2631162698 | V19: 0.1880993864 | W19: 0.3273562296 | X19: 0.1597420232 | Y19: 0.08167590157 | Z19: 12.94886129 | AA19: 463.2524501 | AB19: 14.80610703 | AC19: 0.2541680126 | AD19: 0.3201743257 | AE19: 10.69714795 | AF19: 17.18841837 | AG19: 0.166350968 | AH19: 0.1250088682 | AI19: 0.1913853933 | AJ19: 0.09086600507 | AK19: 0.1505936917 | AL19: 232.5917997 | AM19: 0.3920655258 | AN19: 0.2465143238 | AO19: 0.04566663215 | AP19: 0.3775436741 | AQ19: 0.03735522424 | AR19: 0.3245169744 | AS19: 2.041824923 | AT19: 6.151908871 | AU19: 2.991343688 | AV19: 4.409262791 | AW19: 0.6661404516 | AX19: 16.75853752 | AY19: 0.1724303305 | AZ19: 4.469340917 | BA19: 0.6628950918 | BB19: 0.1577307061 | BC19: 0.2311615505 | BD19: 1.139903153 | BE19: 0.7781513621 | BF19: 1.049680054 | BG19: 1.218855024 | BH19: 0.315057748 | BI19: 0.07502420804 | BJ19: 0.5061705155 | BK19: 2.187606631 | BL19: 0.9626019436 | BM19: 6.348512925 | BN19: 2.562485336 | BO19: 0.9936856697 | BP19: 0.43967193 | BQ19: 0.09613074997 | BR19: 0 | BS19: 907.4588533 | BU19: 29.38305998 | BV19: 42.18284987 | BW19: 17456.97524 | BX19: 18436
A20: 018 | B20: Extracción de petróleo crudo y gas natural | C20: 4.710942732 | D20: 0.8632897396 | E20: 3.763346918 | F20: 0.1882056546 | G20: 0.1035776174 | H20: 39.261823 | I20: 459.2859357 | J20: 15.54633202 | K20: 11.53109296 | L20: 2.142397668 | M20: 5.524451129 | N20: 1.258783874 | O20: 1.786315645 | P20: 5.273072725 | Q20: 0.8478642374 | R20: 0.8005071045 | S20: 0.5877225124 | T20: 1.317834762 | U20: 2.892978077 | V20: 1.358382542 | W20: 3.265987572 | X20: 1.430019303 | Y20: 0.7047628098 | Z20: 13.22333057 | AA20: 13415.75238 | AB20: 5.716931217 | AC20: 2.26104909 | AD20: 3.416674563 | AE20: 4.790739027 | AF20: 4.170853757 | AG20: 1.079558794 | AH20: 1.594027613 | AI20: 1.944194352 | AJ20: 0.9669674285 | AK20: 0.425195854 | AL20: 433.9220028 | AM20: 2020.666065 | AN20: 2.258668941 | AO20: 0.6534380658 | AP20: 1.79909463 | AQ20: 0.3575390575 | AR20: 4.154468779 | AS20: 6.51744887 | AT20: 7.443181379 | AU20: 3.829756979 | AV20: 33.47277087 | AW20: 2.331403695 | AX20: 10.59174361 | AY20: 0.2527019269 | AZ20: 2.104949039 | BA20: 3.592402885 | BB20: 0.5307576101 | BC20: 2.339681987 | BD20: 10.43270704 | BE20: 8.660238467 | BF20: 12.8169814 | BG20: 15.48329642 | BH20: 3.670608705 | BI20: 0.7916802622 | BJ20: 6.38458834 | BK20: 26.44544361 | BL20: 11.60170922 | BM20: 65.14813502 | BN20: 34.33576598 | BO20: 9.739909375 | BP20: 5.720180683 | BQ20: 0.6026658742 | BR20: 0 | BS20: 16768.43951 | BU20: 151.2247291 | BV20: -210.4354386 | BW20: 29083.7712 | BX20: 45793
A21: 019 | B21: Extracción de minerales metalíferos | C21: 2.599601094 | D21: 0.5642651085 | E21: 1.860033781 | F21: 0.03547525353 | G21: 0.09296146263 | H21: 0.7024902753 | I21: 5.239070567 | J21: 0.2165776454 | K21: 0.1933443489 | L21: 0.4000829667 | M21: 2.114625378 | N21: 0.3445299536 | O21: 0.8877562636 | P21: 3.097904302 | Q21: 0.5846093526 | R21: 0.1314854793 | S21: 0.4245467264 | T21: 0.8179494675 | U21: 1.234306763 | V21: 0.7088064492 | W21: 1.203973022 | X21: 0.5411426368 | Y21: 0.6134896197 | Z21: 1.961901449 | AA21: 1.961302541 | AB21: 13.43466662 | AC21: 0.7726042897 | AD21: 1.568466673 | AE21: 1.575207708 | AF21: 4425.763725 | AG21: 2.392597003 | AH21: 1.075730127 | AI21: 1.392768078 | AJ21: 0.6741937381 | AK21: 0.2582375789 | AL21: 1.631347661 | AM21: 0.1750644016 | AN21: 0.35306882 | AO21: 0.1070076066 | AP21: 0.2947377769 | AQ21: 0.07202769913 | AR21: 0.7961819407 | AS21: 4.743853849 | AT21: 4.751331162 | AU21: 2.644997378 | AV21: 5.562841683 | AW21: 1.491390876 | AX21: 2.982051621 | AY21: 0.05292499654 | AZ21: 0.4427076992 | BA21: 0.8864362286 | BB21: 0.08647140642 | BC21: 0.6107185716 | BD21: 6.52450337 | BE21: 1.815637147 | BF21: 3.274809995 | BG21: 2.716923688 | BH21: 0.6848111582 | BI21: 0.1408999202 | BJ21: 1.123501346 | BK21: 5.008990499 | BL21: 2.298289056 | BM21: 12.51718222 | BN21: 6.647600374 | BO21: 3.533040924 | BP21: 1.110453966 | BQ21: 0.2777825468 | BR21: 0 | BS21: 4552.800017 | BU21: 103.6056204 | BV21: 23.32062555 | BW21: 207.2737374 | BX21: 4887
A22: 020 | B22: Extracción de otras minas y canteras | C22: 19.94575957 | D22: 0.1997911237 | E22: 104.3862118 | F22: 7.190109592 | G22: 0.01475823229 | H22: 1.550740601 | I22: 10.55513786 | J22: 0.5059530555 | K22: 0.4159938135 | L22: 0.05461751671 | M22: 3.689678015 | N22: 9.494838919 | O22: 1.725276214 | P22: 15.23818317 | Q22: 0.08427731128 | R22: 0.8707808955 | S22: 0.7771181093 | T22: 12.16654304 | U22: 7.164731817 | V22: 2.915796495 | W22: 0.476564358 | X22: 1.781868395 | Y22: 0.07308043271 | Z22: 0.3910002303 | AA22: 47.99614504 | AB22: 245.9661182 | AC22: 8.388600423 | AD22: 3.04664427 | AE22: 610.7870567 | AF22: 15.66151531 | AG22: 0.830524599 | AH22: 0.6201913027 | AI22: 1.136320537 | AJ22: 0.1358094394 | AK22: 28.09623444 | AL22: 0.4296370786 | AM22: 1.085868385 | AN22: 0.04811261159 | AO22: 0.0158000351 | AP22: 0.08862210368 | AQ22: 0.143172999 | AR22: 0.07101193892 | AS22: 342.285778 | AT22: 1873.483096 | AU22: 631.717521 | AV22: 7.388110821 | AW22: 0.3085540107 | AX22: 5.601271934 | AY22: 0.02589443817 | AZ22: 2.414197354 | BA22: 1.490695639 | BB22: 0.1881604131 | BC22: 0.1147929725 | BD22: 31.1774209 | BE22: 0.1960803315 | BF22: 0.4489154594 | BG22: 0.5849448518 | BH22: 0.0675765598 | BI22: 0.01894481456 | BJ22: 0.2207113328 | BK22: 1.047163652 | BL22: 0.3075186118 | BM22: 1.946933318 | BN22: 0.6681687592 | BO22: 0.3928879898 | BP22: 0.1207636624 | BQ22: 0.1193036563 | BR22: 0 | BS22: 4068.551602 | BU22: 124.36329 | BV22: -36.62130111 | BW22: 68.70640881 | BX22: 4225
A23: 021-022 | B23: Actividades de apoyo para actividades de explotación de minas y canteras | C23: 1.976129631 | D23: 0.3933143453 | E23: 1.636417762 | F23: 0.08296229692 | G23: 0.08246424813 | H23: 759.672436 | I23: 9124.84948 | J23: 278.8072182 | K23: 228.7807621 | L23: 0.6581356825 | M23: 1.902248974 | N23: 0.4526808401 | O23: 0.6731214289 | P23: 2.245709437 | Q23: 0.3845536647 | R23: 0.2293156235 | S23: 0.2540707575 | T23: 0.5758669375 | U23: 1.031793987 | V23: 0.5725826232 | W23: 1.127657883 | X23: 0.5294300471 | Y23: 0.358965237 | Z23: 1.396197268 | AA23: 20.2008273 | AB23: 2.604696469 | AC23: 0.7824270889 | AD23: 1.209037249 | AE23: 2.678408884 | AF23: 1.937265399 | AG23: 0.6431309569 | AH23: 2.68387959 | AI23: 1.065629212 | AJ23: 0.4841836832 | AK23: 0.4572309906 | AL23: 2.991229271 | AM23: 3.587393195 | AN23: 0.6264257975 | AO23: 0.1708146353 | AP23: 0.4140664454 | AQ23: 0.1050645738 | AR23: 1.094304239 | AS23: 8.635142256 | AT23: 6.815623749 | AU23: 4.26868834 | AV23: 10.82912681 | AW23: 1.940778214 | AX23: 5.142204268 | AY23: 0.0821387967 | AZ23: 1.43268969 | BA23: 1.469044443 | BB23: 0.1854454095 | BC23: 0.7625352957 | BD23: 4.705503105 | BE23: 2.540304164 | BF23: 4.093434872 | BG23: 4.383711771 | BH23: 1.025896145 | BI23: 0.2177503885 | BJ23: 2.178052518 | BK23: 7.403249065 | BL23: 3.16794731 | BM23: 18.07873845 | BN23: 9.370776375 | BO23: 3.352451848 | BP23: 1.628444536 | BQ23: 1.13227568 | BR23: 0 | BS23: 10557.25148 | BU23: 78.81423685 | BV23: 3214.800149 | BW23: -185.8658696 | BX23: 13665
A24: 023-024-025 | B24: Procesamiento y conservación de carne y productos cárnicos de bovinos, bufalinos, porcinos y otras carnes n.c.p.; procesamiento y conservación de carne y productos cárnicos de aves de corral y procesamiento y conservación de pescados, crustáceos y moluscos | C24: 6.723363287 | D24: 0.551431184 | E24: 43.34170817 | F24: 0.05187539209 | G24: 0.4750016328 | H24: 3.14816503 | I24: 8.670856243 | J24: 0.9306117036 | K24: 0.5812310296 | L24: 3.216045853 | M24: 1135.351834 | N24: 63.56437806 | O24: 73.51836453 | P24: 300.231117 | Q24: 0.981597682 | R24: 0.3999003886 | S24: 1.526015704 | T24: 49.43429753 | U24: 3.87683598 | V24: 1.581052503 | W24: 3.676455607 | X24: 6.700458159 | Y24: 0.6206135208 | Z24: 2.571120406 | AA24: 2.682283867 | AB24: 20.97246306 | AC24: 3.292333416 | AD24: 2.595176467 | AE24: 2.00409147 | AF24: 9.555394085 | AG24: 2.687204098 | AH24: 2.862184326 | AI24: 2.355793794 | AJ24: 1.233357591 | AK24: 1.216033506 | AL24: 14.77531981 | AM24: 1.697992949 | AN24: 3.491861205 | AO24: 0.7352359448 | AP24: 2.462823716 | AQ24: 0.05773364521 | AR24: 9.027970912 | AS24: 12.91278279 | AT24: 12.00930355 | AU24: 8.382498187 | AV24: 45.306819 | AW24: 2.958137375 | AX24: 10.70594162 | AY24: 0.4776543763 | AZ24: 2.719097295 | BA24: 5.579495172 | BB24: 0.7403240511 | BC24: 300.3886984 | BD24: 3961.738392 | BE24: 18.37106669 | BF24: 25.29334371 | BG24: 31.58327153 | BH24: 7.946384826 | BI24: 1.617802936 | BJ24: 13.15183788 | BK24: 57.00328784 | BL24: 23.82481378 | BM24: 138.3623644 | BN24: 145.3915389 | BO24: 17.47173866 | BP24: 11.81571259 | BQ24: 0.5389296352 | BR24: 0 | BS24: 6651.720822 | BU24: 22417.66872 | BV24: 51.00648241 | BW24: -1438.396027 | BX24: 27682
A25: 026 | B25: Elaboración de aceites y grasas de origen vegetal y animal | C25: 28.33057731 | D25: 5.862372493 | E25: 455.5609692 | F25: 0.3325059326 | G25: 0.5703794837 | H25: 0.8165971628 | I25: 2.191664257 | J25: 0.3205189931 | K25: 0.1763382619 | L25: 1.352605053 | M25: 46.10518457 | N25: 3320.000768 | O25: 37.99261111 | P25: 1441.901692 | Q25: 0.4186983857 | R25: 0.330067261 | S25: 45.27669911 | T25: 239.0831043 | U25: 5.527192593 | V25: 3.392651793 | W25: 1.723300854 | X25: 1.637978972 | Y25: 0.768911104 | Z25: 5.181674931 | AA25: 15.39529208 | AB25: 964.8947705 | AC25: 28.47665233 | AD25: 22.8187483 | AE25: 3.874248703 | AF25: 3.220462095 | AG25: 2.567136131 | AH25: 1.221799914 | AI25: 1.591247446 | AJ25: 0.8321705177 | AK25: 0.884823653 | AL25: 4.081053603 | AM25: 0.3100383519 | AN25: 0.9201389036 | AO25: 0.2110414861 | AP25: 0.6272466669 | AQ25: 0.04283365552 | AR25: 1.933666097 | AS25: 7.787863765 | AT25: 5.089455032 | AU25: 2.273127572 | AV25: 8.252956413 | AW25: 2.516152524 | AX25: 2.669026284 | AY25: 0.08276116377 | AZ25: 0.4750596418 | BA25: 1.085974297 | BB25: 0.1310002183 | BC25: 16.90751096 | BD25: 728.8410252 | BE25: 3.158752269 | BF25: 4.584934951 | BG25: 5.069722685 | BH25: 1.252829888 | BI25: 0.257307913 | BJ25: 2.109718589 | BK25: 9.01307031 | BL25: 6.022786559 | BM25: 22.12117277 | BN25: 20.4652535 | BO25: 5.563049227 | BP25: 1.902208065 | BQ25: 2.749468576 | BR25: 0 | BS25: 7559.140622 | BU25: 3963.605446 | BV25: 44.11852768 | BW25: -1800.864595 | BX25: 9766
A26: 027 | B26: Elaboración de productos lácteos | C26: 4.821818578 | D26: 0.6205932677 | E26: 49.46029962 | F26: 0.03846474119 | G26: 2.019031602 | H26: 0.7955099306 | I26: 2.322264629 | J26: 0.2293766051 | K26: 0.1736293255 | L26: 0.841377705 | M26: 36.20029315 | N26: 10.24982678 | O26: 542.1871888 | P26: 739.0404447 | Q26: 5.217268184 | R26: 0.2736902804 | S26: 79.31930952 | T26: 329.3144038 | U26: 140.67182 | V26: 0.9185498571 | W26: 1.719823935 | X26: 0.728220865 | Y26: 0.6912233765 | Z26: 4.229650191 | AA26: 2.288573355 | AB26: 7.362990929 | AC26: 4.529076065 | AD26: 1.93097027 | AE26: 1.831274579 | AF26: 3.053005166 | AG26: 0.968324661 | AH26: 1.278749976 | AI26: 1.634423212 | AJ26: 0.8357674341 | AK26: 0.402186413 | AL26: 3.679394649 | AM26: 0.4110558264 | AN26: 0.8363900503 | AO26: 0.2088501465 | AP26: 0.634023066 | AQ26: 0.08554532548 | AR26: 2.040198134 | AS26: 5.659468782 | AT26: 5.684085452 | AU26: 3.159421322 | AV26: 12.75148741 | AW26: 1.883603057 | AX26: 4.389532884 | AY26: 0.1184668714 | AZ26: 0.7386790731 | BA26: 1.650275961 | BB26: 0.1915776524 | BC26: 31.73468169 | BD26: 995.8864901 | BE26: 4.502513452 | BF26: 6.736409876 | BG26: 7.056996983 | BH26: 1.783987516 | BI26: 0.3638053337 | BJ26: 2.948041655 | BK26: 12.91205625 | BL26: 5.680523882 | BM26: 32.49300798 | BN26: 67.85581934 | BO26: 5.92671211 | BP26: 2.743638088 | BQ26: 0.3449706262 | BR26: 0 | BS26: 3201.291132 | BU26: 8714.941319 | BV26: 65.55828836 | BW26: -445.7907389 | BX26: 11536
A27: 028-032-035 | B27: Elaboración de productos de molinería, almidones y productos derivados del almidón; elaboración de productos de panadería; elaboración de macarrones, fideos, alcuzcuz, y productos farináceos similares y elaboración de alimentos preparados para animales | C27: 243.3617179 | D27: 0.5129317899 | E27: 5800.895071 | F27: 0.05398068042 | G27: 289.4286871 | H27: 0.7280250198 | I27: 2.114344218 | J27: 0.2007101909 | K27: 0.1530184361 | L27: 0.7657991785 | M27: 25.58159377 | N27: 11.97878688 | O27: 79.42996914 | P27: 1992.922862 | Q27: 0.598190146 | R27: 5.546377014 | S27: 158.8701922 | T27: 372.1108081 | U27: 779.5196626 | V27: 0.7852572614 | W27: 1.456878525 | X27: 1.278891704 | Y27: 0.5572399273 | Z27: 59.3827087 | AA27: 2.058321568 | AB27: 33.19170989 | AC27: 98.42965502 | AD27: 1.596132214 | AE27: 3.429331583 | AF27: 2.618874131 | AG27: 0.7983017761 | AH27: 1.067250422 | AI27: 1.3705852 | AJ27: 0.631438511 | AK27: 16.26160988 | AL27: 3.371828226 | AM27: 0.3776706164 | AN27: 0.77171828 | AO27: 0.1880673566 | AP27: 0.5799707702 | AQ27: 0.06433934923 | AR27: 1.903738785 | AS27: 5.831871095 | AT27: 10.65624639 | AU27: 4.637988752 | AV27: 10.78477555 | AW27: 1.586326964 | AX27: 3.83566756 | AY27: 0.1091891578 | AZ27: 0.6554297604 | BA27: 1.483923777 | BB27: 0.1723991872 | BC27: 62.05627143 | BD27: 1607.553811 | BE27: 4.019768805 | BF27: 6.149190919 | BG27: 6.565238567 | BH27: 1.662266768 | BI27: 0.3392743237 | BJ27: 2.744289984 | BK27: 11.99368867 | BL27: 5.171863678 | BM27: 83.87529029 | BN27: 22.34985198 | BO27: 5.232300068 | BP27: 2.503735409 | BQ27: 0.2923097372 | BR27: 0 | BS27: 11859.20722 | BU27: 12780.9644 | BV27: 111.0179073 | BW27: -1283.189521 | BX27: 23468
A28: 029 | B28: Elaboración de productos de café | C28: 0.5413265272 | D28: 0.005849429167 | E28: 8.255339894 | F28: 0 | G28: 0.3880977459 | H28: 0.2667667796 | I28: 0.7257443478 | J28: 0.07843230898 | K28: 0.04749452751 | L28: 0.2685144325 | M28: 0.736383127 | N28: 0.1540858872 | O28: 0.3217538058 | P28: 3.837848193 | Q28: 719.9944546 | R28: 0.03489679024 | S28: 5.870676594 | T28: 67.33889857 | U28: 1.23326454 | V28: 0.09427712131 | W28: 0.2507619822 | X28: 0.08109163155 | Y28: 0.006071597856 | Z28: 0.1804147799 | AA28: 0.1042489596 | AB28: 0.269237041 | AC28: 2.02754054 | AD28: 0.1230413639 | AE28: 0.07289341358 | AF28: 0.2610550017 | AG28: 0.04659066778 | AH28: 0.06887191447 | AI28: 0.08163922558 | AJ28: 0.01920346401 | AK28: 0.02641829627 | AL28: 1.258751128 | AM28: 0.1454876867 | AN28: 0.3000157901 | AO28: 0.06080168572 | AP28: 0.2082084468 | AQ28: 0 | AR28: 0.7840300606 | AS28: 0.3437608587 | AT28: 0.3547625277 | AU28: 0.1942745607 | AV28: 3.84180499 | AW28: 0.1670759359 | AX28: 0.7704750511 | AY28: 0.04070463774 | AZ28: 0.1709205912 | BA28: 0.455021755 | BB28: 0.06256098272 | BC28: 11.63149718 | BD28: 355.0665222 | BE28: 1.576508613 | BF28: 2.119559847 | BG28: 2.720716401 | BH28: 0.6906801478 | BI28: 0.1403079596 | BJ28: 1.14442144 | BK28: 4.943562567 | BL28: 2.050500814 | BM28: 12.77511946 | BN28: 7.92964057 | BO28: 2.486104194 | BP28: 0.9939325583 | BQ28: 0.02904465484 | BR28: 0 | BS28: 1229.26996 | BU28: 1457.536777 | BV28: 92.91873784 | BW28: 7198.274525 | BX28: 9978
A29: 030-031 | B29: Elaboración de azúcar y elaboración de panela | C29: 88.49338587 | D29: 36.69900365 | E29: 24.17670925 | F29: 2.082346499 | G29: 1.877017629 | H29: 2.236658459 | I29: 7.114807979 | J29: 1.194045163 | K29: 0.6225429843 | L29: 6.972828539 | M29: 19.25226749 | N29: 3.39208076 | O29: 101.1815204 | P29: 306.1341734 | Q29: 1.752275675 | R29: 110.6716736 | S29: 266.9202531 | T29: 168.448312 | U29: 776.5428727 | V29: 19.81950552 | W29: 6.899380871 | X29: 9.768125642 | Y29: 3.660640971 | Z29: 30.83204635 | AA29: 95.45720476 | AB29: 319.1159813 | AC29: 52.28818173 | AD29: 145.0890956 | AE29: 23.65190889 | AF29: 14.62811142 | AG29: 14.46814973 | AH29: 5.461751977 | AI29: 6.425570337 | AJ29: 3.916223817 | AK29: 5.304102665 | AL29: 77.80050538 | AM29: 1.533591058 | AN29: 4.160087939 | AO29: 1.39183903 | AP29: 2.955215288 | AQ29: 0.1871566295 | AR29: 3.437118242 | AS29: 36.41036582 | AT29: 18.949811 | AU29: 6.913263714 | AV29: 12.69551436 | AW29: 11.3860556 | AX29: 3.86820874 | AY29: 0.09077151038 | AZ29: 0.5053890772 | BA29: 0.7317745319 | BB29: 0.1344770708 | BC29: 12.37079158 | BD29: 308.0096541 | BE29: 1.54917886 | BF29: 2.633705831 | BG29: 2.41170116 | BH29: 0.1478824517 | BI29: 0.1524682551 | BJ29: 0.5750641645 | BK29: 0.6454303617 | BL29: 15.41750581 | BM29: 7.980073033 | BN29: 7.329058569 | BO29: 15.93804612 | BP29: 1.38896415 | BQ29: 16.95594705 | BR29: 0 | BS29: 3259.207373 | BU29: 4428.005189 | BV29: 24.15463952 | BW29: 370.6327986 | BX29: 8082
A30: 033 | B30: Elaboración de cacao, chocolate y productos de confitería | C30: 1.045446416 | D30: 0.0004254130304 | E30: 24.99692064 | F30: 0 | G30: 1.23940893 | H30: 0.01940122033 | I30: 0.05278140711 | J30: 0.005704167926 | K30: 0.003454147455 | L30: 0.01952832236 | M30: 2.54584062 | N30: 0.07847406814 | O30: 16.71676573 | P30: 66.23265812 | Q30: 0.2969484037 | R30: 0.02772508936 | S30: 13.57921589 | T30: 31.31158733 | U30: 4.638604023 | V30: 0.006856517914 | W30: 0.01823723507 | X30: 0.008697863096 | Y30: 0.0004415707532 | Z30: 0.3808480528 | AA30: 0.007581742516 | AB30: 0.2452130792 | AC30: 0.462034989 | AD30: 0.008948462829 | AE30: 0.009426682035 | AF30: 0.01898581831 | AG30: 0.003388412202 | AH30: 0.005008866507 | AI30: 0.005937398224 | AJ30: 0.001396615564 | AK30: 0.06862557116 | AL30: 0.09154553655 | AM30: 0.01058092267 | AN30: 0.02181933019 | AO30: 0.00442194078 | AP30: 0.01514243249 | AQ30: 0 | AR30: 0.05702036804 | AS30: 0.02500078972 | AT30: 0.0258009111 | AU30: 0.01412905896 | AV30: 0.5701541887 | AW30: 0.01215097716 | AX30: 0.05603454917 | AY30: 0.00296033729 | AZ30: 0.01243058845 | BA30: 0.03309249127 | BB30: 0.004549889652 | BC30: 6.950026458 | BD30: 285.6919798 | BE30: 0.1146551718 | BF30: 0.1541498071 | BG30: 0.1978702837 | BH30: 0.05023128348 | BI30: 0.01020421525 | BJ30: 0.08323065019 | BK30: 0.3595318231 | BL30: 0.1491273319 | BM30: 1.099537463 | BN30: 2.522614346 | BO30: 0.09928034524 | BP30: 0.07228600424 | BQ30: 0.002112338534 | BR30: 0 | BS30: 462.5761904 | BU30: 1954.882048 | BV30: 30.23616528 | BW30: 404.3055966 | BX30: 2852
A31: 034 | B31: Procesamiento y conservación de frutas, legumbres, hortalizas y tubérculos; elaboración de otros productos alimenticios (platos preparados y conservados mediante enlatado o congelado, elaboración de sopas y caldos en estado sólidos, polvo o instantáneas entre otros) | C31: 33.18179271 | D31: 1.608973067 | E31: 699.4025471 | F31: 0.1946822369 | G31: 34.38105911 | H31: 0.620812153 | I31: 1.630754394 | J31: 0.2071877271 | K31: 0.1118670972 | L31: 0.7581157942 | M31: 99.77551491 | N31: 55.53475554 | O31: 58.35363955 | P31: 379.218124 | Q31: 18.50286071 | R31: 0.9262507337 | S31: 34.61778481 | T31: 199.3294247 | U31: 137.1492158 | V31: 1.057311741 | W31: 0.7186978119 | X31: 1.151520013 | Y31: 0.1307223482 | Z31: 8.910641106 | AA31: 4.978173277 | AB31: 38.85067304 | AC31: 15.47882152 | AD31: 6.557240396 | AE31: 9.957472347 | AF31: 1.134514265 | AG31: 0.6942687517 | AH31: 0.2925106643 | AI31: 0.37618321 | AJ31: 0.1672718682 | AK31: 2.522843094 | AL31: 2.579829691 | AM31: 0.2940908197 | AN31: 0.6945389653 | AO31: 0.1391018562 | AP31: 0.4681185658 | AQ31: 0 | AR31: 1.730219391 | AS31: 7.061091796 | AT31: 28.8244149 | AU31: 9.831741433 | AV31: 9.640112178 | AW31: 0.7993177616 | AX31: 1.557313363 | AY31: 0.0821493598 | AZ31: 0.3463613701 | BA31: 0.9239414556 | BB31: 0.1267218986 | BC31: 26.94542586 | BD31: 734.7035675 | BE31: 3.226703622 | BF31: 4.278137896 | BG31: 5.513557117 | BH31: 1.394349067 | BI31: 0.2831669731 | BJ31: 2.310120609 | BK31: 9.986769026 | BL31: 4.77254335 | BM31: 30.52590355 | BN31: 34.06625333 | BO31: 4.41068015 | BP31: 2.024089971 | BQ31: 0.7956085979 | BR31: 0 | BS31: 2778.820169 | BU31: 4001.415253 | BV31: 65.5344794 | BW31: -481.7699011 | BX31: 6364
A32: 036 | B32: Elaboración de bebidas (incluido el hielo) y elaboración de productos de tabaco | C32: 0.8008269583 | D32: 0.006381195455 | E32: 82.40506916 | F32: 0 | G32: 0.7010797991 | H32: 0.291018305 | I32: 0.7917211067 | J32: 0.08556251889 | K32: 0.05181221183 | L32: 0.2929248354 | M32: 118.5401556 | N32: 8.54259581 | O32: 23.82663912 | P32: 99.66392739 | Q32: 0.06106198185 | R32: 1.531760107 | S32: 0.7907359026 | T32: 5.515675694 | U32: 231.3260015 | V32: 0.1028477687 | W32: 0.2735585261 | X32: 0.08910564912 | Y32: 0.006623561297 | Z32: 71.30257587 | AA32: 0.1137261377 | AB32: 3.44814385 | AC32: 1.114488258 | AD32: 0.1342269424 | AE32: 2.385693174 | AF32: 0.2847872746 | AG32: 0.05082618304 | AH32: 0.0751329976 | AI32: 0.08906097336 | AJ32: 0.02094923346 | AK32: 0.04411392187 | AL32: 1.373183048 | AM32: 0.15871384 | AN32: 0.3272899528 | AO32: 0.06632911169 | AP32: 0.2271364874 | AQ32: 0 | AR32: 0.8553055206 | AS32: 0.3750118458 | AT32: 0.3870136665 | AU32: 0.2119358844 | AV32: 166.7279165 | AW32: 0.1822646573 | AX32: 0.8405182375 | AY32: 0.04440505935 | AZ32: 0.1864588268 | BA32: 0.4963873691 | BB32: 0.06824834479 | BC32: 161.580128 | BD32: 4290.821541 | BE32: 1.719827577 | BF32: 2.312247106 | BG32: 2.968054255 | BH32: 0.7534692522 | BI32: 0.1530632287 | BJ32: 1.248459753 | BK32: 5.392977346 | BL32: 2.236909978 | BM32: 13.11266067 | BN32: 9.635241476 | BO32: 1.489205179 | BP32: 1.084290064 | BQ32: 0.03168507801 | BR32: 0 | BS32: 5321.828688 | BU32: 11624.47654 | BV32: -22.26565902 | BW32: -1762.03957 | BX32: 15162
A33: 037 | B33: Preparación, hilatura, tejeduría y acabado de productos textiles; fabricación de otros productos textiles | C33: 103.282839 | D33: 30.07584774 | E33: 2.215589151 | F33: 0.03336843486 | G33: 0.5723301684 | H33: 6.012113912 | I33: 8.144127924 | J33: 0.2296549447 | K33: 0.3609962215 | L33: 4.720810186 | M33: 7.953895383 | N33: 1.46847138 | O33: 2.618923591 | P33: 5.490225973 | Q33: 15.05105383 | R33: 5.828582388 | S33: 1.123244506 | T33: 2.857285829 | U33: 4.857016677 | V33: 1101.467048 | W33: 2520.713492 | X33: 132.0276027 | Y33: 3.498508243 | Z33: 264.6548525 | AA33: 3.926538039 | AB33: 34.03504654 | AC33: 15.32623508 | AD33: 76.36379401 | AE33: 8.494309802 | AF33: 29.00065063 | AG33: 6.680951634 | AH33: 6.743434509 | AI33: 30.08953376 | AJ33: 200.5606985 | AK33: 29.8304276 | AL33: 14.70383944 | AM33: 0.8040844959 | AN33: 1.843948264 | AO33: 1.371258906 | AP33: 1.956316615 | AQ33: 60.38701994 | AR33: 0.3972933483 | AS33: 150.7682723 | AT33: 335.5169795 | AU33: 75.03057685 | AV33: 137.7030798 | AW33: 4.421077564 | AX33: 13.08245606 | AY33: 0.6380465073 | AZ33: 5.878225613 | BA33: 6.612036917 | BB33: 0.9015365079 | BC33: 3.251231006 | BD33: 16.42019619 | BE33: 79.38179407 | BF33: 2.163583166 | BG33: 24.41959631 | BH33: 2.017624259 | BI33: 0.3437765774 | BJ33: 0.8563407144 | BK33: 5.194452141 | BL33: 8.968738724 | BM33: 25.64263291 | BN33: 8.065632165 | BO33: 13.16301191 | BP33: 5.117886984 | BQ33: 37.40460287 | BR33: 0 | BS33: 5710.736649 | BU33: 2951.540848 | BV33: 252.1733324 | BW33: -2815.45083 | BX33: 6099
A34: 038 | B34: Confección de prendas de vestir | C34: 57.29666342 | D34: 5.503070598 | E34: 15.22900257 | F34: 0.1163134578 | G34: 0.8451698724 | H34: 54.69867374 | I34: 37.66380964 | J34: 0.1021796615 | K34: 3.824397301 | L34: 8.36139933 | M34: 8.887033156 | N34: 2.390018586 | O34: 5.9182254 | P34: 12.69889625 | Q34: 3.565537607 | R34: 2.240091726 | S34: 2.796742765 | T34: 5.358226482 | U34: 15.13022863 | V34: 169.073032 | W34: 611.2189817 | X34: 134.3788869 | Y34: 2.435916797 | Z34: 54.73117901 | AA34: 4.461324656 | AB34: 21.35979097 | AC34: 7.033586982 | AD34: 26.30067971 | AE34: 7.41311681 | AF34: 24.8563269 | AG34: 8.529019489 | AH34: 7.636583456 | AI34: 9.886699835 | AJ34: 35.42955705 | AK34: 9.831588358 | AL34: 17.73073214 | AM34: 3.22171009 | AN34: 9.006046835 | AO34: 5.083441179 | AP34: 9.640924669 | AQ34: 9.170750521 | AR34: 2.60996313 | AS34: 50.99854401 | AT34: 82.26261172 | AU34: 30.54040973 | AV34: 125.0936346 | AW34: 8.227364075 | AX34: 28.62937537 | AY34: 0.6452000473 | AZ34: 20.21444588 | BA34: 47.70451806 | BB34: 6.85302948 | BC34: 32.40819746 | BD34: 157.6860111 | BE34: 18.13596416 | BF34: 3.34608647 | BG34: 16.08726983 | BH34: 0.6827596565 | BI34: 0.01176030433 | BJ34: 7.980287453 | BK34: 38.91109111 | BL34: 90.83887049 | BM34: 38.24935386 | BN34: 56.84508937 | BO34: 85.78230421 | BP34: 38.46375322 | BQ34: 0.4107478022 | BR34: 0 | BS34: 2420.674199 | BU34: 14901.90605 | BV34: 59.87476072 | BW34: -2520.455009 | BX34: 14862
A35: 039 | B35: Curtido y recurtido de cueros; fabricación de calzado; fabricación de artículos de viaje, maletas, bolsos de mano y artículos similares, y fabricación de artículos de talabartería y guarnicionería; adobo y teñido de pieles | C35: 11.98776958 | D35: 0.8834218504 | E35: 16.49905173 | F35: 0.02383331532 | G35: 0.3050774365 | H35: 6.083962166 | I35: 7.244003962 | J35: 0.03364878612 | K35: 0.7408140284 | L35: 6.344030001 | M35: 2.704616037 | N35: 1.975958693 | O35: 2.040831254 | P35: 3.893433641 | Q35: 0.6204286879 | R35: 0.5792464539 | S35: 1.160666593 | T35: 1.752958088 | U35: 5.884424014 | V35: 31.75623427 | W35: 97.90911156 | X35: 736.7333166 | Y35: 1.863001509 | Z35: 16.36995865 | AA35: 0.6370000656 | AB35: 6.753021621 | AC35: 4.377301554 | AD35: 7.237554147 | AE35: 1.891161974 | AF35: 9.220805226 | AG35: 2.871773371 | AH35: 3.606550375 | AI35: 5.096000769 | AJ35: 18.42951057 | AK35: 13.74994078 | AL35: 5.122405402 | AM35: 0.8232317352 | AN35: 1.94002066 | AO35: 1.13485266 | AP35: 2.403638794 | AQ35: 1.656963099 | AR35: 0.7608630444 | AS35: 24.58086949 | AT35: 23.00166758 | AU35: 8.337698363 | AV35: 109.9839894 | AW35: 58.19724617 | AX35: 9.447072715 | AY35: 0.125460365 | AZ35: 3.712480688 | BA35: 9.613929143 | BB35: 0.8465781911 | BC35: 3.529159885 | BD35: 20.02210838 | BE35: 11.65613435 | BF35: 1.034706854 | BG35: 6.614595182 | BH35: 0.9618111268 | BI35: 0.05951758186 | BJ35: 0.8170622741 | BK35: 12.70898031 | BL35: 34.24862684 | BM35: 7.45083655 | BN35: 76.6652655 | BO35: 64.13607539 | BP35: 31.51249743 | BQ35: 7.303639089 | BR35: 0 | BS35: 1569.670404 | BU35: 4912.148303 | BV35: -47.87555652 | BW35: -1594.94315 | BX35: 4839
A36: 040 | B36: Transformación de la madera y fabricación de productos de madera y de corcho, excepto muebles; fabricación de artículos de cestería y espartería | C36: 126.600953 | D36: 6.686142507 | E36: 40.19344216 | F36: 0.09962694833 | G36: 0.103179527 | H36: 0.1263399333 | I36: 0.2995180295 | J36: 0.1724488965 | K36: 0.05931692864 | L36: 0.7152661524 | M36: 3.769844347 | N36: 0.311982239 | O36: 1.954900893 | P36: 1.294730739 | Q36: 0.8955436214 | R36: 0.4013645216 | S36: 1.262310316 | T36: 1.336538349 | U36: 2.201195396 | V36: 0.9952097498 | W36: 34.33203611 | X36: 0.6412827659 | Y36: 537.8950995 | Z36: 364.827751 | AA36: 4.477772479 | AB36: 20.22257433 | AC36: 2.97490039 | AD36: 19.07153861 | AE36: 0.9621753083 | AF36: 26.99186969 | AG36: 20.08140752 | AH36: 5.846696725 | AI36: 3.09304906 | AJ36: 473.6526957 | AK36: 8.815134071 | AL36: 1.533604803 | AM36: 0.05825260891 | AN36: 0.2133026642 | AO36: 0.08815214505 | AP36: 0.2571363431 | AQ36: 0.06965985571 | AR36: 0.1626556556 | AS36: 864.1050645 | AT36: 385.3772017 | AU36: 250.461731 | AV36: 6.838431274 | AW36: 0.6357603188 | AX36: 0.6783211933 | AY36: 0.001007246472 | AZ36: 0.111861747 | BA36: 0.1191642455 | BB36: 0.0375955059 | BC36: 0.09408967596 | BD36: 0.5515363872 | BE36: 7.126621359 | BF36: 0.05885137783 | BG36: 0.7087928883 | BH36: 0.04773520737 | BI36: 0.006472325313 | BJ36: 0.1226694066 | BK36: 45.16770344 | BL36: 1.698798766 | BM36: 39.0661974 | BN36: 2.462925726 | BO36: 11.27471819 | BP36: 1.656791769 | BQ36: 0.7936590671 | BR36: 0 | BS36: 3334.952303 | BU36: 247.2196577 | BV36: 118.6005931 | BW36: -527.7725542 | BX36: 3173
A37: 041 | B37: Fabricación de papel, cartón y productos de papel y de cartón; actividades de impresión; producción de copias a partir de grabaciones originales (Copia a partir de un original en CD, DVD, Bluray) | C37: 378.0618248 | D37: 9.109090435 | E37: 148.8443423 | F37: 0.4938138881 | G37: 9.534428869 | H37: 13.32228492 | I37: 26.58201211 | J37: 39.45876893 | K37: 13.97107149 | L37: 18.13815973 | M37: 51.76928567 | N37: 56.34433413 | O37: 92.52392904 | P37: 229.1383247 | Q37: 66.17564874 | R37: 94.69836134 | S37: 107.9141586 | T37: 104.0562732 | U37: 204.9119061 | V37: 34.29516574 | W37: 133.7904495 | X37: 54.81100895 | Y37: 132.3073461 | Z37: 3785.595197 | AA37: 41.05347461 | AB37: 402.1192175 | AC37: 213.2081884 | AD37: 179.4020431 | AE37: 18.94916255 | AF37: 52.69852269 | AG37: 64.88976905 | AH37: 34.30235398 | AI37: 12.49805032 | AJ37: 303.4626825 | AK37: 32.6604262 | AL37: 109.1210029 | AM37: 9.979355775 | AN37: 12.82509579 | AO37: 6.243307744 | AP37: 8.967590582 | AQ37: 23.04301217 | AR37: 2.147832768 | AS37: 156.9046493 | AT37: 89.19172464 | AU37: 52.16649308 | AV37: 536.8544376 | AW37: 55.65385592 | AX37: 18.45552227 | AY37: 0.1580541282 | AZ37: 9.824958917 | BA37: 23.13755711 | BB37: 12.51355354 | BC37: 26.93168613 | BD37: 158.9408961 | BE37: 520.0520673 | BF37: 30.24905347 | BG37: 94.32252482 | BH37: 16.05933837 | BI37: 1.660675816 | BJ37: 41.96570792 | BK37: 203.2494693 | BL37: 347.2064662 | BM37: 2164.568456 | BN37: 586.8034569 | BO37: 166.2844946 | BP37: 150.5123324 | BQ37: 4.659481568 | BR37: 0 | BS37: 12801.74519 | BU37: 5781.801621 | BV37: -51.4607472 | BW37: -1795.086063 | BX37: 16737
A38: 043-044 | B38: Coquización, fabricación de productos de la refinación del petróleo y actividades de mezcla de combustibles | C38: 890.4373647 | D38: 42.73815057 | E38: 328.2373538 | F38: 1.366635868 | G38: 30.72360442 | H38: 931.3064277 | I38: 3990.905542 | J38: 36.82137114 | K38: 104.5577756 | L38: 84.94756189 | M38: 121.6854971 | N38: 14.7473709 | O38: 62.65952529 | P38: 15.966874 | Q38: 4.213990803 | R38: 16.08263317 | S38: 3.00793898 | T38: 3.347143263 | U38: 15.05876731 | V38: 50.90230482 | W38: 36.0601616 | X38: 17.10817328 | Y38: 13.5470708 | Z38: 87.69293708 | AA38: 21407.46442 | AB38: 467.2953765 | AC38: 51.11504235 | AD38: 128.1867512 | AE38: 1493.188726 | AF38: 54.757978 | AG38: 47.91741954 | AH38: 5.162345003 | AI38: 17.587787 | AJ38: 7.051190836 | AK38: 27.24566809 | AL38: 485.3540089 | AM38: 52.58123147 | AN38: 65.94234465 | AO38: 9.48069977 | AP38: 145.7740823 | AQ38: 0.120061079 | AR38: 10.65157316 | AS38: 323.916726 | AT38: 288.2633314 | AU38: 516.7106982 | AV38: 950.5293224 | AW38: 253.0242056 | AX38: 8328.505502 | AY38: 81.31823518 | AZ38: 2284.431314 | BA38: 214.929308 | BB38: 62.19162422 | BC38: 33.05474923 | BD38: 69.8009201 | BE38: 69.11817841 | BF38: 43.79164769 | BG38: 37.04702746 | BH38: 22.83404577 | BI38: 9.75262863 | BJ38: 16.85785972 | BK38: 120.6514443 | BL38: 65.15618576 | BM38: 833.0685193 | BN38: 16.53068908 | BO38: 140.5749298 | BP38: 18.17080659 | BQ38: 31.96896445 | BR38: 0 | BS38: 46213.19775 | BU38: 9013.335986 | BV38: -132.6134905 | BW38: -393.9202452 | BX38: 54700
A39: 045-046 | B39: Fabricación de sustancias y productos químicos; | C39: 2611.716003 | D39: 1126.133482 | E39: 117.8072331 | F39: 64.0569635 | G39: 29.16369824 | H39: 56.73576715 | I39: 118.946073 | J39: 34.61375924 | K39: 11.24832088 | L39: 152.8259754 | M39: 89.94612788 | N39: 99.67218693 | O39: 112.98074 | P39: 321.852448 | Q39: 4.708646256 | R39: 40.14161126 | S39: 134.1716627 | T39: 161.4175548 | U39: 677.974732 | V39: 614.493229 | W39: 217.3014205 | X39: 254.9657957 | Y39: 84.09250316 | Z39: 785.7665559 | AA39: 2886.761306 | AB39: 8729.19302 | AC39: 1154.005222 | AD39: 4422.592337 | AE39: 636.6725435 | AF39: 307.2477172 | AG39: 418.7585311 | AH39: 107.1224213 | AI39: 143.9942519 | AJ39: 92.80028438 | AK39: 149.567932 | AL39: 66.19703992 | AM39: 1.016087414 | AN39: 63.74756244 | AO39: 12.1126776 | AP39: 34.9949421 | AQ39: 1.988257896 | AR39: 104.5907146 | AS39: 1017.701212 | AT39: 594.2220844 | AU39: 180.7623736 | AV39: 17.78262536 | AW39: 300.0309494 | AX39: 12.85932255 | AY39: 0.1251119943 | AZ39: 2.424002933 | BA39: 1.619105068 | BB39: 0.1839077904 | BC39: 1.628265217 | BD39: 29.78594861 | BE39: 32.16503901 | BF39: 4.960724828 | BG39: 19.78244298 | BH39: 0.6161870742 | BI39: 0.1783350753 | BJ39: 1.11864002 | BK39: 5.717390468 | BL39: 433.0706804 | BM39: 20.76280957 | BN39: 9.088979728 | BO39: 401.1204906 | BP39: 4.325601875 | BQ39: 519.3936161 | BR39: 0 | BS39: 30867.52118 | BU39: 10775.49544 | BV39: 98.34133968 | BW39: -11530.35796 | BX39: 30211
A40: 047 | B40: Fabricación de productos farmacéuticos, sustancias químicas medicinales y productos botánicos de uso farmacéutico | C40: 107.5403795 | D40: 17.26011164 | E40: 582.0771035 | F40: 1.005335899 | G40: 1.577255495 | H40: 1.725448585 | I40: 5.499023551 | J40: 0.5932071471 | K40: 0.5328494932 | L40: 4.916806631 | M40: 52.35236273 | N40: 5.557626282 | O40: 38.41979093 | P40: 317.2671951 | Q40: 4.439265185 | R40: 2.17258107 | S40: 18.96273239 | T40: 71.06159802 | U40: 45.40542392 | V40: 11.7176752 | W40: 13.35049905 | X40: 7.057424212 | Y40: 5.858413972 | Z40: 29.80981552 | AA40: 47.65159019 | AB40: 159.1523937 | AC40: 296.9313243 | AD40: 61.94762704 | AE40: 18.77735269 | AF40: 21.36382669 | AG40: 11.07395741 | AH40: 9.440626537 | AI40: 12.66030071 | AJ40: 6.477089637 | AK40: 7.300663872 | AL40: 6.080944742 | AM40: 0.4798931192 | AN40: 1.61511985 | AO40: 0.6305265951 | AP40: 1.8480412 | AQ40: 0.5845405134 | AR40: 2.246214034 | AS40: 57.68663468 | AT40: 42.73213229 | AU40: 21.24721961 | AV40: 19.01711503 | AW40: 14.26758724 | AX40: 19.22901666 | AY40: 0.1499146408 | AZ40: 2.410427811 | BA40: 4.053472101 | BB40: 0.2725273678 | BC40: 2.827696915 | BD40: 53.04976476 | BE40: 4.497000592 | BF40: 11.97509081 | BG40: 5.311488401 | BH40: 0.8106160205 | BI40: 0.180130956 | BJ40: 1.256741083 | BK40: 6.680623145 | BL40: 9.450098956 | BM40: 22.85451944 | BN40: 13.4228382 | BO40: 3490.396793 | BP40: 7.585053475 | BQ40: 7.925490018 | BR40: 0 | BS40: 5831.711951 | BU40: 10441.91014 | BV40: 211.4530149 | BW40: -8334.075107 | BX40: 8151
A41: 048 | B41: Fabricación de productos de caucho y de plástico | C41: 106.0727387 | D41: 12.98998454 | E41: 6.399845602 | F41: 0.5694121068 | G41: 70.44698359 | H41: 0.8224740131 | I41: 55.10867602 | J41: 0.5521328483 | K41: 0.7717621243 | L41: 39.5459583 | M41: 273.7881664 | N41: 148.9183648 | O41: 360.4130688 | P41: 422.2671515 | Q41: 49.76309225 | R41: 71.86742715 | S41: 146.1492856 | T41: 252.5247484 | U41: 728.7940871 | V41: 75.08648232 | W41: 319.2453713 | X41: 46.66932273 | Y41: 45.45603404 | Z41: 436.1657317 | AA41: 85.6062826 | AB41: 1031.594921 | AC41: 278.37248 | AD41: 950.2772221 | AE41: 43.62042139 | AF41: 122.7726695 | AG41: 115.1816275 | AH41: 114.9064645 | AI41: 141.8069735 | AJ41: 120.77016 | AK41: 125.4169444 | AL41: 220.20684 | AM41: 0.6727122909 | AN41: 86.69998437 | AO41: 74.76934064 | AP41: 119.8171102 | AQ41: 2.556882433 | AR41: 0.929527709 | AS41: 1044.262511 | AT41: 1665.400328 | AU41: 750.8283256 | AV41: 798.3772196 | AW41: 102.5317237 | AX41: 1305.218135 | AY41: 0.04112586758 | AZ41: 206.4974823 | BA41: 137.8240596 | BB41: 0.1752553349 | BC41: 29.84592686 | BD41: 336.4799934 | BE41: 19.24775142 | BF41: 9.993580674 | BG41: 3.495345415 | BH41: 0.3986304024 | BI41: 0.06563946886 | BJ41: 0.5276530807 | BK41: 4.793854205 | BL41: 5.794147397 | BM41: 268.7726196 | BN41: 53.15854615 | BO41: 47.38895875 | BP41: 6.352930382 | BQ41: 4.557201685 | BR41: 0 | BS41: 14108.39581 | BU41: 2505.100417 | BV41: 198.1554452 | BW41: -4095.651673 | BX41: 12716
A42: 049 | B42: Fabricación de otros productos minerales no metálicos | C42: 25.68099588 | D42: 12.50338477 | E42: 31.55335958 | F42: 3.86413443 | G42: 4.852250972 | H42: 0.7872057452 | I42: 2.731811682 | J42: 0.3742528394 | K42: 0.9044217673 | L42: 3.136445657 | M42: 3.078597859 | N42: 3.577635784 | O42: 17.59266737 | P42: 7.210674295 | Q42: 26.33966769 | R42: 8.59738355 | S42: 1.033713121 | T42: 45.82698593 | U42: 130.3864365 | V42: 11.18948526 | W42: 17.059873 | X42: 2.774545107 | Y42: 6.582158277 | Z42: 8.631367772 | AA42: 28.63667706 | AB42: 332.7084655 | AC42: 25.09867732 | AD42: 34.6295455 | AE42: 3442.826246 | AF42: 147.0778016 | AG42: 40.36403026 | AH42: 36.36390357 | AI42: 74.086252 | AJ42: 62.11500254 | AK42: 31.07339 | AL42: 33.5832022 | AM42: 0.784956257 | AN42: 8.929396518 | AO42: 5.011127273 | AP42: 1.905587131 | AQ42: 16.55319716 | AR42: 61.61122695 | AS42: 6644.178226 | AT42: 9333.336056 | AU42: 3892.57776 | AV42: 21.17713154 | AW42: 138.8199221 | AX42: 5.767832054 | AY42: 0.08451789641 | AZ42: 0.7879481311 | BA42: 0.767891878 | BB42: 0.1410993184 | BC42: 1.173011926 | BD42: 8.773421745 | BE42: 10.1450156 | BF42: 7.394776127 | BG42: 4.776785797 | BH42: 1.008337719 | BI42: 0.2678697392 | BJ42: 1.804355365 | BK42: 147.3544048 | BL42: 5.599805168 | BM42: 21.73887948 | BN42: 9.761771322 | BO42: 5.516203201 | BP42: 1.901970636 | BQ42: 3.888426498 | BR42: 0 | BS42: 25028.37156 | BU42: 514.4455773 | BV42: 173.8344907 | BW42: -1043.651628 | BX42: 24673
A43: 050-051 | B43: Fabricación de productos metalúrgicos básicos; fabricación de productos elaborados de metal, excepto maquinaria y equipo | C43: 327.6196754 | D43: 37.83669122 | E43: 155.2897833 | F43: 17.40696081 | G43: 22.59063872 | H43: 0.5519948404 | I43: 2.022490793 | J43: 4.382995313 | K43: 7.971452512 | L43: 14.58413281 | M43: 76.31231239 | N43: 8.862028822 | O43: 42.66650256 | P43: 13.45554364 | Q43: 12.45749834 | R43: 6.933651856 | S43: 11.40341232 | T43: 127.1848101 | U43: 280.3376775 | V43: 21.1768638 | W43: 41.24695504 | X43: 11.74552564 | Y43: 64.74684069 | Z43: 38.90925792 | AA43: 47.63747595 | AB43: 107.7083744 | AC43: 45.17972923 | AD43: 48.59877438 | AE43: 39.94267497 | AF43: 3506.087429 | AG43: 1149.894025 | AH43: 1151.902682 | AI43: 323.2745723 | AJ43: 368.7654192 | AK43: 699.5375021 | AL43: 34.15023057 | AM43: 2.770637982 | AN43: 3.451494457 | AO43: 3.200444503 | AP43: 4.124392186 | AQ43: 0.5120147829 | AR43: 0.5987007818 | AS43: 4083.297838 | AT43: 3316.494709 | AU43: 3067.027532 | AV43: 151.0874644 | AW43: 132.3733088 | AX43: 139.6561853 | AY43: 0.1075022674 | AZ43: 7.980824151 | BA43: 3.025127748 | BB43: 0.4146036281 | BC43: 5.503865887 | BD43: 11.9629454 | BE43: 36.77198616 | BF43: 86.29884285 | BG43: 46.86979682 | BH43: 1.375091056 | BI43: 0.2412502328 | BJ43: 0.116706686 | BK43: 63.18120173 | BL43: 1.062850362 | BM43: 84.01367402 | BN43: 11.73475217 | BO43: 22.08675672 | BP43: 1.861588187 | BQ43: 21.21851522 | BR43: 0 | BS43: 20180.79719 | BU43: 2272.24216 | BV43: 1973.564688 | BW43: -4472.604037 | BX43: 19954
A44: 052 | B44: Fabricación de aparatos y equipo eléctrico; fabricación de productos informáticos, electrónicos y ópticos | C44: 7.825576208 | D44: 9.469419471 | E44: 4.821237166 | F44: 0.2575705747 | G44: 1.008721932 | H44: 0.906766777 | I44: 2.288072028 | J44: 0.2986678105 | K44: 1.624964646 | L44: 4.027960188 | M44: 4.146467687 | N44: 2.012000878 | O44: 2.028897161 | P44: 4.614335337 | Q44: 0.791830488 | R44: 1.655365466 | S44: 0.7824120675 | T44: 2.558424796 | U44: 5.72983953 | V44: 2.40521878 | W44: 4.266941282 | X44: 1.06881519 | Y44: 2.329203685 | Z44: 88.07943918 | AA44: 4.536860872 | AB44: 6.493710039 | AC44: 2.085486511 | AD44: 14.7086316 | AE44: 11.68881692 | AF44: 89.3059723 | AG44: 521.1200088 | AH44: 375.545393 | AI44: 183.4627027 | AJ44: 28.49186343 | AK44: 59.65846837 | AL44: 550.4879279 | AM44: 57.87967213 | AN44: 27.63693922 | AO44: 32.44868283 | AP44: 52.7812563 | AQ44: 0.5923022026 | AR44: 0.2883746362 | AS44: 1093.194177 | AT44: 1187.852724 | AU44: 731.2053268 | AV44: 222.4813448 | AW44: 520.8702675 | AX44: 19.21431051 | AY44: 0.2644929511 | AZ44: 2.979139755 | BA44: 1.962862219 | BB44: 0.2381214507 | BC44: 1.441051384 | BD44: 6.803204836 | BE44: 78.95810191 | BF44: 660.8002193 | BG44: 9.072519102 | BH44: 23.44551306 | BI44: 0.1616039256 | BJ44: 0.2274458583 | BK44: 34.9643489 | BL44: 1.097548777 | BM44: 28.85709095 | BN44: 154.637439 | BO44: 7.618376531 | BP44: 1.144573414 | BQ44: 87.68986433 | BR44: 0 | BS44: 7051.392886 | BU44: 5225.966967 | BV44: 12254.05379 | BW44: -18731.41364 | BX44: 5800
A45: 053-057 | B45: Fabricación de maquinaria y equipo n.c.p.; instalación, mantenimiento y reparación especializado de maquinaria y equipo | C45: 24.65470878 | D45: 1.903911136 | E45: 49.26605799 | F45: 1.058881267 | G45: 23.01879866 | H45: 24.14509818 | I45: 55.2907949 | J45: 8.120012117 | K45: 63.22977795 | L45: 140.0864577 | M45: 61.38085133 | N45: 60.4010349 | O45: 8.569625857 | P45: 53.8594841 | Q45: 3.788782091 | R45: 55.84681837 | S45: 2.000966624 | T45: 3.707346325 | U45: 10.47089367 | V45: 50.42122797 | W45: 55.45704641 | X45: 18.9761809 | Y45: 1.307187176 | Z45: 89.84442449 | AA45: 100.2294711 | AB45: 30.5084223 | AC45: 15.1522058 | AD45: 16.70048912 | AE45: 284.5150655 | AF45: 278.4225417 | AG45: 124.0516531 | AH45: 1701.486589 | AI45: 97.28640725 | AJ45: 9.291433694 | AK45: 209.0095471 | AL45: 53.94711108 | AM45: 4.556796678 | AN45: 18.90563971 | AO45: 16.1503785 | AP45: 8.854384435 | AQ45: 0.1783145562 | AR45: 4.494029803 | AS45: 483.9612442 | AT45: 208.3127141 | AU45: 31.22667591 | AV45: 1021.214661 | AW45: 759.0044727 | AX45: 504.4712254 | AY45: 7.537192797 | AZ45: 84.02912611 | BA45: 39.37938143 | BB45: 5.369195247 | BC45: 43.86677328 | BD45: 50.21982887 | BE45: 100.6991877 | BF45: 372.6982181 | BG45: 259.9223869 | BH45: 20.49311281 | BI45: 4.67375872 | BJ45: 1.72737478 | BK45: 104.1393429 | BL45: 17.4464541 | BM45: 173.1024038 | BN45: 37.41717594 | BO45: 107.2021511 | BP45: 17.46524511 | BQ45: 494.5986356 | BR45: 0 | BS45: 8790.724788 | BU45: 2073.363891 | BV45: 6629.334511 | BW45: -8103.42319 | BX45: 9390
A46: 054 | B46: Fabricación de vehículos automotores, remolques y semirremolques; fabricación de otros tipos de equipo de transporte | C46: 10.22944114 | D46: 2.488269538 | E46: 6.790814295 | F46: 0.2411827774 | G46: 0.6075910789 | H46: 0.6094158783 | I46: 2.271376204 | J46: 0.1785873595 | K46: 0.6800228218 | L46: 2.591579847 | M46: 6.456761117 | N46: 1.352914487 | O46: 3.116900739 | P46: 11.10783743 | Q46: 2.061236902 | R46: 0.822842809 | S46: 1.597328252 | T46: 3.239907616 | U46: 5.616719794 | V46: 4.418546221 | W46: 8.319983282 | X46: 2.112609554 | Y46: 2.412190572 | Z46: 11.13869056 | AA46: 7.560175395 | AB46: 10.74977674 | AC46: 2.698492055 | AD46: 6.394696723 | AE46: 9.449929216 | AF46: 24.58458765 | AG46: 30.28930571 | AH46: 181.8759511 | AI46: 3158.490085 | AJ46: 6.836301247 | AK46: 6.955184997 | AL46: 22.01423054 | AM46: 2.266573864 | AN46: 1.535546077 | AO46: 1.455875513 | AP46: 2.427222876 | AQ46: 0.3588011707 | AR46: 0.7379749712 | AS46: 81.37484707 | AT46: 258.813622 | AU46: 56.85610774 | AV46: 311.4499236 | AW46: 1724.009085 | AX46: 190.2112683 | AY46: 0.1065481408 | AZ46: 1.608666859 | BA46: 42.51719639 | BB46: 23.91641609 | BC46: 1.624371053 | BD46: 21.98424942 | BE46: 5.766507699 | BF46: 31.7304063 | BG46: 2.911731956 | BH46: 1.375604011 | BI46: 0.1320351205 | BJ46: 0.9906018125 | BK46: 7.45563826 | BL46: 2.682555811 | BM46: 13.53887096 | BN46: 11.89759294 | BO46: 12.71637734 | BP46: 1.545459811 | BQ46: 4.511932002 | BR46: 0 | BS46: 6378.871077 | BU46: 5715.127192 | BV46: 10364.22949 | BW46: -13407.22776 | BX46: 9051
A47: 055 | B47: Fabricación de muebles, colchones y somieres | C47: 6.53270987 | D47: 0.9470496949 | E47: 2.676976268 | F47: 0.09208231717 | G47: 1.079142371 | H47: 0.4037730619 | I47: 1.624667731 | J47: 0.1180800705 | K47: 0.4069078512 | L47: 1.695418055 | M47: 5.236407669 | N47: 2.291572837 | O47: 5.239015343 | P47: 8.244702259 | Q47: 1.267843407 | R47: 1.283325227 | S47: 2.190797371 | T47: 3.94006698 | U47: 10.50126585 | V47: 7.073533744 | W47: 18.4640201 | X47: 1.934590158 | Y47: 10.05552959 | Z47: 15.471497 | AA47: 3.225429313 | AB47: 15.32473926 | AC47: 4.490309508 | AD47: 13.3323249 | AE47: 5.48409825 | AF47: 9.399488568 | AG47: 5.516970923 | AH47: 11.71683222 | AI47: 88.91703183 | AJ47: 65.1945597 | AK47: 4.472009694 | AL47: 4.791900485 | AM47: 0.2330431969 | AN47: 1.307159134 | AO47: 1.130574639 | AP47: 1.852365735 | AQ47: 0.4054166259 | AR47: 0.1112967956 | AS47: 210.1940757 | AT47: 46.03685253 | AU47: 23.82878832 | AV47: 220.8575197 | AW47: 7.07328203 | AX47: 22.15085621 | AY47: 0.1104261156 | AZ47: 3.271243336 | BA47: 2.478309495 | BB47: 0.09705115934 | BC47: 0.8888669234 | BD47: 10.21546217 | BE47: 2.102355662 | BF47: 5.014669564 | BG47: 2.755212641 | BH47: 0.2484562198 | BI47: 0.03774491481 | BJ47: 0.09413177987 | BK47: 31.50616248 | BL47: 0.6133362655 | BM47: 7.495142859 | BN47: 2.47455742 | BO47: 47.3845396 | BP47: 1.434837638 | BQ47: 4.023406476 | BR47: 0 | BS47: 998.0638128 | BU47: 1268.575918 | BV47: 3523.394807 | BW47: -437.0345384 | BX47: 5353
A48: 056 | B48: Otras industrias manufactureras | C48: 7.633652072 | D48: 2.281544754 | E48: 9.025427667 | F48: 0.1469245626 | G48: 0.7046772616 | H48: 0.5404549216 | I48: 1.662828042 | J48: 0.1674325595 | K48: 0.1289545283 | L48: 54.97738007 | M48: 3.339935872 | N48: 1.529771291 | O48: 5.098943225 | P48: 8.536942549 | Q48: 0.6077505207 | R48: 2.9763252 | S48: 1.732233253 | T48: 3.542186384 | U48: 38.5078399 | V48: 7.793103695 | W48: 125.455781 | X48: 13.78955456 | Y48: 0.6605818133 | Z48: 177.2564811 | AA48: 6.153212737 | AB48: 47.49212359 | AC48: 73.37014196 | AD48: 17.57062619 | AE48: 2.696497298 | AF48: 9.474911807 | AG48: 17.36088815 | AH48: 12.5396472 | AI48: 17.91800979 | AJ48: 8.963270776 | AK48: 111.0641335 | AL48: 28.19674853 | AM48: 2.582776374 | AN48: 4.185130574 | AO48: 2.699353868 | AP48: 17.02042707 | AQ48: 0.3130255022 | AR48: 0.2415126569 | AS48: 366.9942738 | AT48: 113.8616567 | AU48: 25.53328918 | AV48: 12.86396961 | AW48: 12.37794566 | AX48: 24.01775758 | AY48: 0.1202359206 | AZ48: 2.3693541 | BA48: 1.625921323 | BB48: 0.0968083249 | BC48: 0.4284848277 | BD48: 3.154481425 | BE48: 11.06523653 | BF48: 13.23537143 | BG48: 57.24903674 | BH48: 0.8335635458 | BI48: 0.06778115331 | BJ48: 0.1331060087 | BK48: 1.571561165 | BL48: 1.59177552 | BM48: 92.11251684 | BN48: 94.46726797 | BO48: 1317.073401 | BP48: 161.5235664 | BQ48: 9.086273702 | BR48: 0 | BS48: 3171.393781 | BU48: 4605.929141 | BV48: 1344.487474 | BW48: -3519.810397 | BX48: 5602
A49: 058-059-060 | B49: Generación de energía eléctrica; transmisión de energía eléctrica y distribución y comercialización de energía eléctrica | C49: 222.3672446 | D49: 1.951671349 | E49: 76.10576871 | F49: 1.907771664 | G49: 1.034159827 | H49: 59.77370059 | I49: 549.673752 | J49: 14.56047372 | K49: 41.00361968 | L49: 379.8633452 | M49: 156.8819254 | N49: 72.8028575 | O49: 72.84683391 | P49: 315.1905271 | Q49: 19.4239919 | R49: 202.5114403 | S49: 67.03150907 | T49: 16.79338058 | U49: 191.6711086 | V49: 79.66460992 | W49: 202.8316224 | X49: 15.89596882 | Y49: 29.6717397 | Z49: 626.0391322 | AA49: 277.6490907 | AB49: 352.568566 | AC49: 131.3375526 | AD49: 467.4490773 | AE49: 619.7039352 | AF49: 389.4958593 | AG49: 30.86399596 | AH49: 141.8786331 | AI49: 16.15882427 | AJ49: 54.44739201 | AK49: 65.40288344 | AL49: 14599.93034 | AM49: 283.7561151 | AN49: 400.3594522 | AO49: 184.5633328 | AP49: 338.0379454 | AQ49: 15.20002855 | AR49: 13.74810682 | AS49: 6.809189515 | AT49: 44.60230764 | AU49: 1.132701253 | AV49: 1740.114526 | AW49: 7.491620641 | AX49: 121.4485274 | AY49: 13.67177288 | AZ49: 20.62996876 | BA49: 14.9722823 | BB49: 18.53287424 | BC49: 134.0029502 | BD49: 12.41035632 | BE49: 51.67000498 | BF49: 170.9710128 | BG49: 335.4464558 | BH49: 23.49448293 | BI49: 27.53021812 | BJ49: 107.9125278 | BK49: 53.12162689 | BL49: 238.5366247 | BM49: 1051.047675 | BN49: 343.6311749 | BO49: 203.0084597 | BP49: 223.8514093 | BQ49: 12.91301211 | BR49: 0 | BS49: 26779.00304 | BU49: 13510.9897 | BV49: 18.48375025 | BW49: -17.47649094 | BX49: 40291
A50: 061 | B50: Producción de gas; distribución de combustibles gaseosos por tuberías; suministro de vapor y aire acondicionado | C50: 4.651837418 | D50: 0.1809245774 | E50: 0.458137454 | F50: 2.073990898 | G50: 0.01165018141 | H50: 53.9198832 | I50: 181.2228545 | J50: 47.80663979 | K50: 95.60200784 | L50: 133.6317288 | M50: 15.26299122 | N50: 52.72307818 | O50: 38.90889712 | P50: 153.6199584 | Q50: 9.997006093 | R50: 4.115657858 | S50: 25.95577365 | T50: 3.045120321 | U50: 158.3928162 | V50: 108.195204 | W50: 38.44874503 | X50: 11.2614163 | Y50: 0.05337898315 | Z50: 308.4298542 | AA50: 71.88532068 | AB50: 172.1629274 | AC50: 178.7482934 | AD50: 106.6614129 | AE50: 653.5628681 | AF50: 226.8137274 | AG50: 31.88976756 | AH50: 177.9103078 | AI50: 10.08361817 | AJ50: 32.90324966 | AK50: 66.45040974 | AL50: 486.1720236 | AM50: 162.828515 | AN50: 1.057826301 | AO50: 0.01839450987 | AP50: 1.113824975 | AQ50: 0.1370013731 | AR50: 2.024598567 | AS50: 0.5125437357 | AT50: 5.913820471 | AU50: 0.3717466788 | AV50: 244.0876546 | AW50: 3.115315946 | AX50: 454.4246462 | AY50: 5.030386415 | AZ50: 76.54330802 | BA50: 24.06909543 | BB50: 5.035281828 | BC50: 51.70417303 | BD50: 5.045018636 | BE50: 3.344968074 | BF50: 6.494932834 | BG50: 44.39618684 | BH50: 0.1112461487 | BI50: 2.944920291 | BJ50: 5.287267385 | BK50: 8.761069969 | BL50: 5.379295188 | BM50: 40.80234598 | BN50: 180.6911853 | BO50: 2.40476435 | BP50: 0.1813053033 | BQ50: 7.255319159 | BR50: 0 | BS50: 5014.301437 | BU50: 3779.174812 | BV50: 0.816328378 | BW50: -0.2925774195 | BX50: 8794
A51: 062 | B51: Captación, tratamiento y distribución de agua | C51: 156.5634539 | D51: 6.70128047 | E51: 28.03000527 | F51: 0.9975408556 | G51: 0.9965643051 | H51: 0.1868009912 | I51: 1.526961272 | J51: 0.05535790242 | K51: 0.04133321729 | L51: 0.2017308311 | M51: 14.39697611 | N51: 1.090350275 | O51: 11.0455226 | P51: 2.125661695 | Q51: 4.016835157 | R51: 2.009107378 | S51: 1.012253704 | T51: 1.077730328 | U51: 53.75866157 | V51: 8.392603364 | W51: 5.071597343 | X51: 3.048198993 | Y51: 0.008314457902 | Z51: 7.052289535 | AA51: 1.080793044 | AB51: 6.018768614 | AC51: 2.265517175 | AD51: 4.073296386 | AE51: 5.032059838 | AF51: 2.186371355 | AG51: 1.03357315 | AH51: 0.05555244023 | AI51: 0.0679901976 | AJ51: 0.01872523715 | AK51: 0.005432164883 | AL51: 5.851828222 | AM51: 1.09640528 | AN51: 18.11022061 | AO51: 2.057078165 | AP51: 1.165274614 | AQ51: 2.986378259 | AR51: 0.5436872543 | AS51: 2.259244532 | AT51: 9.229457349 | AU51: 0.1480542876 | AV51: 159.7420417 | AW51: 12.05068104 | AX51: 1.539536103 | AY51: 0.02923921433 | AZ51: 2.116491914 | BA51: 12.25844856 | BB51: 0.04609124521 | BC51: 7.200657286 | BD51: 86.92864477 | BE51: 32.59113185 | BF51: 8.445766168 | BG51: 110.193303 | BH51: 8.547412119 | BI51: 7.89048806 | BJ51: 12.76794244 | BK51: 56.12182558 | BL51: 11.40349979 | BM51: 314.4780066 | BN51: 89.87939969 | BO51: 23.84833348 | BP51: 48.98437032 | BQ51: 1.044413883 | BR51: 0 | BS51: 1382.800564 | BU51: 3485.383486 | BV51: 1.279568599 | BW51: -1.463618639 | BX51: 4868
A52: 063 | B52: Evacuación y tratamiento de aguas residuales | C52: 7.079182683 | D52: 0.001276239091 | E52: 5.042725137 | F52: 0 | G52: 0 | H52: 0.058203661 | I52: 0.1583442213 | J52: 0.01711250378 | K52: 0.01036244237 | L52: 0.05858496709 | M52: 3.136142598 | N52: 0.02948666781 | O52: 3.022587097 | P52: 1.032838093 | Q52: 1.00767309 | R52: 0.005918383891 | S52: 0.002872323581 | T52: 0.02447237406 | U52: 7.996659725 | V52: 2.105737344 | W52: 1.032136245 | X52: 1.015680531 | Y52: 0.001324712259 | Z52: 1.01666945 | AA52: 0.02274522755 | AB52: 1.999867248 | AC52: 0.04082175303 | AD52: 0.02684538849 | AE52: 1.012250912 | AF52: 0.05695745492 | AG52: 0.01016523661 | AH52: 0.01502659952 | AI52: 0.01781219467 | AJ52: 0.004189846693 | AK52: 0.001100587012 | AL52: 0.2746366097 | AM52: 0.031742768 | AN52: 2.05916538 | AO52: 2.031799258 | AP52: 0.04542729748 | AQ52: 0.997813977 | AR52: 0.1710611041 | AS52: 1.071517748 | AT52: 2.069807357 | AU52: 0.04238717689 | AV52: 37.6806223 | AW52: 3.025761216 | AX52: 8.137135838 | AY52: 3.033158019 | AZ52: 7.010951896 | BA52: 7.072391698 | BB52: 3.004769808 | BC52: 2.062950288 | BD52: 20.05892267 | BE52: 7.465572202 | BF52: 2.43518887 | BG52: 42.4078794 | BH52: 1.16094673 | BI52: 2.959350193 | BJ52: 3.239189513 | BK52: 14.02453365 | BL52: 3.436454738 | BM52: 79.31627234 | BN52: 36.25204219 | BO52: 5.279508028 | BP52: 20.54017138 | BQ52: 0.006337015602 | BR52: 0 | BS52: 355.4692416 | BU52: 2677.965856 | BV52: 1.007739455 | BW52: -0.4428372219 | BX52: 3034
A53: 064 | B53: Recolección, tratamiento y disposición de desechos | C53: 9.424493168 | D53: 0.003296950985 | E53: 3.268449798 | F53: 0 | G53: 0.1603030827 | H53: 0.6728192707 | I53: 11.02241677 | J53: 0.3403722508 | K53: 2.292175295 | L53: 5.412483853 | M53: 13.53287096 | N53: 10.83640412 | O53: 7.522410545 | P53: 3.623194888 | Q53: 4.488403604 | R53: 2.64938531 | S53: 1.831410624 | T53: 1.462336126 | U53: 22.63950149 | V53: 10.65817701 | W53: 26.47795036 | X53: 15.84081477 | Y53: 0.1968208489 | Z53: 22.61206789 | AA53: 2.361609331 | AB53: 19.65150064 | AC53: 17.04392743 | AD53: 2.544012268 | AE53: 5.030271196 | AF53: 2.231428602 | AG53: 1.52550798 | AH53: 5.642971617 | AI53: 1.19745708 | AJ53: 0.4968300576 | AK53: 0.1462844669 | AL53: 6.135782387 | AM53: 0.7661686249 | AN53: 2.202435865 | AO53: 4.432145128 | AP53: 221.121045 | AQ53: 2.00273776 | AR53: 7.634088248 | AS53: 30.4750547 | AT53: 42.38786905 | AU53: 1.109422446 | AV53: 183.9864678 | AW53: 26.03411238 | AX53: 2.688006161 | AY53: 1.313779631 | AZ53: 4.635740332 | BA53: 9.988094503 | BB53: 1.77568644 | BC53: 12.65020616 | BD53: 70.66971369 | BE53: 37.76889925 | BF53: 30.85936036 | BG53: 88.66563995 | BH53: 8.936522349 | BI53: 5.320396502 | BJ53: 23.97470241 | BK53: 67.95175556 | BL53: 20.7742157 | BM53: 304.7427374 | BN53: 77.48056642 | BO53: 257.7226003 | BP53: 42.2979454 | BQ53: 1.258925709 | BR53: 0 | BS53: 1834.603183 | BU53: 2750.29481 | BV53: 4.495052553 | BW53: -15.39304614 | BX53: 4574
A54: 065 | B54: Recuperación de materiales (reciclaje) | C54: 7.648169173 | D54: 0.341000777 | E54: 2.666161919 | F54: 0 | G54: 0.1649396767 | H54: 0.2381859575 | I54: 0.3951098753 | J54: 0.7613113563 | K54: 0.2550352826 | L54: 0.2749051652 | M54: 0.8829956342 | N54: 1.047454173 | O54: 1.675820481 | P54: 4.157418701 | Q54: 1.403532979 | R54: 1.860594817 | S54: 2.029274767 | T54: 1.932246358 | U54: 3.711977475 | V54: 13.18130442 | W54: 31.06618862 | X54: 2.412565459 | Y54: 1.008827991 | Z54: 75.30118134 | AA54: 0.3350095414 | AB54: 30.50063486 | AC54: 4.059432651 | AD54: 3.507510232 | AE54: 3.253494338 | AF54: 768.7940203 | AG54: 57.07558823 | AH54: 27.74189776 | AI54: 7.17363829 | AJ54: 6.760957305 | AK54: 0.8671090189 | AL54: 1.283203147 | AM54: 0.1727522053 | AN54: 0.198952489 | AO54: 0.09384697092 | AP54: 0.1188476148 | AQ54: 38.8888447 | AR54: 0.02347930929 | AS54: 1.585202353 | AT54: 3.708473152 | AU54: 0.7842385399 | AV54: 11.34874897 | AW54: 0.9363590093 | AX54: 0 | AY54: 0 | AZ54: 0.1289912532 | BA54: 0.3746500514 | BB54: 0.2332192184 | BC54: 0.4613326716 | BD54: 2.629470456 | BE54: 10.83156148 | BF54: 0.2956424643 | BG54: 2.438767757 | BH54: 0.2974227516 | BI54: 0.02864656471 | BJ54: 0.7417574249 | BK54: 3.705102769 | BL54: 6.603811528 | BM54: 41.69381477 | BN54: 11.27572709 | BO54: 2.808996565 | BP54: 2.847434239 | BQ54: 0.01152357408 | BR54: 0 | BS54: 1211.036316 | BU54: 121.075924 | BV54: 10.52795966 | BW54: 821.3598004 | BX54: 2164
A55: 066 | B55: Actividades de saneamiento ambiental y otros servicios de gestión de desechos | C55: 0.1127244638 | D55: 0 | E55: 0.01113144636 | F55: 0 | G55: 0.01404114593 | H55: 0.04576290334 | I55: 81.19408052 | J55: 0.02594145542 | K55: 0.1984296922 | L55: 89.80055261 | M55: 0.1939137304 | N55: 0.07246353289 | O55: 0.04163707916 | P55: 0.1348887626 | Q55: 0.04206352632 | R55: 0.05654748506 | S55: 0.07231592636 | T55: 0.03536916449 | U55: 0.148041682 | V55: 0.1085932214 | W55: 0.4270299788 | X55: 0.07462842588 | Y55: 0.01694002998 | Z55: 0.4069928151 | AA55: 0.1146379394 | AB55: 0.2596908014 | AC55: 0.1794572415 | AD55: 0.1296730798 | AE55: 0.08858991659 | AF55: 0.09537677084 | AG55: 0.04409918022 | AH55: 0.05514316211 | AI55: 0.1008562549 | AJ55: 0.04256989375 | AK55: 0.01256420004 | AL55: 30.16999048 | AM55: 12.0308469 | AN55: 4.085858387 | AO55: 3.065342262 | AP55: 4.21634624 | AQ55: 0.000963979153 | AR55: 0.0423676649 | AS55: 0.2131236085 | AT55: 0.3859176577 | AU55: 0.0004904019428 | AV55: 3.216028708 | AW55: 0.007269046591 | AX55: 0.02324246328 | AY55: 0.02493697975 | AZ55: 0.2234277793 | BA55: 0.4169799985 | BB55: 0.06528443286 | BC55: 0.4826368059 | BD55: 0.3245231302 | BE55: 1.006903531 | BF55: 2.080989087 | BG55: 1.365364288 | BH55: 0.2187757721 | BI55: 0.03234609694 | BJ55: 1.172324877 | BK55: 1.355050258 | BL55: 1.10869015 | BM55: 226.8078684 | BN55: 0.7253459682 | BO55: 0.8188330008 | BP55: 0.525453534 | BQ55: 0.01924660362 | BR55: 0 | BS55: 470.5895165 | BU55: 1120.66903 | BV55: 0.1656985952 | BW55: -1.424245045 | BX55: 1590
A56: 067 | B56: Construcción de edificaciones residenciales y no residenciales | C56: 1.794504605 | D56: 0.05200674296 | E56: 2.536536932 | F56: 0.2848478017 | G56: 0.01995151255 | H56: 2.978938433 | I56: 6.660195649 | J56: 0.7519928702 | K56: 0.6869353657 | L56: 8.202305268 | M56: 6.018075166 | N56: 1.248339944 | O56: 1.443020589 | P56: 1.963161973 | Q56: 0.4488783663 | R56: 0.4435968366 | S56: 0.1199803156 | T56: 1.003097558 | U56: 4.103233727 | V56: 1.076283227 | W56: 14.09333109 | X56: 2.009075101 | Y56: 0.05690695503 | Z56: 17.02876146 | AA56: 0.9560738663 | AB56: 4.878552217 | AC56: 8.506591495 | AD56: 2.203191345 | AE56: 1.127205647 | AF56: 2.674108012 | AG56: 0.7966176464 | AH56: 0.8373913091 | AI56: 1.910983837 | AJ56: 1.662825205 | AK56: 10.79769498 | AL56: 18.15687417 | AM56: 1.932075176 | AN56: 5.993601949 | AO56: 1.449642995 | AP56: 4.132530802 | AQ56: 0.2837918819 | AR56: 7.202838257 | AS56: 126.6633682 | AT56: 22.93802587 | AU56: 34.38607894 | AV56: 47.73746486 | AW56: 2.246578279 | AX56: 9.328286724 | AY56: 0.3678129734 | AZ56: 1.656937514 | BA56: 5.745762952 | BB56: 0.6570827543 | BC56: 4.121184621 | BD56: 12.44539463 | BE56: 15.5504165 | BF56: 19.71691672 | BG56: 33.13110193 | BH56: 6.708819354 | BI56: 1.478606674 | BJ56: 21.65059943 | BK56: 46.75608017 | BL56: 22.06249535 | BM56: 131.1793064 | BN56: 73.13208256 | BO56: 137.2782277 | BP56: 26.30015933 | BQ56: 3.075958103 | BR56: 0 | BS56: 956.8412969 | BU56: 550.4854189 | BV56: 73337.79597 | BW56: -308.1226812 | BX56: 74537
A57: 068 | B57: Construcción de carreteras y vías de ferrocarril, de proyectos de servicio público y de otras obras de ingeniería civil | C57: 0 | D57: 0 | E57: 0 | F57: 0 | G57: 0 | H57: 0 | I57: 0 | J57: 0 | K57: 0 | L57: 0 | M57: 0 | N57: 0 | O57: 0 | P57: 0 | Q57: 0 | R57: 0 | S57: 0 | T57: 0 | U57: 0 | V57: 0 | W57: 0 | X57: 0 | Y57: 0 | Z57: 0 | AA57: 0 | AB57: 0 | AC57: 0 | AD57: 0 | AE57: 0 | AF57: 0 | AG57: 0 | AH57: 0 | AI57: 0 | AJ57: 0 | AK57: 0 | AL57: 9.944595909 | AM57: 6.954254151 | AN57: 0 | AO57: 0 | AP57: 0 | AQ57: 0 | AR57: 0 | AS57: 0 | AT57: 0.9940052129 | AU57: 0.9940655377 | AV57: 0 | AW57: 0 | AX57: 182.8824455 | AY57: 0 | AZ57: 0 | BA57: 0 | BB57: 0 | BC57: 0 | BD57: 0 | BE57: 0 | BF57: 0 | BG57: 0 | BH57: 0 | BI57: 0 | BJ57: 0 | BK57: 0 | BL57: 0 | BM57: 0 | BN57: 0 | BO57: 0 | BP57: 0 | BQ57: 0 | BR57: 0 | BS57: 201.7693664 | BU57: 0 | BV57: 48147.23063 | BW57: 0 | BX57: 48349
A58: 069 | B58: Actividades especializadas para la construcción de edificaciones y obras de ingeniería civil (Alquiler de maquinaría y equipo de construcción con operadores) | C58: 0 | D58: 0 | E58: 0 | F58: 51.4810611 | G58: 3.605873139 | H58: 88.10453892 | I58: 0 | J58: 9.878501394 | K58: 47.83353835 | L58: 76.00145489 | M58: 0 | N58: 4.495066576 | O58: 0 | P58: 71.98544295 | Q58: 0 | R58: 0 | S58: 0 | T58: 0 | U58: 0 | V58: 0 | W58: 0 | X58: 0 | Y58: 0 | Z58: 0 | AA58: 0 | AB58: 94.36614572 | AC58: 83.73699085 | AD58: 136.7787223 | AE58: 0 | AF58: 0 | AG58: 0 | AH58: 0 | AI58: 0 | AJ58: 166.6088082 | AK58: 35.03877718 | AL58: 969.6271513 | AM58: 85.4437563 | AN58: 545.6912011 | AO58: 136.7545351 | AP58: 143.4214837 | AQ58: 0 | AR58: 1.734759025 | AS58: 16520.90817 | AT58: 2333.419714 | AU58: 5832.553116 | AV58: 779.9951007 | AW58: 0 | AX58: 221.3574921 | AY58: 0 | AZ58: 0 | BA58: 72.88812586 | BB58: 0 | BC58: 156.4042173 | BD58: 417.5706824 | BE58: 5.514115344 | BF58: 0 | BG58: 89.03475143 | BH58: 74.83099741 | BI58: 29.10231317 | BJ58: 1950.649634 | BK58: 321.1452463 | BL58: 162.9058933 | BM58: 2953.933891 | BN58: 1064.558494 | BO58: 166.5019025 | BP58: 170.4727456 | BQ58: 403.6309931 | BR58: 0 | BS58: 36479.9654 | BU58: 1369.728871 | BV58: 1907.65207 | BW58: 3.653656657 | BX58: 39761
A59: 070 | B59: Comercio al por mayor y en comisión o por contrata; comercio al por menor (incluso el comercio al por menor de combustibles); comercio de vehículos automotores y motocicletas, sus partes, piezas y accesorios | C59: 1628.077787 | D59: 373.0356207 | E59: 1054.9367 | F59: 34.79368334 | G59: 65.71242195 | H59: 123.8387499 | I59: 371.4637385 | J59: 33.51021011 | K59: 63.77365678 | L59: 126.0402277 | M59: 986.0065811 | N59: 148.8292358 | O59: 500.7711078 | P59: 1943.873972 | Q59: 357.9121032 | R59: 81.82070966 | S59: 272.4648581 | T59: 469.2038821 | U59: 741.05676 | V59: 411.6665076 | W59: 643.5985518 | X59: 307.2971832 | Y59: 401.0933755 | Z59: 1249.232346 | AA59: 1246.087256 | AB59: 1772.353313 | AC59: 398.5753727 | AD59: 960.6606398 | AE59: 1024.161172 | AF59: 1444.522263 | AG59: 506.5501457 | AH59: 721.8707686 | AI59: 884.4250365 | AJ59: 443.726452 | AK59: 173.0426392 | AL59: 310.4833696 | AM59: 29.89155285 | AN59: 51.75305235 | AO59: 35.99213118 | AP59: 79.33872296 | AQ59: 49.68087841 | AR59: 31.66180785 | AS59: 2923.404828 | AT59: 2940.225333 | AU59: 1698.268167 | AV59: 1381.008333 | AW59: 886.0577791 | AX59: 2153.967752 | AY59: 28.97513241 | AZ59: 209.3612664 | BA59: 357.9308617 | BB59: 24.41415221 | BC59: 196.7517571 | BD59: 3950.888767 | BE59: 217.9620209 | BF59: 839.4629608 | BG59: 302.1799907 | BH59: 123.1554712 | BI59: 22.66678898 | BJ59: 40.47611549 | BK59: 195.6633288 | BL59: 269.5550148 | BM59: 854.2180149 | BN59: 385.1630196 | BO59: 1495.40124 | BP59: 119.2919784 | BQ59: 411.6504368 | BR59: 0 | BS59: 44582.88705 | BU59: 69768.27082 | BV59: 9195.183105 | BW59: -228.3409777 | BX59: 123318
A60: 071 | B60: Mantenimiento y reparación de vehículos automotores y motocicletas | C60: 185.8228802 | D60: 28.17018441 | E60: 43.34295174 | F60: 58.51091897 | G60: 16.57383744 | H60: 221.3400959 | I60: 280.6400139 | J60: 115.5350962 | K60: 176.9299614 | L60: 51.36559393 | M60: 67.78768998 | N60: 22.83221197 | O60: 33.90516571 | P60: 33.88100692 | Q60: 7.097396019 | R60: 44.11103107 | S60: 5.53715767 | T60: 7.887692864 | U60: 35.45832015 | V60: 20.55792016 | W60: 17.82030428 | X60: 6.315132893 | Y60: 6.312007711 | Z60: 37.07318514 | AA60: 61.50060537 | AB60: 47.93685521 | AC60: 10.06239505 | AD60: 12.60692959 | AE60: 133.258849 | AF60: 0 | AG60: 0 | AH60: 186.8847429 | AI60: 82.72389541 | AJ60: 48.89576812 | AK60: 26.75255812 | AL60: 107.2262757 | AM60: 23.6374701 | AN60: 31.54122658 | AO60: 2.391770407 | AP60: 72.95352486 | AQ60: 1.577291439 | AR60: 14.53503188 | AS60: 99.32423949 | AT60: 199.3805182 | AU60: 387.749237 | AV60: 301.747511 | AW60: 7.882770129 | AX60: 3348.044676 | AY60: 84.48422158 | AZ60: 19.71010963 | BA60: 203.3388021 | BB60: 22.8567074 | BC60: 5.518043654 | BD60: 35.45898307 | BE60: 28.08927136 | BF60: 82.89737523 | BG60: 22.92186813 | BH60: 27.02464975 | BI60: 0.7800969108 | BJ60: 68.60135019 | BK60: 88.25199359 | BL60: 133.2139463 | BM60: 286.1711861 | BN60: 58.31907593 | BO60: 55.169966 | BP60: 20.03805962 | BQ60: 42.65100972 | BR60: 0 | BS60: 8018.918614 | BU60: 2610.994847 | BV60: 3628.487212 | BW60: -266.4006738 | BX60: 13992
A61: 072-074 | B61: Transporte terrestre y transporte por tuberías | C61: 847.0442745 | D61: 250.3311194 | E61: 586.3887844 | F61: 118.3682793 | G61: 13.9410564 | H61: 482.732643 | I61: 7949.964473 | J61: 352.7378854 | K61: 2.182224343 | L61: 43.66480445 | M61: 381.6948149 | N61: 198.8431892 | O61: 192.3480169 | P61: 982.6106753 | Q61: 62.23132365 | R61: 201.3471898 | S61: 36.31270435 | T61: 55.57564129 | U61: 736.9807886 | V61: 146.4929104 | W61: 587.4913124 | X61: 438.5352139 | Y61: 61.1940485 | Z61: 423.1729748 | AA61: 545.6639934 | AB61: 1245.404173 | AC61: 427.4266691 | AD61: 578.1459958 | AE61: 1624.349995 | AF61: 190.0721932 | AG61: 76.56123077 | AH61: 84.54226543 | AI61: 180.7640143 | AJ61: 149.2200506 | AK61: 54.29391765 | AL61: 483.5462376 | AM61: 1573.8814 | AN61: 42.85598281 | AO61: 14.9643214 | AP61: 102.6643364 | AQ61: 198.8699574 | AR61: 33.8887037 | AS61: 682.0533632 | AT61: 1217.805937 | AU61: 491.0576519 | AV61: 6321.307713 | AW61: 139.6999649 | AX61: 2388.595252 | AY61: 2.017701272 | AZ61: 94.62027431 | BA61: 248.3114844 | BB61: 83.80268155 | BC61: 114.6159441 | BD61: 1311.368533 | BE61: 123.5031338 | BF61: 379.0258832 | BG61: 568.3102476 | BH61: 39.31868259 | BI61: 14.69283383 | BJ61: 229.4605552 | BK61: 327.7176582 | BL61: 205.333162 | BM61: 941.2888435 | BN61: 400.3881166 | BO61: 292.0577682 | BP61: 72.12773197 | BQ61: 144.6164036 | BR61: 0 | BS61: 39592.39931 | BU61: 20600.34895 | BV61: 152.3286692 | BW61: -8.076921053 | BX61: 60337
A62: 073 | B62: Transporte acuático | C62: 0 | D62: 0 | E62: 0 | F62: 37.85844919 | G62: 5.966333038 | H62: 27.76702732 | I62: 57.23372991 | J62: 12.87803297 | K62: 1.991111407 | L62: 27.94954983 | M62: 1.985908627 | N62: 0 | O62: 0 | P62: 0 | Q62: 0 | R62: 0 | S62: 0 | T62: 0 | U62: 0 | V62: 0 | W62: 0 | X62: 0 | Y62: 0 | Z62: 0 | AA62: 58.55353311 | AB62: 0 | AC62: 0 | AD62: 0 | AE62: 0 | AF62: 0 | AG62: 0 | AH62: 0 | AI62: 2.98403939 | AJ62: 0 | AK62: 0 | AL62: 0 | AM62: 0 | AN62: 0 | AO62: 0 | AP62: 0 | AQ62: 0 | AR62: 0 | AS62: 0 | AT62: 0 | AU62: 0 | AV62: 141.2350239 | AW62: 0 | AX62: 93.30112968 | AY62: 17.76278521 | AZ62: 0 | BA62: 0 | BB62: 0 | BC62: 0 | BD62: 0 | BE62: 0 | BF62: 0 | BG62: 0 | BH62: 0 | BI62: 0 | BJ62: 0 | BK62: 0 | BL62: 0 | BM62: 0 | BN62: 0 | BO62: 0 | BP62: 0 | BQ62: 0 | BR62: 0 | BS62: 487.4666536 | BU62: 321.6038731 | BV62: 0 | BW62: -12.07052664 | BX62: 797
A63: 075 | B63: Transporte aéreo | C63: 8.726221952 | D63: 0.003138361718 | E63: 0.008928951434 | F63: 0.0001992991771 | G63: 0.000522255408 | H63: 34.29601067 | I63: 104.0352387 | J63: 4.948187605 | K63: 13.45345245 | L63: 62.40380928 | M63: 0.008242191078 | N63: 5.188793548 | O63: 0.004199318289 | P63: 0.01649290459 | Q63: 0.5084758914 | R63: 0.0005918311822 | S63: 0.002313823767 | T63: 0.003987995218 | U63: 9.518843753 | V63: 0.003471671836 | W63: 0.00540634639 | X63: 0.002605980088 | Y63: 0.003413701164 | Z63: 0.9927495505 | AA63: 0.01045418232 | AB63: 19.74574026 | AC63: 14.68686991 | AD63: 13.26598154 | AE63: 150.8583858 | AF63: 0.01231280001 | AG63: 0.004308338451 | AH63: 0.005670576664 | AI63: 36.44723126 | AJ63: 0.003683643719 | AK63: 0.001423464342 | AL63: 20.92605138 | AM63: 5.860929597 | AN63: 1.988854085 | AO63: 0.9447360941 | AP63: 2.101838999 | AQ63: 0.0004046499951 | AR63: 0.0002284385627 | AS63: 0.02478985048 | AT63: 0.02477229826 | AU63: 0.01380779408 | AV63: 1965.032283 | AW63: 5.346229736 | AX63: 164.4164493 | AY63: 0.8757430478 | AZ63: 383.6325653 | BA63: 60.95638858 | BB63: 152.9758781 | BC63: 137.5550665 | BD63: 107.1270287 | BE63: 45.29758435 | BF63: 30.37109672 | BG63: 56.91408539 | BH63: 24.18030737 | BI63: 13.44760564 | BJ63: 36.21695742 | BK63: 275.0742913 | BL63: 184.8575964 | BM63: 425.3332609 | BN63: 192.2625138 | BO63: 25.15501569 | BP63: 48.67522044 | BQ63: 1.895546552 | BR63: 0 | BS63: 4848.662488 | BU63: 4222.725391 | BV63: 0.07024381136 | BW63: 3210.541877 | BX63: 12282
A64: 076 | B64: Almacenamiento y actividades complementarias al transporte | C64: 206.1293291 | D64: 0 | E64: 0 | F64: 0 | G64: 0 | H64: 811.3782727 | I64: 204.7676383 | J64: 117.0646122 | K64: 297.8166485 | L64: 0 | M64: 0 | N64: 0 | O64: 0 | P64: 0 | Q64: 11.95818144 | R64: 0 | S64: 0 | T64: 0 | U64: 0 | V64: 0 | W64: 0 | X64: 0 | Y64: 0 | Z64: 0 | AA64: 0 | AB64: 129.493596 | AC64: 23.16432469 | AD64: 41.23515436 | AE64: 0 | AF64: 0 | AG64: 0 | AH64: 0 | AI64: 212.2456881 | AJ64: 0 | AK64: 0 | AL64: 3.553763917 | AM64: 0.8925257822 | AN64: 0 | AO64: 0 | AP64: 0 | AQ64: 0 | AR64: 0 | AS64: 0 | AT64: 0 | AU64: 0 | AV64: 2719.302352 | AW64: 126.3069327 | AX64: 3786.903829 | AY64: 20.71694306 | AZ64: 2360.66524 | BA64: 1296.029877 | BB64: 127.9956254 | BC64: 0 | BD64: 0 | BE64: 0 | BF64: 0 | BG64: 0 | BH64: 0 | BI64: 0 | BJ64: 0 | BK64: 545.4699741 | BL64: 0 | BM64: 85.47754869 | BN64: 0 | BO64: 0 | BP64: 0 | BQ64: 0 | BR64: 0 | BS64: 13128.56806 | BU64: 1425.380015 | BV64: 0 | BW64: -74.94807278 | BX64: 14479
A65: 077 | B65: Actividades de correo y de servicios de mensajería | C65: 0.07032755252 | D65: 0.0001063532576 | E65: 0.05302364677 | F65: 0.01373710558 | G65: 0.0182820216 | H65: 0.01169135986 | I65: 0.3816132362 | J65: 0.005977879527 | K65: 0.01458733001 | L65: 0.05219017511 | M65: 0.08068470087 | N65: 0.01841390856 | O65: 0.02547741433 | P65: 0.0715009232 | Q65: 0.0374028502 | R65: 0.02330217967 | S65: 0.04146886642 | T65: 0.06141957466 | U65: 0.06842202139 | V65: 0.03745927725 | W65: 0.03594771686 | X65: 0.01517251578 | Y65: 0.002394903807 | Z65: 0.1523562271 | AA65: 0.006460434826 | AB65: 14.69389524 | AC65: 25.75055913 | AD65: 26.97674401 | AE65: 0.1314390186 | AF65: 0.04357797381 | AG65: 0.01912767167 | AH65: 0.02408356535 | AI65: 0.01745189644 | AJ65: 0.01633305132 | AK65: 0.03426343697 | AL65: 40.95320758 | AM65: 14.78939924 | AN65: 6.104525284 | AO65: 1.762731405 | AP65: 8.804060948 | AQ65: 0 | AR65: 0.01425509201 | AS65: 0.02450923386 | AT65: 0.006450227776 | AU65: 0.3526543411 | AV65: 385.0344445 | AW65: 0.009884682067 | AX65: 102.8472043 | AY65: 0.0007400843225 | AZ65: 88.71787796 | BA65: 146.0560501 | BB65: 217.0473787 | BC65: 0.03572807104 | BD65: 160.777935 | BE65: 0.3053871773 | BF65: 267.3031669 | BG65: 21.37237729 | BH65: 37.48646912 | BI65: 3.603045507 | BJ65: 37.52182518 | BK65: 0.3431065585 | BL65: 338.4416675 | BM65: 37.38110053 | BN65: 2.79544497 | BO65: 62.86270733 | BP65: 0.01807150106 | BQ65: 45.18331194 | BR65: 0 | BS65: 2096.963613 | BU65: 359.8929771 | BV65: 0.0839782879 | BW65: -104.9405688 | BX65: 2352
A66: 078 | B66: Alojamiento | C66: 8.052218055 | D66: 0.8690938673 | E66: 2.465293078 | F66: 0.2748814796 | G66: 0.2545216941 | H66: 47.41624302 | I66: 26.52021147 | J66: 14.10291984 | K66: 2.276317878 | L66: 8.524859065 | M66: 9.717893524 | N66: 6.437220113 | O66: 4.898092947 | P66: 20.48896177 | Q66: 1.8602288 | R66: 2.675960005 | S66: 2.673966374 | T66: 10.75623043 | U66: 16.33066292 | V66: 7.073512501 | W66: 36.22285336 | X66: 5.230805236 | Y66: 5.20477029 | Z66: 22.19599777 | AA66: 37.62797922 | AB66: 26.82593244 | AC66: 16.37544746 | AD66: 13.34377794 | AE66: 24.71068335 | AF66: 19.44827279 | AG66: 6.526947149 | AH66: 13.19291749 | AI66: 11.29704023 | AJ66: 4.177042082 | AK66: 6.772166569 | AL66: 19.08017079 | AM66: 11.75780668 | AN66: 4.416804872 | AO66: 0.6766643398 | AP66: 2.383995165 | AQ66: 0.8374466778 | AR66: 1.682050793 | AS66: 48.96338679 | AT66: 27.87876331 | AU66: 17.14558386 | AV66: 436.2226846 | AW66: 32.34089831 | AX66: 60.22976316 | AY66: 3.919187857 | AZ66: 75.36403227 | BA66: 28.65948935 | BB66: 13.19073419 | BC66: 7.533576056 | BD66: 70.20341026 | BE66: 159.313055 | BF66: 42.62427856 | BG66: 63.21930221 | BH66: 34.98421334 | BI66: 10.01267801 | BJ66: 37.06597068 | BK66: 188.1479084 | BL66: 170.8727696 | BM66: 46.57503053 | BN66: 103.2470174 | BO66: 63.95768522 | BP66: 147.558102 | BQ66: 76.64970368 | BR66: 0 | BS66: 2449.536086 | BU66: 4074.888926 | BV66: 30.43236037 | BW66: 598.1426273 | BX66: 7153
A67: 079-080 | B67: Actividades de servicios de comidas y bebidas | C67: 19.05108106 | D67: 2.209630733 | E67: 197.8417405 | F67: 0.5006404893 | G67: 9.818840976 | H67: 10.43231916 | I67: 51.28627405 | J67: 9.475174484 | K67: 3.275215082 | L67: 23.09079843 | M67: 11.83973231 | N67: 3.53505313 | O67: 6.491089649 | P67: 79.88825231 | Q67: 63.36843229 | R67: 1.944862186 | S67: 7.565294057 | T67: 21.40603536 | U67: 33.7815117 | V67: 6.254728357 | W67: 36.33528786 | X67: 6.468746683 | Y67: 1.898641966 | Z67: 15.35812912 | AA67: 8.662866012 | AB67: 19.86900727 | AC67: 11.19866528 | AD67: 12.20717789 | AE67: 23.16318566 | AF67: 17.27314054 | AG67: 2.945563548 | AH67: 6.828766475 | AI67: 8.199586301 | AJ67: 3.364391941 | AK67: 3.484302138 | AL67: 18.11710519 | AM67: 8.711078954 | AN67: 3.746715292 | AO67: 1.325804934 | AP67: 3.801379847 | AQ67: 8.301750718 | AR67: 10.33091389 | AS67: 17.97654123 | AT67: 21.15401689 | AU67: 18.37739023 | AV67: 368.6109741 | AW67: 27.06011556 | AX67: 32.34531817 | AY67: 0.6429910849 | AZ67: 309.5188012 | BA67: 44.01709872 | BB67: 4.848943751 | BC67: 149.1530419 | BD67: 403.6635542 | BE67: 155.0492034 | BF67: 59.98350638 | BG67: 245.5258957 | BH67: 13.39821028 | BI67: 5.161660384 | BJ67: 53.53640959 | BK67: 79.03150819 | BL67: 116.2812916 | BM67: 763.6093659 | BN67: 200.21806 | BO67: 80.76622221 | BP67: 433.7194081 | BQ67: 217.9879019 | BR67: 0 | BS67: 4616.286345 | BU67: 60503.78449 | BV67: 104.9702256 | BW67: 1828.95894 | BX67: 67054
A68: 081-082-084 | B68: Actividades de edición (libros, periódicos, otros); actividades cinematográficas, de video y producción de programas de televisión, grabación de sonido y edición de música; Actividades de programación, transmisión y/o difusión; desarrollo de sistemas informáticos (planificación, análisis, diseño, programación, pruebas), consultoría informática y actividades relacionadas; edición de software; actividades de servicios de información. | C68: 84.92087682 | D68: 1.795735014 | E68: 72.57610136 | F68: 0.04980964219 | G68: 4.344056728 | H68: 68.15769143 | I68: 180.0663955 | J68: 20.27143923 | K68: 26.42533374 | L68: 84.83550215 | M68: 144.1675188 | N68: 40.44327956 | O68: 44.17751008 | P68: 71.62654622 | Q68: 18.88369744 | R68: 24.76553091 | S68: 18.38228871 | T68: 33.58997594 | U68: 52.47050068 | V68: 31.84637623 | W68: 85.9235528 | X68: 26.07919161 | Y68: 8.945811165 | Z68: 474.9777832 | AA68: 42.53771839 | AB68: 95.90330562 | AC68: 69.25804788 | AD68: 47.38881365 | AE68: 52.28101937 | AF68: 87.98350546 | AG68: 31.68340941 | AH68: 209.297049 | AI68: 37.92519585 | AJ68: 37.57266671 | AK68: 27.99153203 | AL68: 245.7691887 | AM68: 30.06284736 | AN68: 60.41348049 | AO68: 14.8779208 | AP68: 45.01670445 | AQ68: 2.77074098 | AR68: 139.7374259 | AS68: 127.5571834 | AT68: 106.1976595 | AU68: 38.30498578 | AV68: 1061.783362 | AW68: 120.5637558 | AX68: 189.67598 | AY68: 9.430795116 | AZ68: 53.43397842 | BA68: 126.0125712 | BB68: 47.06479171 | BC68: 142.2106833 | BD68: 202.8875949 | BE68: 912.5619239 | BF68: 1080.472854 | BG68: 949.4095373 | BH68: 136.7311444 | BI68: 27.01379464 | BJ68: 306.6250922 | BK68: 1189.40175 | BL68: 572.993318 | BM68: 2735.156876 | BN68: 1435.421074 | BO68: 413.6553206 | BP68: 300.2019977 | BQ68: 99.58373718 | BR68: 0 | BS68: 15282.54484 | BU68: 2660.358108 | BV68: 1635.730415 | BW68: -1697.633363 | BX68: 17881
A69: 083 | B69: Telecomunicaciones | C69: 74.39295248 | D69: 6.97618215 | E69: 17.14340746 | F69: 11.8988275 | G69: 1.760361209 | H69: 13.02964219 | I69: 45.80914652 | J69: 6.341668863 | K69: 6.219328168 | L69: 23.69909793 | M69: 37.08055976 | N69: 14.4452359 | O69: 12.49878375 | P69: 44.60198765 | Q69: 6.605070703 | R69: 20.50270748 | S69: 5.467233339 | T69: 18.05357616 | U69: 15.05262662 | V69: 16.12565261 | W69: 44.67741939 | X69: 30.50750805 | Y69: 26.69754671 | Z69: 59.4577186 | AA69: 5.438266218 | AB69: 66.28279145 | AC69: 82.54661539 | AD69: 28.13345198 | AE69: 39.17390669 | AF69: 34.66632757 | AG69: 16.04784024 | AH69: 38.40806296 | AI69: 15.1975406 | AJ69: 18.4681955 | AK69: 19.65869831 | AL69: 405.6020415 | AM69: 12.70316844 | AN69: 9.372951929 | AO69: 2.980958342 | AP69: 4.719375872 | AQ69: 22.34134056 | AR69: 7.127311538 | AS69: 169.9008473 | AT69: 168.1354545 | AU69: 98.83763328 | AV69: 3796.045536 | AW69: 180.9835758 | AX69: 113.4398553 | AY69: 13.92102202 | AZ69: 118.592813 | BA69: 98.58693659 | BB69: 23.21637268 | BC69: 62.02557354 | BD69: 348.7733291 | BE69: 308.9849214 | BF69: 4740.30812 | BG69: 42.32318 | BH69: 66.59705864 | BI69: 8.361844635 | BJ69: 135.0702949 | BK69: 711.0212468 | BL69: 464.719878 | BM69: 820.3819881 | BN69: 155.2361525 | BO69: 402.3686376 | BP69: 127.1436842 | BQ69: 162.3039426 | BR69: 0 | BS69: 14725.19299 | BU69: 19494.37633 | BV69: 38.85379831 | BW69: -374.4231123 | BX69: 33884
A70: 085-086 | B70: Actividades de servicios financieros de intermediación; servicios financieros de inversión, custodia y otros servicios conexos | C70: 323.1565484 | D70: 130.774105 | E70: 276.6868852 | F70: 13.95230331 | G70: 14.88687751 | H70: 112.5465576 | I70: 316.082969 | J70: 24.87047657 | K70: 37.48090777 | L70: 223.4258227 | M70: 320.9468439 | N70: 113.97938 | O70: 140.4804869 | P70: 252.6825735 | Q70: 106.7811903 | R70: 86.03252104 | S70: 39.61127357 | T70: 87.17086602 | U70: 122.7106032 | V70: 96.44047124 | W70: 172.299888 | X70: 64.14488083 | Y70: 23.59496809 | Z70: 321.1094183 | AA70: 110.497054 | AB70: 325.0300546 | AC70: 135.6604675 | AD70: 212.4262483 | AE70: 290.0940453 | AF70: 273.1026822 | AG70: 101.920507 | AH70: 82.10104513 | AI70: 138.3895041 | AJ70: 28.94831033 | AK70: 49.56334374 | AL70: 616.8689564 | AM70: 67.92661491 | AN70: 46.15535659 | AO70: 21.53797114 | AP70: 20.93790918 | AQ70: 9.978945103 | AR70: 4.376751843 | AS70: 860.0952225 | AT70: 1151.827806 | AU70: 1937.818782 | AV70: 2117.354161 | AW70: 384.4386496 | AX70: 839.6072436 | AY70: 37.95618422 | AZ70: 86.8195004 | BA70: 231.9613616 | BB70: 26.90174325 | BC70: 98.18392818 | BD70: 246.9865858 | BE70: 245.9906574 | BF70: 370.250322 | BG70: 6945.627625 | BH70: 2479.463988 | BI70: 1275.264362 | BJ70: 1588.140518 | BK70: 486.7860324 | BL70: 495.1658995 | BM70: 3219.960276 | BN70: 311.8368903 | BO70: 510.0732791 | BP70: 97.99252123 | BQ70: 257.600109 | BR70: 0 | BS70: 32261.46823 | BU70: 15410.83779 | BV70: 24.11993436 | BW70: -2824.425957 | BX70: 44872
A71: 087 | B71: Seguros, seguros sociales y fondos de pensiones, excepto la seguridad social | C71: 2.037692336 | D71: 0.8760730135 | E71: 1.76668142 | F71: 0.07142154097 | G71: 0.07149906922 | H71: 22.60897195 | I71: 89.95905092 | J71: 6.106573017 | K71: 5.212947644 | L71: 9.622508723 | M71: 8.997293724 | N71: 8.684376736 | O71: 7.865112922 | P71: 16.48866544 | Q71: 12.5982104 | R71: 22.406388 | S71: 0.1973020113 | T71: 0.4858467453 | U71: 23.57945242 | V71: 17.16873447 | W71: 37.26570046 | X71: 19.32860597 | Y71: 0.1502252854 | Z71: 49.49660284 | AA71: 36.56229907 | AB71: 37.03464709 | AC71: 21.95269725 | AD71: 11.2786108 | AE71: 79.36673106 | AF71: 70.40666268 | AG71: 17.56887886 | AH71: 8.45731039 | AI71: 3.876489862 | AJ71: 0.1493458973 | AK71: 0.2676118239 | AL71: 142.3213404 | AM71: 8.3902029 | AN71: 15.21040913 | AO71: 9.182991786 | AP71: 18.30094246 | AQ71: 7.017315808 | AR71: 2.911098923 | AS71: 137.9976801 | AT71: 21.59473008 | AU71: 863.9138164 | AV71: 612.7545959 | AW71: 182.615412 | AX71: 872.0341899 | AY71: 29.41887308 | AZ71: 221.5173418 | BA71: 200.7163469 | BB71: 141.0103512 | BC71: 10.54830345 | BD71: 45.05385719 | BE71: 94.23147242 | BF71: 2.372059535 | BG71: 169.01675 | BH71: 3045.083062 | BI71: 13.68225066 | BJ71: 99.72634908 | BK71: 304.127447 | BL71: 14.63171859 | BM71: 346.8399633 | BN71: 278.8248516 | BO71: 91.09239131 | BP71: 38.47212698 | BQ71: 5.179691641 | BR71: 0 | BS71: 8695.757155 | BU71: 15129.59999 | BV71: 0 | BW71: -2896.35715 | BX71: 20929
A72: 088 | B72: Actividades auxiliares complementarias de las actividades de servicios financieros y de seguros | C72: 14.6485962 | D72: 0.8724528771 | E72: 10.82613172 | F72: 2.669937021 | G72: 3.529829705 | H72: 2.028903992 | I72: 71.24115962 | J72: 1.016710232 | K72: 2.824679631 | L72: 10.36576262 | M72: 14.9796725 | N72: 3.750915771 | O72: 5.215178258 | P72: 14.51576022 | Q72: 7.565865925 | R72: 4.849970648 | S72: 7.996496524 | T72: 11.71776816 | U72: 13.21985904 | V72: 7.349427203 | W72: 7.028168106 | X72: 2.997529374 | Y72: 0.5819289836 | Z72: 30.22306095 | AA72: 1.587470283 | AB72: 35.3263852 | AC72: 8.192294431 | AD72: 10.39902318 | AE72: 26.35620189 | AF72: 9.054166104 | AG72: 4.091390391 | AH72: 4.816618728 | AI72: 3.914246279 | AJ72: 3.174023977 | AK72: 6.733215815 | AL72: 17.80879139 | AM72: 2.590823631 | AN72: 2.874618245 | AO72: 1.443185837 | AP72: 2.31744054 | AQ72: 0.06462935979 | AR72: 0.01656409802 | AS72: 9.098409254 | AT72: 7.63760973 | AU72: 78.42258056 | AV72: 204.550043 | AW72: 3.845178392 | AX72: 45.42762289 | AY72: 0.2522933107 | AZ72: 1.004798485 | BA72: 7.963717257 | BB72: 0.6062723982 | BC72: 6.21556822 | BD72: 15.31973173 | BE72: 53.52528969 | BF72: 6.684144933 | BG72: 1583.230652 | BH72: 1988.0773 | BI72: 357.1227336 | BJ72: 193.1250855 | BK72: 50.6881987 | BL72: 57.6503605 | BM72: 142.8943898 | BN72: 15.67107277 | BO72: 54.77202303 | BP72: 0.6274046327 | BQ72: 73.13443748 | BR72: 0 | BS72: 5350.323772 | BU72: 1220.18904 | BV72: 0.07274005687 | BW72: -77.58555288 | BX72: 6493
A73: 089 | B73: Actividades inmobiliarias | C73: 15.41131583 | D73: 0.5030950542 | E73: 25.01069367 | F73: 0.05519359757 | G73: 0.1729504239 | H73: 73.12079892 | I73: 130.5522666 | J73: 0.3227887214 | K73: 1.638859803 | L73: 87.42892882 | M73: 28.92762716 | N73: 13.79632939 | O73: 10.59861432 | P73: 44.70882377 | Q73: 15.67514412 | R73: 3.080381962 | S73: 2.58349492 | T73: 4.385037337 | U73: 8.955075499 | V73: 64.49672475 | W73: 571.7259533 | X73: 62.33508551 | Y73: 2.4072977 | Z73: 55.97982806 | AA73: 19.92251731 | AB73: 71.20271036 | AC73: 32.65782673 | AD73: 94.21381533 | AE73: 251.6336271 | AF73: 174.4940276 | AG73: 6.236365692 | AH73: 56.48525978 | AI73: 52.85114801 | AJ73: 19.34344539 | AK73: 26.55930864 | AL73: 124.1765621 | AM73: 19.73048915 | AN73: 25.46506345 | AO73: 12.74071182 | AP73: 19.83575283 | AQ73: 170.275896 | AR73: 133.8753887 | AS73: 15.46246068 | AT73: 11.86977567 | AU73: 236.9500525 | AV73: 5755.904936 | AW73: 457.893253 | AX73: 75.76674551 | AY73: 3.743310772 | AZ73: 86.62791055 | BA73: 782.3754234 | BB73: 61.07361188 | BC73: 176.6569954 | BD73: 2814.360748 | BE73: 441.5300226 | BF73: 537.5072891 | BG73: 1976.48455 | BH73: 93.89388737 | BI73: 42.29602883 | BJ73: 417.8021467 | BK73: 625.832712 | BL73: 1765.092109 | BM73: 556.1086044 | BN73: 1207.428895 | BO73: 247.3791466 | BP73: 458.2167347 | BQ73: 351.03427 | BR73: 0 | BS73: 21734.86385 | BU73: 67639.16981 | BV73: 948.7388536 | BW73: -6.772506728 | BX73: 90316
A74: 090-093 | B74: Actividades profesionales, científicas y técnicas | C74: 155.2760379 | D74: 7.974532329 | E74: 200.3796044 | F74: 3.556144589 | G74: 1.349797685 | H74: 223.6544477 | I74: 917.3571115 | J74: 66.70164417 | K74: 51.85838823 | L74: 197.6620963 | M74: 469.6492403 | N74: 94.60673169 | O74: 105.4614257 | P74: 142.86946 | Q74: 37.18359997 | R74: 20.71719381 | S74: 13.89087274 | T74: 81.32152495 | U74: 95.81215967 | V74: 70.98414754 | W74: 189.325205 | X74: 59.52176827 | Y74: 8.962060047 | Z74: 86.38457729 | AA74: 87.15815563 | AB74: 178.7745406 | AC74: 141.0319205 | AD74: 105.8570309 | AE74: 62.75635997 | AF74: 193.9050207 | AG74: 38.17506991 | AH74: 55.88621111 | AI74: 68.72735826 | AJ74: 30.04859172 | AK74: 8.606312199 | AL74: 915.148154 | AM74: 105.0213333 | AN74: 239.0224482 | AO74: 50.87131563 | AP74: 153.5454368 | AQ74: 0.9226253888 | AR74: 527.2351878 | AS74: 1323.275926 | AT74: 429.8746119 | AU74: 520.0429032 | AV74: 2733.342752 | AW74: 123.2525465 | AX74: 560.0072357 | AY74: 28.29599943 | AZ74: 130.3497075 | BA74: 331.748469 | BB74: 46.61965271 | BC74: 253.5053056 | BD74: 499.9067632 | BE74: 1123.966671 | BF74: 1528.330195 | BG74: 1901.415083 | BH74: 474.5301294 | BI74: 96.98338377 | BJ74: 928.7699782 | BK74: 3391.810689 | BL74: 1430.567156 | BM74: 8279.937747 | BN74: 4365.215789 | BO74: 981.4585642 | BP74: 700.8442598 | BQ74: 56.48791889 | BR74: 0 | BS74: 38505.69228 | BU74: 2032.734133 | BV74: 3486.235433 | BW74: -1447.661848 | BX74: 42577
A75: 094-097 | B75: Actividades de servicios administrativos y de apoyo | C75: 209.5608401 | D75: 0.08709553029 | E75: 21.18103107 | F75: 0.07530975557 | G75: 26.04875102 | H75: 85.31230762 | I75: 1563.814636 | J75: 48.19197305 | K75: 367.968027 | L75: 686.4429219 | M75: 360.4380452 | N75: 134.5298064 | O75: 77.46001552 | P75: 250.7879057 | Q75: 78.11757064 | R75: 104.8837526 | S75: 134.1336615 | T75: 65.79557321 | U75: 274.7379999 | V75: 201.545444 | W75: 792.4290127 | X75: 138.5490952 | Y75: 31.5058118 | Z75: 754.9000861 | AA75: 212.9100094 | AB75: 482.2161591 | AC75: 333.1236397 | AD75: 240.972265 | AE75: 164.7026339 | AF75: 177.5243772 | AG75: 81.91904152 | AH75: 102.5098185 | AI75: 187.2807438 | AJ75: 79.26330607 | AK75: 23.40265212 | AL75: 399.4531202 | AM75: 111.3933104 | AN75: 169.6678393 | AO75: 60.1201762 | AP75: 256.2328993 | AQ75: 1.920487522 | AR75: 79.48156646 | AS75: 417.3274052 | AT75: 719.4673074 | AU75: 9.137424565 | AV75: 5972.446613 | AW75: 14.21884737 | AX75: 44.92364867 | AY75: 46.28423415 | AZ75: 414.5294411 | BA75: 774.2133619 | BB75: 121.1453775 | BC75: 895.4487376 | BD75: 605.6555225 | BE75: 1868.736528 | BF75: 3862.231645 | BG75: 2535.616978 | BH75: 406.5002644 | BI75: 60.18454796 | BJ75: 2177.302111 | BK75: 2518.398926 | BL75: 2059.09543 | BM75: 5944.379003 | BN75: 1353.755909 | BO75: 1520.257821 | BP75: 975.7476967 | BQ75: 36.77586766 | BR75: 0 | BS75: 44926.37137 | BU75: 2096.254369 | BV75: 395.8700891 | BW75: -2638.495825 | BX75: 44780
A76: 098-099 | B76: Administración pública y defensa; planes de seguridad social de afiliación obligatoria | C76: 34.21824145 | D76: 1.123952331 | E76: 12.50696194 | F76: 0.1296723168 | G76: 1.930876293 | H76: 54.30009008 | I76: 52.08014655 | J76: 10.22538112 | K76: 23.16447247 | L76: 15.53449216 | M76: 26.63495813 | N76: 9.014190897 | O76: 13.64222525 | P76: 24.3860622 | Q76: 5.994318118 | R76: 6.420457308 | S76: 7.879520408 | T76: 10.8606635 | U76: 25.41283681 | V76: 6.804560685 | W76: 25.79075433 | X76: 6.504876133 | Y76: 3.479178783 | Z76: 127.7875469 | AA76: 8.986857409 | AB76: 47.74716364 | AC76: 20.50469646 | AD76: 29.64681038 | AE76: 8.430583219 | AF76: 13.43035656 | AG76: 6.103643445 | AH76: 6.448447026 | AI76: 20.38678542 | AJ76: 10.76638172 | AK76: 3.525025556 | AL76: 47.03119859 | AM76: 5.651001746 | AN76: 10.38928006 | AO76: 3.608567751 | AP76: 10.87087571 | AQ76: 1.665278056 | AR76: 16.87323823 | AS76: 38.70932504 | AT76: 48.65397573 | AU76: 21.57669488 | AV76: 367.0496984 | AW76: 17.47008488 | AX76: 260.2439997 | AY76: 2.617062693 | AZ76: 149.5244438 | BA76: 100.4399982 | BB76: 10.88853055 | BC76: 20.12300633 | BD76: 51.02693339 | BE76: 71.67985929 | BF76: 93.31577429 | BG76: 97.10026794 | BH76: 19.39776356 | BI76: 3.820315654 | BJ76: 52.949452 | BK76: 167.8045394 | BL76: 83.59619276 | BM76: 383.9069454 | BN76: 164.8472482 | BO76: 64.85986643 | BP76: 39.32720398 | BQ76: 3.78068501 | BR76: 0 | BS76: 3112.602494 | BU76: 91673.00215 | BV76: 109.0635967 | BW76: -179.6682454 | BX76: 94715
A77: 100-101 | B77: Educación | C77: 18.33410798 | D77: 1.845714616 | E77: 15.29081577 | F77: 0.7497246312 | G77: 0.3017926951 | H77: 11.07004296 | I77: 72.03500787 | J77: 21.27491375 | K77: 1.798251431 | L77: 8.650580674 | M77: 22.32846347 | N77: 6.419630239 | O77: 7.122294048 | P77: 16.29080537 | Q77: 3.083628601 | R77: 4.275786748 | S77: 2.834969997 | T77: 5.64609793 | U77: 12.29425156 | V77: 4.273360612 | W77: 14.60189212 | X77: 6.394547821 | Y77: 1.634377464 | Z77: 80.97506317 | AA77: 6.894610511 | AB77: 21.13378288 | AC77: 12.33052142 | AD77: 10.16592727 | AE77: 12.82052229 | AF77: 9.555085662 | AG77: 2.981887324 | AH77: 3.186984316 | AI77: 3.721286807 | AJ77: 6.23356929 | AK77: 1.099774859 | AL77: 82.92106769 | AM77: 23.28397902 | AN77: 31.97989111 | AO77: 13.08530116 | AP77: 27.17722458 | AQ77: 1.852237442 | AR77: 22.29843077 | AS77: 13.56907298 | AT77: 18.00055594 | AU77: 8.544270012 | AV77: 164.7496175 | AW77: 6.965307495 | AX77: 54.99962642 | AY77: 1.183549544 | AZ77: 40.72537877 | BA77: 50.82951378 | BB77: 9.677691639 | BC77: 12.46096315 | BD77: 31.67241968 | BE77: 56.82278382 | BF77: 64.51946212 | BG77: 236.6419971 | BH77: 20.17720597 | BI77: 8.045645474 | BJ77: 101.5475625 | BK77: 146.0886519 | BL77: 68.30372624 | BM77: 1173.894233 | BN77: 788.2642498 | BO77: 78.90715811 | BP77: 45.4355912 | BQ77: 2.503481597 | BR77: 0 | BS77: 3836.777921 | BU77: 56283.88067 | BV77: 140.628204 | BW77: -159.2867941 | BX77: 60102
A78: 102-103 | B78: Actividades de atención de la salud humana y de servicios sociales | C78: 0.8804024646 | D78: 0.1813327429 | E78: 0.6762369861 | F78: 0.0113600531 | G78: 0.02976855826 | H78: 0.2971221095 | I78: 0.7062133383 | J78: 0.03778151531 | K78: 0.03416336734 | L78: 0.3378199422 | M78: 0.8066118411 | N78: 0.1530085023 | O78: 0.3207086379 | P78: 1.097871027 | Q78: 0.2240825382 | R78: 0.05065707598 | S78: 0.1411280935 | T78: 0.2816679657 | U78: 0.423750801 | V78: 0.3715899253 | W78: 1.619264351 | X78: 0.312516621 | Y78: 0.2008444096 | Z78: 0.7478506421 | AA78: 0.6766721858 | AB78: 1.085267287 | AC78: 0.3335376238 | AD78: 0.7110136023 | AE78: 1.042527525 | AF78: 1.175926581 | AG78: 0.2762341836 | AH78: 0.4692655192 | AI78: 0.5627821325 | AJ78: 0.2570832087 | AK78: 0.1389491704 | AL78: 0.9189832081 | AM78: 0.1128988468 | AN78: 0.1980506191 | AO78: 0.06730674932 | AP78: 0.1570947609 | AQ78: 0.3844267126 | AR78: 0.6242044473 | AS78: 1.562357028 | AT78: 1.569675014 | AU78: 1.360983518 | AV78: 14.3644528 | AW78: 1.46505317 | AX78: 1.186284543 | AY78: 0.02893680216 | AZ78: 0.3353253405 | BA78: 1.985130587 | BB78: 0.1629738689 | BC78: 0.5999787004 | BD78: 8.115466967 | BE78: 1.677130312 | BF78: 2.391459902 | BG78: 5.345155802 | BH78: 0.4910871642 | BI78: 0.149779314 | BJ78: 1.354369127 | BK78: 3.452773015 | BL78: 4.691969809 | BM78: 31.39461222 | BN78: 43.29637385 | BO78: 21305.08366 | BP78: 1.4295962 | BQ78: 0.8362851693 | BR78: 0 | BS78: 21453.46685 | BU78: 50099.7369 | BV78: 7.920162278 | BW78: 89.87609702 | BX78: 71651
A79: 104-106 | B79: Actividades artísticas, de entretenimiento y recreación | C79: 0.1008963765 | D79: 0.004201894294 | E79: 0.07589366806 | F79: 0.0001992991771 | G79: 0.004589770529 | H79: 0.076268014 | I79: 0.3680574786 | J79: 0.0447905541 | K79: 0.06206236611 | L79: 0.5242967823 | M79: 0.1834580198 | N79: 0.04830618992 | O79: 0.05587246494 | P79: 0.1001204309 | Q79: 0.02739758795 | R79: 0.03862060666 | S79: 0.02975939153 | T79: 0.04248458599 | U79: 0.2725688796 | V79: 0.0621748901 | W79: 0.9069245479 | X79: 0.1196516184 | Y79: 0.01225444784 | Z79: 1.412667634 | AA79: 0.06034729317 | AB79: 0.2991518085 | AC79: 0.5052125927 | AD79: 0.09348611556 | AE79: 0.07034251012 | AF79: 0.1068483781 | AG79: 0.05171030075 | AH79: 0.04851545102 | AI79: 0.1241492626 | AJ79: 0.06876438069 | AK79: 0.6845656602 | AL79: 0.3916580662 | AM79: 0.05459165991 | AN79: 0.09697504585 | AO79: 0.02897236674 | AP79: 0.1677503842 | AQ79: 0.01348689534 | AR79: 0.1623505864 | AS79: 2.20607879 | AT79: 0.6279831048 | AU79: 0.06473043988 | AV79: 2.03965383 | AW79: 0.08089310807 | AX79: 0.2689351834 | AY79: 0.013948527 | AZ79: 0.9503511068 | BA79: 0.247711901 | BB79: 0.03520196394 | BC79: 4.313570418 | BD79: 559.8188113 | BE79: 339.7074572 | BF79: 0.9534742702 | BG79: 32.97780443 | BH79: 0.1977386758 | BI79: 1.51334836 | BJ79: 53.64500704 | BK79: 1.328076167 | BL79: 0.8395594632 | BM79: 533.9485966 | BN79: 78.23180585 | BO79: 8.554927195 | BP79: 774.086405 | BQ79: 627.9116903 | BR79: 0 | BS79: 3032.166157 | BU79: 12145.26033 | BV79: 7.829347716 | BW79: -17.25583807 | BX79: 15168
A80: 107-108 | B80: Otras actividades de servicios | C80: 43.30896991 | D80: 0.1422249229 | E80: 0.5963666283 | F80: 0.3817491945 | G80: 6.88348833 | H80: 69.78855009 | I80: 164.8632303 | J80: 5.138286177 | K80: 0.4579256936 | L80: 126.9248108 | M80: 38.65999531 | N80: 18.15953167 | O80: 12.08056361 | P80: 27.35975757 | Q80: 9.488098659 | R80: 21.76419224 | S80: 0.105848243 | T80: 0.2420522811 | U80: 0.9820648506 | V80: 0.3295675304 | W80: 1.472796035 | X80: 0.2744996676 | Y80: 0.1457450396 | Z80: 33.46488005 | AA80: 55.70792274 | AB80: 52.52953373 | AC80: 36.67597357 | AD80: 16.98118815 | AE80: 22.63325811 | AF80: 0.979536479 | AG80: 10.14418416 | AH80: 120.8789128 | AI80: 19.43247586 | AJ80: 15.58846574 | AK80: 3.452143032 | AL80: 78.29484791 | AM80: 12.48905589 | AN80: 21.86624225 | AO80: 21.07327918 | AP80: 18.27700463 | AQ80: 0.3402059199 | AR80: 3.171128617 | AS80: 110.5321067 | AT80: 16.84797448 | AU80: 39.91109027 | AV80: 26.79677055 | AW80: 23.84102967 | AX80: 175.0544681 | AY80: 20.7837718 | AZ80: 126.1887331 | BA80: 86.163918 | BB80: 11.9767772 | BC80: 19.61031987 | BD80: 49.6576776 | BE80: 59.6849206 | BF80: 37.03689583 | BG80: 818.9224691 | BH80: 67.76823826 | BI80: 11.30587551 | BJ80: 14.65471044 | BK80: 47.50812987 | BL80: 54.28584583 | BM80: 573.0637761 | BN80: 73.84182716 | BO80: 120.0299249 | BP80: 60.82991928 | BQ80: 1353.992392 | BR80: 0 | BS80: 5093.820116 | BU80: 6433.841237 | BV80: 1504.029152 | BW80: -19.69050488 | BX80: 13012
A81: 109 | B81: Actividades de los hogares individuales en calidad de empleadores | C81: 0 | D81: 0 | E81: 0 | F81: 0 | G81: 0 | H81: 0 | I81: 0 | J81: 0 | K81: 0 | L81: 0 | M81: 0 | N81: 0 | O81: 0 | P81: 0 | Q81: 0 | R81: 0 | S81: 0 | T81: 0 | U81: 0 | V81: 0 | W81: 0 | X81: 0 | Y81: 0 | Z81: 0 | AA81: 0 | AB81: 0 | AC81: 0 | AD81: 0 | AE81: 0 | AF81: 0 | AG81: 0 | AH81: 0 | AI81: 0 | AJ81: 0 | AK81: 0 | AL81: 0 | AM81: 0 | AN81: 0 | AO81: 0 | AP81: 0 | AQ81: 0 | AR81: 0 | AS81: 0 | AT81: 0 | AU81: 0 | AV81: 0 | AW81: 0 | AX81: 0 | AY81: 0 | AZ81: 0 | BA81: 0 | BB81: 0 | BC81: 0 | BD81: 0 | BE81: 0 | BF81: 0 | BG81: 0 | BH81: 0 | BI81: 0 | BJ81: 0 | BK81: 0 | BL81: 0 | BM81: 0 | BN81: 0 | BO81: 0 | BP81: 0 | BQ81: 0 | BR81: 0 | BS81: 0 | BU81: 5788.0001 | BV81: 0 | BW81: -0.0001001150605 | BX81: 5788
B82: Compras directas en el exteror por residentes y compras directas en el territorio nacional por no residentes | BS82: 0 | BU82: 3992 | BW82: -3992 | BX82: 0
B83: Total | C83: 12842 | D83: 3189 | E83: 15539 | F83: 715 | G83: 1006 | H83: 4616 | I83: 27469 | J83: 1372 | K83: 1730 | L83: 3078 | M83: 20800 | N83: 7361 | O83: 7779 | P83: 18058 | Q83: 9223 | R83: 4921 | S83: 2089 | T83: 3779 | U83: 7425 | V83: 3747 | W83: 7878 | X83: 3061 | Y83: 2025 | Z83: 11504 | AA83: 41684 | AB83: 19014 | AC83: 4700 | AD83: 9560 | AE83: 11993 | AF83: 13336 | AG83: 3653 | AH83: 5845 | AI83: 6354 | AJ83: 3009 | AK83: 2231 | AL83: 22648 | AM83: 4796 | AN83: 2083 | AO83: 782 | AP83: 1991 | AQ83: 659 | AR83: 1285 | AS83: 41058 | AT83: 29808 | AU83: 23018 | AV83: 45065 | AW83: 6921 | AX83: 27081 | AY83: 470 | AZ83: 7741 | BA83: 5885 | BB83: 1294 | BC83: 3662 | BD83: 31049 | BE83: 7536 | BF83: 15631 | BG83: 20009 | BH83: 9338 | BI83: 2076 | BJ83: 8823 | BK83: 12910 | BL83: 10079 | BM83: 37641 | BN83: 15073 | BO83: 34801 | BP83: 5497 | BQ83: 5688 | BR83: 0 | BS83: 744983 | BU83: 727946 | BV83: 191649 | BW83: -46254 | BX83: 1618324
B85: Valor Agregado | C85: 33979 | D85: 6482 | E85: 14639 | F85: 2047 | G85: 1668 | H85: 13634 | I85: 17640 | J85: 3472 | K85: 2421 | L85: 10371 | M85: 6579 | N85: 1884 | O85: 3553 | P85: 4560 | Q85: 702 | R85: 3066 | S85: 665 | T85: 2398 | U85: 7196 | V85: 2205 | W85: 6566 | X85: 1638 | Y85: 1092 | Z85: 4706 | AA85: 10669 | AB85: 10379 | AC85: 3218 | AD85: 2735 | AE85: 12070 | AF85: 6208 | AG85: 1960 | AH85: 3237 | AI85: 2276 | AJ85: 2195 | AK85: 3265 | AL85: 16795 | AM85: 3870 | AN85: 2703 | AO85: 2223 | AP85: 2512 | AQ85: 1480 | AR85: 206 | AS85: 31692 | AT85: 17086 | AU85: 15696 | AV85: 74479 | AW85: 6669 | AX85: 31526 | AY85: 309 | AZ85: 4231 | BA85: 8304 | BB85: 985 | BC85: 3283 | BD85: 33266 | BE85: 9968 | BF85: 16853 | BG85: 23364 | BH85: 11372 | BI85: 4324 | BJ85: 80976 | BK85: 28877 | BL85: 34021 | BM85: 55384 | BN85: 44053 | BO85: 35798 | BP85: 9364 | BQ85: 7074 | BR85: 5788
B87: Remuneración de los asalariados | C87: 8910 | D87: 2915 | E87: 2040 | F87: 519 | G87: 116 | H87: 2884 | I87: 2846 | J87: 373 | K87: 234 | L87: 2159 | M87: 927 | N87: 513 | O87: 1880 | P87: 2377 | Q87: 72 | R87: 1038 | S87: 500 | T87: 1094 | U87: 1389 | V87: 990 | W87: 2657 | X87: 906 | Y87: 343 | Z87: 1927 | AA87: 1728 | AB87: 3256 | AC87: 1574 | AD87: 1720 | AE87: 2441 | AF87: 2516 | AG87: 1057 | AH87: 1094 | AI87: 921 | AJ87: 713 | AK87: 496 | AL87: 1703 | AM87: 254 | AN87: 883 | AO87: 380 | AP87: 610 | AQ87: 653 | AR87: 140 | AS87: 4972 | AT87: 5775 | AU87: 5375 | AV87: 31206 | AW87: 2338 | AX87: 5681 | AY87: 53 | AZ87: 2282 | BA87: 2734 | BB87: 408 | BC87: 1534 | BD87: 11755 | BE87: 5353 | BF87: 3779 | BG87: 10988 | BH87: 2805 | BI87: 2258 | BJ87: 1701 | BK87: 11115 | BL87: 26091 | BM87: 45974 | BN87: 35341 | BO87: 20594 | BP87: 3063 | BQ87: 2131 | BR87: 5490
B88: Impuestos menos subvenciones sobre la producción e importaciones | C88: -387 | D88: -77 | E88: -253 | F88: -22 | G88: -27 | H88: 147 | I88: 460 | J88: 60 | K88: 35 | L88: 196 | M88: 221 | N88: 64 | O88: 96 | P88: 169 | Q88: 67 | R88: 48 | S88: 32 | T88: 97 | U88: 232 | V88: 98 | W88: 130 | X88: 56 | Y88: 31 | Z88: 173 | AA88: 322 | AB88: 332 | AC88: 125 | AD88: 186 | AE88: 194 | AF88: 202 | AG88: 93 | AH88: 119 | AI88: 177 | AJ88: 68 | AK88: 68 | AL88: 518 | AM88: 86 | AN88: 84 | AO88: 18 | AP88: 37 | AQ88: 20 | AR88: 12 | AS88: 577 | AT88: 435 | AU88: 326 | AV88: 4242 | AW88: 110 | AX88: 508 | AY88: 7 | AZ88: 143 | BA88: 222 | BB88: 36 | BC88: 106 | BD88: 718 | BE88: 392 | BF88: 610 | BG88: 775 | BH88: 309 | BI88: 117 | BJ88: 5037 | BK88: 926 | BL88: 662 | BM88: 1513 | BN88: 1398 | BO88: 721 | BP88: 163 | BQ88: 204 | BR88: 49
B89: Ingreso mixto | C89: 19585 | D89: 3610 | E89: 9655 | F89: 1230 | G89: 1406 | H89: 1187 | I89: 0 | J89: 2491 | K89: 1864 | L89: 0 | M89: 2910 | N89: 500 | O89: 428 | P89: 212 | Q89: 194 | R89: 654 | S89: 47 | T89: 59 | U89: 223 | V89: 82 | W89: 1100 | X89: 352 | Y89: 254 | Z89: 146 | AA89: -18 | AB89: 579 | AC89: 44 | AD89: 43 | AE89: 92 | AF89: 338 | AG89: 147 | AH89: 1634 | AI89: 35 | AJ89: 1217 | AK89: 1092 | AL89: 20 | AM89: 1 | AN89: 220 | AO89: 87 | AP89: 0 | AQ89: 235 | AR89: 51 | AS89: 24335 | AT89: -200 | AU89: 3814 | AV89: 19786 | AW89: 2859 | AX89: 16063 | AY89: 50 | AZ89: 0 | BA89: 667 | BB89: 194 | BC89: 442 | BD89: 18590 | BE89: 232 | BF89: 215 | BG89: 723 | BH89: 0 | BI89: 11 | BJ89: 25329 | BK89: 4575 | BL89: 1969 | BM89: 0 | BN89: 1135 | BO89: 3312 | BP89: 933 | BQ89: 3530 | BR89: 249
B90: Excedente de explotación bruto | C90: 5871 | D90: 34 | E90: 3197 | F90: 320 | G90: 173 | H90: 9416 | I90: 14334 | J90: 548 | K90: 288 | L90: 8016 | M90: 2521 | N90: 807 | O90: 1149 | P90: 1802 | Q90: 369 | R90: 1326 | S90: 86 | T90: 1148 | U90: 5352 | V90: 1035 | W90: 2679 | X90: 324 | Y90: 464 | Z90: 2460 | AA90: 8637 | AB90: 6212 | AC90: 1475 | AD90: 786 | AE90: 9343 | AF90: 3152 | AG90: 663 | AH90: 390 | AI90: 1143 | AJ90: 197 | AK90: 1609 | AL90: 14554 | AM90: 3529 | AN90: 1516 | AO90: 1738 | AP90: 1865 | AQ90: 572 | AR90: 3 | AS90: 1808 | AT90: 11076 | AU90: 6181 | AV90: 19245 | AW90: 1362 | AX90: 9274 | AY90: 199 | AZ90: 1806 | BA90: 4681 | BB90: 347 | BC90: 1201 | BD90: 2203 | BE90: 3991 | BF90: 12249 | BG90: 10878 | BH90: 8258 | BI90: 1938 | BJ90: 48909 | BK90: 12261 | BL90: 5299 | BM90: 7897 | BN90: 6179 | BO90: 11171 | BP90: 5205 | BQ90: 1209 | BR90: 0
B92: Impuestos menos subvenciones sobre los productos | C92: 370 | D92: 80 | E92: 610 | F92: 16 | G92: 41 | H92: 186 | I92: 684 | J92: 43 | K92: 74 | L92: 216 | M92: 303 | N92: 521 | O92: 204 | P92: 850 | Q92: 53 | R92: 95 | S92: 98 | T92: 187 | U92: 541 | V92: 147 | W92: 418 | X92: 140 | Y92: 56 | Z92: 527 | AA92: 2347 | AB92: 818 | AC92: 233 | AD92: 421 | AE92: 610 | AF92: 410 | AG92: 187 | AH92: 308 | AI92: 421 | AJ92: 149 | AK92: 106 | AL92: 848 | AM92: 128 | AN92: 82 | AO92: 29 | AP92: 71 | AQ92: 25 | AR92: 99 | AS92: 1787 | AT92: 1455 | AU92: 1047 | AV92: 3774 | AW92: 402 | AX92: 1730 | AY92: 18 | AZ92: 310 | BA92: 290 | BB92: 73 | BC92: 208 | BD92: 2739 | BE92: 377 | BF92: 1400 | BG92: 1499 | BH92: 219 | BI92: 93 | BJ92: 517 | BK92: 790 | BL92: 680 | BM92: 1690 | BN92: 976 | BO92: 1052 | BP92: 307 | BQ92: 250 | BR92: 0
B94: Producción total | C94: 47191 | D94: 9751 | E94: 30788 | F94: 2778 | G94: 2715 | H94: 18436 | I94: 45793 | J94: 4887 | K94: 4225 | L94: 13665 | M94: 27682 | N94: 9766 | O94: 11536 | P94: 23468 | Q94: 9978 | R94: 8082 | S94: 2852 | T94: 6364 | U94: 15162 | V94: 6099 | W94: 14862 | X94: 4839 | Y94: 3173 | Z94: 16737 | AA94: 54700 | AB94: 30211 | AC94: 8151 | AD94: 12716 | AE94: 24673 | AF94: 19954 | AG94: 5800 | AH94: 9390 | AI94: 9051 | AJ94: 5353 | AK94: 5602 | AL94: 40291 | AM94: 8794 | AN94: 4868 | AO94: 3034 | AP94: 4574 | AQ94: 2164 | AR94: 1590 | AS94: 74537 | AT94: 48349 | AU94: 39761 | AV94: 123318 | AW94: 13992 | AX94: 60337 | AY94: 797 | AZ94: 12282 | BA94: 14479 | BB94: 2352 | BC94: 7153 | BD94: 67054 | BE94: 17881 | BF94: 33884 | BG94: 44872 | BH94: 20929 | BI94: 6493 | BJ94: 90316 | BK94: 42577 | BL94: 44780 | BM94: 94715 | BN94: 60102 | BO94: 71651 | BP94: 15168 | BQ94: 13012 | BR94: 5788 | BX94: 1618324
A97: Fuente: DANE, Cuentas Nacionales
A98: Actualizado el 16 de septiembre de 2020
B101: Validación
C102: Consumo intermedio por agrupaciones de actividades económicas cuentas nacionales, según CIIU Rev. 4 A.C. | BU102: Gasto de consumo final | BV102: Formación bruta de capital | BW102: Exportaciones Netas
C103: A0101 | D103: 003 | E103: A0102 | F103: A02 | G103: A03 | H103: 17 | I103: 018 | J103: 019 | K103: 020 | L103: 021-022 | M103: 023-024-025 | N103: 026 | O103: 027 | P103: 028-032-035 | Q103: 029 | R103: 030-031 | S103: 033 | T103: 034 | U103: 036 | V103: 037 | W103: 038 | X103: 039 | Y103: 040 | Z103: 041 | AA103: 043-044 | AB103: 045-046 | AC103: 047 | AD103: 048 | AE103: 049 | AF103: 050-051 | AG103: 052 | AH103: 053-057 | AI103: 054 | AJ103: 055 | AK103: 056 | AL103: 058-059-060 | AM103: 061 | AN103: 062 | AO103: 063 | AP103: 064 | AQ103: 065 | AR103: 066 | AS103: 067 | AT103: 068 | AU103: 069 | AV103: 070 | AW103: 071 | AX103: 072-074 | AY103: 073 | AZ103: 075 | BA103: 076 | BB103: 077 | BC103: 078 | BD103: 079-080 | BE103: 081-082-084 | BF103: 083 | BG103: 085-086 | BH103: 087 | BI103: 088 | BJ103: 089 | BK103: 090-093 | BL103: 094-097 | BM103: 098-099 | BN103: 100-101 | BO103: 102-103 | BP103: 104-106 | BQ103: 107-108 | BR103: 109 | BS103: Total consumo intermedio | BX103: Total
C104: Agricultura y actividades de servicios conexas (excepto cultivo permanente de café) | D104: Cultivo permanente de café | E104: Ganadería | F104: Silvicultura y extracción de madera | G104: Pesca y acuicultura | H104: Extracción de carbón de piedra y lignito | I104: Extracción de petróleo crudo y gas natural | J104: Extracción de minerales metalíferos | K104: Extracción de otras minas y canteras | L104: Actividades de apoyo para actividades de explotación de minas y canteras | M104: Procesamiento y conservación de carne y productos cárnicos de bovinos, bufalinos, porcinos y otras carnes n.c.p.; procesamiento y conservación de carne y productos cárnicos de aves de corral y procesamiento y conservación de pescados, crustáceos y moluscos | N104: Elaboración de aceites y grasas de origen vegetal y animal | O104: Elaboración de productos lácteos | P104: Elaboración de productos de molinería, almidones y productos derivados del almidón; elaboración de productos de panadería; elaboración de macarrones, fideos, alcuzcuz, y productos farináceos similares y elaboración de alimentos preparados para animales | Q104: Elaboración de productos de café | R104: Elaboración de azúcar y elaboración de panela | S104: Elaboración de cacao, chocolate y productos de confitería | T104: Procesamiento y conservación de frutas, legumbres, hortalizas y tubérculos; elaboración de otros productos alimenticios (platos preparados y conservados mediante enlatado o congelado, elaboración de sopas y caldos en estado sólidos, polvo o instantáneas entre otros) | U104: Elaboración de bebidas (incluido el hielo) y elaboración de productos de tabaco | V104: Preparación, hilatura, tejeduría y acabado de productos textiles; fabricación de otros productos textiles | W104: Confección de prendas de vestir | X104: Curtido y recurtido de cueros; fabricación de calzado; fabricación de artículos de viaje, maletas, bolsos de mano y artículos similares, y fabricación de artículos de talabartería y guarnicionería; adobo y teñido de pieles | Y104: Transformación de la madera y fabricación de productos de madera y de corcho, excepto muebles; fabricación de artículos de cestería y espartería | Z104: Fabricación de papel, cartón y productos de papel y de cartón; actividades de impresión; producción de copias a partir de grabaciones originales (Copia a partir de un original en CD, DVD, Bluray) | AA104: Coquización, fabricación de productos de la refinación del petróleo y actividades de mezcla de combustibles | AB104: Fabricación de sustancias y productos químicos; | AC104: Fabricación de productos farmacéuticos, sustancias químicas medicinales y productos botánicos de uso farmacéutico | AD104: Fabricación de productos de caucho y de plástico | AE104: Fabricación de otros productos minerales no metálicos | AF104: Fabricación de productos metalúrgicos básicos; fabricación de productos elaborados de metal, excepto maquinaria y equipo | AG104: Fabricación de aparatos y equipo eléctrico; fabricación de productos informáticos, electrónicos y ópticos | AH104: Fabricación de maquinaria y equipo n.c.p.; instalación, mantenimiento y reparación especializado de maquinaria y equipo | AI104: Fabricación de vehículos automotores, remolques y semirremolques; fabricación de otros tipos de equipo de transporte | AJ104: Fabricación de muebles, colchones y somieres | AK104: Otras industrias manufactureras | AL104: Generación de energía eléctrica; transmisión de energía eléctrica y distribución y comercialización de energía eléctrica | AM104: Producción de gas; distribución de combustibles gaseosos por tuberías; suministro de vapor y aire acondicionado | AN104: Captación, tratamiento y distribución de agua | AO104: Evacuación y tratamiento de aguas residuales | AP104: Recolección, tratamiento y disposición de desechos | AQ104: Recuperación de materiales (reciclaje) | AR104: Actividades de saneamiento ambiental y otros servicios de gestión de desechos | AS104: Construcción de edificaciones residenciales y no residenciales | AT104: Construcción de carreteras y vías de ferrocarril, de proyectos de servicio público y de otras obras de ingeniería civil | AU104: Actividades especializadas para la construcción de edificaciones y obras de ingeniería civil (Alquiler de maquinaría y equipo de construcción con operadores) | AV104: Comercio al por mayor y en comisión o por contrata; comercio al por menor (incluso el comercio al por menor de combustibles); comercio de vehículos automotores y motocicletas, sus partes, piezas y accesorios | AW104: Mantenimiento y reparación de vehículos automotores y motocicletas | AX104: Transporte terrestre y transporte por tuberías | AY104: Transporte acuático | AZ104: Transporte aéreo | BA104: Almacenamiento y actividades complementarias al transporte | BB104: Actividades de correo y de servicios de mensajería | BC104: Alojamiento | BD104: Actividades de servicios de comidas y bebidas | BE104: Actividades de edición (libros, periódicos, otros); actividades cinematográficas, de video y producción de programas de televisión, grabación de sonido y edición de música; Actividades de programación, transmisión y/o difusión; desarrollo de sistemas informáticos (planificación, análisis, diseño, programación, pruebas), consultoría informática y actividades relacionadas; edición de software; actividades de servicios de información. | BF104: Telecomunicaciones | BG104: Actividades de servicios financieros de intermediación; servicios financieros de inversión, custodia y otros servicios conexos | BH104: Seguros, seguros sociales y fondos de pensiones, excepto la seguridad social | BI104: Actividades auxiliares complementarias de las actividades de servicios financieros y de seguros | BJ104: Actividades inmobiliarias | BK104: Actividades profesionales, científicas y técnicas | BL104: Actividades de servicios administrativos y de apoyo | BM104: Administración pública y defensa; planes de seguridad social de afiliación obligatoria | BN104: Educación | BO104: Actividades de atención de la salud humana y de servicios sociales | BP104: Actividades artísticas, de entretenimiento y recreación | BQ104: Otras actividades de servicios | BR104: Actividades de los hogares individuales en calidad de empleadores
B105: Total | C105: =SUM(C14:C81)-C83 -> 0 | D105: =SUM(D14:D81)-D83 -> 0 | E105: 0 | F105: 0 | G105: 0 | H105: 0 | I105: 0 | J105: 0 | K105: 0 | L105: 0 | M105: 0 | N105: 0 | O105: 0 | P105: 0 | Q105: 0 | R105: 0 | S105: 0 | T105: 0 | U105: 0 | V105: 0 | W105: 0 | X105: 0 | Y105: 0 | Z105: 0 | AA105: 0 | AB105: 0 | AC105: 0 | AD105: 0 | AE105: 0 | AF105: 0 | AG105: 0 | AH105: 0 | AI105: 0 | AJ105: 0 | AK105: 0 | AL105: 0 | AM105: 0 | AN105: 0 | AO105: 0 | AP105: 0 | AQ105: 0 | AR105: 0 | AS105: 0 | AT105: 0 | AU105: 0 | AV105: 0 | AW105: 0 | AX105: 0 | AY105: 0 | AZ105: 0 | BA105: 0 | BB105: 0 | BC105: 0 | BD105: 0 | BE105: 0 | BF105: 0 | BG105: 0 | BH105: 0 | BI105: 0 | BJ105: 0 | BK105: 0 | BL105: 0 | BM105: 0 | BN105: 0 | BO105: 0 | BP105: =SUM(BP14:BP81)-BP83 -> 0 | BQ105: 0 | BR105: 0 | BS105: =SUM(BS14:BS82)-BS83 -> 0 | BT105: =SUM(BT14:BT82)-BT83 -> 0 | BU105: 0 | BV105: 0 | BW105: 0 | BX105: 0
B106: Excedente de explotación bruto | C106: =C85-SUM(C87:C89)-C90 -> 0 | D106: =D85-SUM(D87:D89)-D90 -> 0 | E106: 0 | F106: 0 | G106: 0 | H106: 0 | I106: 0 | J106: 0 | K106: 0 | L106: 0 | M106: 0 | N106: 0 | O106: 0 | P106: 0 | Q106: 0 | R106: 0 | S106: 0 | T106: 0 | U106: 0 | V106: 0 | W106: 0 | X106: 0 | Y106: 0 | Z106: 0 | AA106: 0 | AB106: 0 | AC106: 0 | AD106: 0 | AE106: 0 | AF106: 0 | AG106: 0 | AH106: 0 | AI106: 0 | AJ106: 0 | AK106: 0 | AL106: 0 | AM106: 0 | AN106: 0 | AO106: 0 | AP106: 0 | AQ106: 0 | AR106: 0 | AS106: 0 | AT106: 0 | AU106: 0 | AV106: 0 | AW106: 0 | AX106: 0 | AY106: 0 | AZ106: 0 | BA106: 0 | BB106: 0 | BC106: 0 | BD106: 0 | BE106: 0 | BF106: 0 | BG106: 0 | BH106: 0 | BI106: 0 | BJ106: 0 | BK106: 0 | BL106: 0 | BM106: 0 | BN106: 0 | BO106: 0 | BP106: =BP85-SUM(BP87:BP89)-BP90 -> 0 | BQ106: 0 | BR106: 0 | BS106: 0 | BT106: 0 | BU106: 0 | BV106: 0 | BW106: 0 | BX106: 0
B107: Producción total | C107: =C83+C85+C92-C94 -> 0 | D107: =D83+D85+D92-D94 -> 0 | E107: 0 | F107: 0 | G107: 0 | H107: 0 | I107: 0 | J107: 0 | K107: 0 | L107: 0 | M107: 0 | N107: 0 | O107: 0 | P107: 0 | Q107: 0 | R107: 0 | S107: 0 | T107: 0 | U107: 0 | V107: 0 | W107: 0 | X107: 0 | Y107: 0 | Z107: 0 | AA107: 0 | AB107: 0 | AC107: 0 | AD107: 0 | AE107: 0 | AF107: 0 | AG107: 0 | AH107: 0 | AI107: 0 | AJ107: 0 | AK107: 0 | AL107: 0 | AM107: 0 | AN107: 0 | AO107: 0 | AP107: 0 | AQ107: 0 | AR107: 0 | AS107: 0 | AT107: 0 | AU107: 0 | AV107: 0 | AW107: 0 | AX107: 0 | AY107: 0 | AZ107: 0 | BA107: 0 | BB107: 0 | BC107: 0 | BD107: 0 | BE107: 0 | BF107: 0 | BG107: 0 | BH107: 0 | BI107: 0 | BJ107: 0 | BK107: 0 | BL107: 0 | BM107: 0 | BN107: 0 | BO107: 0 | BP107: =BP83+BP85+BP92-BP94 -> 0 | BQ107: 0 | BR107: 0 | BT107: 0

Sheet Cuadro 2
A3: Matriz Insumo Producto (MIP), actividad por actividad, basada en supuesto de estructura fija de ventas de productos - Matriz de multiplicadores
A5: Matriz de mutliplicadores
A6: Año 2017
A7: Base 2015
A9: Agrupaciones de actividades cuentas nacionales, según CIIU Rev. 4 A.C. | B9: Concepto | C9: Consumo intermedio por agrupaciones de actividades económicas cuentas nacionales, según CIIU Rev. 4 A.C.
C10: A0101 | D10: 003 | E10: A0102 | F10: A02 | G10: A03 | H10: 17 | I10: 018 | J10: 019 | K10: 020 | L10: 021-022 | M10: 023-024-025 | N10: 026 | O10: 027 | P10: 028-032-035 | Q10: 029 | R10: 030-031 | S10: 033 | T10: 034 | U10: 036 | V10: 037 | W10: 038 | X10: 039 | Y10: 040 | Z10: 041 | AA10: 043-044 | AB10: 045-046 | AC10: 047 | AD10: 048 | AE10: 049 | AF10: 050-051 | AG10: 052 | AH10: 053-057 | AI10: 054 | AJ10: 055 | AK10: 056 | AL10: 058-059-060 | AM10: 061 | AN10: 062 | AO10: 063 | AP10: 064 | AQ10: 065 | AR10: 066 | AS10: 067 | AT10: 068 | AU10: 069 | AV10: 070 | AW10: 071 | AX10: 072-074 | AY10: 073 | AZ10: 075 | BA10: 076 | BB10: 077 | BC10: 078 | BD10: 079-080 | BE10: 081-082-084 | BF10: 083 | BG10: 085-086 | BH10: 087 | BI10: 088 | BJ10: 089 | BK10: 090-093 | BL10: 094-097 | BM10: 098-099 | BN10: 100-101 | BO10: 102-103 | BP10: 104-106 | BQ10: 107-108 | BR10: 109
C11: Agricultura y actividades de servicios conexas (excepto cultivo permanente de café) | D11: Cultivo permanente de café | E11: Ganadería | F11: Silvicultura y extracción de madera | G11: Pesca y acuicultura | H11: Extracción de carbón de piedra y lignito | I11: Extracción de petróleo crudo y gas natural | J11: Extracción de minerales metalíferos | K11: Extracción de otras minas y canteras | L11: Actividades de apoyo para actividades de explotación de minas y canteras | M11: Procesamiento y conservación de carne y productos cárnicos de bovinos, bufalinos, porcinos y otras carnes n.c.p.; procesamiento y conservación de carne y productos cárnicos de aves de corral y procesamiento y conservación de pescados, crustáceos y moluscos | N11: Elaboración de aceites y grasas de origen vegetal y animal | O11: Elaboración de productos lácteos | P11: Elaboración de productos de molinería, almidones y productos derivados del almidón; elaboración de productos de panadería; elaboración de macarrones, fideos, alcuzcuz, y productos farináceos similares y elaboración de alimentos preparados para animales | Q11: Elaboración de productos de café | R11: Elaboración de azúcar y elaboración de panela | S11: Elaboración de cacao, chocolate y productos de confitería | T11: Procesamiento y conservación de frutas, legumbres, hortalizas y tubérculos; elaboración de otros productos alimenticios (platos preparados y conservados mediante enlatado o congelado, elaboración de sopas y caldos en estado sólidos, polvo o instantáneas entre otros) | U11: Elaboración de bebidas (incluido el hielo) y elaboración de productos de tabaco | V11: Preparación, hilatura, tejeduría y acabado de productos textiles; fabricación de otros productos textiles | W11: Confección de prendas de vestir | X11: Curtido y recurtido de cueros; fabricación de calzado; fabricación de artículos de viaje, maletas, bolsos de mano y artículos similares, y fabricación de artículos de talabartería y guarnicionería; adobo y teñido de pieles | Y11: Transformación de la madera y fabricación de productos de madera y de corcho, excepto muebles; fabricación de artículos de cestería y espartería | Z11: Fabricación de papel, cartón y productos de papel y de cartón; actividades de impresión; producción de copias a partir de grabaciones originales (Copia a partir de un original en CD, DVD, Bluray) | AA11: Coquización, fabricación de productos de la refinación del petróleo y actividades de mezcla de combustibles | AB11: Fabricación de sustancias y productos químicos; | AC11: Fabricación de productos farmacéuticos, sustancias químicas medicinales y productos botánicos de uso farmacéutico | AD11: Fabricación de productos de caucho y de plástico | AE11: Fabricación de otros productos minerales no metálicos | AF11: Fabricación de productos metalúrgicos básicos; fabricación de productos elaborados de metal, excepto maquinaria y equipo | AG11: Fabricación de aparatos y equipo eléctrico; fabricación de productos informáticos, electrónicos y ópticos | AH11: Fabricación de maquinaria y equipo n.c.p.; instalación, mantenimiento y reparación especializado de maquinaria y equipo | AI11: Fabricación de vehículos automotores, remolques y semirremolques; fabricación de otros tipos de equipo de transporte | AJ11: Fabricación de muebles, colchones y somieres | AK11: Otras industrias manufactureras | AL11: Generación de energía eléctrica; transmisión de energía eléctrica y distribución y comercialización de energía eléctrica | AM11: Producción de gas; distribución de combustibles gaseosos por tuberías; suministro de vapor y aire acondicionado | AN11: Captación, tratamiento y distribución de agua | AO11: Evacuación y tratamiento de aguas residuales | AP11: Recolección, tratamiento y disposición de desechos | AQ11: Recuperación de materiales (reciclaje) | AR11: Actividades de saneamiento ambiental y otros servicios de gestión de desechos | AS11: Construcción de edificaciones residenciales y no residenciales | AT11: Construcción de carreteras y vías de ferrocarril, de proyectos de servicio público y de otras obras de ingeniería civil | AU11: Actividades especializadas para la construcción de edificaciones y obras de ingeniería civil (Alquiler de maquinaría y equipo de construcción con operadores) | AV11: Comercio al por mayor y en comisión o por contrata; comercio al por menor (incluso el comercio al por menor de combustibles); comercio de vehículos automotores y motocicletas, sus partes, piezas y accesorios | AW11: Mantenimiento y reparación de vehículos automotores y motocicletas | AX11: Transporte terrestre y transporte por tuberías | AY11: Transporte acuático | AZ11: Transporte aéreo | BA11: Almacenamiento y actividades complementarias al transporte | BB11: Actividades de correo y de servicios de mensajería | BC11: Alojamiento | BD11: Actividades de servicios de comidas y bebidas | BE11: Actividades de edición (libros, periódicos, otros); actividades cinematográficas, de video y producción de programas de televisión, grabación de sonido y edición de música; Actividades de programación, transmisión y/o difusión; desarrollo de sistemas informáticos (planificación, análisis, diseño, programación, pruebas), consultoría informática y actividades relacionadas; edición de software; actividades de servicios de información. | BF11: Telecomunicaciones | BG11: Actividades de servicios financieros de intermediación; servicios financieros de inversión, custodia y otros servicios conexos | BH11: Seguros, seguros sociales y fondos de pensiones, excepto la seguridad social | BI11: Actividades auxiliares complementarias de las actividades de servicios financieros y de seguros | BJ11: Actividades inmobiliarias | BK11: Actividades profesionales, científicas y técnicas | BL11: Actividades de servicios administrativos y de apoyo | BM11: Administración pública y defensa; planes de seguridad social de afiliación obligatoria | BN11: Educación | BO11: Actividades de atención de la salud humana y de servicios sociales | BP11: Actividades artísticas, de entretenimiento y recreación | BQ11: Otras actividades de servicios | BR11: Actividades de los hogares individuales en calidad de empleadores
A13: A0101 | B13: Agricultura y actividades de servicios conexas (excepto cultivo permanente de café) | C13: 1.074477442 | D13: 0.1115816965 | E13: 0.1528528793 | F13: 0.01310532677 | G13: 0.0482647768 | H13: 0.001381054734 | I13: 0.002413550456 | J13: 0.001691267674 | K13: 0.00159476424 | L13: 0.002263844903 | M13: 0.1122494651 | N13: 0.3931159973 | O13: 0.09687541268 | P13: 0.3460232068 | Q13: 0.09150232889 | R13: 0.4549363168 | S13: 0.2092015932 | T13: 0.1501641507 | U13: 0.0767446428 | V13: 0.04721306318 | W13: 0.01253650836 | X13: 0.02549562123 | Y13: 0.01778746411 | Z13: 0.0141697508 | AA13: 0.007552136341 | AB13: 0.05063117122 | AC13: 0.02170807255 | AD13: 0.03531598626 | AE13: 0.003885287741 | AF13: 0.004032623687 | AG13: 0.009262505692 | AH13: 0.004395845539 | AI13: 0.005806662425 | AJ13: 0.01223419192 | AK13: 0.01111197114 | AL13: 0.003405945561 | AM13: 0.001880438534 | AN13: 0.003973257446 | AO13: 0.002536575546 | AP13: 0.003824376498 | AQ13: 0.002576233048 | AR13: 0.008570039578 | AS13: 0.005886105504 | AT13: 0.005805126056 | AU13: 0.004524973621 | AV13: 0.001975062416 | AW13: 0.004306862112 | AX13: 0.002897237054 | AY13: 0.002718551543 | AZ13: 0.00552858519 | BA13: 0.001858081178 | BB13: 0.002178160359 | BC13: 0.03240394349 | BD13: 0.08634667266 | BE13: 0.003209510757 | BF13: 0.001609548986 | BG13: 0.001951690013 | BH13: 0.000935016919 | BI13: 0.000840921071 | BJ13: 0.0004446039869 | BK13: 0.00162322375 | BL13: 0.001798920743 | BM13: 0.003084494801 | BN13: 0.002976153838 | BO13: 0.005285100226 | BP13: 0.005246319805 | BQ13: 0.007701697283 | BR13: 0
A14: 003 | B14: Cultivo permanente de café | C14: 0.001811160125 | D14: 1.002682102 | E14: 0.004200367588 | F14: 0.0003178603844 | G14: 0.001512520205 | H14: 7.916956626e-05 | I14: 0.0001250699065 | J14: 9.716003353e-05 | K14: 9.413541718e-05 | L14: 0.0001359799043 | M14: 0.002516073391 | N14: 0.009467244739 | O14: 0.002353732966 | P14: 0.008791815432 | Q14: 0.8024350886 | R14: 0.01101904801 | S14: 0.008163000642 | T14: 0.01280651637 | U14: 0.002796396568 | V14: 0.00121070706 | W14: 0.0004336990713 | X14: 0.0006748873087 | Y14: 0.0002622319913 | Z14: 0.000497313007 | AA14: 0.0002410360605 | AB14: 0.001328489604 | AC14: 0.000911333692 | AD14: 0.0009557279057 | AE14: 0.000145632796 | AF14: 0.000205242177 | AG14: 0.0003448584338 | AH14: 0.0002099547977 | AI14: 0.0003055447945 | AJ14: 0.0003233667849 | AK14: 0.0004788579765 | AL14: 0.0001763333075 | AM14: 0.0001115136556 | AN14: 0.0002357853652 | AO14: 0.0001248668603 | AP14: 0.0002126179832 | AQ14: 0.0001015756814 | AR14: 0.0007454973978 | AS14: 0.0003022951819 | AT14: 0.0002361896666 | AU14: 0.0002218493103 | AV14: 0.0001420381476 | AW14: 0.0001919316393 | AX14: 0.000128152342 | AY14: 0.0001848727381 | AZ14: 0.0003320663936 | BA14: 0.0001306287657 | BB14: 0.0001615259252 | BC14: 0.002291106616 | BD14: 0.006576176175 | BE14: 0.0002731078322 | BF14: 0.0001552908332 | BG14: 0.0001845875871 | BH14: 0.0001032321242 | BI14: 8.592452495e-05 | BJ14: 4.186165315e-05 | BK14: 0.0001967021513 | BL14: 0.00012899723 | BM14: 0.0002897494118 | BN14: 0.0002505944557 | BO14: 0.0004077002717 | BP14: 0.000463804638 | BQ14: 0.0003491131239 | BR14: 0
A15: A0102 | B15: Ganadería | C15: 0.007082622206 | D15: 0.006122475618 | E15: 1.090277809 | F15: 0.001134998389 | G15: 0.02179737934 | H15: 0.0007463606633 | I15: 0.001144952197 | J15: 0.00089768589 | K15: 0.0008573623001 | L15: 0.0009700006322 | M15: 0.5897818216 | N15: 0.02138144252 | O15: 0.4564489435 | P15: 0.05748930947 | Q15: 0.008061471479 | R15: 0.0160564637 | S15: 0.03254859454 | T15: 0.04889561077 | U15: 0.01756140459 | V15: 0.005348591229 | W15: 0.0029042547 | X15: 0.09560877178 | Y15: 0.002112736918 | Z15: 0.003792890423 | AA15: 0.002530598025 | AB15: 0.008592901766 | AC15: 0.007811896609 | AD15: 0.008791258176 | AE15: 0.00140020251 | AF15: 0.00169690594 | AG15: 0.003129687022 | AH15: 0.001794317603 | AI15: 0.002138245091 | AJ15: 0.002327248333 | AK15: 0.002439043653 | AL15: 0.001210924104 | AM15: 0.0009681300015 | AN15: 0.001793515636 | AO15: 0.0009648017514 | AP15: 0.001596903826 | AQ15: 0.0008240795866 | AR15: 0.007073103063 | AS15: 0.001642321857 | AT15: 0.001783441963 | AU15: 0.001478985304 | AV15: 0.001257198232 | AW15: 0.002114493676 | AX15: 0.00121618004 | AY15: 0.001733295811 | AZ15: 0.003167825877 | BA15: 0.001243375577 | BB15: 0.001498426348 | BC15: 0.03441485129 | BD15: 0.06095035721 | BE15: 0.00244226436 | BF15: 0.001422370968 | BG15: 0.001561041159 | BH15: 0.0009053084417 | BI15: 0.0007367840129 | BJ15: 0.000317665729 | BK15: 0.001752106389 | BL15: 0.001254139503 | BM15: 0.002449512166 | BN15: 0.002917244855 | BO15: 0.001567411713 | BP15: 0.003473340884 | BQ15: 0.003009036987 | BR15: 0
A16: A02 | B16: Silvicultura y extracción de madera | C16: 0.002829769006 | D16: 0.002801953932 | E16: 0.003896896851 | F16: 1.097496636 | G16: 0.001379121463 | H16: 0.0001594063205 | I16: 0.0002217739325 | J16: 0.0002599088792 | K16: 0.0003098795459 | L16: 0.0002278054956 | M16: 0.002436218775 | N16: 0.009137617654 | O16: 0.002351609842 | P16: 0.008199864062 | Q16: 0.002466180852 | R16: 0.01222723656 | S16: 0.006156196504 | T16: 0.004003724911 | U16: 0.002355252432 | V16: 0.001525904091 | W16: 0.001159582019 | X16: 0.001003962727 | Y16: 0.192529054 | Z16: 0.01443888268 | AA16: 0.000410371317 | AB16: 0.002037027131 | AC16: 0.001551568547 | AD16: 0.004228130362 | AE16: 0.0003149146088 | AF16: 0.0006597156938 | AG16: 0.001484082192 | AH16: 0.0006627802215 | AI16: 0.0008431011493 | AJ16: 0.01973982754 | AK16: 0.001089812946 | AL16: 0.0006483697551 | AM16: 0.0003041739307 | AN16: 0.001398085205 | AO16: 0.0007010680254 | AP16: 0.0006888855787 | AQ16: 0.000312160992 | AR16: 0.0006412250037 | AS16: 0.006371605144 | AT16: 0.007810582524 | AU16: 0.009463929334 | AV16: 0.0003408124087 | AW16: 0.0004565037484 | AX16: 0.0003434469322 | AY16: 0.0002507023654 | AZ16: 0.0003632432459 | BA16: 0.0002650317881 | BB16: 0.0002826458789 | BC16: 0.001147501821 | BD16: 0.002174357912 | BE16: 0.0007198305218 | BF16: 0.0002111100362 | BG16: 0.000226969057 | BH16: 0.0001515040873 | BI16: 0.0001332113914 | BJ16: 0.000241979218 | BK16: 0.0005031588383 | BL16: 0.0002699784547 | BM16: 0.0009100522703 | BN16: 0.000479107901 | BO16: 0.0003934133114 | BP16: 0.0005107056768 | BQ16: 0.0006750399691 | BR16: 0
A17: A03 | B17: Pesca y acuicultura | C17: 2.117818859e-05 | D17: 1.863759674e-05 | E17: 0.0001697154926 | F17: 1.103180724e-05 | G17: 1.109633658 | H17: 2.865082573e-05 | I17: 3.755625566e-05 | J17: 4.013252503e-05 | K17: 3.150805459e-05 | L17: 3.323649954e-05 | M17: 0.01817946109 | N17: 0.0002146171078 | O17: 0.0002153097428 | P17: 0.0003403973294 | Q17: 7.166191477e-05 | R17: 2.332664704e-05 | S17: 9.502078798e-05 | T17: 0.0005366707634 | U17: 6.882506478e-05 | V17: 4.795703747e-05 | W17: 5.60080129e-05 | X17: 8.429358401e-05 | Y17: 3.991411989e-05 | Z17: 5.431350248e-05 | AA17: 3.405250026e-05 | AB17: 6.150593333e-05 | AC17: 6.188799422e-05 | AD17: 5.709878142e-05 | AE17: 3.253370651e-05 | AF17: 4.990044114e-05 | AG17: 5.026773093e-05 | AH17: 5.127721872e-05 | AI17: 5.527366923e-05 | AJ17: 3.980097825e-05 | AK17: 3.381901989e-05 | AL17: 3.546909136e-05 | AM17: 3.688744911e-05 | AN17: 4.385191494e-05 | AO17: 2.206746731e-05 | AP17: 3.968432228e-05 | AQ17: 3.864364258e-05 | AR17: 0.0002060971687 | AS17: 3.119691581e-05 | AT17: 3.755546853e-05 | AU17: 3.529467555e-05 | AV17: 6.052790262e-05 | AW17: 5.221657986e-05 | AX17: 3.301496296e-05 | AY17: 6.983659591e-05 | AZ17: 0.000233216941 | BA17: 5.777151226e-05 | BB17: 8.41100192e-05 | BC17: 0.003565560758 | BD17: 0.006736366473 | BE17: 0.0001410209328 | BF17: 5.945500748e-05 | BG17: 8.630880674e-05 | BH17: 4.355868154e-05 | BI17: 3.892516376e-05 | BJ17: 1.401613597e-05 | BK17: 7.380643329e-05 | BL17: 5.434983284e-05 | BM17: 0.000111709139 | BN17: 9.007355144e-05 | BO17: 3.765848674e-05 | BP17: 0.0002723500279 | BQ17: 0.0001806372678 | BR17: 0
A18: 17 | B18: Extracción de carbón de piedra y lignito | C18: 0.0006715704148 | D18: 0.0004973339094 | E18: 0.0006753447172 | F18: 0.0003203129595 | G18: 0.0005188000316 | H18: 1.001243425 | I18: 0.003030167031 | J18: 0.0008940343145 | K18: 0.0009558286441 | L18: 0.0005270616547 | M18: 0.0008983900136 | N18: 0.001333618333 | O18: 0.0007408822229 | P18: 0.0009130124989 | Q18: 0.0006242248944 | R18: 0.004522662513 | S18: 0.001282405398 | T18: 0.0007254050801 | U18: 0.0009380898387 | V18: 0.0009112683804 | W18: 0.0006572552275 | X18: 0.0008181587538 | Y18: 0.0007128439493 | Z18: 0.002087707638 | AA18: 0.01550263611 | AB18: 0.001780443391 | AC18: 0.001034728596 | AD18: 0.001623443636 | AE18: 0.00232143634 | AF18: 0.001821099484 | AG18: 0.001026896458 | AH18: 0.0007993645702 | AI18: 0.0006562597982 | AJ18: 0.0007949560069 | AK18: 0.0007210742325 | AL18: 0.009654834667 | AM18: 0.00171418742 | AN18: 0.001327225265 | AO18: 0.0008202158819 | AP18: 0.001608320704 | AQ18: 0.000453542438 | AR18: 0.0008846999427 | AS18: 0.0007807791413 | AT18: 0.001149404662 | AU18: 0.0009686015317 | AV18: 0.0006140442205 | AW18: 0.0007088399069 | AX18: 0.002742915181 | AY18: 0.002232843153 | AZ18: 0.00361472504 | BA18: 0.0005137533589 | BB18: 0.00111242465 | BC18: 0.0006478167679 | BD18: 0.0004239855463 | BE18: 0.0003571873115 | BF18: 0.000302504869 | BG18: 0.0002830616048 | BH18: 0.0001603591046 | BI18: 0.0001803058987 | BJ18: 7.037504832e-05 | BK18: 0.0002693257857 | BL18: 0.0002209587475 | BM18: 0.0005464780834 | BN18: 0.0002474777898 | BO18: 0.0003028963544 | BP18: 0.0003631398114 | BQ18: 0.0003510412039 | BR18: 0
A19: 018 | B19: Extracción de petróleo crudo y gas natural | C19: 0.0131379782 | D19: 0.008561907681 | E19: 0.01256822068 | F19: 0.006429385622 | G19: 0.01011591307 | H19: 0.02873653029 | I19: 1.064644718 | J19: 0.01640466261 | K19: 0.02357837377 | L19: 0.008628830188 | M19: 0.01223173513 | N19: 0.01321487038 | O19: 0.01312580017 | P19: 0.01489478656 | Q19: 0.009209823003 | R19: 0.01081834661 | S19: 0.01396305924 | T19: 0.009321430091 | U19: 0.01352253217 | V19: 0.01922889572 | W19: 0.01139824146 | X19: 0.01608806689 | Y19: 0.01057970872 | Z19: 0.02005240587 | AA19: 0.4342834067 | AB19: 0.02201514015 | AC19: 0.02066660874 | AD19: 0.0233741754 | AE19: 0.04844615081 | AF19: 0.01475324199 | AG19: 0.0152145301 | AH19: 0.01435383674 | AI19: 0.01140551171 | AJ19: 0.01234948662 | AK19: 0.01189589696 | AL19: 0.0352265029 | AM19: 0.2663175734 | AN19: 0.01396377328 | AO19: 0.006536767786 | AP19: 0.02236988155 | AQ19: 0.008703687437 | AR19: 0.01471749129 | AS19: 0.01378049622 | AT19: 0.01968820557 | AU19: 0.01753439489 | AV19: 0.01159032149 | AW19: 0.01438172824 | AX19: 0.06837927255 | AY19: 0.05198527097 | AZ19: 0.0900497413 | BA19: 0.01178242173 | BB19: 0.02529745777 | BC19: 0.0113600188 | BD19: 0.006993904249 | BE19: 0.005779854393 | BF19: 0.004755318199 | BG19: 0.00422727836 | BH19: 0.002658114442 | BI19: 0.002775333895 | BJ19: 0.001126990787 | BK19: 0.004999844022 | BL19: 0.003275567183 | BM19: 0.008941355621 | BN19: 0.00415146426 | BO19: 0.005180199721 | BP19: 0.004246225018 | BQ19: 0.006140126255 | BR19: 0
A20: 019 | B20: Extracción de minerales metalíferos | C20: 0.002729093249 | D20: 0.002120036026 | E20: 0.002961593457 | F20: 0.003049388322 | G20: 0.003897513167 | H20: 0.0007711956665 | I20: 0.001371638107 | J20: 1.001169675 | K20: 0.002469796144 | L20: 0.001548655628 | M20: 0.003099192161 | N20: 0.002582189728 | O20: 0.003100938198 | P20: 0.002611259113 | Q20: 0.002411325531 | R20: 0.002238050761 | S20: 0.003252235353 | T20: 0.007304172288 | U20: 0.006616953414 | V20: 0.003145608224 | W20: 0.002644084999 | X20: 0.002669467199 | Y20: 0.008518140516 | Z20: 0.003792763144 | AA20: 0.001700508674 | AB20: 0.003439522398 | AC20: 0.003847559006 | AD20: 0.003856118048 | AE20: 0.002147110472 | AF20: 0.2711416663 | AG20: 0.06167750168 | AH20: 0.04523047525 | AI20: 0.01918011437 | AJ20: 0.02216193419 | AK20: 0.03780586888 | AL20: 0.003439538671 | AM20: 0.001885798461 | AN20: 0.004648225852 | AO20: 0.003004916975 | AP20: 0.003156985855 | AQ20: 0.0007502209488 | AR20: 0.002323561155 | AS20: 0.0230239119 | AT20: 0.02305971018 | AU20: 0.02698292168 | AV20: 0.001773188197 | AW20: 0.01035672952 | AX20: 0.002584453008 | AY20: 0.002501063906 | AZ20: 0.001551670477 | BA20: 0.001141172824 | BB20: 0.001266696584 | BC20: 0.002179577637 | BD20: 0.001753079233 | BE20: 0.001929081806 | BF20: 0.00339287788 | BG20: 0.00137046303 | BH20: 0.0007383463827 | BI20: 0.0006041081555 | BJ20: 0.0007037716029 | BK20: 0.00139528963 | BL20: 0.0005593046287 | BM20: 0.002050586448 | BN20: 0.001309579906 | BO20: 0.002039147336 | BP20: 0.001477751607 | BQ20: 0.004471408502 | BR20: 0
A21: 020 | B21: Extracción de otras minas y canteras | C21: 0.001488196171 | D21: 0.001832405977 | E21: 0.004669739928 | F21: 0.003818631601 | G21: 0.0009394995402 | H21: 0.0005332266524 | I21: 0.0009347956816 | J21: 0.0004891865334 | K21: 1.000725057 | L21: 0.0005141194053 | M21: 0.002965503764 | N21: 0.00269123125 | O21: 0.002716150187 | P21: 0.002321265767 | Q21: 0.001701244159 | R21: 0.001133242985 | S21: 0.002098381179 | T21: 0.003644091566 | U21: 0.002167709606 | V21: 0.002711576599 | W21: 0.001171157608 | X21: 0.002164521708 | Y21: 0.001615362163 | Z21: 0.001629174051 | AA21: 0.003073564527 | AB21: 0.01284936593 | AC21: 0.003935607074 | AD21: 0.00582921701 | AE21: 0.02965749246 | AF21: 0.00187310902 | AG21: 0.0021962734 | AH21: 0.001148587165 | AI21: 0.001524586723 | AJ21: 0.002119931771 | AK21: 0.006404865397 | AL21: 0.001289036706 | AM21: 0.0009355613936 | AN21: 0.00318822894 | AO21: 0.00147576293 | AP21: 0.001457099629 | AQ21: 0.0006152184393 | AR21: 0.00256738837 | AS21: 0.01283764148 | AT21: 0.04635128396 | AU21: 0.02267591067 | AV21: 0.000531920605 | AW21: 0.00118292115 | AX21: 0.001108746516 | AY21: 0.0007240537344 | AZ21: 0.001177351707 | BA21: 0.0005650893843 | BB21: 0.0005275845619 | BC21: 0.001092333933 | BD21: 0.001426052469 | BE21: 0.0003733690486 | BF21: 0.0002875736307 | BG21: 0.000328739696 | BH21: 0.0002452874306 | BI21: 0.0002374752366 | BJ21: 0.0005336801354 | BK21: 0.0004960128701 | BL21: 0.0003597100064 | BM21: 0.001056783864 | BN21: 0.0006189517398 | BO21: 0.0007834444066 | BP21: 0.0006214223192 | BQ21: 0.001633027786 | BR21: 0
A22: 021-022 | B22: Actividades de apoyo para actividades de explotación de minas y canteras | C22: 0.002982561133 | D22: 0.002047495351 | E22: 0.003107783865 | F22: 0.001750157727 | G22: 0.002416157533 | H22: 0.04712999639 | I22: 0.2125516383 | J22: 0.06051250245 | K22: 0.05916181739 | L22: 1.001959442 | M22: 0.003004761271 | N22: 0.003146067314 | O22: 0.003146468133 | P22: 0.003502905077 | Q22: 0.00223487689 | R22: 0.002639472512 | S22: 0.003350199158 | T22: 0.002698894921 | U22: 0.003395269883 | V22: 0.00442330668 | W22: 0.002692985003 | X22: 0.003751273096 | Y22: 0.002938222533 | Z22: 0.004621646282 | AA22: 0.08814943545 | AB22: 0.00557863022 | AC22: 0.004819578282 | AD22: 0.005523358775 | AE22: 0.01173182525 | AF22: 0.01878727372 | AG22: 0.006963834182 | AH22: 0.006002945312 | AI22: 0.003769297724 | AJ22: 0.004084892284 | AK22: 0.005082214585 | AL22: 0.007879617662 | AM22: 0.05382167 | AN22: 0.00350132971 | AO22: 0.001700403828 | AP22: 0.00497756866 | AQ22: 0.00192956948 | AR22: 0.004094661834 | AS22: 0.005030065647 | AT22: 0.008074232815 | AU22: 0.00653763692 | AV22: 0.002626061557 | AW22: 0.003817616146 | AX22: 0.01420029816 | AY22: 0.01090742665 | AZ22: 0.01858105098 | BA22: 0.002642839991 | BB22: 0.005388807301 | BC22: 0.002674160353 | BD22: 0.001734124861 | BE22: 0.00151612139 | BF22: 0.001376964678 | BG22: 0.00111997802 | BH22: 0.0007019615214 | BI22: 0.0006930555074 | BJ22: 0.0003379153987 | BK22: 0.001346812463 | BL22: 0.000821619242 | BM22: 0.002253380514 | BN22: 0.00115162944 | BO22: 0.001323319426 | BP22: 0.001148626841 | BQ22: 0.001759532618 | BR22: 0
A23: 023-024-025 | B23: Procesamiento y conservación de carne y productos cárnicos de bovinos, bufalinos, porcinos y otras carnes n.c.p.; procesamiento y conservación de carne y productos cárnicos de aves de corral y procesamiento y conservación de pescados, crustáceos y moluscos | C23: 0.0006500979364 | D23: 0.0005575436553 | E23: 0.006168886335 | F23: 0.0002725939423 | G23: 0.00292490447 | H23: 0.0006167222888 | I23: 0.0008739717187 | J23: 0.0007726213133 | K23: 0.0007111253975 | L23: 0.0007514920135 | M23: 1.046522564 | N23: 0.01116557568 | O23: 0.0101265716 | P23: 0.0169419425 | Q23: 0.001186740325 | R23: 0.0006458715511 | S23: 0.003089801856 | T23: 0.01127861471 | U23: 0.002099054188 | V23: 0.001259783414 | W23: 0.001189096955 | X23: 0.003032140134 | Y23: 0.000960705373 | Z23: 0.001310445504 | AA23: 0.0008440294007 | AB23: 0.002216037459 | AC23: 0.001754922409 | AD23: 0.001644387269 | AE23: 0.0006830808714 | AF23: 0.001339566923 | AG23: 0.001483827941 | AH23: 0.001283497723 | AI23: 0.001334333621 | AJ23: 0.001019523747 | AK23: 0.0009065991362 | AL23: 0.001121642581 | AM23: 0.0008583999161 | AN23: 0.001437857221 | AO23: 0.0006518603992 | AP23: 0.001231912025 | AQ23: 0.0005485016401 | AR23: 0.007907728256 | AS23: 0.0008355804552 | AT23: 0.0009917919983 | AU23: 0.0009249474223 | AV23: 0.001210819128 | AW23: 0.001118788657 | AX23: 0.000781316742 | AY23: 0.001695901059 | AZ23: 0.002887039714 | BA23: 0.001203748117 | BB23: 0.001550048543 | BC23: 0.04622698181 | BD23: 0.06358035318 | BE23: 0.002743382204 | BF23: 0.001683207255 | BG23: 0.001840515619 | BH23: 0.001126394232 | BI23: 0.0008978622425 | BJ23: 0.000348498922 | BK23: 0.00223705522 | BL23: 0.001222560747 | BM23: 0.002770686518 | BN23: 0.003275107909 | BO23: 0.0009307064164 | BP23: 0.003680765255 | BQ23: 0.002145916959 | BR23: 0
A24: 026 | B24: Elaboración de aceites y grasas de origen vegetal y animal | C24: 0.006779790754 | D24: 0.01043022245 | E24: 0.05024966496 | F24: 0.002505183747 | G24: 0.01736606755 | H24: 0.001120529087 | I24: 0.002053062726 | J24: 0.001339342003 | K24: 0.001207329964 | L24: 0.001607602156 | M24: 0.03154402292 | N24: 1.521565054 | O24: 0.02987542622 | P24: 0.1109408748 | Q24: 0.009290612397 | R24: 0.004718954787 | S24: 0.0399384876 | T24: 0.07310321936 | U24: 0.01353173184 | V24: 0.01163166928 | W24: 0.004770184329 | X24: 0.01115283985 | Y24: 0.004813219328 | Z24: 0.008033785885 | AA24: 0.008141518995 | AB24: 0.07169040518 | AC24: 0.01986065962 | AD24: 0.03120560811 | AE24: 0.003739196143 | AF24: 0.002901578051 | AG24: 0.008536033707 | AH24: 0.003327541214 | AI24: 0.004306726461 | AJ24: 0.004436824707 | AK24: 0.004404802328 | AL24: 0.001603797531 | AM24: 0.001361432192 | AN24: 0.002800045343 | AO24: 0.001761271668 | AP24: 0.002743854024 | AQ24: 0.001060249109 | AR24: 0.008304664039 | AS24: 0.003200875777 | AT24: 0.004028773774 | AU24: 0.002648164274 | AV24: 0.001135247369 | AW24: 0.003717033866 | AX24: 0.002529959715 | AY24: 0.00210059638 | AZ24: 0.003453610988 | BA24: 0.001225128133 | BB24: 0.001353670613 | BC24: 0.008363759561 | BD24: 0.02515079125 | BE24: 0.001676646057 | BF24: 0.00112153863 | BG24: 0.0009999123082 | BH24: 0.0005472568413 | BI24: 0.0004501044262 | BJ24: 0.0002228276986 | BK24: 0.001009305257 | BL24: 0.001388320614 | BM24: 0.001684755273 | BN24: 0.001308118777 | BO24: 0.002666023364 | BP24: 0.001709603059 | BQ24: 0.004796810842 | BR24: 0
A25: 027 | B25: Elaboración de productos lácteos | C25: 0.0005679626935 | D25: 0.0003377135122 | E25: 0.01144137559 | F25: 0.0001179468277 | G25: 0.006577781692 | H25: 0.0001701174513 | I25: 0.0002704495049 | J25: 0.0002194968539 | K25: 0.0002191357339 | L25: 0.0002214781009 | M25: 0.008136841026 | N25: 0.002809761013 | O25: 1.05491604 | P25: 0.03849669454 | Q25: 0.001191511885 | R25: 0.0005252282154 | S25: 0.03293325953 | T25: 0.05948472883 | U25: 0.01285428275 | V25: 0.000566898579 | W25: 0.0004488654695 | X25: 0.001475476875 | Y25: 0.000549274909 | Z25: 0.0009777729691 | AA25: 0.0003431060107 | AB25: 0.0009457229037 | AC25: 0.00162725294 | AD25: 0.0007938357422 | AE25: 0.0003145085091 | AF25: 0.000433815794 | AG25: 0.0005445456532 | AH25: 0.0004688981297 | AI25: 0.0005985182401 | AJ25: 0.0004914644216 | AK25: 0.0004380582547 | AL25: 0.0003263560614 | AM25: 0.0002526419037 | AN25: 0.000418981694 | AO25: 0.0002115778489 | AP25: 0.0003756221031 | AQ25: 0.0002142233313 | AR25: 0.002082469843 | AS25: 0.0003266209498 | AT25: 0.0004334779072 | AU25: 0.0003466613361 | AV25: 0.0003608161589 | AW25: 0.0004509383495 | AX25: 0.00028009003 | AY25: 0.0004665856737 | AZ25: 0.0008407558532 | BA25: 0.0003587175656 | BB25: 0.0004153360346 | BC25: 0.006546935559 | BD25: 0.01913322914 | BE25: 0.0007311494156 | BF25: 0.0004791664319 | BG25: 0.0004900925572 | BH25: 0.0002850504142 | BI25: 0.0002297410969 | BJ25: 9.289381546e-05 | BK25: 0.0005647754584 | BL25: 0.0003225974189 | BM25: 0.0007988676546 | BN25: 0.00147036643 | BO25: 0.0003810333624 | BP25: 0.0009975752459 | BQ25: 0.0006374153688 | BR25: 0
A26: 028-032-035 | B26: Elaboración de productos de molinería, almidones y productos derivados del almidón; elaboración de productos de panadería; elaboración de macarrones, fideos, alcuzcuz, y productos farináceos similares y elaboración de alimentos preparados para animales | C26: 0.007941981661 | D26: 0.002410414018 | E26: 0.2286070086 | F26: 0.0004988663761 | G26: 0.1357474097 | H26: 0.0004011348023 | I26: 0.0006215880533 | J26: 0.0005379665715 | K26: 0.0004983845576 | L26: 0.0005340604995 | M26: 0.1277290816 | N26: 0.009849825084 | O26: 0.1047280103 | P26: 1.109725538 | Q26: 0.003152882493 | R26: 0.007057757385 | S26: 0.07136763707 | T26: 0.07895411255 | U26: 0.0626288037 | V26: 0.002245781538 | W26: 0.001367685035 | X26: 0.02105108596 | Y26: 0.001461455473 | Z26: 0.006907463974 | AA26: 0.001129275662 | AB26: 0.004590451839 | AC26: 0.01651559145 | AD26: 0.003573430252 | AE26: 0.0008550689236 | AF26: 0.0009505217353 | AG26: 0.001539197967 | AH26: 0.001028934604 | AI26: 0.001254022258 | AJ26: 0.001469164835 | AK26: 0.0042321507 | AL26: 0.0006864219855 | AM26: 0.0005491482879 | AN26: 0.0009282901002 | AO26: 0.0005004536367 | AP26: 0.0008469866754 | AQ26: 0.0005372757718 | AR26: 0.003858737425 | AS26: 0.0008747909011 | AT26: 0.001139298076 | AU26: 0.0008625347714 | AV26: 0.0008182493604 | AW26: 0.001083533421 | AX26: 0.000651965846 | AY26: 0.0009772222437 | AZ26: 0.002029201563 | BA26: 0.0007440851846 | BB26: 0.0009229341835 | BC26: 0.01998527177 | BD26: 0.04566716486 | BE26: 0.001629335941 | BF26: 0.0008778443022 | BG26: 0.0009770718503 | BH26: 0.0005446056274 | BI26: 0.0004493182256 | BJ26: 0.0001864894656 | BK26: 0.001045257924 | BL26: 0.0007258536916 | BM26: 0.002195412365 | BN26: 0.001449979692 | BO26: 0.001801603763 | BP26: 0.002334221134 | BQ26: 0.001740476395 | BR26: 0
A27: 029 | B27: Elaboración de productos de café | C27: 5.25503017e-05 | D27: 3.376817529e-05 | E27: 0.0007825427167 | F27: 1.788288107e-05 | G27: 0.0004521026931 | H27: 4.645162924e-05 | I27: 7.039593912e-05 | J27: 5.929381706e-05 | K27: 5.657155425e-05 | L27: 6.213291229e-05 | M27: 0.0005290632145 | N27: 0.0001915415406 | O27: 0.0004573498265 | P27: 0.0005385338355 | Q27: 1.077875573 | R27: 5.504723781e-05 | S27: 0.002499520981 | T27: 0.01192683739 | U27: 0.0002879608735 | V27: 8.473366397e-05 | W27: 8.556476098e-05 | X27: 0.0001481223017 | Y27: 5.269137923e-05 | Z27: 9.898723265e-05 | AA27: 5.7265933e-05 | AB27: 9.635322277e-05 | AC27: 0.0003778418503 | AD27: 9.953759442e-05 | AE27: 5.08549e-05 | AF27: 7.26354548e-05 | AG27: 7.033334336e-05 | AH27: 6.987841178e-05 | AI27: 8.029404837e-05 | AJ27: 5.671469597e-05 | AK27: 5.117065588e-05 | AL27: 9.311618197e-05 | AM27: 6.828726739e-05 | AN27: 0.0001188780999 | AO27: 5.173298189e-05 | AP27: 0.0001009865272 | AQ27: 4.351652992e-05 | AR27: 0.0007041549237 | AS27: 4.88990202e-05 | AT27: 6.481835747e-05 | AU27: 5.700579269e-05 | AV27: 9.730554048e-05 | AW27: 7.420402712e-05 | AX27: 5.740483157e-05 | AY27: 0.0001327591995 | AZ27: 0.0002386850186 | BA27: 9.798325227e-05 | BB27: 0.0001194396715 | BC27: 0.002012266361 | BD27: 0.005992675369 | BE27: 0.0002242653862 | BF27: 0.0001409585158 | BG27: 0.000160053742 | BH27: 9.522951559e-05 | BI27: 7.573133337e-05 | BJ27: 2.9510191e-05 | BK27: 0.0001900428718 | BL27: 9.953037327e-05 | BM27: 0.0002550939112 | BN27: 0.0002083765568 | BO27: 0.0001141836691 | BP27: 0.0003120843999 | BQ27: 0.0001724173141 | BR27: 0
A28: 030-031 | B28: Elaboración de azúcar y elaboración de panela | C28: 0.003627242644 | D28: 0.006410908461 | E28: 0.006632373013 | F28: 0.001560483646 | G28: 0.004668415441 | H28: 0.0007013436389 | I28: 0.001383566646 | J28: 0.0008297072799 | K28: 0.0008183659106 | L28: 0.001166514412 | M28: 0.005367687297 | N28: 0.003454702314 | O28: 0.013899883 | P28: 0.01882508348 | Q28: 0.005754192447 | R28: 1.016162932 | S28: 0.1004533365 | T28: 0.03256357063 | U28: 0.05663592627 | V28: 0.007192672354 | W28: 0.002929649318 | X28: 0.00513769476 | Y28: 0.003295956395 | Z28: 0.005507646485 | AA28: 0.005192732437 | AB28: 0.01712208452 | AC28: 0.01097027999 | AD28: 0.01974666376 | AE28: 0.002544737531 | AF28: 0.002064387845 | AG28: 0.0055083788 | AH28: 0.002353337256 | AI28: 0.002873122609 | AJ28: 0.002972081831 | AK28: 0.002729688571 | AL28: 0.003828862035 | AM28: 0.00110004521 | AN28: 0.002270850295 | AO28: 0.001553019058 | AP28: 0.00223777762 | AQ28: 0.0007106089513 | AR28: 0.004143177788 | AS28: 0.002047186951 | AT28: 0.00252621617 | AU28: 0.001680151465 | AV28: 0.0008115967391 | AW28: 0.002399778759 | AX28: 0.00161624603 | AY28: 0.00134813547 | AZ28: 0.002025851324 | BA28: 0.0007013092765 | BB28: 0.0008209400372 | BC28: 0.004591640635 | BD28: 0.01077178272 | BE28: 0.0008260729396 | BF28: 0.0005988356513 | BG28: 0.0004959099371 | BH28: 0.0002388633076 | BI28: 0.0002354188159 | BJ28: 0.0001120242807 | BK28: 0.0003692810699 | BL28: 0.0007895063648 | BM28: 0.0008059740979 | BN28: 0.0005284559561 | BO28: 0.001544687271 | BP28: 0.0008790370093 | BQ28: 0.002902838975 | BR28: 0
A29: 033 | B29: Elaboración de cacao, chocolate y productos de confitería | C29: 6.832821878e-05 | D29: 2.754704835e-05 | E29: 0.001753197214 | F29: 9.263456463e-06 | G29: 0.001037466761 | H29: 1.555968863e-05 | I29: 2.33160456e-05 | J29: 2.338452466e-05 | K29: 1.918259403e-05 | L29: 2.105249151e-05 | M29: 0.001099128977 | N29: 0.0001369362037 | O29: 0.002330014905 | P29: 0.003400724583 | Q29: 0.0001068630795 | R29: 6.344781354e-05 | S29: 1.005174808 | T29: 0.005511644423 | U29: 0.0006053495141 | V29: 3.984771161e-05 | W29: 3.73429379e-05 | X29: 0.0001841581941 | Y29: 2.830801397e-05 | Z29: 8.746935042e-05 | AA29: 2.496108648e-05 | AB29: 6.693665606e-05 | AC29: 0.0001562690218 | AD29: 5.689187332e-05 | AE29: 2.395286592e-05 | AF29: 2.789269758e-05 | AG29: 3.185744742e-05 | AH29: 2.933311325e-05 | AI29: 3.382278656e-05 | AJ29: 2.883734151e-05 | AK29: 4.539937558e-05 | AL29: 2.11974655e-05 | AM29: 2.168904596e-05 | AN29: 2.678020303e-05 | AO29: 1.423334873e-05 | AP29: 2.476115101e-05 | AQ29: 2.631117135e-05 | AR29: 0.0001218821299 | AS29: 2.036953657e-05 | AT29: 2.728883852e-05 | AU29: 2.300333143e-05 | AV29: 3.818322268e-05 | AW29: 3.251126221e-05 | AX29: 2.032641812e-05 | AY29: 3.765695747e-05 | AZ29: 0.0001503246189 | BA29: 3.466844753e-05 | BB29: 4.684229306e-05 | BC29: 0.001221668387 | BD29: 0.004633770958 | BE29: 8.184704196e-05 | BF29: 3.409312666e-05 | BG29: 5.31325422e-05 | BH29: 2.425783166e-05 | BI29: 2.230719039e-05 | BJ29: 8.260091928e-06 | BK29: 3.958563456e-05 | BL29: 3.088962322e-05 | BM29: 7.563852498e-05 | BN29: 8.065014137e-05 | BO29: 3.180704656e-05 | BP29: 0.000171722488 | BQ29: 0.0001167259793 | BR29: 0
A30: 034 | B30: Procesamiento y conservación de frutas, legumbres, hortalizas y tubérculos; elaboración de otros productos alimenticios (platos preparados y conservados mediante enlatado o congelado, elaboración de sopas y caldos en estado sólidos, polvo o instantáneas entre otros) | C30: 0.001324164109 | D30: 0.0008087160872 | E30: 0.03021450745 | F30: 0.0002469882895 | G30: 0.01769316523 | H30: 0.0001730836862 | I30: 0.0002775615017 | J30: 0.0002186344298 | K30: 0.0002046072917 | L30: 0.0002340709661 | M30: 0.02072127832 | N30: 0.01018600899 | O30: 0.01858373269 | P30: 0.02145001408 | Q30: 0.002953811876 | R30: 0.001153039133 | S30: 0.01556513974 | T30: 1.036155903 | U30: 0.01149514669 | V30: 0.0009187842204 | W30: 0.0005000140694 | X30: 0.003329047676 | Y30: 0.0004599344449 | Z30: 0.001407027714 | AA30: 0.0006104340995 | AB30: 0.002867930591 | AC30: 0.003176100169 | AD30: 0.002005084942 | AE30: 0.0007563196824 | AF30: 0.0003576502457 | AG30: 0.0006718488799 | AH30: 0.0003690115563 | AI30: 0.0004497499887 | AJ30: 0.0004673894141 | AK30: 0.0008581059115 | AL30: 0.0003070274482 | AM30: 0.0002374993817 | AN30: 0.0004600479236 | AO30: 0.0002344289143 | AP30: 0.0003937945107 | AQ30: 0.000175940801 | AR30: 0.001958578273 | AS30: 0.0004884159005 | AT30: 0.001056378783 | AU30: 0.0006163857839 | AV30: 0.0003189888031 | AW30: 0.0004059567141 | AX30: 0.0002825325809 | AY30: 0.0004188574303 | AZ30: 0.0007495446227 | BA30: 0.0002945834735 | BB30: 0.0003560168002 | BC30: 0.006009461129 | BD30: 0.01503378261 | BE30: 0.0006157666307 | BF30: 0.0003701637544 | BG30: 0.0004100727758 | BH30: 0.0002401146763 | BI30: 0.0001935048211 | BJ30: 8.503506527e-05 | BK30: 0.0004720306357 | BL30: 0.0003059083161 | BM30: 0.0007307747623 | BN30: 0.0008621132378 | BO30: 0.0004771204069 | BP30: 0.0008241852808 | BQ30: 0.0006868134564 | BR30: 0
A31: 036 | B31: Elaboración de bebidas (incluido el hielo) y elaboración de productos de tabaco | C31: 0.0003458590478 | D31: 0.000286146639 | E31: 0.00489883854 | F31: 0.0001378672927 | G31: 0.001527912903 | H31: 0.000260530189 | I31: 0.0003717388799 | J31: 0.0004114833918 | K31: 0.000336139119 | L31: 0.0003220020271 | M31: 0.007430140569 | N31: 0.001914853343 | O31: 0.00463536426 | P31: 0.006005156801 | Q31: 0.0008706686799 | R31: 0.0005968696476 | S31: 0.001753379225 | T31: 0.002430289875 | U31: 1.016468444 | V31: 0.0006243268274 | W31: 0.0006546394939 | X31: 0.001039455245 | Y31: 0.0008491808601 | Z31: 0.006259998644 | AA31: 0.0003964109854 | AB31: 0.0008404956302 | AC31: 0.0009703985943 | AD31: 0.0008306394137 | AE31: 0.0004919707422 | AF31: 0.0005518495267 | AG31: 0.0006510728068 | AH31: 0.0006157612092 | AI31: 0.0007158351808 | AJ31: 0.0008580360615 | AK31: 0.0004073654164 | AL31: 0.0003430369831 | AM31: 0.00035325164 | AN31: 0.0004085089267 | AO31: 0.0002332664227 | AP31: 0.000389088285 | AQ31: 0.0004744294526 | AR31: 0.001612523784 | AS31: 0.0003911599406 | AT31: 0.000483668016 | AU31: 0.000418424754 | AV31: 0.001910714281 | AW31: 0.0006165069439 | AX31: 0.0003682019719 | AY31: 0.0006469772696 | AZ31: 0.002252669231 | BA31: 0.0005585005382 | BB31: 0.000781788567 | BC31: 0.02510721867 | BD31: 0.06647746238 | BE31: 0.001394492829 | BF31: 0.0005420641403 | BG31: 0.0007860163221 | BH31: 0.0003732328857 | BI31: 0.0003382787984 | BJ31: 0.000124555636 | BK31: 0.0006051156053 | BL31: 0.0005058992228 | BM31: 0.001117140927 | BN31: 0.0006747921451 | BO31: 0.0004143470165 | BP31: 0.002584405663 | BQ31: 0.001773993944 | BR31: 0
A32: 037 | B32: Preparación, hilatura, tejeduría y acabado de productos textiles; fabricación de otros productos textiles | C32: 0.004074019231 | D32: 0.00512220349 | E32: 0.001889771716 | F32: 0.0005735317566 | G32: 0.001652434009 | H32: 0.001565877312 | I32: 0.001342826104 | J32: 0.0008227897433 | K32: 0.001251336924 | L32: 0.001193926564 | M32: 0.002133549919 | N32: 0.002940977156 | O32: 0.002405266442 | P32: 0.003290424727 | Q32: 0.006697296202 | R32: 0.003501055107 | S32: 0.004440055563 | T32: 0.003435093691 | U32: 0.002875786037 | V32: 1.229985816 | W32: 0.2191935755 | X32: 0.04842636152 | Y32: 0.004700585059 | Z32: 0.02837394268 | AA32: 0.001425285637 | AB32: 0.004332551375 | AC32: 0.005312115095 | AD32: 0.01140090578 | AE32: 0.001439406356 | AF32: 0.005321333325 | AG32: 0.005154620256 | AH32: 0.00393925541 | AI32: 0.009316297011 | AJ32: 0.05178149917 | AK32: 0.009025004595 | AL32: 0.001839663105 | AM32: 0.001129848553 | AN32: 0.002335861467 | AO32: 0.00193937105 | AP32: 0.002363375946 | AQ32: 0.0365884839 | AR32: 0.002554017789 | AS32: 0.004942899273 | AT32: 0.01098247732 | AU32: 0.004512786277 | AV32: 0.002567688399 | AW32: 0.003087433119 | AX32: 0.001577995875 | AY32: 0.002461908108 | AZ32: 0.002372437968 | BA32: 0.002233812053 | BB32: 0.0024541792 | BC32: 0.002859551736 | BD32: 0.002120572536 | BE32: 0.007512429714 | BF32: 0.001088033034 | BG32: 0.001653521537 | BH32: 0.0007033986134 | BI32: 0.0005769496312 | BJ32: 0.0002702169674 | BK32: 0.001181328214 | BL32: 0.00136616683 | BM32: 0.001995862854 | BN32: 0.001291331691 | BO32: 0.00190407582 | BP32: 0.002180753397 | BQ32: 0.005066488313 | BR32: 0
A33: 038 | B33: Confección de prendas de vestir | C33: 0.001920483357 | D33: 0.001332590582 | E33: 0.001528249881 | F33: 0.0003802667801 | G33: 0.001059144 | H33: 0.003642408315 | I33: 0.001741639307 | J33: 0.0005779575586 | K33: 0.001916990874 | L33: 0.001112977589 | M33: 0.001576863418 | N33: 0.001656621999 | O33: 0.001767097477 | P33: 0.002086003169 | Q33: 0.001794439237 | R33: 0.001504457515 | S33: 0.002716586996 | T33: 0.002200561883 | U33: 0.002162670487 | V33: 0.03676368399 | W33: 1.050330488 | X33: 0.03654727712 | Y33: 0.002141401473 | Z33: 0.006417467441 | AA33: 0.001284629564 | AB33: 0.00215326413 | AC33: 0.002309833545 | AD33: 0.004093457758 | AE33: 0.00104405775 | AF33: 0.002625140941 | AG33: 0.00319693699 | AH33: 0.002348039819 | AI33: 0.003334720335 | AJ33: 0.00988718703 | AK33: 0.003064684317 | AL33: 0.001354868704 | AM33: 0.001297630388 | AN33: 0.00278529488 | AO33: 0.002312815889 | AP33: 0.003170961769 | AQ33: 0.005957417314 | AR33: 0.003079103459 | AS33: 0.001886260446 | AT33: 0.003201674861 | AU33: 0.001918883183 | AV33: 0.00185807981 | AW33: 0.001913010725 | AX33: 0.001449342281 | AY33: 0.001912268961 | AZ33: 0.003443447698 | BA33: 0.00444986348 | BB33: 0.004513868615 | BC33: 0.005835477683 | BD33: 0.003332749195 | BE33: 0.002255199608 | BF33: 0.0009496844103 | BG33: 0.001019727442 | BH33: 0.0004354683337 | BI33: 0.0003511190661 | BJ33: 0.0002699081942 | BK33: 0.001597923127 | BL33: 0.002604161762 | BM33: 0.001293019423 | BN33: 0.001531112502 | BO33: 0.002432617713 | BP33: 0.003624761464 | BQ33: 0.0009827043615 | BR33: 0
A34: 039 | B34: Curtido y recurtido de cueros; fabricación de calzado; fabricación de artículos de viaje, maletas, bolsos de mano y artículos similares, y fabricación de artículos de talabartería y guarnicionería; adobo y teñido de pieles | C34: 0.0005915662704 | D34: 0.0004236415351 | E34: 0.001108542307 | F34: 0.0002820019058 | G34: 0.0004917754334 | H34: 0.0006834831782 | I34: 0.0006930563195 | J34: 0.0003750383916 | K34: 0.0008012835316 | L34: 0.0007835343631 | M34: 0.0009216149956 | N34: 0.0008574049733 | O34: 0.0009544385502 | P34: 0.0008730507175 | Q34: 0.000568314182 | R34: 0.0005395384753 | S34: 0.001216358815 | T34: 0.0009237252364 | U34: 0.0009641750286 | V34: 0.008325349345 | W34: 0.00992536676 | X34: 1.180705325 | Y34: 0.001425043834 | Z34: 0.002331359517 | AA34: 0.0005122523868 | AB34: 0.0008940827639 | AC34: 0.001270578977 | AD34: 0.001484158282 | AE34: 0.0004623234798 | AF34: 0.001135453106 | AG34: 0.001340495849 | AH34: 0.001301638768 | AI34: 0.001811752659 | AJ34: 0.005185492996 | AK34: 0.003449310654 | AL34: 0.000528033277 | AM34: 0.0005414456394 | AN34: 0.0008756406235 | AO34: 0.0006982042576 | AP34: 0.001120717482 | AQ34: 0.001379882957 | AR34: 0.001231476873 | AS34: 0.0009182688701 | AT34: 0.001190420079 | AU34: 0.0007879258487 | AV34: 0.001380615827 | AW34: 0.005500670857 | AX34: 0.0008339401751 | AY34: 0.001166948338 | AZ34: 0.0009469823008 | BA34: 0.001242950622 | BB34: 0.0009774577653 | BC34: 0.001092420283 | BD34: 0.0007962091471 | BE34: 0.0012777172 | BF34: 0.0004336682151 | BG34: 0.0004840698228 | BH34: 0.0002510221849 | BI34: 0.000171823432 | BJ34: 9.252761098e-05 | BK34: 0.0006334876344 | BL34: 0.001115608457 | BM34: 0.0004993950156 | BN34: 0.0017477142 | BO34: 0.001873419616 | BP34: 0.002929582414 | BQ34: 0.0012164608 | BR34: 0
A35: 040 | B35: Transformación de la madera y fabricación de productos de madera y de corcho, excepto muebles; fabricación de artículos de cestería y espartería | C35: 0.00411260855 | D35: 0.001695161669 | E35: 0.002940204026 | F35: 0.0004865493063 | G35: 0.0008895031677 | H35: 0.0002863446857 | I35: 0.0004338247308 | J35: 0.0005716459329 | K35: 0.0005916615778 | L35: 0.0004440596461 | M35: 0.00218420438 | N35: 0.002292077612 | O35: 0.002245578641 | P35: 0.002443112595 | Q35: 0.001864355999 | R35: 0.002446677701 | S35: 0.003546940943 | T35: 0.002253548055 | U35: 0.001708125095 | V35: 0.001608003802 | W35: 0.00406906054 | X35: 0.001656553847 | Y35: 1.206879902 | Z35: 0.0350165953 | AA35: 0.0007360960668 | AB35: 0.002635677197 | AC35: 0.002494861922 | AD35: 0.004082305952 | AE35: 0.0005017172819 | AF35: 0.002702293645 | AG35: 0.006311237907 | AH35: 0.00241218716 | AI35: 0.003255086351 | AJ35: 0.1110920602 | AK35: 0.003158961326 | AL35: 0.001033739339 | AM35: 0.0005219270847 | AN35: 0.001764562097 | AO35: 0.0009684729022 | AP35: 0.001085677485 | AQ35: 0.000654502846 | AR35: 0.001512520742 | AS35: 0.01710945667 | AT35: 0.0110952522 | AU35: 0.009793781309 | AV35: 0.0008063240582 | AW35: 0.001315848467 | AX35: 0.0005901047064 | AY35: 0.0005781658587 | AZ35: 0.000586829822 | BA35: 0.0004874596502 | BB35: 0.0006399261552 | BC35: 0.001015335907 | BD35: 0.001003375956 | BE35: 0.002003380637 | BF35: 0.000594984047 | BG35: 0.0004849688463 | BH35: 0.0003010369119 | BI35: 0.0002389468405 | BJ35: 0.0002974287377 | BK35: 0.001969611391 | BL35: 0.0005833005398 | BM35: 0.002057241768 | BN35: 0.0009073483516 | BO35: 0.001015405141 | BP35: 0.001020685514 | BQ35: 0.0009622449959 | BR35: 0
A36: 041 | B36: Fabricación de papel, cartón y productos de papel y de cartón; actividades de impresión; producción de copias a partir de grabaciones originales (Copia a partir de un original en CD, DVD, Bluray) | C36: 0.01493570196 | D36: 0.007437464213 | E36: 0.01661173273 | F36: 0.002359013132 | G36: 0.01147633328 | H36: 0.00298363836 | I36: 0.004698937641 | J36: 0.0127814661 | K36: 0.008288073261 | L36: 0.004494732125 | M36: 0.01437930294 | N36: 0.02064399737 | O36: 0.0220462901 | P36: 0.02592235932 | Q36: 0.01660749115 | R36: 0.02376189233 | S36: 0.06292068271 | T36: 0.03306170054 | U36: 0.02681503765 | V36: 0.01786922605 | W36: 0.0197161346 | X36: 0.02537985858 | Y36: 0.07077960119 | Z36: 1.303958244 | AA36: 0.007378312195 | AB36: 0.03108620402 | AC36: 0.04510591336 | AD36: 0.03534041617 | AE36: 0.005083766304 | AF36: 0.01191269268 | AG36: 0.02504650197 | AH36: 0.01369543384 | AI36: 0.01102253625 | AJ36: 0.08683356529 | AK36: 0.01357180826 | AL36: 0.009065006814 | AM36: 0.004855265604 | AN36: 0.008673871006 | AO36: 0.006162323587 | AP36: 0.008076131857 | AQ36: 0.01608318884 | AR36: 0.01390896977 | AS36: 0.009200941766 | AT36: 0.009603994235 | AU36: 0.007651555901 | AV36: 0.009184998053 | AW36: 0.01141041297 | AX36: 0.004752625584 | AY36: 0.005898711335 | AZ36: 0.006732328484 | BA36: 0.005964595346 | BB36: 0.0122534055 | BC36: 0.01178573464 | BD36: 0.01047620278 | BE36: 0.04399210468 | BF36: 0.006977481749 | BG36: 0.006914868398 | BH36: 0.003730158533 | BI36: 0.002597067809 | BJ36: 0.001605674102 | BK36: 0.01022578584 | BL36: 0.012728619 | BM36: 0.03469050085 | BN36: 0.01601535843 | BO36: 0.01003111781 | BP36: 0.01755879458 | BQ36: 0.005734424057 | BR36: 0
A37: 043-044 | B37: Coquización, fabricación de productos de la refinación del petróleo y actividades de mezcla de combustibles | C37: 0.04914696638 | D37: 0.03063876845 | E37: 0.04384304074 | F37: 0.02259121313 | G37: 0.03622310612 | H37: 0.10186918 | I37: 0.2084081596 | J37: 0.04052047061 | K37: 0.05810761383 | L37: 0.02053275821 | M37: 0.04196421485 | N37: 0.03932865556 | O37: 0.04256087125 | P37: 0.04456752114 | Q37: 0.03118557258 | R37: 0.0369020276 | S37: 0.03680422262 | T37: 0.02882649543 | U37: 0.0361683411 | V37: 0.04859754183 | W37: 0.03294100242 | X37: 0.05391241888 | Y37: 0.03447522108 | Z37: 0.04366826284 | AA37: 1.742761144 | AB37: 0.07231951892 | AC37: 0.05167910825 | AD37: 0.07131786548 | AE37: 0.1577729346 | AF37: 0.03305298673 | AG37: 0.04346033226 | AH37: 0.02548880207 | AI37: 0.03583384124 | AJ37: 0.03309660261 | AK37: 0.0275040059 | AL37: 0.05214323861 | AM37: 0.1117318246 | AN37: 0.04345264978 | AO37: 0.0177343532 | AP37: 0.07816526323 | AQ37: 0.03047710793 | AR37: 0.04041496819 | AS37: 0.04576753306 | AT37: 0.06432669755 | AU37: 0.06026216735 | AV37: 0.03969510414 | AW37: 0.05068209543 | AX37: 0.2636071105 | AY37: 0.1967857176 | AZ37: 0.3516085561 | BA37: 0.04232794973 | BB37: 0.09445606866 | BC37: 0.03223055741 | BD37: 0.02322399575 | BE37: 0.01742078817 | BF37: 0.01406305664 | BG37: 0.01159363637 | BH37: 0.008029038179 | BI37: 0.008230038668 | BJ37: 0.003496365545 | BK37: 0.01530097577 | BL37: 0.01010066914 | BM37: 0.02863517613 | BN37: 0.009177410912 | BO37: 0.01564778846 | BP37: 0.01183025118 | BQ37: 0.01970388489 | BR37: 0
A38: 045-046 | B38: Fabricación de sustancias y productos químicos; | C38: 0.09671740757 | D38: 0.1833610372 | E38: 0.04413741335 | F38: 0.04377011671 | G38: 0.05115668972 | H38: 0.01719271606 | I38: 0.03234854123 | J38: 0.02025938378 | K38: 0.01772555241 | L38: 0.02493616937 | M38: 0.04293833851 | N38: 0.08003906548 | O38: 0.06196573615 | P38: 0.0839784214 | Q38: 0.1542389874 | R38: 0.06129158336 | S38: 0.1369935856 | T38: 0.09527894243 | U38: 0.1144965712 | V38: 0.2038345849 | W38: 0.07962049177 | X38: 0.1211412271 | Y38: 0.07885539922 | Z38: 0.1274145185 | AA38: 0.1440977963 | AB38: 1.455746624 | AC38: 0.2489728577 | AD38: 0.562389045 | AE38: 0.06335525044 | AF38: 0.0452563015 | AG38: 0.1477678061 | AH38: 0.05261769609 | AI38: 0.0685265288 | AJ38: 0.07292080143 | AK38: 0.06931900207 | AL38: 0.02148563369 | AM38: 0.01984237544 | AN38: 0.0428071893 | AO38: 0.02807589028 | AP38: 0.04274533046 | AQ38: 0.01537579113 | AR38: 0.1093539624 | AS38: 0.05296674674 | AT38: 0.06666642193 | AU38: 0.04242231693 | AV38: 0.01362600135 | AW38: 0.05996122032 | AX38: 0.04130777355 | AY38: 0.02909298716 | AZ38: 0.04565509229 | BA38: 0.01517578375 | BB38: 0.0162874094 | BC38: 0.02079270283 | BD38: 0.02963955186 | BE38: 0.01545301404 | BF38: 0.01069046354 | BG38: 0.007868235406 | BH38: 0.003995553185 | BI38: 0.003368389153 | BJ38: 0.002123043498 | BK38: 0.006607024402 | BL38: 0.01880068324 | BM38: 0.01352845969 | BN38: 0.006841194183 | BO38: 0.03561337649 | BP38: 0.009453242925 | BQ38: 0.07493433138 | BR38: 0
A39: 047 | B39: Fabricación de productos farmacéuticos, sustancias químicas medicinales y productos botánicos de uso farmacéutico | C39: 0.003574444399 | D39: 0.003485387637 | E39: 0.02594524863 | F39: 0.0009023720627 | G39: 0.004034948875 | H39: 0.0004697517107 | I39: 0.000891569651 | J39: 0.0005292984683 | K39: 0.0006095093331 | L39: 0.0007399444123 | M39: 0.01658083753 | N39: 0.003403071238 | O39: 0.01539485051 | P39: 0.01897952195 | Q39: 0.003570758939 | R39: 0.002453443773 | S39: 0.01091019953 | T39: 0.01587454337 | U39: 0.006008299462 | V39: 0.004311138116 | W39: 0.002419565881 | X39: 0.005306767438 | Y39: 0.003458009736 | Z39: 0.004043212183 | AA39: 0.00279476795 | AB39: 0.00904504968 | AC39: 1.040317153 | AD39: 0.009448532093 | AE39: 0.001721685645 | AF39: 0.002056247316 | AG39: 0.003937290207 | AH39: 0.002430129412 | AI39: 0.003376835008 | AJ39: 0.002832099465 | AK39: 0.00255150043 | AL39: 0.0007678444946 | AM39: 0.0006530565235 | AN39: 0.001129331281 | AO39: 0.0007756357023 | AP39: 0.001257260742 | AQ39: 0.0007022363261 | AR39: 0.002789032623 | AS39: 0.001958187314 | AT39: 0.002301283015 | AU39: 0.001644110535 | AV39: 0.0005955482607 | AW39: 0.002295626121 | AX39: 0.001278802273 | AY39: 0.001030252576 | AZ39: 0.001326906528 | BA39: 0.0007447769622 | BB39: 0.0006720301458 | BC39: 0.002170034736 | BD39: 0.003926374837 | BE39: 0.0007822636086 | BF39: 0.0008070340115 | BG39: 0.0004388184259 | BH39: 0.0002331409111 | BI39: 0.0001929322387 | BJ39: 0.0001020024216 | BK39: 0.0004559841279 | BL39: 0.0005098250011 | BM39: 0.0007803530966 | BN39: 0.0006062753067 | BO39: 0.0724456395 | BP39: 0.0009904489414 | BQ39: 0.001597352181 | BR39: 0
A40: 048 | B40: Fabricación de productos de caucho y de plástico | C40: 0.009328354537 | D40: 0.01148167854 | E40: 0.01400098771 | F40: 0.004963081265 | G40: 0.03984190078 | H40: 0.003668262782 | I40: 0.01034683209 | J40: 0.005101923207 | K40: 0.004961949389 | L40: 0.006123261256 | M40: 0.02243892478 | N40: 0.03390629081 | O40: 0.04657583173 | P40: 0.0364070044 | Q40: 0.01688313631 | R40: 0.01703023007 | S40: 0.07241924266 | T40: 0.05880278321 | U40: 0.06534979671 | V40: 0.03002789727 | W40: 0.03503297188 | X40: 0.02582810325 | Y40: 0.0283642158 | Z40: 0.04854568198 | AA40: 0.01399438371 | AB40: 0.06139708892 | AC40: 0.055059843 | AD40: 1.109960282 | AE40: 0.009982851982 | AF40: 0.01452008932 | AG40: 0.03648596061 | AH40: 0.02572936647 | AI40: 0.03605771632 | AJ40: 0.03828080169 | AK40: 0.03283503771 | AL40: 0.01407795608 | AM40: 0.009713078541 | AN40: 0.02719285709 | AO40: 0.03139996615 | AP40: 0.03634127022 | AQ40: 0.006673014899 | AR40: 0.009360867054 | AS40: 0.02756390124 | AT40: 0.04753964048 | AU40: 0.03065659517 | AV40: 0.0118178727 | AW40: 0.01927104605 | AX40: 0.0307169638 | AY40: 0.006341125803 | AZ40: 0.02686063229 | BA40: 0.01466183127 | BB40: 0.006746336139 | BC40: 0.01246240809 | BD40: 0.0172850054 | BE40: 0.00535190314 | BF40: 0.003671054583 | BG40: 0.00257429584 | BH40: 0.00139548694 | BI40: 0.001278494377 | BJ40: 0.001054239376 | BK40: 0.002606246666 | BL40: 0.002466323402 | BM40: 0.007677606259 | BN40: 0.00370037606 | BO40: 0.008008649287 | BP40: 0.004165711877 | BQ40: 0.0077356369 | BR40: 0
A41: 049 | B41: Fabricación de otros productos minerales no metálicos | C41: 0.00280075777 | D41: 0.004721683035 | E41: 0.003624920519 | F41: 0.005976934629 | G41: 0.004550695747 | H41: 0.001834497431 | I41: 0.002460076165 | J41: 0.001835874968 | K41: 0.00375631351 | L41: 0.002686728552 | M41: 0.003215173094 | N41: 0.003561244183 | O41: 0.005002093166 | P41: 0.00422798544 | Q41: 0.007611534909 | R41: 0.003572628723 | S41: 0.004695040059 | T41: 0.01204610354 | U41: 0.01371641194 | V41: 0.007102859126 | W41: 0.004662608185 | X41: 0.004362806227 | Y41: 0.006433872653 | Z41: 0.005175781512 | AA41: 0.004342203893 | AB41: 0.02107069488 | AC41: 0.01050808885 | AD41: 0.01450395475 | AE41: 1.164540122 | AF41: 0.01305404224 | AG41: 0.01504259981 | AH41: 0.01059285235 | AI41: 0.01858066265 | AJ41: 0.0217870096 | AK41: 0.01154626162 | AL41: 0.008391910364 | AM41: 0.003738635742 | AN41: 0.01994699391 | AO41: 0.009824312136 | AP41: 0.007779439239 | AQ41: 0.01031226315 | AR41: 0.05078572832 | AS41: 0.1364903988 | AT41: 0.2345438627 | AU41: 0.1367121455 | AV41: 0.00264120705 | AW41: 0.01645416819 | AX41: 0.004042507574 | AY41: 0.003803516382 | AZ41: 0.002489995986 | BA41: 0.00242706212 | BB41: 0.002010570305 | BC41: 0.005301410382 | BD41: 0.00346956745 | BE41: 0.002523955824 | BF41: 0.002030538705 | BG41: 0.001990084494 | BH41: 0.001572739872 | BI41: 0.001467054491 | BJ41: 0.003246854407 | BK41: 0.006419246932 | BL41: 0.001706263942 | BM41: 0.006477126627 | BN41: 0.003894923981 | BO41: 0.002787670255 | BP41: 0.003441761564 | BQ41: 0.007525905957 | BR41: 0
A42: 050-051 | B42: Fabricación de productos metalúrgicos básicos; fabricación de productos elaborados de metal, excepto maquinaria y equipo | C42: 0.01173435924 | D42: 0.008803734023 | E42: 0.0126183553 | F42: 0.01349863849 | G42: 0.01706180284 | H42: 0.003139824361 | I42: 0.005329092895 | J42: 0.004888139131 | K42: 0.01068205599 | L42: 0.006673265943 | M42: 0.01307398584 | N42: 0.01095035542 | O42: 0.0130829768 | P42: 0.01058266673 | Q42: 0.009904348279 | R42: 0.009633514607 | S42: 0.01331821946 | T42: 0.03179703021 | U42: 0.02895759795 | V42: 0.01289156097 | W42: 0.01106447149 | X42: 0.01089575412 | Y42: 0.03696226935 | Z42: 0.01582629977 | AA42: 0.006714532687 | AB42: 0.012324953 | AC42: 0.01612688996 | AD42: 0.01537430921 | AE42: 0.009014909802 | AF42: 1.222120914 | AG42: 0.275490145 | AH42: 0.2028421121 | AI42: 0.08495029082 | AJ42: 0.09880464784 | AK42: 0.1698883804 | AL42: 0.01495537638 | AM42: 0.008013158986 | AN42: 0.02028427317 | AO42: 0.01316396391 | AP42: 0.01358907114 | AQ42: 0.003063949182 | AR42: 0.007546612468 | AS42: 0.1030726365 | AT42: 0.1030204645 | AU42: 0.1209339095 | AV42: 0.007575368741 | AW42: 0.04565635441 | AX42: 0.01106445083 | AY42: 0.0105664049 | AZ42: 0.006389644149 | BA42: 0.004644489212 | BB42: 0.005239070015 | BC42: 0.009124137584 | BD42: 0.007140610916 | BE42: 0.007965814972 | BF42: 0.0145448738 | BG42: 0.005690132726 | BH42: 0.002998170377 | BI42: 0.002477270177 | BJ42: 0.003063449706 | BK42: 0.005575026548 | BL42: 0.002146174253 | BM42: 0.008380688157 | BN42: 0.005240382254 | BO42: 0.008656055727 | BP42: 0.006121597881 | BQ42: 0.01969108407 | BR42: 0
A43: 052 | B43: Fabricación de aparatos y equipo eléctrico; fabricación de productos informáticos, electrónicos y ópticos | C43: 0.001587159139 | D43: 0.002315707522 | E43: 0.002068107362 | F43: 0.002706648328 | G43: 0.00259095997 | H43: 0.001776100881 | I43: 0.002939708367 | J43: 0.00264223148 | K43: 0.005134888683 | L43: 0.002833442611 | M43: 0.002496234848 | N43: 0.003125777111 | O43: 0.002554156815 | P43: 0.003301164072 | Q43: 0.002633673933 | R43: 0.002999431578 | S43: 0.003872620264 | T43: 0.002945248042 | U43: 0.003135233292 | V43: 0.003916847094 | W43: 0.003151269773 | X43: 0.003253398191 | Y43: 0.004366664365 | Z43: 0.01206532302 | AA43: 0.002622636037 | AB43: 0.003309693035 | AC43: 0.004093479592 | AD43: 0.005646373467 | AE43: 0.004200535963 | AF43: 0.009624835529 | AG43: 1.104236379 | AH43: 0.05973056598 | AI43: 0.03865959877 | AJ43: 0.01083886744 | AK43: 0.01729987561 | AL43: 0.02650832567 | AM43: 0.01070183697 | AN43: 0.01297979721 | AO43: 0.01568448651 | AP43: 0.01839808834 | AQ43: 0.001942735316 | AR43: 0.004039976906 | AS43: 0.02443778704 | AT43: 0.03192152341 | AU43: 0.02695705675 | AV43: 0.005120948423 | AW43: 0.05060870484 | AX43: 0.005474650064 | AY43: 0.009018220782 | AZ43: 0.002969258557 | BA43: 0.002637961631 | BB43: 0.003324390364 | BC43: 0.003359235575 | BD43: 0.001911816333 | BE43: 0.007433918009 | BF43: 0.02720102029 | BG43: 0.002246420277 | BH43: 0.002614274083 | BI43: 0.001077857447 | BJ43: 0.0008867221484 | BK43: 0.002811030682 | BL43: 0.001349189548 | BM43: 0.003438462007 | BN43: 0.004566218262 | BO43: 0.002221901688 | BP43: 0.002416268989 | BQ43: 0.01324105693 | BR43: 0
A44: 053-057 | B44: Fabricación de maquinaria y equipo n.c.p.; instalación, mantenimiento y reparación especializado de maquinaria y equipo | C44: 0.003541876278 | D44: 0.003375711497 | E44: 0.006783456733 | F44: 0.004687865184 | G44: 0.01523025631 | H44: 0.005336861783 | I44: 0.01023674103 | J44: 0.007233997355 | K44: 0.02460284933 | L44: 0.01518504766 | M44: 0.008783636425 | N44: 0.01576953933 | O44: 0.006654157038 | P44: 0.009601267925 | Q44: 0.004648993989 | R44: 0.01239454197 | S44: 0.00778270952 | T44: 0.006771983081 | U44: 0.006552837265 | V44: 0.01773059572 | W44: 0.01141638964 | X44: 0.01238334 | Y44: 0.006853473231 | Z44: 0.01535309677 | AA44: 0.01013669835 | AB44: 0.008054817288 | AC44: 0.008896352504 | AD44: 0.009135571212 | AE44: 0.0218797097 | AF44: 0.02608238991 | AG44: 0.03878974794 | AH44: 1.233577377 | AI44: 0.02919284824 | AJ44: 0.01062276452 | AK44: 0.05339417464 | AL44: 0.006829009669 | AM44: 0.00790351916 | AN44: 0.009261742363 | AO44: 0.009476327211 | AP44: 0.007725600707 | AQ44: 0.003682441872 | AR44: 0.01012626743 | AS44: 0.01654140398 | AT44: 0.01695502263 | AU44: 0.01084813701 | AV44: 0.01394051003 | AW44: 0.07521110518 | AX44: 0.01885209078 | AY44: 0.02536653309 | AZ44: 0.01453442413 | BA44: 0.007642578349 | BB44: 0.008802551341 | BC44: 0.01149777135 | BD44: 0.004849486788 | BE44: 0.01052802615 | BF44: 0.01915886947 | BG44: 0.01154923269 | BH44: 0.004518856149 | BI44: 0.003962994148 | BJ44: 0.0008345637068 | BK44: 0.005568292202 | BL44: 0.002297160935 | BM44: 0.00601659448 | BN44: 0.002883730637 | BO44: 0.006391723749 | BP44: 0.004541103472 | BQ44: 0.05578463977 | BR44: 0
A45: 054 | B45: Fabricación de vehículos automotores, remolques y semirremolques; fabricación de otros tipos de equipo de transporte | C45: 0.002507787631 | D45: 0.002628413823 | E45: 0.003008719602 | F45: 0.006407161632 | G45: 0.003544939803 | H45: 0.003958320857 | I45: 0.005851331285 | J45: 0.006862163083 | K45: 0.01063494511 | L45: 0.002273924349 | M45: 0.003558521782 | N45: 0.003780209304 | O45: 0.003617956315 | P45: 0.004615648843 | Q45: 0.003234713158 | R45: 0.00363359048 | S45: 0.004397055988 | T45: 0.003638618624 | U45: 0.00389378169 | V45: 0.005170649054 | W45: 0.003995984539 | X45: 0.005102993854 | Y45: 0.00541680233 | Z45: 0.005223422222 | AA45: 0.004395623751 | AB45: 0.004339986093 | AC45: 0.004142851215 | AD45: 0.005112692136 | AE45: 0.005478835415 | AF45: 0.006465439511 | AG45: 0.01313451733 | AH45: 0.04437020298 | AI45: 1.542926554 | AJ45: 0.007242075586 | AK45: 0.006681161833 | AL45: 0.003993868572 | AM45: 0.006245964295 | AN45: 0.003978713419 | AO45: 0.002408320596 | AP45: 0.006177978028 | AQ45: 0.002762418428 | AR45: 0.004875380096 | AS45: 0.005862386177 | AT45: 0.01327670054 | AU45: 0.007663546978 | AV45: 0.006786402053 | AW45: 0.1944189452 | AX45: 0.01866315916 | AY45: 0.0234131158 | AZ45: 0.004497899364 | BA45: 0.009468286427 | BB45: 0.02181087036 | BC45: 0.002581071415 | BD45: 0.00266554264 | BE45: 0.002215451553 | BF45: 0.004247267068 | BG45: 0.00148644822 | BH45: 0.001104708773 | BI45: 0.0006580915865 | BJ45: 0.0005114732404 | BK45: 0.001728269091 | BL45: 0.001428429299 | BM45: 0.002219609469 | BN45: 0.001339446463 | BO45: 0.001872333677 | BP45: 0.001466611639 | BQ45: 0.004680069408 | BR45: 0
A46: 055 | B46: Fabricación de muebles, colchones y somieres | C46: 0.0004302889706 | D46: 0.0004405847933 | E46: 0.0005783600217 | F46: 0.0002723305788 | G46: 0.0008249026498 | H46: 0.0002073654317 | I46: 0.0003992455301 | J46: 0.0002757564891 | K46: 0.0004411498786 | L46: 0.0003001924188 | M46: 0.0007300731126 | N46: 0.0007965881254 | O46: 0.001025514715 | P46: 0.001052607025 | Q46: 0.0006425673492 | R46: 0.0005203414248 | S46: 0.001535008581 | T46: 0.001281865686 | U46: 0.00124852702 | V46: 0.002051531535 | W46: 0.002002046584 | X46: 0.001126946898 | Y46: 0.004519472869 | Z46: 0.001957284299 | AA46: 0.0005118742938 | AB46: 0.00126111214 | AC46: 0.001203871432 | AD46: 0.002012989147 | AE46: 0.0006381501841 | AF46: 0.001060066436 | AG46: 0.001901763031 | AH46: 0.002586630326 | AI46: 0.01601479003 | AJ46: 1.013430308 | AK46: 0.001359524719 | AL46: 0.0004808356727 | AM46: 0.0003834455221 | AN46: 0.0006808498466 | AO46: 0.0006429729663 | AP46: 0.0008203366568 | AQ46: 0.0004540424005 | AR46: 0.0007166867695 | AS46: 0.003561719051 | AT46: 0.001722430029 | AU46: 0.001259614841 | AV46: 0.002096226799 | AW46: 0.002967123431 | AX46: 0.0009123189546 | AY46: 0.0007633647184 | AZ46: 0.0006569231483 | BA46: 0.000496717643 | BB46: 0.0005137914914 | BC46: 0.0004880728148 | BD46: 0.0005962125731 | BE46: 0.0004079969555 | BF46: 0.0004653146455 | BG46: 0.0002567292895 | BH46: 0.0001423904816 | BI46: 0.0001103182249 | BJ46: 5.998072582e-05 | BK46: 0.0009511728119 | BL46: 0.0001517703563 | BM46: 0.0003850207898 | BN46: 0.0002381804363 | BO46: 0.0012414628 | BP46: 0.0003200316517 | BQ46: 0.0007518846787 | BR46: 0
A47: 056 | B47: Otras industrias manufactureras | C47: 0.0007007521175 | D47: 0.0008362669111 | E47: 0.001180794288 | F47: 0.0003368344933 | G47: 0.0008443009877 | H47: 0.0004704762606 | I47: 0.001346349645 | J47: 0.0006571525155 | K47: 0.000689496269 | L47: 0.004414584999 | M47: 0.001050720787 | N47: 0.001017139376 | O47: 0.001474186776 | P47: 0.001478991675 | Q47: 0.0009705894435 | R47: 0.001091291013 | S47: 0.002174226504 | T47: 0.001700296463 | U47: 0.003591233335 | V47: 0.002847220819 | W47: 0.01002070064 | X47: 0.004703016457 | Y47: 0.001510008562 | Z47: 0.01495315724 | AA47: 0.001154644537 | AB47: 0.003171400082 | AC47: 0.01088871582 | AD47: 0.003371879023 | AE47: 0.0006553260479 | AF47: 0.001230438705 | AG47: 0.004456699368 | AH47: 0.002651123402 | AI47: 0.003940749281 | AJ47: 0.00340837554 | AK47: 1.021007356 | AL47: 0.001627424478 | AM47: 0.0009942881944 | AN47: 0.001548375552 | AO47: 0.001384019464 | AP47: 0.004622538309 | AQ47: 0.0006298990087 | AR47: 0.000981824125 | AS47: 0.005832945534 | AT47: 0.003253966018 | AU47: 0.00145520237 | AV47: 0.0005357558503 | AW47: 0.002097538933 | AX47: 0.0009951466151 | AY47: 0.0008882496238 | AZ47: 0.0008162865219 | BA47: 0.0005146305411 | BB47: 0.0006091489049 | BC47: 0.0006881807059 | BD47: 0.0008091309914 | BE47: 0.00165071842 | BF47: 0.0008683306213 | BG47: 0.001870746005 | BH47: 0.0004610019973 | BI47: 0.000472033144 | BJ47: 0.0001181321429 | BK47: 0.0003675775799 | BL47: 0.00035901151 | BM47: 0.001804140624 | BN47: 0.002029942236 | BO47: 0.02773580187 | BP47: 0.01191552677 | BQ47: 0.001960924155 | BR47: 0
A48: 058-059-060 | B48: Generación de energía eléctrica; transmisión de energía eléctrica y distribución y comercialización de energía eléctrica | C48: 0.01582694438 | D48: 0.009949513556 | E48: 0.01979527798 | F48: 0.0058595355 | G48: 0.01289084672 | H48: 0.01148620327 | I48: 0.03678987591 | J48: 0.01242474246 | K48: 0.02538354188 | L48: 0.04863033328 | M48: 0.02508235516 | N48: 0.03173641381 | O48: 0.02789163402 | P48: 0.04205748889 | Q48: 0.01495468971 | R48: 0.0513428419 | S48: 0.06402702638 | T48: 0.02503950781 | U48: 0.03987645209 | V48: 0.04230171492 | W48: 0.03862575165 | X48: 0.02230284205 | Y48: 0.03412748761 | Z48: 0.09382640497 | AA48: 0.03464526406 | AB48: 0.04261816378 | AC48: 0.04683069521 | AD48: 0.08775479789 | AE48: 0.05715704695 | AF48: 0.04980676746 | AG48: 0.03380353763 | AH48: 0.04783931286 | AI48: 0.02125835948 | AJ48: 0.03881123821 | AK48: 0.03506504547 | AL48: 1.576564633 | AM48: 0.06499310524 | AN48: 0.1381562548 | AO48: 0.1020317771 | AP48: 0.130960497 | AQ48: 0.01751249482 | AR48: 0.0270839513 | AS48: 0.01820369287 | AT48: 0.02703604102 | AU48: 0.01925200416 | AV48: 0.02890782018 | AW48: 0.01501736611 | AX48: 0.01514263508 | AY48: 0.03929833921 | AZ48: 0.01668152546 | BA48: 0.008336131784 | BB48: 0.0217522941 | BC48: 0.03986019754 | BD48: 0.01250689405 | BE48: 0.01404565092 | BF48: 0.01567258665 | BG48: 0.01914775241 | BH48: 0.00776107287 | BI48: 0.01236143447 | BJ48: 0.003417949808 | BK48: 0.006917043484 | BL48: 0.01229061416 | BM48: 0.02612622382 | BN48: 0.0136432516 | BO48: 0.01473267836 | BP48: 0.03082587871 | BQ48: 0.01184263649 | BR48: 0
A49: 061 | B49: Producción de gas; distribución de combustibles gaseosos por tuberías; suministro de vapor y aire acondicionado | C49: 0.002445411883 | D49: 0.002750404304 | E49: 0.004859458694 | F49: 0.002580889751 | G49: 0.003443168585 | H49: 0.004861015904 | I49: 0.009815136206 | J49: 0.01248373493 | K49: 0.02577282886 | L49: 0.01181150554 | M49: 0.004582257915 | N49: 0.01168857745 | O49: 0.007928408578 | P49: 0.01237330189 | Q49: 0.00425367554 | R49: 0.003588110424 | S49: 0.01555012964 | T49: 0.006028952319 | U49: 0.01590618438 | V49: 0.02676444358 | W49: 0.0101028457 | X49: 0.008079485671 | Y49: 0.004856384956 | Z49: 0.02975196875 | AA49: 0.008346115285 | AB49: 0.01340711973 | AC49: 0.02917921002 | AD49: 0.01768258056 | AE49: 0.03572395492 | AF49: 0.02035999709 | AG49: 0.01464661737 | AH49: 0.02983349024 | AI49: 0.007134313393 | AJ49: 0.0136626719 | AK49: 0.01859252899 | AL49: 0.02146158864 | AM49: 1.02436627 | AN49: 0.004423381558 | AO49: 0.003003503592 | AP49: 0.004243529269 | AQ49: 0.00294585946 | AR49: 0.00554215735 | AS49: 0.00787760832 | AT49: 0.01228792014 | AU49: 0.008266369656 | AV49: 0.004334627587 | AW49: 0.005267960809 | AX49: 0.01100535105 | AY49: 0.009633526312 | AZ49: 0.01010548998 | BA49: 0.003367901151 | BB49: 0.005129289878 | BC49: 0.01027291117 | BD49: 0.003258612107 | BE49: 0.002482970764 | BF49: 0.002002763068 | BG49: 0.002522525444 | BH49: 0.000915508742 | BI49: 0.001375849193 | BJ49: 0.0004491350865 | BK49: 0.001431498146 | BL49: 0.001157078166 | BM49: 0.002693112079 | BN49: 0.004321292772 | BO49: 0.003486881825 | BP49: 0.001796917724 | BQ49: 0.003861043021 | BR49: 0
A50: 062 | B50: Captación, tratamiento y distribución de agua | C50: 0.003806645891 | D50: 0.001326579035 | E50: 0.001880928747 | F50: 0.0005972493387 | G50: 0.0008541775301 | H50: 0.0002348767005 | I50: 0.0003599065251 | J50: 0.0002557548451 | K50: 0.0003938315772 | L50: 0.0002503325942 | M50: 0.001901382133 | N50: 0.001871354041 | O50: 0.002180328177 | P50: 0.001859290764 | Q50: 0.001681329827 | R50: 0.002053234667 | S50: 0.001722982887 | T50: 0.001289072667 | U50: 0.004301031417 | V50: 0.002366454364 | W50: 0.001110654262 | X50: 0.001468741286 | Y50: 0.0006389901211 | Z50: 0.001308658124 | AA50: 0.0003885433297 | AB50: 0.0009164758169 | AC50: 0.000899589495 | AD50: 0.001135812963 | AE50: 0.0005672482891 | AF50: 0.0006329558916 | AG50: 0.0008058180771 | AH50: 0.0005782937654 | AI50: 0.0006778711646 | AJ50: 0.0006269990117 | AK50: 0.0003721503058 | AL50: 0.0005759969417 | AM50: 0.0004299797007 | AN50: 1.004142841 | AO50: 0.0009255258177 | AP50: 0.0006470668574 | AQ50: 0.001665160053 | AR50: 0.001468805562 | AS50: 0.0004823208567 | AT50: 0.000742565697 | AU50: 0.0005865960449 | AV50: 0.001658028888 | AW50: 0.001377875236 | AX50: 0.0004821918365 | AY50: 0.0007483445032 | AZ50: 0.0008261868112 | BA50: 0.001308784165 | BB50: 0.0005666882138 | BC50: 0.001722729097 | BD50: 0.002278375436 | BE50: 0.002426511827 | BF50: 0.0007154023861 | BG50: 0.003311788969 | BH50: 0.001288542983 | BI50: 0.002059276873 | BJ50: 0.0002744091137 | BK50: 0.001723853239 | BL50: 0.0005041986803 | BM50: 0.003909331251 | BN50: 0.001849524428 | BO50: 0.000772404362 | BP50: 0.003809125582 | BQ50: 0.0006747255804 | BR50: 0
A51: 063 | B51: Evacuación y tratamiento de aguas residuales | C51: 0.0002321944297 | D51: 0.0001007630753 | E51: 0.0003114429253 | F51: 0.0001147282745 | G51: 9.616965111e-05 | H51: 9.21473535e-05 | I51: 0.0001362072528 | J51: 0.0001025993839 | K51: 0.0001375654266 | L51: 8.393216572e-05 | M51: 0.000358968583 | N51: 0.0001790992357 | O51: 0.0004880796852 | P51: 0.0002644325646 | Q51: 0.000241977367 | R51: 0.0001535391053 | S51: 0.0002087261827 | T51: 0.0001882548532 | U51: 0.0006708843078 | V51: 0.000585155125 | W51: 0.0002744950612 | X51: 0.0004403756931 | Y51: 0.0001556868996 | Z51: 0.0002841102193 | AA51: 0.0001206837051 | AB51: 0.000239373912 | AC51: 0.0001768878069 | AD51: 0.0002168777966 | AE51: 0.0001588120291 | AF51: 0.0001563399371 | AG51: 0.0001675692922 | AH51: 0.0001533762856 | AI51: 0.0002062629772 | AJ51: 0.0001610558468 | AK51: 9.430436519e-05 | AL51: 0.0001176255147 | AM51: 0.0001299430175 | AN51: 0.0005385843558 | AO51: 1.000736735 | AP51: 0.0001171308805 | AQ51: 0.0005539508656 | AR51: 0.0004049803793 | AS51: 0.0001410094961 | AT51: 0.0001999069393 | AU51: 0.0001760757571 | AV51: 0.0004425338357 | AW51: 0.0003684827068 | AX51: 0.0002994329436 | AY51: 0.004114134683 | AZ51: 0.0008403904408 | BA51: 0.0006672312585 | BB51: 0.001630311321 | BC51: 0.0004632811539 | BD51: 0.0004764515202 | BE51: 0.0005926100373 | BF51: 0.0002175085018 | BG51: 0.001239377687 | BH51: 0.0003585275008 | BI51: 0.0007647937029 | BJ51: 8.044942127e-05 | BK51: 0.000450304852 | BL51: 0.0001616420139 | BM51: 0.001012567583 | BN51: 0.0007016667515 | BO51: 0.0001850425994 | BP51: 0.001534665239 | BQ51: 0.0001973887625 | BR51: 0
A52: 064 | B52: Recolección, tratamiento y disposición de desechos | C52: 0.0005711440343 | D52: 0.0004365537855 | E52: 0.0007336403893 | F52: 0.0002714831141 | G52: 0.0004699918336 | H52: 0.0003508428564 | I52: 0.0007981337003 | J52: 0.0004358358139 | K52: 0.001117689208 | L52: 0.0007543481919 | M52: 0.001231390726 | N52: 0.002355059891 | O52: 0.001401052734 | P52: 0.001095754033 | Q52: 0.001072524924 | R52: 0.0008252839537 | S52: 0.001651085979 | T52: 0.001099442899 | U52: 0.002207987771 | V52: 0.00308511606 | W52: 0.002955515957 | X52: 0.004907400764 | Y52: 0.0008253422493 | Z52: 0.002766064623 | AA52: 0.0007089561823 | AB52: 0.001669537249 | AC52: 0.003110589802 | AD52: 0.001371705883 | AE52: 0.0007159298445 | AF52: 0.0007741304938 | AG52: 0.001106813992 | AH52: 0.001516194845 | AI52: 0.0010597432 | AJ52: 0.0009660764163 | AK52: 0.0005269795358 | AL52: 0.0006943058919 | AM52: 0.0005713790302 | AN52: 0.001002860177 | AO52: 0.001848428595 | AP52: 1.051310988 | AQ52: 0.001345603032 | AR52: 0.006497716083 | AS52: 0.0009938116619 | AT52: 0.001627862015 | AU52: 0.0007112772104 | AV52: 0.002043235226 | AW52: 0.002671970547 | AX52: 0.0006717170007 | AY52: 0.002739316859 | AZ52: 0.001174473632 | BA52: 0.00129304056 | BB52: 0.001559532407 | BC52: 0.002548586693 | BD52: 0.001760465583 | BE52: 0.002992758904 | BF52: 0.001675464905 | BG52: 0.002928105829 | BH52: 0.001274796801 | BI52: 0.00162386001 | BJ52: 0.0004264398897 | BK52: 0.002191193391 | BL52: 0.0008300872361 | BM52: 0.004097974665 | BN52: 0.00179269727 | BO52: 0.005894112228 | BP52: 0.003586096412 | BQ52: 0.0008035177782 | BR52: 0
A53: 065 | B53: Recuperación de materiales (reciclaje) | C53: 0.0008755344226 | D53: 0.0006984268321 | E53: 0.0008956705089 | F53: 0.000652244511 | G53: 0.001003702985 | H53: 0.0002392344198 | I53: 0.0003889969295 | J53: 0.0005136819309 | K53: 0.0007282241632 | L53: 0.0004421938717 | M53: 0.0008799505658 | N53: 0.0009835925253 | O53: 0.001037711768 | P53: 0.00105457297 | Q53: 0.0009230252546 | R53: 0.0009793471347 | S53: 0.001930958728 | T53: 0.002023846363 | U53: 0.001799786336 | V53: 0.00375417381 | W53: 0.003461215154 | X53: 0.001601773312 | Y53: 0.002393456788 | Z53: 0.007091861162 | AA53: 0.0005669324139 | AB53: 0.002287077677 | AC53: 0.001792831925 | AD53: 0.001853331144 | AE53: 0.0007529500352 | AF53: 0.04833721719 | AG53: 0.0223619171 | AH53: 0.01251348046 | AI53: 0.005296672258 | AJ53: 0.006038226155 | AK53: 0.007377686198 | AL53: 0.001038730834 | AM53: 0.0005565665741 | AN53: 0.001155102094 | AO53: 0.0008409959405 | AP53: 0.0009287289537 | AQ53: 1.018657063 | AR53: 0.00073455276 | AS53: 0.004554608394 | AT53: 0.004743238625 | AU53: 0.005241962915 | AV53: 0.0006018124262 | AW53: 0.00293279754 | AX53: 0.0006802865134 | AY53: 0.0007368212225 | AZ53: 0.0004958523064 | BA53: 0.0003752206411 | BB53: 0.0005444517632 | BC53: 0.0006831649982 | BD53: 0.0005472697684 | BE53: 0.001366251629 | BF53: 0.001037409782 | BG53: 0.0004451707657 | BH53: 0.000238368449 | BI53: 0.0001784204814 | BJ53: 0.0001656355015 | BK53: 0.0004718462066 | BL53: 0.0003773448872 | BM53: 0.001084044894 | BN53: 0.0005873079306 | BO53: 0.000608714945 | BP53: 0.0006408578014 | BQ53: 0.001245937458 | BR53: 0
A54: 066 | B54: Actividades de saneamiento ambiental y otros servicios de gestión de desechos | C54: 7.479610342e-05 | D54: 5.145749077e-05 | E54: 8.26122783e-05 | F54: 3.804153366e-05 | G54: 6.707260483e-05 | H54: 0.0003945812645 | I54: 0.003343449812 | J54: 0.0004732998359 | K54: 0.0005613627657 | L54: 0.006664607689 | M54: 9.533033788e-05 | N54: 0.0001168839822 | O54: 0.0001019827621 | P54: 0.0001296064089 | Q54: 6.994940702e-05 | R54: 0.000102960147 | S54: 0.0001753376103 | T54: 9.290919114e-05 | U54: 0.0001341741754 | V54: 0.0001816165297 | W54: 0.0001393465257 | X54: 0.0001298744134 | Y54: 0.0001007210679 | Z54: 0.0002587314625 | AA54: 0.00140612272 | AB54: 0.0001638786132 | AC54: 0.0001981058301 | AD54: 0.000213602995 | AE54: 0.0002745577963 | AF54: 0.0002408272909 | AG54: 0.0001517400647 | AH54: 0.0001723454415 | AI54: 0.0001201940513 | AJ54: 0.0001328107583 | AK54: 0.0001236472117 | AL54: 0.001341765694 | AM54: 0.002291517877 | AN54: 0.001020238623 | AO54: 0.001127816835 | AP54: 0.001165420549 | AQ54: 6.044089387e-05 | AR54: 1.000178509 | AS54: 0.0001024407093 | AT54: 0.0001579211229 | AU54: 0.00011985876 | AV54: 0.0001184793695 | AW54: 9.712083798e-05 | AX54: 0.0002684570264 | AY54: 0.000275147369 | AZ54: 0.0003849325791 | BA54: 0.0001154551517 | BB54: 0.0001736453121 | BC54: 0.0001796054904 | BD54: 6.268139931e-05 | BE54: 0.0001274841404 | BF54: 0.0001304092509 | BG54: 9.418783324e-05 | BH54: 4.868381295e-05 | BI54: 4.581075024e-05 | BJ54: 2.639173519e-05 | BK54: 8.568190941e-05 | BL54: 6.292714944e-05 | BM54: 0.002485136471 | BN54: 6.515502353e-05 | BO54: 7.111715293e-05 | BP54: 0.0001056760522 | BQ54: 5.565094267e-05 | BR54: 0
A55: 067 | B55: Construcción de edificaciones residenciales y no residenciales | C55: 0.0001894381646 | D55: 0.0001604223101 | E55: 0.0003374252238 | F55: 0.0002320842318 | G55: 0.0001750691092 | H55: 0.0003358859251 | I55: 0.0005393912895 | J55: 0.0003567695974 | K55: 0.0004648970309 | L55: 0.0008171749606 | M55: 0.000545708243 | N55: 0.0004540010617 | O55: 0.0004408149337 | P55: 0.0004408009703 | Q55: 0.0002696692614 | R55: 0.000266524659 | S55: 0.0004670423001 | T55: 0.0004944732235 | U55: 0.0005626203954 | V55: 0.000583430661 | W55: 0.001341978949 | X55: 0.0008673613461 | Y55: 0.0003746657101 | Z55: 0.001770235124 | AA55: 0.0003714115786 | AB55: 0.0005450811966 | AC55: 0.0015027306 | AD55: 0.000663560069 | AE55: 0.0002822026112 | AF55: 0.0004762499236 | AG55: 0.0005181554617 | AH55: 0.000460272244 | AI55: 0.000685299624 | AJ55: 0.0007325464403 | AK55: 0.002201991077 | AL55: 0.0009817435066 | AM55: 0.0005470009745 | AN55: 0.001673752896 | AO55: 0.0007258250744 | AP55: 0.001302107293 | AQ55: 0.0003009097881 | AR55: 0.005350198215 | AS55: 1.002184505 | AT55: 0.0008322059045 | AU55: 0.001310737086 | AV55: 0.0006593902478 | AW55: 0.0004905176757 | AX55: 0.000418792667 | AY55: 0.0008836834073 | AZ55: 0.0005287281893 | BA55: 0.0006944682527 | BB55: 0.00067158572 | BC55: 0.0009585650158 | BD55: 0.0004468744136 | BE55: 0.001303958228 | BF55: 0.0009910903573 | BG55: 0.00115227745 | BH55: 0.0006943196132 | BI55: 0.0005492126938 | BJ55: 0.0003394449356 | BK55: 0.001401176382 | BL55: 0.0006864014568 | BM55: 0.001834525209 | BN55: 0.001494017264 | BO55: 0.003043131519 | BP55: 0.002142821738 | BQ55: 0.0006065931307 | BR55: 0
A56: 068 | B56: Construcción de carreteras y vías de ferrocarril, de proyectos de servicio público y de otras obras de ingeniería civil | C56: 0.000111044848 | D56: 0.0001450828468 | E56: 0.0001666048125 | F56: 0.0001775706808 | G56: 8.897795044e-05 | H56: 0.0001272783663 | I56: 0.0006382596509 | J56: 0.0002759066372 | K56: 8.525109245e-05 | L56: 6.209792186e-05 | M56: 0.0001678415436 | N56: 0.0001961704412 | O56: 0.0001786879354 | P56: 0.0002765465004 | Q56: 0.0001591096304 | R56: 0.0001649610717 | S56: 0.0001971234902 | T56: 0.0001439893788 | U56: 0.0002723704779 | V56: 0.0002296470424 | W56: 0.0002264765651 | X56: 0.0004371405163 | Y56: 0.0001879573351 | Z56: 0.000256859605 | AA56: 0.0003586434515 | AB56: 0.0002906998826 | AC56: 0.0003194478924 | AD56: 0.0003484881372 | AE56: 0.0003692550279 | AF56: 0.0002036337889 | AG56: 0.0001806395779 | AH56: 0.0001700915716 | AI56: 0.0001958237391 | AJ56: 0.000213233576 | AK56: 0.0001301165233 | AL56: 0.000526100665 | AM56: 0.001577575622 | AN56: 0.000123374968 | AO56: 7.970401682e-05 | AP56: 0.0001667136441 | AQ56: 0.0003323534006 | AR56: 0.0001540724906 | AS56: 0.0001458840667 | AT56: 1.000247777 | AU56: 0.0001812611241 | AV56: 0.000207178094 | AW56: 0.0001186648947 | AX56: 0.003259246594 | AY56: 0.0001068700499 | AZ56: 0.0001502997923 | BA56: 9.896468866e-05 | BB56: 0.0001840568279 | BC56: 0.0001280628922 | BD56: 0.0001378150766 | BE56: 6.038444421e-05 | BF56: 7.539777946e-05 | BG56: 7.53224132e-05 | BH56: 3.049667974e-05 | BI56: 3.240040782e-05 | BJ56: 1.72022948e-05 | BK56: 4.961258413e-05 | BL56: 3.693350994e-05 | BM56: 7.669351346e-05 | BN56: 5.02856218e-05 | BO56: 6.701848331e-05 | BP56: 5.238731286e-05 | BQ56: 9.279279908e-05 | BR56: 0
A57: 069 | B57: Actividades especializadas para la construcción de edificaciones y obras de ingeniería civil (Alquiler de maquinaría y equipo de construcción con operadores) | C57: 0.002951953259 | D57: 0.002810935455 | E57: 0.004500415815 | F57: 0.02542779285 | G57: 0.00502748988 | H57: 0.008344212217 | I57: 0.00610201649 | J57: 0.005406232455 | K57: 0.01762111643 | L57: 0.01035385376 | M57: 0.004788147029 | N57: 0.005485276457 | O57: 0.005094050818 | P57: 0.00992459858 | Q57: 0.003783034423 | R57: 0.004216744993 | S57: 0.007584380398 | T57: 0.005454431894 | U57: 0.00609150489 | V57: 0.00658582215 | W57: 0.006375754055 | X57: 0.005910273018 | Y57: 0.009248154948 | Z57: 0.009266513455 | AA57: 0.005094508405 | AB57: 0.01112352741 | AC57: 0.01993816694 | AD57: 0.02314551934 | AE57: 0.005473934555 | AF57: 0.005904551848 | AG57: 0.005808981102 | AH57: 0.006291535199 | AI57: 0.00657149273 | AJ57: 0.04281335098 | AK57: 0.01203575848 | AL57: 0.04753801416 | AM57: 0.01721040907 | AN57: 0.1394976673 | AO57: 0.05838113205 | AP57: 0.04606900808 | AQ57: 0.004555494654 | AR57: 0.01324119886 | AS57: 0.2643564478 | AT57: 0.06230256326 | AU57: 1.176875023 | AV57: 0.0125307274 | AW57: 0.005075330392 | AX57: 0.008777804589 | AY57: 0.006864173213 | AZ57: 0.006920447244 | BA57: 0.01155332486 | BB57: 0.005842601544 | BC57: 0.03151867277 | BD57: 0.01191063054 | BE57: 0.005797074416 | BF57: 0.00420854822 | BG57: 0.00885084846 | BH57: 0.008582878013 | BI57: 0.008778873828 | BJ57: 0.02635560675 | BK57: 0.01273860391 | BL57: 0.00750633187 | BM57: 0.04222749731 | BN57: 0.02465672803 | BO57: 0.008566333598 | BP57: 0.01963775272 | BQ57: 0.0451686226 | BR57: 0
A58: 070 | B58: Comercio al por mayor y en comisión o por contrata; comercio al por menor (incluso el comercio al por menor de combustibles); comercio de vehículos automotores y motocicletas, sus partes, piezas y accesorios | C58: 0.05359300787 | D58: 0.06237107383 | E58: 0.08146184555 | F58: 0.02754734923 | G58: 0.05840375324 | H58: 0.01868091563 | I58: 0.03342718868 | J58: 0.02121499376 | K58: 0.03319599056 | L58: 0.01903114703 | M58: 0.09148504687 | N58: 0.0596264569 | O58: 0.09594923013 | P58: 0.1358651757 | Q58: 0.09456054628 | R58: 0.04388020076 | S58: 0.1462326003 | T58: 0.1206864292 | U58: 0.08720357797 | V58: 0.1160574677 | W58: 0.08207610454 | X58: 0.1124126738 | Y58: 0.1822873417 | Z58: 0.1328422605 | AA58: 0.06568778387 | AB58: 0.1113804471 | AC58: 0.09154412855 | AD58: 0.1404744448 | AE58: 0.07011598384 | AF58: 0.109605485 | AG58: 0.1462863691 | AH58: 0.1373218454 | AI58: 0.1854292501 | AJ58: 0.1382029052 | AK58: 0.06709396219 | AL58: 0.02902304373 | AM58: 0.02839336162 | AN58: 0.03427687648 | AO58: 0.02728290495 | AP58: 0.040070356 | AQ58: 0.03801841832 | AR58: 0.04643688846 | AS58: 0.0840298732 | AT58: 0.107354101 | AU58: 0.08496298136 | AV58: 1.026520308 | AW58: 0.1119050028 | AX58: 0.06476033761 | AY58: 0.06696908148 | AZ58: 0.04908585294 | BA58: 0.04002975338 | BB58: 0.03187405585 | BC58: 0.05135527711 | BD58: 0.08898101992 | BE58: 0.02772117531 | BF58: 0.04186999691 | BG58: 0.01725114735 | BH58: 0.01364400799 | BI58: 0.009565018683 | BJ58: 0.003889000968 | BK58: 0.01399799498 | BL58: 0.01333039263 | BM58: 0.02455665723 | BN58: 0.01532261274 | BO58: 0.04465504399 | BP58: 0.02080125059 | BQ58: 0.05855860684 | BR58: 0
A59: 071 | B59: Mantenimiento y reparación de vehículos automotores y motocicletas | C59: 0.007462882272 | D59: 0.007219112333 | E59: 0.007160578568 | F59: 0.02913629567 | G59: 0.01042836167 | H59: 0.01629779954 | I59: 0.02075346178 | J59: 0.0304362229 | K59: 0.04639320234 | L59: 0.006146249718 | M59: 0.008842772186 | N59: 0.01051095215 | O59: 0.009181777368 | P59: 0.01052685704 | Q59: 0.00783866916 | R59: 0.0118815414 | S59: 0.009325053827 | T59: 0.007142700204 | U59: 0.00977744207 | V59: 0.01061749327 | W59: 0.007858078653 | X59: 0.01207009708 | Y59: 0.01223278487 | Z59: 0.01009407415 | AA59: 0.01341047093 | AB59: 0.01040033911 | AC59: 0.009648022839 | AD59: 0.01091311431 | AE59: 0.01580323601 | AF59: 0.01199834917 | AG59: 0.007346837237 | AH59: 0.03029531667 | AI59: 0.02121407734 | AJ59: 0.0166927054 | AK59: 0.01043334565 | AL59: 0.008434991523 | AM59: 0.02009477825 | AN59: 0.01140731711 | AO59: 0.003643259676 | AP59: 0.02159843726 | AQ59: 0.007844073354 | AR59: 0.01520153701 | AS59: 0.009817377691 | AT59: 0.01450756324 | AU59: 0.01812726436 | AV59: 0.008283356678 | AW59: 1.007847433 | AX59: 0.0631205075 | AY59: 0.1134879419 | AZ59: 0.0101160489 | BA59: 0.01877554569 | BB59: 0.01712570768 | BC59: 0.00550278021 | BD59: 0.005359439707 | BE59: 0.004415118818 | BF59: 0.006010731545 | BG59: 0.003278441448 | BH59: 0.0029268894 | BI59: 0.001452354263 | BJ59: 0.00163608675 | BK59: 0.004474038309 | BL59: 0.004546565522 | BM59: 0.006357308011 | BN59: 0.002966123216 | BO59: 0.003655939383 | BP59: 0.00371443557 | BQ59: 0.008102416304 | BR59: 0
A60: 072-074 | B60: Transporte terrestre y transporte por tuberías | C60: 0.03468425396 | D60: 0.04631411501 | E60: 0.05204860351 | F60: 0.05722308164 | G60: 0.02736569602 | H60: 0.03971870449 | I60: 0.2049648187 | J60: 0.08671251174 | K60: 0.01918914413 | L60: 0.01336000644 | M60: 0.05209603596 | N60: 0.05904053516 | O60: 0.05457012883 | P60: 0.08450212555 | Q60: 0.05013396809 | R60: 0.0492713881 | S60: 0.05570070061 | T60: 0.04384738557 | U60: 0.08241187947 | V60: 0.06528225413 | W60: 0.06888436323 | X60: 0.1402466031 | Y60: 0.05788768423 | Z60: 0.06926282457 | AA60: 0.1132813089 | AB60: 0.0888462764 | AC60: 0.09379999874 | AD60: 0.1030213551 | AE60: 0.1078030353 | AF60: 0.05776547843 | AG60: 0.05297390803 | AH60: 0.044384756 | AI60: 0.06095864582 | AJ60: 0.06327087702 | AK60: 0.03512198816 | AL60: 0.03919578288 | AM60: 0.247774066 | AN60: 0.02714839344 | AO60: 0.01672185631 | AP60: 0.04285001506 | AQ60: 0.1074163328 | AR60: 0.04707025629 | AS60: 0.04241127895 | AT60: 0.06904113155 | AU60: 0.04636911326 | AV60: 0.06476300595 | AW60: 0.03651023028 | AX60: 1.071099285 | AY60: 0.02948796363 | AZ60: 0.04553422435 | BA60: 0.03099718164 | BB60: 0.05756546224 | BC60: 0.03606388248 | BD60: 0.04350046439 | BE60: 0.01808238585 | BF60: 0.02304142451 | BG60: 0.02255967506 | BH60: 0.009119682817 | BI60: 0.009251419409 | BJ60: 0.005062405297 | BK60: 0.01532614669 | BL60: 0.01082030121 | BM60: 0.02212394711 | BN60: 0.01414821336 | BO60: 0.01993034956 | BP60: 0.01414240263 | BQ60: 0.02826950709 | BR60: 0
A61: 073 | B61: Transporte acuático | C61: 0.0002439686753 | D61: 0.0002424717777 | E61: 0.000315751944 | F61: 0.01546971291 | G61: 0.002695784069 | H61: 0.001879941964 | I61: 0.002411141957 | J61: 0.003059997552 | K61: 0.0007852777854 | L61: 0.002182300575 | M61: 0.000421399753 | N61: 0.0003700102995 | O61: 0.0003146943986 | P61: 0.0004953849323 | Q61: 0.0002846457218 | R61: 0.0003743821346 | S61: 0.000424029017 | T61: 0.0003414700985 | U61: 0.0003512539804 | V61: 0.0003606416583 | W61: 0.0002877868001 | X61: 0.0004665559111 | Y61: 0.003072909067 | Z61: 0.0005657291801 | AA61: 0.002941019118 | AB61: 0.0004383445475 | AC61: 0.0003858215316 | AD61: 0.0005236160674 | AE61: 0.0005418617587 | AF61: 0.001060185801 | AG61: 0.000530954445 | AH61: 0.0004379710968 | AI61: 0.0009610205819 | AJ61: 0.0006622565384 | AK61: 0.0003137729062 | AL61: 0.0002499034605 | AM61: 0.001015164207 | AN61: 0.0001929807202 | AO61: 0.0001104911187 | AP61: 0.0002628509047 | AQ61: 0.0002713799958 | AR61: 0.000220957661 | AS61: 0.0004041215379 | AT61: 0.0005472021042 | AU61: 0.0004947238936 | AV61: 0.001381907332 | AW61: 0.0003723871786 | AX61: 0.002198557056 | AY61: 1.023247102 | AZ61: 0.0006860912339 | BA61: 0.0001740932511 | BB61: 0.0002923877305 | BC61: 0.0002082689976 | BD61: 0.0002681047251 | BE61: 0.0001079329454 | BF61: 0.0001242258114 | BG61: 8.461015372e-05 | BH61: 4.908319517e-05 | BI61: 4.409710409e-05 | BJ61: 2.440261711e-05 | BK61: 7.893871392e-05 | BL61: 5.617102869e-05 | BM61: 0.0001320173513 | BN61: 6.987114156e-05 | BO61: 0.0001229607515 | BP61: 8.085432469e-05 | BQ61: 0.0001713388597 | BR61: 0
A62: 075 | B62: Transporte aéreo | C62: 0.001688639518 | D62: 0.001700935078 | E62: 0.002218187086 | F62: 0.001010279721 | G62: 0.001594082779 | H62: 0.003376888995 | I62: 0.00566686356 | J62: 0.002719937182 | K62: 0.005724905575 | L62: 0.005857696895 | M62: 0.002580294128 | N62: 0.002953521592 | O62: 0.002613907852 | P62: 0.003581520411 | Q62: 0.002511467893 | R62: 0.001578696302 | S62: 0.003925081805 | T62: 0.003228338014 | U62: 0.003337824238 | V62: 0.003388007766 | W62: 0.002748832006 | X62: 0.003434873023 | Y62: 0.004068193447 | Z62: 0.004038670991 | AA62: 0.003733868414 | AB62: 0.004331617037 | AC62: 0.005463806682 | AD62: 0.005623595022 | AE62: 0.009767082127 | AF62: 0.003313996983 | AG62: 0.003802736496 | AH62: 0.003683291837 | AI62: 0.01108458622 | AJ62: 0.003555164112 | AK62: 0.001990727807 | AL62: 0.002606671728 | AM62: 0.003754896017 | AN62: 0.002543541668 | AO62: 0.001605967977 | AP62: 0.002763981022 | AQ62: 0.001433534981 | AR62: 0.005276341052 | AS62: 0.003247150827 | AT62: 0.004626874838 | AU62: 0.003422054641 | AV62: 0.01858063995 | AW62: 0.004212221185 | AX62: 0.005607294557 | AY62: 0.004357563746 | AZ62: 1.036418235 | BA62: 0.007511399263 | BB62: 0.07669227862 | BC62: 0.02251602666 | BD62: 0.004175076783 | BE62: 0.005140703786 | BF62: 0.004181246649 | BG62: 0.003292673544 | BH62: 0.003085731533 | BI62: 0.003426899784 | BJ62: 0.0009114017288 | BK62: 0.008561781059 | BL62: 0.005994723166 | BM62: 0.006903263578 | BN62: 0.004761513626 | BO62: 0.00230946036 | BP62: 0.005338529156 | BQ62: 0.002568154553 | BR62: 0
A63: 076 | B63: Almacenamiento y actividades complementarias al transporte | C63: 0.01032891057 | D63: 0.007092276076 | E63: 0.008137467999 | F63: 0.00656958385 | G63: 0.004972098326 | H63: 0.05329108357 | I63: 0.02290751315 | J63: 0.03465810459 | K63: 0.08245289062 | L63: 0.003541776471 | M63: 0.008416447305 | N63: 0.009632685282 | O63: 0.008646874964 | P63: 0.01317760165 | Q63: 0.009662070316 | R63: 0.008224050649 | S63: 0.01124580129 | T63: 0.009320196239 | U63: 0.01070396463 | V63: 0.01058162335 | W63: 0.008869953982 | X63: 0.01512015745 | Y63: 0.01098620493 | Z63: 0.01095575045 | AA63: 0.01489251928 | AB63: 0.01908480449 | AC63: 0.01620798819 | AD63: 0.02023547293 | AE63: 0.01487822186 | AF63: 0.01589014108 | AG63: 0.01170494698 | AH63: 0.01085477022 | AI63: 0.0528019635 | AJ63: 0.01065402509 | AK63: 0.00709955516 | AL63: 0.006177538601 | AM63: 0.02137879563 | AN63: 0.005430746888 | AO63: 0.003275918558 | AP63: 0.006614473438 | AQ63: 0.009204737955 | AR63: 0.01227108211 | AS63: 0.008554984435 | AT63: 0.01417480819 | AU63: 0.009830895723 | AV63: 0.03469637285 | AW63: 0.02243665673 | AX63: 0.07927633221 | AY63: 0.03717481527 | AZ63: 0.22566914 | BA63: 1.105111506 | BB63: 0.0886891065 | BC63: 0.01009111397 | BD63: 0.007530002613 | BE63: 0.004674334741 | BF63: 0.005609886649 | BG63: 0.00394276224 | BH63: 0.0025875279 | BI63: 0.002259193802 | BJ63: 0.001016187914 | BK63: 0.01899999371 | BL63: 0.003755265678 | BM63: 0.006696272413 | BN63: 0.003882417609 | BO63: 0.004226114841 | BP63: 0.003893301344 | BQ63: 0.005420292791 | BR63: 0
A64: 077 | B64: Actividades de correo y de servicios de mensajería | C64: 0.0007136781042 | D64: 0.0007379588581 | E64: 0.0009664576423 | F64: 0.0005102285401 | G64: 0.0007932509777 | H64: 0.001048377623 | I64: 0.001590308081 | J64: 0.00100502651 | K64: 0.002273042669 | L64: 0.000949054928 | M64: 0.001149502266 | N64: 0.001133566829 | O64: 0.001181283299 | P64: 0.001581707585 | Q64: 0.001074390609 | R64: 0.0008682191499 | S64: 0.002030708916 | T64: 0.001408631755 | U64: 0.001390968581 | V64: 0.001738769852 | W64: 0.001637092362 | X64: 0.001801519285 | Y64: 0.001633713782 | Z64: 0.002136394322 | AA64: 0.001289634219 | AB64: 0.002401889378 | AC64: 0.005600003758 | AD64: 0.004702688893 | AE64: 0.001260564783 | AF64: 0.001309181854 | AG64: 0.001589446409 | AH64: 0.001539962289 | AI64: 0.002350364131 | AJ64: 0.00152823607 | AK64: 0.0009202645629 | AL64: 0.002679365951 | AM64: 0.003295623056 | AN64: 0.002522182126 | AO64: 0.001420559473 | AP64: 0.00361949325 | AQ64: 0.0008389821731 | AR64: 0.001793559491 | AS64: 0.001022427704 | AT64: 0.001456132189 | AU64: 0.001125961228 | AV64: 0.005314642657 | AW64: 0.001439649249 | AX64: 0.003682081083 | AY64: 0.002180694153 | AZ64: 0.01215845458 | BA64: 0.01353188152 | BB64: 1.104733962 | BC64: 0.002234414426 | BD64: 0.003670751802 | BE64: 0.001794447078 | BF64: 0.01187219181 | BG64: 0.001820826658 | BH64: 0.003133796845 | BI64: 0.001281698277 | BJ64: 0.000817164982 | BK64: 0.001369276357 | BL64: 0.009224848582 | BM64: 0.001795001828 | BN64: 0.0007150061942 | BO64: 0.002535015008 | BP64: 0.001285124812 | BQ64: 0.00522094612 | BR64: 0
A65: 078 | B65: Alojamiento | C65: 0.0009342098442 | D65: 0.0009053729354 | E65: 0.001391583996 | F65: 0.0007214305427 | G65: 0.001085624126 | H65: 0.00338229327 | I65: 0.002178376634 | J65: 0.003774122133 | K65: 0.002042136947 | L65: 0.00155198051 | M65: 0.001830494887 | N65: 0.002266476972 | O65: 0.001859874975 | P65: 0.002668119832 | Q65: 0.00139587207 | R65: 0.001297888885 | S65: 0.002991891086 | T65: 0.003387705748 | U65: 0.002525484823 | V65: 0.003216923188 | W65: 0.004268804538 | X65: 0.003091650175 | Y65: 0.003634398221 | Z65: 0.004023796868 | AA65: 0.002714607755 | AB65: 0.002823811084 | AC65: 0.004036133067 | AD65: 0.003420844535 | AE65: 0.002420198248 | AF65: 0.003318030698 | AG65: 0.003364041825 | AH65: 0.003928352819 | AI65: 0.004059048362 | AJ65: 0.002827594218 | AK65: 0.002550257686 | AL65: 0.001897862737 | AM65: 0.002771985502 | AN65: 0.002357420862 | AO65: 0.001085449947 | AP65: 0.002020726614 | AQ65: 0.001120099083 | AR65: 0.005041217864 | AS65: 0.002247518106 | AT65: 0.002463017222 | AU65: 0.002130897614 | AV65: 0.004875072691 | AW65: 0.004146090461 | AX65: 0.002563457164 | AY65: 0.007390574625 | AZ65: 0.008475112144 | BA65: 0.003525392686 | BB65: 0.008457141176 | BC65: 1.003034801 | BD65: 0.002323395498 | BE65: 0.01114574749 | BF65: 0.0033565482 | BG65: 0.003160115652 | BH65: 0.003206232688 | BI65: 0.002610300613 | BJ65: 0.0007855915545 | BK65: 0.005912733286 | BL65: 0.004763910774 | BM65: 0.002371585868 | BN65: 0.002892328227 | BO65: 0.002366383912 | BP65: 0.01160471697 | BQ65: 0.008253990313 | BR65: 0
A66: 079-080 | B66: Actividades de servicios de comidas y bebidas | C66: 0.001269175652 | D66: 0.001141533532 | E66: 0.009040119078 | F66: 0.0007788447512 | G66: 0.005582430502 | H66: 0.001621039731 | I66: 0.002979103876 | J66: 0.003008483142 | K66: 0.002468551996 | L66: 0.002881975981 | M66: 0.006171273284 | N66: 0.002195430251 | O66: 0.005302747369 | P66: 0.006027137882 | Q66: 0.00835081901 | R66: 0.001505327527 | S66: 0.005221909871 | T66: 0.005826937997 | U66: 0.004033911571 | V66: 0.003123548651 | W66: 0.004313544373 | X66: 0.004065819306 | Y66: 0.002438241129 | Z66: 0.003700959785 | AA66: 0.002174570664 | AB66: 0.002665674398 | AC66: 0.003580535514 | AD66: 0.003415412681 | AE66: 0.002533143285 | AF66: 0.003205670334 | AG66: 0.002785440524 | AH66: 0.003339081672 | AI66: 0.003831969168 | AJ66: 0.002614240193 | AK66: 0.00200277869 | AL66: 0.00196593591 | AM66: 0.002630523012 | AN66: 0.00226240216 | AO66: 0.001408538985 | AP66: 0.002316787618 | AQ66: 0.004688004104 | AR66: 0.009910413739 | AS66: 0.001914860682 | AT66: 0.002438710118 | AU66: 0.002420061096 | AV66: 0.004780660484 | AW66: 0.003914838525 | AX66: 0.002271469217 | AY66: 0.003754519866 | AZ66: 0.02881671391 | BA66: 0.004944410859 | BB66: 0.006268155646 | BC66: 0.02363344051 | BD66: 1.008261367 | BE66: 0.01148592777 | BF66: 0.003832276939 | BG66: 0.008248042958 | BH66: 0.002789647167 | BI66: 0.002951552651 | BJ66: 0.001056288385 | BK66: 0.003477305616 | BL66: 0.003689580692 | BM66: 0.01026624501 | BN66: 0.004568947891 | BO66: 0.002722428186 | BP66: 0.03189100924 | BQ66: 0.02180013406 | BR66: 0
A67: 081-082-084 | B67: Actividades de edición (libros, periódicos, otros); actividades cinematográficas, de video y producción de programas de televisión, grabación de sonido y edición de música; Actividades de programación, transmisión y/o difusión; desarrollo de sistemas informáticos (planificación, análisis, diseño, programación, pruebas), consultoría informática y actividades relacionadas; edición de software; actividades de servicios de información. | C67: 0.00557281542 | D67: 0.004020316245 | E67: 0.008862548666 | F67: 0.002789234967 | G67: 0.006393027192 | H67: 0.007689134761 | I67: 0.01203089755 | J67: 0.008954791805 | K67: 0.01381044762 | L67: 0.01149843593 | M67: 0.01388629648 | N67: 0.01345178149 | O67: 0.0120035319 | P67: 0.01223206113 | Q67: 0.007663596949 | R67: 0.008889047172 | S67: 0.01748016346 | T67: 0.01413693864 | U67: 0.01063687781 | V67: 0.01500515507 | W67: 0.01460472118 | X67: 0.01537244203 | Y67: 0.01205961542 | Z67: 0.04816959856 | AA67: 0.009180952072 | AB67: 0.01235689615 | AC67: 0.01896050584 | AD67: 0.01499382975 | AE67: 0.008342687329 | AF67: 0.01345228451 | AG67: 0.01605028184 | AH67: 0.03713602542 | AI67: 0.01612927588 | AJ67: 0.01740385642 | AK67: 0.01200880407 | AL67: 0.01626197937 | AM67: 0.01084977533 | AN67: 0.0205580094 | AO67: 0.009729178925 | AP67: 0.01803190885 | AQ67: 0.005340256662 | AR67: 0.1110385566 | AS67: 0.008873717386 | AT67: 0.01062877197 | AU67: 0.009172022357 | AV67: 0.01624265531 | AW67: 0.01862952898 | AX67: 0.01019153639 | AY67: 0.02407337173 | AZ67: 0.01450390912 | BA67: 0.01644182984 | BB67: 0.03201148324 | BC67: 0.02964416271 | BD67: 0.009200163442 | BE67: 1.06363735 | BF67: 0.0466976677 | BG67: 0.03254739931 | BH67: 0.01634960634 | BI67: 0.0128820196 | BJ67: 0.005566462552 | BK67: 0.03668414619 | BL67: 0.01823128861 | BM67: 0.04028365051 | BN67: 0.03092711439 | BO67: 0.01392656573 | BP67: 0.02853878811 | BQ67: 0.01656524058 | BR67: 0
A68: 083 | B68: Telecomunicaciones | C68: 0.005648774803 | D68: 0.004991684559 | E68: 0.006975138035 | F68: 0.00824862961 | G68: 0.005296934478 | H68: 0.003849413025 | I68: 0.006819856396 | J68: 0.00501775087 | K68: 0.007710853482 | L68: 0.005737066037 | M68: 0.008904843882 | N68: 0.008674550464 | O68: 0.008471316409 | P68: 0.01182714591 | Q68: 0.007392876224 | R68: 0.008039310563 | S68: 0.01304621168 | T68: 0.01180346097 | U68: 0.008066236974 | V68: 0.01233672545 | W68: 0.01123328641 | X68: 0.01691399013 | Y68: 0.02247528203 | Z68: 0.01643248132 | AA68: 0.006458445208 | AB68: 0.01142669361 | AC68: 0.02061640064 | AD68: 0.0139042006 | AE68: 0.007781475709 | AF68: 0.01064162956 | AG68: 0.01331922451 | AH68: 0.01576354023 | AI68: 0.01420004756 | AJ68: 0.01442641968 | AK68: 0.009733548817 | AL68: 0.02246386125 | AM68: 0.006956166763 | AN68: 0.009147130608 | AO68: 0.00548111901 | AP68: 0.008143568631 | AQ68: 0.01538748979 | AR68: 0.02018052065 | AS68: 0.009803428764 | AT68: 0.01217540019 | AU68: 0.01001992788 | AV68: 0.04058169968 | AW68: 0.02288110303 | AX68: 0.008568580022 | AY68: 0.0301588772 | AZ68: 0.01916453263 | BA68: 0.01381978017 | BB68: 0.01981164994 | BC68: 0.01769655644 | BD68: 0.01205307218 | BE68: 0.02729881073 | BF68: 1.169610818 | BG68: 0.006328221019 | BH68: 0.007634975102 | BI68: 0.00414929597 | BJ68: 0.002992739935 | BK68: 0.02458472174 | BL68: 0.01541644578 | BM68: 0.01670942594 | BN68: 0.007318034214 | BO68: 0.01424861979 | BP68: 0.0154714111 | BQ68: 0.02165287804 | BR68: 0
A69: 085-086 | B69: Actividades de servicios financieros de intermediación; servicios financieros de inversión, custodia y otros servicios conexos | C69: 0.01593384909 | D69: 0.02497529958 | E69: 0.02591682123 | F69: 0.0148776979 | G69: 0.01793255882 | H69: 0.01520870412 | I69: 0.0257956162 | J69: 0.01546972577 | K69: 0.02379247438 | L69: 0.02650381027 | M69: 0.03409535391 | N69: 0.03544265782 | O69: 0.03397854252 | P69: 0.03430131481 | Q69: 0.03768596764 | R69: 0.02594692939 | S69: 0.03916406819 | T69: 0.03527999093 | U69: 0.02582212167 | V69: 0.03972628394 | W69: 0.0318712661 | X69: 0.03699359366 | Y69: 0.02663059717 | Z69: 0.04905836967 | AA69: 0.02119125328 | AB69: 0.0342179414 | AC69: 0.03998552148 | AD69: 0.04644965191 | AE69: 0.02898578374 | AF69: 0.03419232847 | AG69: 0.04300451041 | AH69: 0.03177848153 | AI69: 0.04582281163 | AJ69: 0.02742185017 | AK69: 0.02435303542 | AL69: 0.040633619 | AM69: 0.02607860496 | AN69: 0.03182354396 | AO69: 0.0202590602 | AP69: 0.02143810544 | AQ69: 0.01533182881 | AR69: 0.02530687339 | AS69: 0.04376290535 | AT69: 0.05028016289 | AU69: 0.08788023437 | AV69: 0.03244595918 | AW69: 0.05197828465 | AX69: 0.0336836993 | AY69: 0.08211151603 | AZ69: 0.0293625717 | BA69: 0.03386775172 | BB69: 0.04092343765 | BC69: 0.03162720464 | BD69: 0.01809210481 | BE69: 0.02914685133 | BF69: 0.02508567414 | BG69: 1.202676584 | BH69: 0.197831791 | BI69: 0.252592227 | BJ69: 0.02515193712 | BK69: 0.02336491831 | BL69: 0.0197691757 | BM69: 0.05366888431 | BN69: 0.01479875272 | BO69: 0.02095650428 | BP69: 0.0178324035 | BQ69: 0.04003050813 | BR69: 0
A70: 087 | B70: Seguros, seguros sociales y fondos de pensiones, excepto la seguridad social | C70: 0.002137379529 | D70: 0.002437249884 | E70: 0.003096374972 | F70: 0.003523746481 | G70: 0.002240898194 | H70: 0.004467862164 | I70: 0.008582768325 | J70: 0.00521500687 | K70: 0.005806865623 | L70: 0.002771615305 | M70: 0.003688086222 | N70: 0.004734024481 | O70: 0.004207990658 | P70: 0.00544071212 | Q70: 0.004598479157 | R70: 0.005887660627 | S70: 0.004757878807 | T70: 0.00381038506 | U70: 0.005962940088 | V70: 0.008240945043 | W70: 0.007357201502 | X70: 0.01095150448 | Y70: 0.004359629421 | Z70: 0.009381110706 | AA70: 0.006590738456 | AB70: 0.006666834007 | AC70: 0.008743427804 | AD70: 0.007757049576 | AE70: 0.008752783108 | AF70: 0.009223412859 | AG70: 0.009010698034 | AH70: 0.006279384254 | AI70: 0.006419939519 | AJ70: 0.005707790232 | AK70: 0.003554460503 | AL70: 0.0103232224 | AM70: 0.008689799642 | AN70: 0.01039999831 | AO70: 0.0069478423 | AP70: 0.009607983203 | AQ70: 0.007150870886 | AR70: 0.009381116985 | AS70: 0.01261918852 | AT70: 0.007229738317 | AU70: 0.03419045217 | AV70: 0.0100071919 | AW70: 0.01906363949 | AX70: 0.02266556234 | AY70: 0.04976974973 | AZ70: 0.02936927761 | BA70: 0.02144726703 | BB70: 0.08353716041 | BC70: 0.005897203181 | BD70: 0.003940426921 | BE70: 0.009114458998 | BF70: 0.003467650782 | BG70: 0.007643667979 | BH70: 1.172965599 | BI70: 0.004979642753 | BJ70: 0.002580827255 | BK70: 0.01118520364 | BL70: 0.002631925413 | BM70: 0.008458534806 | BN70: 0.008065397699 | BO70: 0.004358213494 | BP70: 0.005675664263 | BQ70: 0.004388317373 | BR70: 0
A71: 088 | B71: Actividades auxiliares complementarias de las actividades de servicios financieros y de seguros | C71: 0.001627603956 | D71: 0.001860715098 | E71: 0.002510343587 | F71: 0.002360273635 | G71: 0.003033654624 | H71: 0.001549309689 | I71: 0.004390304714 | J71: 0.001775273902 | K71: 0.002848736779 | L71: 0.002528736766 | M71: 0.003286848351 | N71: 0.003232384345 | O71: 0.003193623121 | P71: 0.003669454334 | Q71: 0.003523505995 | R71: 0.002875116358 | S71: 0.006254656789 | T71: 0.004753640398 | U71: 0.00342106039 | V71: 0.004917697707 | W71: 0.003584103146 | X71: 0.004331560768 | Y71: 0.00280482992 | Z71: 0.00646458182 | AA71: 0.002984933605 | AB71: 0.004598351733 | AC71: 0.004708053394 | AD71: 0.005127446733 | AE71: 0.003965717574 | AF71: 0.0035577247 | AG71: 0.004438728654 | AH71: 0.003576051761 | AI71: 0.004123730547 | AJ71: 0.003436039976 | AK71: 0.003267119791 | AL71: 0.00390796866 | AM71: 0.003262065366 | AN71: 0.003820235717 | AO71: 0.002529144434 | AP71: 0.003128809899 | AQ71: 0.001912875392 | AR71: 0.003678076943 | AS71: 0.004382155289 | AT71: 0.003993389224 | AU71: 0.01000130742 | AV71: 0.004610148747 | AW71: 0.005081995325 | AX71: 0.005053034479 | AY71: 0.009422724699 | AZ71: 0.005136855004 | BA71: 0.004741776286 | BB71: 0.01102347808 | BC71: 0.003665300378 | BD71: 0.00215988436 | BE71: 0.006079676292 | BF71: 0.002299513401 | BG71: 0.04642810593 | BH71: 0.1256632815 | BI71: 1.068444494 | BJ71: 0.0036544593 | BK71: 0.003854487002 | BL71: 0.002827926802 | BM71: 0.005281819954 | BN71: 0.002179027821 | BO71: 0.002934945918 | BP71: 0.001957933371 | BQ71: 0.009268282853 | BR71: 0
A72: 089 | B72: Actividades inmobiliarias | C72: 0.006657182633 | D72: 0.00688597133 | E72: 0.01021614193 | F72: 0.00496565372 | G72: 0.0075590061 | H72: 0.01175681613 | I72: 0.01454147728 | J72: 0.007889822916 | K72: 0.01621806594 | L72: 0.01414542668 | M72: 0.01257250364 | N72: 0.01191056946 | O72: 0.01231299176 | P72: 0.01606042292 | Q72: 0.01213175531 | R72: 0.00782000736 | S72: 0.01784120026 | T72: 0.01409309159 | U72: 0.01181358247 | V72: 0.02897752783 | W72: 0.05551203059 | X72: 0.03113099311 | Y72: 0.01641592588 | Z72: 0.02313480429 | AA72: 0.0119451811 | AB72: 0.01688983928 | AC72: 0.01911338996 | AD72: 0.02561220623 | AE72: 0.02140414273 | AF72: 0.0266479951 | AG72: 0.02020731321 | AH72: 0.02533629523 | AI72: 0.03039662214 | AJ72: 0.0200155853 | AK72: 0.01544294046 | AL72: 0.01348427951 | AM72: 0.01209487599 | AN72: 0.01613129125 | AO72: 0.01097148778 | AP72: 0.0156692198 | AQ72: 0.08647737121 | AR72: 0.1051206779 | AS72: 0.01451361312 | AT72: 0.01732601876 | AU72: 0.02238191733 | AV72: 0.05794667406 | AW72: 0.04828953129 | AX72: 0.01611165033 | AY72: 0.02616769768 | AZ72: 0.03172080053 | BA72: 0.07043857497 | BB72: 0.04577464143 | BC72: 0.04034215408 | BD72: 0.05178366545 | BE72: 0.03933381911 | BF72: 0.03225555235 | BG72: 0.06199526499 | BH72: 0.01968648478 | BI72: 0.02182305772 | BJ72: 1.008175326 | BK72: 0.0249130681 | BL72: 0.04643033361 | BM72: 0.01923917887 | BN72: 0.02709194411 | BO72: 0.01289753 | BP72: 0.04246805938 | BQ72: 0.04214935502 | BR72: 0
A73: 090-093 | B73: Actividades profesionales, científicas y técnicas | C73: 0.01089737842 | D73: 0.00875209921 | E73: 0.02002469041 | F73: 0.007424970543 | G73: 0.009562394932 | H73: 0.02132626343 | I73: 0.03960104544 | J73: 0.02386232464 | K73: 0.02843463749 | L73: 0.02671587054 | M73: 0.03634091688 | N73: 0.02898162297 | O73: 0.02671231969 | P73: 0.02518930679 | Q73: 0.01582269966 | R73: 0.01365805315 | S73: 0.02564869526 | T73: 0.0304867437 | U73: 0.02089457337 | V73: 0.03230304822 | W73: 0.03145253672 | X73: 0.03326465001 | Y73: 0.01880663646 | Z73: 0.03053074739 | AA73: 0.02504527262 | AB73: 0.02451040427 | AC73: 0.0378863891 | AD73: 0.0317467506 | AE73: 0.01607590094 | AF73: 0.02987446977 | AG73: 0.02689914251 | AH73: 0.02680399646 | AI73: 0.03151861138 | AJ73: 0.02340133101 | AK73: 0.01406330501 | AL73: 0.05048680748 | AM73: 0.03248744992 | AN73: 0.0696415673 | AO73: 0.02851093483 | AP73: 0.05372438481 | AQ73: 0.008758146933 | AR73: 0.3842708853 | AS73: 0.03539627081 | AT73: 0.02683174777 | AU73: 0.03244494454 | AV73: 0.03796875934 | AW73: 0.02635973773 | AX73: 0.02472739574 | AY73: 0.06094909297 | AZ73: 0.03419486184 | BA73: 0.04004044489 | BB73: 0.04356515999 | BC73: 0.05697690429 | BD73: 0.02099389315 | BE73: 0.0865148225 | BF73: 0.07199301225 | BG73: 0.06636561834 | BH73: 0.04544545642 | BI73: 0.03357105359 | BJ73: 0.01530813257 | BK73: 1.098400677 | BL73: 0.04300635297 | BM73: 0.1118164103 | BN73: 0.0881285867 | BO73: 0.03107919675 | BP73: 0.0649136859 | BQ73: 0.01965064909 | BR73: 0
A74: 094-097 | B74: Actividades de servicios administrativos y de apoyo | C74: 0.01677322424 | D74: 0.01339479586 | E74: 0.02087033664 | F74: 0.008447548418 | G74: 0.02479841094 | H74: 0.01917900732 | I74: 0.06365912782 | J74: 0.02492324951 | K74: 0.1118564181 | L74: 0.06333922414 | M74: 0.03578770823 | N74: 0.04121496432 | O74: 0.02910337537 | P74: 0.0393343239 | Q74: 0.02667748966 | R74: 0.02887240984 | S74: 0.08120298526 | T74: 0.0379106157 | U74: 0.04069011306 | V74: 0.06960501855 | W74: 0.08625702974 | X74: 0.06308825975 | Y74: 0.03912834325 | Z74: 0.09318939404 | AA74: 0.04256689881 | AB74: 0.04810318194 | AC74: 0.07364476346 | AD74: 0.05785447511 | AE74: 0.02824657553 | AF74: 0.03494395057 | AG74: 0.04523727204 | AH74: 0.04231460002 | AI74: 0.06358138703 | AJ74: 0.04539350119 | AK74: 0.02290615759 | AL74: 0.0344268945 | AM74: 0.03897464993 | AN74: 0.05578920621 | AO74: 0.03235822713 | AP74: 0.07958557765 | AQ74: 0.01433828269 | AR74: 0.1071888705 | AS74: 0.02706354187 | AT74: 0.04429174692 | AU74: 0.02578442548 | AV74: 0.07200304511 | AW74: 0.03095567438 | AX74: 0.02419905513 | AY74: 0.09308205728 | AZ74: 0.07329703528 | BA74: 0.07933686549 | BB74: 0.08925998129 | BC74: 0.1540589966 | BD74: 0.02950135719 | BE74: 0.137997853 | BF74: 0.1583275783 | BG74: 0.08628465488 | BH74: 0.04570413595 | BI74: 0.03241278183 | BJ74: 0.03006632178 | BK74: 0.08273117146 | BL74: 1.061576971 | BM74: 0.09091598176 | BN74: 0.03974734483 | BO74: 0.04800081279 | BP74: 0.08921904117 | BQ74: 0.02587950534 | BR74: 0
A75: 098-099 | B75: Administración pública y defensa; planes de seguridad social de afiliación obligatoria | C75: 0.001793720133 | D75: 0.001316409292 | E75: 0.002183059881 | F75: 0.0008729736976 | G75: 0.001976589418 | H75: 0.004085107579 | I75: 0.003457407651 | J75: 0.003448601229 | K75: 0.007241244642 | L75: 0.002042287382 | M75: 0.002983758917 | N75: 0.003216085831 | O75: 0.003238471217 | P75: 0.003599530427 | Q75: 0.002252030695 | R75: 0.002338201806 | S75: 0.005630073994 | T75: 0.003998166677 | U75: 0.003745920029 | V75: 0.003504817862 | W75: 0.003795725595 | X75: 0.004032206512 | Y75: 0.003588253571 | Z75: 0.01228481366 | AA75: 0.002579903319 | AB75: 0.004414611637 | AC75: 0.005257517204 | AD75: 0.005766231962 | AE75: 0.00219430826 | AF75: 0.002997391111 | AG75: 0.003486667386 | AH75: 0.0029402494 | AI75: 0.005952822049 | AJ75: 0.004659753343 | AK75: 0.00209299743 | AL75: 0.003097490702 | AM75: 0.003077323675 | AN75: 0.003672282262 | AO75: 0.002140373989 | AP75: 0.004051089787 | AQ75: 0.001992613304 | AR75: 0.01413265033 | AS75: 0.002234726866 | AT75: 0.003233392474 | AU75: 0.002413565602 | AV75: 0.004730465051 | AW75: 0.003407254895 | AX75: 0.006351723705 | AY75: 0.005468984421 | AZ75: 0.015719607 | BA75: 0.008930682658 | BB75: 0.008158930731 | BC75: 0.004823412696 | BD75: 0.002351558698 | BE75: 0.005930523839 | BF75: 0.004692920629 | BG75: 0.003704480956 | BH75: 0.002226301639 | BI75: 0.001693651642 | BJ75: 0.0009229212735 | BK75: 0.005363729192 | BL75: 0.002803691346 | BM75: 1.005907829 | BN75: 0.003876765137 | BO75: 0.002432536453 | BP75: 0.004000740232 | BQ75: 0.001673708177 | BR75: 0
A76: 100-101 | B76: Educación | C76: 0.001099543435 | D76: 0.0009283123123 | E76: 0.001695177319 | F76: 0.0007620086356 | G76: 0.0009171432831 | H76: 0.001373878237 | I76: 0.002971022796 | J76: 0.005236535215 | K76: 0.001753664172 | L76: 0.001489343794 | M76: 0.00235578416 | N76: 0.002272726766 | O76: 0.002123270002 | P76: 0.002369512611 | Q76: 0.001499182833 | R76: 0.001600094597 | S76: 0.002977168112 | T76: 0.002445569642 | U76: 0.002181544831 | V76: 0.002390542179 | W76: 0.00245673116 | X76: 0.003129940481 | Y76: 0.002135046051 | Z76: 0.008235503582 | AA76: 0.001948050981 | AB76: 0.002422698014 | AC76: 0.003383828843 | AD76: 0.002965777937 | AE76: 0.001744725877 | AF76: 0.002972098039 | AG76: 0.00236039341 | AH76: 0.002039982234 | AI76: 0.002320592282 | AJ76: 0.002976589547 | AK76: 0.001332940182 | AL76: 0.004328592722 | AM76: 0.00429952868 | AN76: 0.008023877058 | AO76: 0.005214080915 | AP76: 0.007596486068 | AQ76: 0.001636157337 | AR76: 0.01716757786 | AS76: 0.001457684988 | AT76: 0.001898880502 | AU76: 0.001772760845 | AV76: 0.002596994501 | AW76: 0.001914603339 | AX76: 0.002274845911 | AY76: 0.003370848316 | AZ76: 0.00564848601 | BA76: 0.005021040197 | BB76: 0.006464986113 | BC76: 0.003284926682 | BD76: 0.001558478546 | BE76: 0.004839476666 | BF76: 0.003484087454 | BG76: 0.007366339866 | BH76: 0.002862274731 | BI76: 0.003109753836 | BJ76: 0.001492550163 | BK76: 0.004648897429 | BL76: 0.00233770665 | BM76: 0.01420013387 | BN76: 1.014224373 | BO76: 0.002461233228 | BP76: 0.004284965343 | BQ76: 0.001325442112 | BR76: 0
A77: 102-103 | B77: Actividades de atención de la salud humana y de servicios sociales | C77: 6.566491204e-05 | D77: 7.033148649e-05 | E77: 0.0001039039691 | F77: 3.536222715e-05 | G77: 6.937304851e-05 | H77: 6.36613172e-05 | I77: 9.125987771e-05 | J77: 5.734689615e-05 | K77: 8.777778718e-05 | L77: 7.671991164e-05 | M77: 0.0001322422941 | N77: 0.0001015973543 | O77: 0.0001259835502 | P77: 0.0001625903662 | Q77: 0.0001143846479 | R77: 6.435797533e-05 | S77: 0.0001760449325 | T77: 0.0001522445134 | U77: 0.0001133996181 | V77: 0.0001939143978 | W77: 0.0002503143039 | X77: 0.0001996481122 | Y77: 0.000189450747 | Z77: 0.0001934464405 | AA77: 9.796744876e-05 | AB77: 0.0001477030682 | AC77: 0.0001525619861 | AD77: 0.0002000779648 | AE77: 0.0001244684345 | AF77: 0.0001808647574 | AG77: 0.000183879116 | AH77: 0.0001879464123 | AI77: 0.0002434272256 | AJ77: 0.0001723930674 | AK77: 0.0001030335472 | AL77: 0.0001042962579 | AM77: 8.192995555e-05 | AN77: 0.0001301844541 | AO77: 7.64378989e-05 | AP77: 0.0001217861206 | AQ77: 0.0002942122557 | AR77: 0.0007032290196 | AS77: 0.0001162939697 | AT77: 0.0001442493958 | AU77: 0.0001420186907 | AV77: 0.0002258935241 | AW77: 0.0002444914728 | AX77: 0.0001074376536 | AY77: 0.0001606776855 | AZ77: 0.0001624206905 | BA77: 0.0002755361739 | BB77: 0.0001990002039 | BC77: 0.0002039694432 | BD77: 0.0002345954815 | BE77: 0.0002135022259 | BF77: 0.0001876641895 | BG77: 0.0002570476093 | BH77: 0.0001050635943 | BI77: 0.0001007061693 | BJ77: 3.978704816e-05 | BK77: 0.000173671262 | BL77: 0.0001870220762 | BM77: 0.0005566146436 | BN77: 0.001078858838 | BO77: 1.423220119 | BP77: 0.000199881665 | BQ77: 0.0001667146809 | BR77: 0
A78: 104-106 | B78: Actividades artísticas, de entretenimiento y recreación | C78: 0.0002793824665 | D78: 0.0002141019581 | E78: 0.0004252442149 | F78: 0.0001720525248 | G78: 0.0004616722145 | H78: 0.0005435981259 | I78: 0.0008032270745 | J78: 0.0004429278317 | K78: 0.0005600966006 | L78: 0.0009528309822 | M78: 0.0006064827698 | N78: 0.0006534723801 | O78: 0.0005394243612 | P78: 0.0006038537284 | Q78: 0.0004531868143 | R78: 0.0005111278784 | S78: 0.0006767349871 | T78: 0.0005570832411 | U78: 0.00045959268 | V78: 0.0005758315452 | W78: 0.0006127643917 | X78: 0.0006091690494 | Y78: 0.0004487840366 | Z78: 0.001574539633 | AA78: 0.0006016138701 | AB78: 0.0006379567241 | AC78: 0.001000652185 | AD78: 0.0007368173431 | AE78: 0.000448982141 | AF78: 0.0005266143429 | AG78: 0.0007050981247 | AH78: 0.001868656319 | AI78: 0.0008348040037 | AJ78: 0.0007527738584 | AK78: 0.0005963324938 | AL78: 0.000711594841 | AM78: 0.0005994409904 | AN78: 0.0008996614866 | AO78: 0.000733493229 | AP78: 0.0008366084403 | AQ78: 0.0003142118873 | AR78: 0.002901879564 | AS78: 0.0005130716188 | AT78: 0.000505745667 | AU78: 0.0005530762055 | AV78: 0.0006218338292 | AW78: 0.0008166651757 | AX78: 0.0006502859697 | AY78: 0.002397225236 | AZ78: 0.001616978097 | BA78: 0.0009999343262 | BB78: 0.001374546586 | BC78: 0.001813248048 | BD78: 0.009253526878 | BE78: 0.02179932506 | BF78: 0.00125305902 | BG78: 0.00304598762 | BH78: 0.001042245257 | BI78: 0.001165799183 | BJ78: 0.0008298396063 | BK78: 0.001026010256 | BL78: 0.0006156936355 | BM78: 0.007426979952 | BN78: 0.002237911934 | BO78: 0.0007555627775 | BP78: 1.05502688 | BQ78: 0.05750501223 | BR78: 0
A79: 107-108 | B79: Otras actividades de servicios | C79: 0.002326939053 | D79: 0.001629390283 | E79: 0.002197471957 | F79: 0.00164609366 | G79: 0.004775224056 | H79: 0.006225124884 | I79: 0.008933563576 | J79: 0.003381828234 | K79: 0.003127424907 | L79: 0.01189897707 | M79: 0.003893346281 | N79: 0.005659637651 | O79: 0.00348033512 | P79: 0.004387070127 | Q79: 0.00315222552 | R79: 0.005188260837 | S79: 0.003316882112 | T79: 0.002656667208 | U79: 0.002455998245 | V79: 0.002823283723 | W79: 0.002207851363 | X79: 0.00275021159 | Y79: 0.002107594538 | Z79: 0.006029406145 | AA79: 0.006625900981 | AB79: 0.005313518241 | AC79: 0.008297507938 | AD79: 0.005595285124 | AE79: 0.00380961372 | AF79: 0.002791124872 | AG79: 0.005130919803 | AH79: 0.0199104802 | AI79: 0.006794572685 | AJ79: 0.005516677759 | AK79: 0.003004032438 | AL79: 0.005480080106 | AM79: 0.005629018675 | AN79: 0.007226042125 | AO79: 0.009172051485 | AP79: 0.006715172912 | AQ79: 0.001419284144 | AR79: 0.005209690691 | AS79: 0.004256304806 | AT79: 0.003372863788 | AU79: 0.004601741079 | AV79: 0.00256252172 | AW79: 0.005764715462 | AX79: 0.006532264932 | AY79: 0.03396488408 | AZ79: 0.01622149101 | BA79: 0.009169409547 | BB79: 0.01019988395 | BC79: 0.005457090472 | BD79: 0.002457067893 | BE79: 0.005772536202 | BF79: 0.003258585072 | BG79: 0.02554948712 | BH79: 0.009024993468 | BI79: 0.007687703884 | BJ79: 0.0009400946896 | BK79: 0.002802785071 | BL79: 0.002444849182 | BM79: 0.009165193873 | BN79: 0.002476712528 | BO79: 0.004227449348 | BP79: 0.006061726279 | BQ79: 1.118910584 | BR79: 0
A80: 109 | B80: Actividades de los hogares individuales en calidad de empleadores | C80: 0 | D80: 0 | E80: 0 | F80: 0 | G80: 0 | H80: 0 | I80: 0 | J80: 0 | K80: 0 | L80: 0 | M80: 0 | N80: 0 | O80: 0 | P80: 0 | Q80: 0 | R80: 0 | S80: 0 | T80: 0 | U80: 0 | V80: 0 | W80: 0 | X80: 0 | Y80: 0 | Z80: 0 | AA80: 0 | AB80: 0 | AC80: 0 | AD80: 0 | AE80: 0 | AF80: 0 | AG80: 0 | AH80: 0 | AI80: 0 | AJ80: 0 | AK80: 0 | AL80: 0 | AM80: 0 | AN80: 0 | AO80: 0 | AP80: 0 | AQ80: 0 | AR80: 0 | AS80: 0 | AT80: 0 | AU80: 0 | AV80: 0 | AW80: 0 | AX80: 0 | AY80: 0 | AZ80: 0 | BA80: 0 | BB80: 0 | BC80: 0 | BD80: 0 | BE80: 0 | BF80: 0 | BG80: 0 | BH80: 0 | BI80: 0 | BJ80: 0 | BK80: 0 | BL80: 0 | BM80: 0 | BN80: 0 | BO80: 0 | BP80: 0 | BQ80: 0 | BR80: 1
A83: Fuente: DANE, Cuentas Nacionales
A84: Actualizado el 16 de septiembre de 2020

Sheet Cuadro 3
A3: Matriz Insumo Producto (MIP), actividad por actividad, basada en supuesto de estructura fija de ventas de productos - Matriz de multiplicadores ambientales y económicos
A5: Matriz de mutliplicadores
A6: Año 2017
A7: Base 2015
A9: Agrupaciones de actividades cuentas nacionales, según CIIU Rev. 4 A.C. | B9: Concepto | C9: Consumo intermedio por agrupaciones de actividades económicas cuentas nacionales, según CIIU Rev. 4 A.C.
C10: A0101 | D10: 003 | E10: A0102 | F10: A02 | G10: A03 | H10: 17 | I10: 018 | J10: 019 | K10: 020 | L10: 021-022 | M10: 023-024-025 | N10: 026 | O10: 027 | P10: 028-032-035 | Q10: 029 | R10: 030-031 | S10: 033 | T10: 034 | U10: 036 | V10: 037 | W10: 038 | X10: 039 | Y10: 040 | Z10: 041 | AA10: 043-044 | AB10: 045-046 | AC10: 047 | AD10: 048 | AE10: 049 | AF10: 050-051 | AG10: 052 | AH10: 053-057 | AI10: 054 | AJ10: 055 | AK10: 056 | AL10: 058-059-060 | AM10: 061 | AN10: 062 | AO10: 063 | AP10: 064 | AQ10: 065 | AR10: 066 | AS10: 067 | AT10: 068 | AU10: 069 | AV10: 070 | AW10: 071 | AX10: 072-074 | AY10: 073 | AZ10: 075 | BA10: 076 | BB10: 077 | BC10: 078 | BD10: 079-080 | BE10: 081-082-084 | BF10: 083 | BG10: 085-086 | BH10: 087 | BI10: 088 | BJ10: 089 | BK10: 090-093 | BL10: 094-097 | BM10: 098-099 | BN10: 100-101 | BO10: 102-103 | BP10: 104-106 | BQ10: 107-108 | BR10: 109
C11: Agricultura y actividades de servicios conexas (excepto cultivo permanente de café) | D11: Cultivo permanente de café | E11: Ganadería | F11: Silvicultura y extracción de madera | G11: Pesca y acuicultura | H11: Extracción de carbón de piedra y lignito | I11: Extracción de petróleo crudo y gas natural | J11: Extracción de minerales metalíferos | K11: Extracción de otras minas y canteras | L11: Actividades de apoyo para actividades de explotación de minas y canteras | M11: Procesamiento y conservación de carne y productos cárnicos de bovinos, bufalinos, porcinos y otras carnes n.c.p.; procesamiento y conservación de carne y productos cárnicos de aves de corral y procesamiento y conservación de pescados, crustáceos y moluscos | N11: Elaboración de aceites y grasas de origen vegetal y animal | O11: Elaboración de productos lácteos | P11: Elaboración de productos de molinería, almidones y productos derivados del almidón; elaboración de productos de panadería; elaboración de macarrones, fideos, alcuzcuz, y productos farináceos similares y elaboración de alimentos preparados para animales | Q11: Elaboración de productos de café | R11: Elaboración de azúcar y elaboración de panela | S11: Elaboración de cacao, chocolate y productos de confitería | T11: Procesamiento y conservación de frutas, legumbres, hortalizas y tubérculos; elaboración de otros productos alimenticios (platos preparados y conservados mediante enlatado o congelado, elaboración de sopas y caldos en estado sólidos, polvo o instantáneas entre otros) | U11: Elaboración de bebidas (incluido el hielo) y elaboración de productos de tabaco | V11: Preparación, hilatura, tejeduría y acabado de productos textiles; fabricación de otros productos textiles | W11: Confección de prendas de vestir | X11: Curtido y recurtido de cueros; fabricación de calzado; fabricación de artículos de viaje, maletas, bolsos de mano y artículos similares, y fabricación de artículos de talabartería y guarnicionería; adobo y teñido de pieles | Y11: Transformación de la madera y fabricación de productos de madera y de corcho, excepto muebles; fabricación de artículos de cestería y espartería | Z11: Fabricación de papel, cartón y productos de papel y de cartón; actividades de impresión; producción de copias a partir de grabaciones originales (Copia a partir de un original en CD, DVD, Bluray) | AA11: Coquización, fabricación de productos de la refinación del petróleo y actividades de mezcla de combustibles | AB11: Fabricación de sustancias y productos químicos; | AC11: Fabricación de productos farmacéuticos, sustancias químicas medicinales y productos botánicos de uso farmacéutico | AD11: Fabricación de productos de caucho y de plástico | AE11: Fabricación de otros productos minerales no metálicos | AF11: Fabricación de productos metalúrgicos básicos; fabricación de productos elaborados de metal, excepto maquinaria y equipo | AG11: Fabricación de aparatos y equipo eléctrico; fabricación de productos informáticos, electrónicos y ópticos | AH11: Fabricación de maquinaria y equipo n.c.p.; instalación, mantenimiento y reparación especializado de maquinaria y equipo | AI11: Fabricación de vehículos automotores, remolques y semirremolques; fabricación de otros tipos de equipo de transporte | AJ11: Fabricación de muebles, colchones y somieres | AK11: Otras industrias manufactureras | AL11: Generación de energía eléctrica; transmisión de energía eléctrica y distribución y comercialización de energía eléctrica | AM11: Producción de gas; distribución de combustibles gaseosos por tuberías; suministro de vapor y aire acondicionado | AN11: Captación, tratamiento y distribución de agua | AO11: Evacuación y tratamiento de aguas residuales | AP11: Recolección, tratamiento y disposición de desechos | AQ11: Recuperación de materiales (reciclaje) | AR11: Actividades de saneamiento ambiental y otros servicios de gestión de desechos | AS11: Construcción de edificaciones residenciales y no residenciales | AT11: Construcción de carreteras y vías de ferrocarril, de proyectos de servicio público y de otras obras de ingeniería civil | AU11: Actividades especializadas para la construcción de edificaciones y obras de ingeniería civil (Alquiler de maquinaría y equipo de construcción con operadores) | AV11: Comercio al por mayor y en comisión o por contrata; comercio al por menor (incluso el comercio al por menor de combustibles); comercio de vehículos automotores y motocicletas, sus partes, piezas y accesorios | AW11: Mantenimiento y reparación de vehículos automotores y motocicletas | AX11: Transporte terrestre y transporte por tuberías | AY11: Transporte acuático | AZ11: Transporte aéreo | BA11: Almacenamiento y actividades complementarias al transporte | BB11: Actividades de correo y de servicios de mensajería | BC11: Alojamiento | BD11: Actividades de servicios de comidas y bebidas | BE11: Actividades de edición (libros, periódicos, otros); actividades cinematográficas, de video y producción de programas de televisión, grabación de sonido y edición de música; Actividades de programación, transmisión y/o difusión; desarrollo de sistemas informáticos (planificación, análisis, diseño, programación, pruebas), consultoría informática y actividades relacionadas; edición de software; actividades de servicios de información. | BF11: Telecomunicaciones | BG11: Actividades de servicios financieros de intermediación; servicios financieros de inversión, custodia y otros servicios conexos | BH11: Seguros, seguros sociales y fondos de pensiones, excepto la seguridad social | BI11: Actividades auxiliares complementarias de las actividades de servicios financieros y de seguros | BJ11: Actividades inmobiliarias | BK11: Actividades profesionales, científicas y técnicas | BL11: Actividades de servicios administrativos y de apoyo | BM11: Administración pública y defensa; planes de seguridad social de afiliación obligatoria | BN11: Educación | BO11: Actividades de atención de la salud humana y de servicios sociales | BP11: Actividades artísticas, de entretenimiento y recreación | BQ11: Otras actividades de servicios | BR11: Actividades de los hogares individuales en calidad de empleadores
B13: Dióxido de carbono (CO2) | C13: 0.05444463395 | D13: 0.04224637873 | E13: 0.06134713196 | F13: 0.02750949371 | G13: 0.05188841208 | H13: 0.08366985889 | I13: 0.17620766 | J13: 0.07162984223 | K13: 0.1061728377 | L13: 0.05011424144 | M13: 0.06453425617 | N13: 0.08071793164 | O13: 0.07954933271 | P13: 0.09952017442 | Q13: 0.04813769639 | R13: 1.75996016 | S13: 0.2415649093 | T13: 0.09675442469 | U13: 0.161634967 | V13: 0.111419365 | W13: 0.06060255036 | X13: 0.07157371137 | Y13: 0.05176765283 | Z13: 0.1448270795 | AA13: 0.9713369572 | AB13: 0.1342972378 | AC13: 0.1174749924 | AD13: 0.1445071168 | AE13: 0.2078057001 | AF13: 0.1100949007 | AG13: 0.08564135203 | AH13: 0.08299044095 | AI13: 0.05339354255 | AJ13: 0.06849898665 | AK13: 0.06866786263 | AL13: 0.4993202372 | AM13: 0.1401669896 | AN13: 0.08290682416 | AO13: 0.04928505974 | AP13: 0.1067982245 | AQ13: 0.03501655185 | AR13: 0.05755990885 | AS13: 0.06038100072 | AT13: 0.08744217286 | AU13: 0.07477010126 | AV13: 0.0479599932 | AW13: 0.0560219218 | AX13: 0.2304880972 | AY13: 0.2508886532 | AZ13: 0.2729874149 | BA13: 0.04206637059 | BB13: 0.08770353678 | BC13: 0.06594492104 | BD13: 0.04634457999 | BE13: 0.02516205339 | BF13: 0.02043028927 | BG13: 0.01951460585 | BH13: 0.0110590827 | BI13: 0.01253357081 | BJ13: 0.00483259869 | BK13: 0.01846843989 | BL13: 0.01524737091 | BM13: 0.09932012101 | BN13: 0.01915763095 | BO13: 0.02529147225 | BP13: 0.02241826326 | BQ13: 0.03023948533 | BR13: 0
B14: Metano (CH4) | C14: 0.001903441614 | D14: 0.001495865365 | E14: 0.002330414586 | F14: 0.001168332531 | G14: 0.001843941587 | H14: 0.2584277446 | I14: 0.08863730776 | J14: 0.003972230259 | K14: 0.007074578228 | L14: 0.003063444031 | M14: 0.002300929421 | N14: 0.003754614573 | O14: 0.003023212855 | P14: 0.004065510325 | Q14: 0.001858063147 | R14: 0.01519553148 | S14: 0.005625709878 | T14: 0.002535208739 | U14: 0.005021337889 | V14: 0.006885177308 | W14: 0.003073790917 | X14: 0.003219347796 | Y14: 0.002076352716 | Z14: 0.007836984084 | AA14: 0.04451471793 | AB14: 0.005144283723 | AC14: 0.007511501821 | AD14: 0.00599052888 | AE14: 0.01149121946 | AF14: 0.005560954158 | AG14: 0.004368280879 | AH14: 0.006871819045 | AI14: 0.002540112449 | AJ14: 0.003829614516 | AK14: 0.004630916815 | AL14: 0.009634257082 | AM14: 0.2059950979 | AN14: 0.002498097631 | AO14: 0.001377803324 | AP14: 0.003286156751 | AQ14: 0.001466627321 | AR14: 0.00262722973 | AS14: 0.002922353602 | AT14: 0.004360695955 | AU14: 0.003406297214 | AV14: 0.002034421618 | AW14: 0.002474075377 | AX14: 0.009125464842 | AY14: 0.007345651438 | AZ14: 0.01095596041 | BA14: 0.001850317838 | BB14: 0.003555640238 | BC14: 0.003143097445 | BD14: 0.001480511953 | BE14: 0.001097915594 | BF14: 0.0008872545323 | BG14: 0.0009255890831 | BH14: 0.0004639498362 | BI14: 0.0005584788095 | BJ14: 0.0002060555008 | BK14: 0.000808885017 | BL14: 0.0005834341095 | BM14: 0.001663737666 | BN14: 0.001229996107 | BO14: 0.001212116992 | BP14: 0.0008194757987 | BQ14: 0.001393739963 | BR14: 0
B15: Oxido nitroso (N2O) | C15: 0.001446016514 | D15: 0.0008044647077 | E15: 0.001533597639 | F15: 0.0006079532817 | G15: 0.001853566114 | H15: 0.002147483091 | I15: 0.004089022913 | J15: 0.001106076344 | K15: 0.002223853318 | L15: 0.0007321743534 | M15: 0.001433716791 | N15: 0.001194016867 | O15: 0.0015503089 | P15: 0.001534253725 | Q15: 0.0008689259879 | R15: 0.0168099111 | S15: 0.002601859862 | T15: 0.001298650286 | U15: 0.001838851889 | V15: 0.001508617019 | W15: 0.001000234085 | X15: 0.001470915006 | Y15: 0.0008974644533 | Z15: 0.001514760053 | AA15: 0.02598813003 | AB15: 0.002010354267 | AC15: 0.001523608231 | AD15: 0.002100284305 | AE15: 0.003568763222 | AF15: 0.001041680054 | AG15: 0.001186518696 | AH15: 0.0007700251266 | AI15: 0.0009487076899 | AJ15: 0.0009357746582 | AK15: 0.000719077767 | AL15: 0.00341607342 | AM15: 0.002902450189 | AN15: 0.001654937692 | AO15: 0.0006347336831 | AP15: 0.002103055471 | AQ15: 0.0008020501311 | AR15: 0.001257367312 | AS15: 0.001175779287 | AT15: 0.001659269342 | AU15: 0.001705594018 | AV15: 0.001099473176 | AW15: 0.001091357062 | AX15: 0.006621987094 | AY15: 0.006377546704 | AZ15: 0.006257766686 | BA15: 0.001115660677 | BB15: 0.002091227141 | BC15: 0.001076940958 | BD15: 0.000812078711 | BE15: 0.0006374083334 | BF15: 0.0004365430612 | BG15: 0.0003686677877 | BH15: 0.0003196141184 | BI15: 0.0002771841583 | BJ15: 0.0001113826727 | BK15: 0.0005849948143 | BL15: 0.0003450350381 | BM15: 0.002688147449 | BN15: 0.0002900156657 | BO15: 0.0005537015735 | BP15: 0.0003797667124 | BQ15: 0.0005877960553 | BR15: 0
B16: Monóxido de carbono (CO) | C16: 0.0001730315942 | D16: 8.653478348e-05 | E16: 0.000179584267 | F16: 6.874403023e-05 | G16: 0.0002283934131 | H16: 0.0002622479129 | I16: 0.0004946890907 | J16: 0.000131826157 | K16: 0.0002784805886 | L16: 8.548012785e-05 | M16: 0.0001657740899 | N16: 0.0001323478405 | O16: 0.0001668862773 | P16: 0.0001527277839 | Q16: 9.443997844e-05 | R16: 0.0002789124332 | S16: 0.0001374890817 | T16: 9.970408731e-05 | U16: 0.000123024017 | V16: 0.0001709702513 | W16: 0.0001153870848 | X16: 0.0001706319071 | Y16: 9.996341383e-05 | Z16: 0.0001577377124 | AA16: 0.003189732059 | AB16: 0.0002072035939 | AC16: 0.0001638435791 | AD16: 0.0002148361937 | AE16: 0.0004292799048 | AF16: 0.000109255412 | AG16: 0.0001300905636 | AH16: 8.46429113e-05 | AI16: 0.0001080580422 | AJ16: 0.000104783685 | AK16: 7.904380002e-05 | AL16: 0.0002899062464 | AM16: 0.0003540438205 | AN16: 0.0001940136306 | AO16: 6.741876691e-05 | AP16: 0.0002440348077 | AQ16: 9.661142829e-05 | AR16: 0.0001444112114 | AS16: 0.0001391312439 | AT16: 0.0001969061 | AU16: 0.000207023183 | AV16: 0.0001302437295 | AW16: 0.0001260945554 | AX16: 0.0008198632538 | AY16: 0.0005734165485 | AZ16: 0.0007506230016 | BA16: 0.0001354142162 | BB16: 0.000252338717 | BC16: 0.0001070189007 | BD16: 7.978286382e-05 | BE16: 7.639579429e-05 | BF16: 5.113153262e-05 | BG16: 4.302090746e-05 | BH16: 3.918032561e-05 | BI16: 3.328919579e-05 | BJ16: 1.329833049e-05 | BK16: 7.20187964e-05 | BL16: 4.030661033e-05 | BM16: 0.0001094434518 | BN16: 3.340753294e-05 | BO16: 6.537058881e-05 | BP16: 4.226393938e-05 | BQ16: 6.651984128e-05 | BR16: 0
B17: Óxidos de nitrógeno (NOX) | C17: 0.0003789017604 | D17: 0.0002234320865 | E17: 0.0003728241486 | F17: 0.0002133535034 | G17: 0.0003483587625 | H17: 0.0006623488196 | I17: 0.001390233894 | J17: 0.0004329087128 | K17: 0.000635767608 | L17: 0.0002626691363 | M17: 0.000386061792 | N17: 0.0004369765961 | O17: 0.0003889533265 | P17: 0.0004323331433 | Q17: 0.0002555875287 | R17: 0.0008349544591 | S17: 0.0004525289378 | T17: 0.0002807099823 | U17: 0.0004037836359 | V17: 0.0005412284962 | W17: 0.0003339539431 | X17: 0.0004428097816 | Y17: 0.0003000349968 | Z17: 0.0006718913717 | AA17: 0.007139011366 | AB17: 0.0006555912776 | AC17: 0.000546874475 | AD17: 0.0006649383453 | AE17: 0.001314327479 | AF17: 0.000530930014 | AG17: 0.0004483617927 | AH17: 0.0003810158733 | AI17: 0.0003175414879 | AJ17: 0.0003591631087 | AK17: 0.0003227574169 | AL17: 0.002085742403 | AM17: 0.0009384830851 | AN17: 0.0004651955106 | AO17: 0.0002459801728 | AP17: 0.0006797835659 | AQ17: 0.000247080322 | AR17: 0.00034053334 | AS17: 0.0003758322642 | AT17: 0.000552481788 | AU17: 0.0005139896868 | AV17: 0.000327723437 | AW17: 0.0003824408708 | AX17: 0.001910092721 | AY17: 0.00408936129 | AZ17: 0.002249516971 | BA17: 0.0003149274051 | BB17: 0.0006882959787 | BC17: 0.0002905823455 | BD17: 0.0002014811529 | BE17: 0.0001616155472 | BF17: 0.0001289571068 | BG17: 0.0001101657647 | BH17: 7.38258395e-05 | BI17: 7.419207253e-05 | BJ17: 3.134560795e-05 | BK17: 0.0001326334188 | BL17: 9.29544425e-05 | BM17: 0.0004625045 | BN17: 9.253169313e-05 | BO17: 0.0001459518907 | BP17: 0.0001224832028 | BQ17: 0.000165279386 | BR17: 0
B18: Compuestos Orgánicos Volátiles Diferentes al Metano (COVDM) | C18: 0.0004007099556 | D18: 0.0002092715775 | E18: 0.0003982438548 | F18: 0.0002003350191 | G18: 0.0004513290456 | H18: 0.000660712289 | I18: 0.001360094632 | J18: 0.0003360660146 | K18: 0.0005920550701 | L18: 0.000190810662 | M18: 0.0003732780974 | N18: 0.0003129746004 | O18: 0.0003808296747 | P18: 0.0003682809851 | Q18: 0.0002251248669 | R18: 0.001054778046 | S18: 0.0003621544772 | T18: 0.000247697168 | U18: 0.0003173619391 | V18: 0.0003941986857 | W18: 0.0002705321281 | X18: 0.0004151179499 | Y18: 0.0002486786803 | Z18: 0.0003653107871 | AA18: 0.007275148524 | AB18: 0.0005090036816 | AC18: 0.0003917131729 | AD18: 0.0005142029063 | AE18: 0.001079057546 | AF18: 0.0002675534236 | AG18: 0.0003253264512 | AH18: 0.0002052915606 | AI18: 0.000269751728 | AJ18: 0.0002555654578 | AK18: 0.0001899653852 | AL18: 0.0005851482509 | AM18: 0.0009527616449 | AN18: 0.0003989578391 | AO18: 0.0001523739532 | AP18: 0.0005867885679 | AQ18: 0.0002370048896 | AR18: 0.0003316168637 | AS18: 0.0003320012342 | AT18: 0.0004813938055 | AU18: 0.0004911495015 | AV18: 0.0003172324295 | AW18: 0.0003397304187 | AX18: 0.002034262103 | AY18: 0.003486144071 | AZ18: 0.002130136781 | BA18: 0.0003287815685 | BB18: 0.0006704538722 | BC18: 0.0002533832308 | BD18: 0.0001936493607 | BE18: 0.0001656343444 | BF18: 0.0001194912332 | BG18: 9.763752642e-05 | BH18: 8.179274537e-05 | BI18: 7.169119706e-05 | BJ18: 3.028142847e-05 | BK18: 0.0001528306775 | BL18: 8.987021501e-05 | BM18: 0.0004083049876 | BN18: 7.735718572e-05 | BO18: 0.0001408380736 | BP18: 9.611439717e-05 | BQ18: 0.0001534516604 | BR18: 0
B19: Metano (CH4) | C19: 2.633601232e-06 | D19: 1.532636901e-06 | E19: 2.712840127e-06 | F19: 1.195899511e-06 | G19: 3.126015348e-06 | H19: 4.112986501e-06 | I19: 8.004519045e-06 | J19: 2.398834206e-06 | K19: 4.119022103e-06 | L19: 1.410667886e-06 | M19: 2.784035839e-06 | N19: 2.94792314e-06 | O19: 2.683265648e-06 | P19: 2.725104167e-06 | Q19: 1.748647122e-06 | R19: 1.318992965e-05 | S19: 3.324845287e-06 | T19: 2.010219478e-06 | U19: 2.67718687e-06 | V19: 3.045662876e-06 | W19: 1.951942065e-06 | X19: 2.8163923e-06 | Y19: 1.806481996e-06 | Z19: 4.022971136e-06 | AA19: 5.330579252e-05 | AB19: 4.3301906e-06 | AC19: 3.076175984e-06 | AD19: 4.058443479e-06 | AE19: 7.605155707e-06 | AF19: 3.234783272e-06 | AG19: 2.61933859e-06 | AH19: 1.858589595e-06 | AI19: 1.930108407e-06 | AJ19: 2.022931838e-06 | AK19: 1.697699496e-06 | AL19: 6.222695792e-06 | AM19: 5.585375468e-06 | AN19: 2.958874368e-06 | AO19: 1.163428886e-06 | AP19: 3.901084161e-06 | AQ19: 1.539661044e-06 | AR19: 2.366077765e-06 | AS19: 2.408205735e-06 | AT19: 3.387718156e-06 | AU19: 3.336950672e-06 | AV19: 2.143834527e-06 | AW19: 2.199004554e-06 | AX19: 1.251259354e-05 | AY19: 1.153651205e-05 | AZ19: 1.263447742e-05 | BA19: 2.149480611e-06 | BB19: 4.119723682e-06 | BC19: 2.313028014e-06 | BD19: 1.3896416e-06 | BE19: 1.185817516e-06 | BF19: 8.360033895e-07 | BG19: 7.519705988e-07 | BH19: 5.794222469e-07 | BI19: 5.438598777e-07 | BJ19: 2.115725203e-07 | BK19: 1.049316398e-06 | BL19: 6.403393591e-07 | BM19: 4.324576025e-06 | BN19: 7.104406964e-07 | BO19: 1.021450956e-06 | BP19: 7.189081261e-07 | BQ19: 1.150655761e-06 | BR19: 0
A20: A0101 | B20: Agricultura y actividades de servicios conexas (excepto cultivo permanente de café) | C20: 1.074477442 | D20: 0.1115816965 | E20: 0.1528528793 | F20: 0.01310532677 | G20: 0.0482647768 | H20: 0.001381054734 | I20: 0.002413550456 | J20: 0.001691267674 | K20: 0.00159476424 | L20: 0.002263844903 | M20: 0.1122494651 | N20: 0.3931159973 | O20: 0.09687541268 | P20: 0.3460232068 | Q20: 0.09150232889 | R20: 0.4549363168 | S20: 0.2092015932 | T20: 0.1501641507 | U20: 0.0767446428 | V20: 0.04721306318 | W20: 0.01253650836 | X20: 0.02549562123 | Y20: 0.01778746411 | Z20: 0.0141697508 | AA20: 0.007552136341 | AB20: 0.05063117122 | AC20: 0.02170807255 | AD20: 0.03531598626 | AE20: 0.003885287741 | AF20: 0.004032623687 | AG20: 0.009262505692 | AH20: 0.004395845539 | AI20: 0.005806662425 | AJ20: 0.01223419192 | AK20: 0.01111197114 | AL20: 0.003405945561 | AM20: 0.001880438534 | AN20: 0.003973257446 | AO20: 0.002536575546 | AP20: 0.003824376498 | AQ20: 0.002576233048 | AR20: 0.008570039578 | AS20: 0.005886105504 | AT20: 0.005805126056 | AU20: 0.004524973621 | AV20: 0.001975062416 | AW20: 0.004306862112 | AX20: 0.002897237054 | AY20: 0.002718551543 | AZ20: 0.00552858519 | BA20: 0.001858081178 | BB20: 0.002178160359 | BC20: 0.03240394349 | BD20: 0.08634667266 | BE20: 0.003209510757 | BF20: 0.001609548986 | BG20: 0.001951690013 | BH20: 0.000935016919 | BI20: 0.000840921071 | BJ20: 0.0004446039869 | BK20: 0.00162322375 | BL20: 0.001798920743 | BM20: 0.003084494801 | BN20: 0.002976153838 | BO20: 0.005285100226 | BP20: 0.005246319805 | BQ20: 0.007701697283 | BR20: 0
A21: 003 | B21: Cultivo permanente de café | C21: 0.001811160125 | D21: 1.002682102 | E21: 0.004200367588 | F21: 0.0003178603844 | G21: 0.001512520205 | H21: 7.916956626e-05 | I21: 0.0001250699065 | J21: 9.716003353e-05 | K21: 9.413541718e-05 | L21: 0.0001359799043 | M21: 0.002516073391 | N21: 0.009467244739 | O21: 0.002353732966 | P21: 0.008791815432 | Q21: 0.8024350886 | R21: 0.01101904801 | S21: 0.008163000642 | T21: 0.01280651637 | U21: 0.002796396568 | V21: 0.00121070706 | W21: 0.0004336990713 | X21: 0.0006748873087 | Y21: 0.0002622319913 | Z21: 0.000497313007 | AA21: 0.0002410360605 | AB21: 0.001328489604 | AC21: 0.000911333692 | AD21: 0.0009557279057 | AE21: 0.000145632796 | AF21: 0.000205242177 | AG21: 0.0003448584338 | AH21: 0.0002099547977 | AI21: 0.0003055447945 | AJ21: 0.0003233667849 | AK21: 0.0004788579765 | AL21: 0.0001763333075 | AM21: 0.0001115136556 | AN21: 0.0002357853652 | AO21: 0.0001248668603 | AP21: 0.0002126179832 | AQ21: 0.0001015756814 | AR21: 0.0007454973978 | AS21: 0.0003022951819 | AT21: 0.0002361896666 | AU21: 0.0002218493103 | AV21: 0.0001420381476 | AW21: 0.0001919316393 | AX21: 0.000128152342 | AY21: 0.0001848727381 | AZ21: 0.0003320663936 | BA21: 0.0001306287657 | BB21: 0.0001615259252 | BC21: 0.002291106616 | BD21: 0.006576176175 | BE21: 0.0002731078322 | BF21: 0.0001552908332 | BG21: 0.0001845875871 | BH21: 0.0001032321242 | BI21: 8.592452495e-05 | BJ21: 4.186165315e-05 | BK21: 0.0001967021513 | BL21: 0.00012899723 | BM21: 0.0002897494118 | BN21: 0.0002505944557 | BO21: 0.0004077002717 | BP21: 0.000463804638 | BQ21: 0.0003491131239 | BR21: 0
A22: A0102 | B22: Ganadería | C22: 0.007082622206 | D22: 0.006122475618 | E22: 1.090277809 | F22: 0.001134998389 | G22: 0.02179737934 | H22: 0.0007463606633 | I22: 0.001144952197 | J22: 0.00089768589 | K22: 0.0008573623001 | L22: 0.0009700006322 | M22: 0.5897818216 | N22: 0.02138144252 | O22: 0.4564489435 | P22: 0.05748930947 | Q22: 0.008061471479 | R22: 0.0160564637 | S22: 0.03254859454 | T22: 0.04889561077 | U22: 0.01756140459 | V22: 0.005348591229 | W22: 0.0029042547 | X22: 0.09560877178 | Y22: 0.002112736918 | Z22: 0.003792890423 | AA22: 0.002530598025 | AB22: 0.008592901766 | AC22: 0.007811896609 | AD22: 0.008791258176 | AE22: 0.00140020251 | AF22: 0.00169690594 | AG22: 0.003129687022 | AH22: 0.001794317603 | AI22: 0.002138245091 | AJ22: 0.002327248333 | AK22: 0.002439043653 | AL22: 0.001210924104 | AM22: 0.0009681300015 | AN22: 0.001793515636 | AO22: 0.0009648017514 | AP22: 0.001596903826 | AQ22: 0.0008240795866 | AR22: 0.007073103063 | AS22: 0.001642321857 | AT22: 0.001783441963 | AU22: 0.001478985304 | AV22: 0.001257198232 | AW22: 0.002114493676 | AX22: 0.00121618004 | AY22: 0.001733295811 | AZ22: 0.003167825877 | BA22: 0.001243375577 | BB22: 0.001498426348 | BC22: 0.03441485129 | BD22: 0.06095035721 | BE22: 0.00244226436 | BF22: 0.001422370968 | BG22: 0.001561041159 | BH22: 0.0009053084417 | BI22: 0.0007367840129 | BJ22: 0.000317665729 | BK22: 0.001752106389 | BL22: 0.001254139503 | BM22: 0.002449512166 | BN22: 0.002917244855 | BO22: 0.001567411713 | BP22: 0.003473340884 | BQ22: 0.003009036987 | BR22: 0
A23: A02 | B23: Silvicultura y extracción de madera | C23: 0.002829769006 | D23: 0.002801953932 | E23: 0.003896896851 | F23: 1.097496636 | G23: 0.001379121463 | H23: 0.0001594063205 | I23: 0.0002217739325 | J23: 0.0002599088792 | K23: 0.0003098795459 | L23: 0.0002278054956 | M23: 0.002436218775 | N23: 0.009137617654 | O23: 0.002351609842 | P23: 0.008199864062 | Q23: 0.002466180852 | R23: 0.01222723656 | S23: 0.006156196504 | T23: 0.004003724911 | U23: 0.002355252432 | V23: 0.001525904091 | W23: 0.001159582019 | X23: 0.001003962727 | Y23: 0.192529054 | Z23: 0.01443888268 | AA23: 0.000410371317 | AB23: 0.002037027131 | AC23: 0.001551568547 | AD23: 0.004228130362 | AE23: 0.0003149146088 | AF23: 0.0006597156938 | AG23: 0.001484082192 | AH23: 0.0006627802215 | AI23: 0.0008431011493 | AJ23: 0.01973982754 | AK23: 0.001089812946 | AL23: 0.0006483697551 | AM23: 0.0003041739307 | AN23: 0.001398085205 | AO23: 0.0007010680254 | AP23: 0.0006888855787 | AQ23: 0.000312160992 | AR23: 0.0006412250037 | AS23: 0.006371605144 | AT23: 0.007810582524 | AU23: 0.009463929334 | AV23: 0.0003408124087 | AW23: 0.0004565037484 | AX23: 0.0003434469322 | AY23: 0.0002507023654 | AZ23: 0.0003632432459 | BA23: 0.0002650317881 | BB23: 0.0002826458789 | BC23: 0.001147501821 | BD23: 0.002174357912 | BE23: 0.0007198305218 | BF23: 0.0002111100362 | BG23: 0.000226969057 | BH23: 0.0001515040873 | BI23: 0.0001332113914 | BJ23: 0.000241979218 | BK23: 0.0005031588383 | BL23: 0.0002699784547 | BM23: 0.0009100522703 | BN23: 0.000479107901 | BO23: 0.0003934133114 | BP23: 0.0005107056768 | BQ23: 0.0006750399691 | BR23: 0
A24: A03 | B24: Pesca y acuicultura | C24: 2.117818859e-05 | D24: 1.863759674e-05 | E24: 0.0001697154926 | F24: 1.103180724e-05 | G24: 1.109633658 | H24: 2.865082573e-05 | I24: 3.755625566e-05 | J24: 4.013252503e-05 | K24: 3.150805459e-05 | L24: 3.323649954e-05 | M24: 0.01817946109 | N24: 0.0002146171078 | O24: 0.0002153097428 | P24: 0.0003403973294 | Q24: 7.166191477e-05 | R24: 2.332664704e-05 | S24: 9.502078798e-05 | T24: 0.0005366707634 | U24: 6.882506478e-05 | V24: 4.795703747e-05 | W24: 5.60080129e-05 | X24: 8.429358401e-05 | Y24: 3.991411989e-05 | Z24: 5.431350248e-05 | AA24: 3.405250026e-05 | AB24: 6.150593333e-05 | AC24: 6.188799422e-05 | AD24: 5.709878142e-05 | AE24: 3.253370651e-05 | AF24: 4.990044114e-05 | AG24: 5.026773093e-05 | AH24: 5.127721872e-05 | AI24: 5.527366923e-05 | AJ24: 3.980097825e-05 | AK24: 3.381901989e-05 | AL24: 3.546909136e-05 | AM24: 3.688744911e-05 | AN24: 4.385191494e-05 | AO24: 2.206746731e-05 | AP24: 3.968432228e-05 | AQ24: 3.864364258e-05 | AR24: 0.0002060971687 | AS24: 3.119691581e-05 | AT24: 3.755546853e-05 | AU24: 3.529467555e-05 | AV24: 6.052790262e-05 | AW24: 5.221657986e-05 | AX24: 3.301496296e-05 | AY24: 6.983659591e-05 | AZ24: 0.000233216941 | BA24: 5.777151226e-05 | BB24: 8.41100192e-05 | BC24: 0.003565560758 | BD24: 0.006736366473 | BE24: 0.0001410209328 | BF24: 5.945500748e-05 | BG24: 8.630880674e-05 | BH24: 4.355868154e-05 | BI24: 3.892516376e-05 | BJ24: 1.401613597e-05 | BK24: 7.380643329e-05 | BL24: 5.434983284e-05 | BM24: 0.000111709139 | BN24: 9.007355144e-05 | BO24: 3.765848674e-05 | BP24: 0.0002723500279 | BQ24: 0.0001806372678 | BR24: 0
A25: 17 | B25: Extracción de carbón de piedra y lignito | C25: 0.0006715704148 | D25: 0.0004973339094 | E25: 0.0006753447172 | F25: 0.0003203129595 | G25: 0.0005188000316 | H25: 1.001243425 | I25: 0.003030167031 | J25: 0.0008940343145 | K25: 0.0009558286441 | L25: 0.0005270616547 | M25: 0.0008983900136 | N25: 0.001333618333 | O25: 0.0007408822229 | P25: 0.0009130124989 | Q25: 0.0006242248944 | R25: 0.004522662513 | S25: 0.001282405398 | T25: 0.0007254050801 | U25: 0.0009380898387 | V25: 0.0009112683804 | W25: 0.0006572552275 | X25: 0.0008181587538 | Y25: 0.0007128439493 | Z25: 0.002087707638 | AA25: 0.01550263611 | AB25: 0.001780443391 | AC25: 0.001034728596 | AD25: 0.001623443636 | AE25: 0.00232143634 | AF25: 0.001821099484 | AG25: 0.001026896458 | AH25: 0.0007993645702 | AI25: 0.0006562597982 | AJ25: 0.0007949560069 | AK25: 0.0007210742325 | AL25: 0.009654834667 | AM25: 0.00171418742 | AN25: 0.001327225265 | AO25: 0.0008202158819 | AP25: 0.001608320704 | AQ25: 0.000453542438 | AR25: 0.0008846999427 | AS25: 0.0007807791413 | AT25: 0.001149404662 | AU25: 0.0009686015317 | AV25: 0.0006140442205 | AW25: 0.0007088399069 | AX25: 0.002742915181 | AY25: 0.002232843153 | AZ25: 0.00361472504 | BA25: 0.0005137533589 | BB25: 0.00111242465 | BC25: 0.0006478167679 | BD25: 0.0004239855463 | BE25: 0.0003571873115 | BF25: 0.000302504869 | BG25: 0.0002830616048 | BH25: 0.0001603591046 | BI25: 0.0001803058987 | BJ25: 7.037504832e-05 | BK25: 0.0002693257857 | BL25: 0.0002209587475 | BM25: 0.0005464780834 | BN25: 0.0002474777898 | BO25: 0.0003028963544 | BP25: 0.0003631398114 | BQ25: 0.0003510412039 | BR25: 0
A26: 018 | B26: Extracción de petróleo crudo y gas natural | C26: 0.0131379782 | D26: 0.008561907681 | E26: 0.01256822068 | F26: 0.006429385622 | G26: 0.01011591307 | H26: 0.02873653029 | I26: 1.064644718 | J26: 0.01640466261 | K26: 0.02357837377 | L26: 0.008628830188 | M26: 0.01223173513 | N26: 0.01321487038 | O26: 0.01312580017 | P26: 0.01489478656 | Q26: 0.009209823003 | R26: 0.01081834661 | S26: 0.01396305924 | T26: 0.009321430091 | U26: 0.01352253217 | V26: 0.01922889572 | W26: 0.01139824146 | X26: 0.01608806689 | Y26: 0.01057970872 | Z26: 0.02005240587 | AA26: 0.4342834067 | AB26: 0.02201514015 | AC26: 0.02066660874 | AD26: 0.0233741754 | AE26: 0.04844615081 | AF26: 0.01475324199 | AG26: 0.0152145301 | AH26: 0.01435383674 | AI26: 0.01140551171 | AJ26: 0.01234948662 | AK26: 0.01189589696 | AL26: 0.0352265029 | AM26: 0.2663175734 | AN26: 0.01396377328 | AO26: 0.006536767786 | AP26: 0.02236988155 | AQ26: 0.008703687437 | AR26: 0.01471749129 | AS26: 0.01378049622 | AT26: 0.01968820557 | AU26: 0.01753439489 | AV26: 0.01159032149 | AW26: 0.01438172824 | AX26: 0.06837927255 | AY26: 0.05198527097 | AZ26: 0.0900497413 | BA26: 0.01178242173 | BB26: 0.02529745777 | BC26: 0.0113600188 | BD26: 0.006993904249 | BE26: 0.005779854393 | BF26: 0.004755318199 | BG26: 0.00422727836 | BH26: 0.002658114442 | BI26: 0.002775333895 | BJ26: 0.001126990787 | BK26: 0.004999844022 | BL26: 0.003275567183 | BM26: 0.008941355621 | BN26: 0.00415146426 | BO26: 0.005180199721 | BP26: 0.004246225018 | BQ26: 0.006140126255 | BR26: 0
A27: 019 | B27: Extracción de minerales metalíferos | C27: 0.002729093249 | D27: 0.002120036026 | E27: 0.002961593457 | F27: 0.003049388322 | G27: 0.003897513167 | H27: 0.0007711956665 | I27: 0.001371638107 | J27: 1.001169675 | K27: 0.002469796144 | L27: 0.001548655628 | M27: 0.003099192161 | N27: 0.002582189728 | O27: 0.003100938198 | P27: 0.002611259113 | Q27: 0.002411325531 | R27: 0.002238050761 | S27: 0.003252235353 | T27: 0.007304172288 | U27: 0.006616953414 | V27: 0.003145608224 | W27: 0.002644084999 | X27: 0.002669467199 | Y27: 0.008518140516 | Z27: 0.003792763144 | AA27: 0.001700508674 | AB27: 0.003439522398 | AC27: 0.003847559006 | AD27: 0.003856118048 | AE27: 0.002147110472 | AF27: 0.2711416663 | AG27: 0.06167750168 | AH27: 0.04523047525 | AI27: 0.01918011437 | AJ27: 0.02216193419 | AK27: 0.03780586888 | AL27: 0.003439538671 | AM27: 0.001885798461 | AN27: 0.004648225852 | AO27: 0.003004916975 | AP27: 0.003156985855 | AQ27: 0.0007502209488 | AR27: 0.002323561155 | AS27: 0.0230239119 | AT27: 0.02305971018 | AU27: 0.02698292168 | AV27: 0.001773188197 | AW27: 0.01035672952 | AX27: 0.002584453008 | AY27: 0.002501063906 | AZ27: 0.001551670477 | BA27: 0.001141172824 | BB27: 0.001266696584 | BC27: 0.002179577637 | BD27: 0.001753079233 | BE27: 0.001929081806 | BF27: 0.00339287788 | BG27: 0.00137046303 | BH27: 0.0007383463827 | BI27: 0.0006041081555 | BJ27: 0.0007037716029 | BK27: 0.00139528963 | BL27: 0.0005593046287 | BM27: 0.002050586448 | BN27: 0.001309579906 | BO27: 0.002039147336 | BP27: 0.001477751607 | BQ27: 0.004471408502 | BR27: 0
A28: 020 | B28: Extracción de otras minas y canteras | C28: 0.001488196171 | D28: 0.001832405977 | E28: 0.004669739928 | F28: 0.003818631601 | G28: 0.0009394995402 | H28: 0.0005332266524 | I28: 0.0009347956816 | J28: 0.0004891865334 | K28: 1.000725057 | L28: 0.0005141194053 | M28: 0.002965503764 | N28: 0.00269123125 | O28: 0.002716150187 | P28: 0.002321265767 | Q28: 0.001701244159 | R28: 0.001133242985 | S28: 0.002098381179 | T28: 0.003644091566 | U28: 0.002167709606 | V28: 0.002711576599 | W28: 0.001171157608 | X28: 0.002164521708 | Y28: 0.001615362163 | Z28: 0.001629174051 | AA28: 0.003073564527 | AB28: 0.01284936593 | AC28: 0.003935607074 | AD28: 0.00582921701 | AE28: 0.02965749246 | AF28: 0.00187310902 | AG28: 0.0021962734 | AH28: 0.001148587165 | AI28: 0.001524586723 | AJ28: 0.002119931771 | AK28: 0.006404865397 | AL28: 0.001289036706 | AM28: 0.0009355613936 | AN28: 0.00318822894 | AO28: 0.00147576293 | AP28: 0.001457099629 | AQ28: 0.0006152184393 | AR28: 0.00256738837 | AS28: 0.01283764148 | AT28: 0.04635128396 | AU28: 0.02267591067 | AV28: 0.000531920605 | AW28: 0.00118292115 | AX28: 0.001108746516 | AY28: 0.0007240537344 | AZ28: 0.001177351707 | BA28: 0.0005650893843 | BB28: 0.0005275845619 | BC28: 0.001092333933 | BD28: 0.001426052469 | BE28: 0.0003733690486 | BF28: 0.0002875736307 | BG28: 0.000328739696 | BH28: 0.0002452874306 | BI28: 0.0002374752366 | BJ28: 0.0005336801354 | BK28: 0.0004960128701 | BL28: 0.0003597100064 | BM28: 0.001056783864 | BN28: 0.0006189517398 | BO28: 0.0007834444066 | BP28: 0.0006214223192 | BQ28: 0.001633027786 | BR28: 0
A29: 021-022 | B29: Actividades de apoyo para actividades de explotación de minas y canteras | C29: 0.002982561133 | D29: 0.002047495351 | E29: 0.003107783865 | F29: 0.001750157727 | G29: 0.002416157533 | H29: 0.04712999639 | I29: 0.2125516383 | J29: 0.06051250245 | K29: 0.05916181739 | L29: 1.001959442 | M29: 0.003004761271 | N29: 0.003146067314 | O29: 0.003146468133 | P29: 0.003502905077 | Q29: 0.00223487689 | R29: 0.002639472512 | S29: 0.003350199158 | T29: 0.002698894921 | U29: 0.003395269883 | V29: 0.00442330668 | W29: 0.002692985003 | X29: 0.003751273096 | Y29: 0.002938222533 | Z29: 0.004621646282 | AA29: 0.08814943545 | AB29: 0.00557863022 | AC29: 0.004819578282 | AD29: 0.005523358775 | AE29: 0.01173182525 | AF29: 0.01878727372 | AG29: 0.006963834182 | AH29: 0.006002945312 | AI29: 0.003769297724 | AJ29: 0.004084892284 | AK29: 0.005082214585 | AL29: 0.007879617662 | AM29: 0.05382167 | AN29: 0.00350132971 | AO29: 0.001700403828 | AP29: 0.00497756866 | AQ29: 0.00192956948 | AR29: 0.004094661834 | AS29: 0.005030065647 | AT29: 0.008074232815 | AU29: 0.00653763692 | AV29: 0.002626061557 | AW29: 0.003817616146 | AX29: 0.01420029816 | AY29: 0.01090742665 | AZ29: 0.01858105098 | BA29: 0.002642839991 | BB29: 0.005388807301 | BC29: 0.002674160353 | BD29: 0.001734124861 | BE29: 0.00151612139 | BF29: 0.001376964678 | BG29: 0.00111997802 | BH29: 0.0007019615214 | BI29: 0.0006930555074 | BJ29: 0.0003379153987 | BK29: 0.001346812463 | BL29: 0.000821619242 | BM29: 0.002253380514 | BN29: 0.00115162944 | BO29: 0.001323319426 | BP29: 0.001148626841 | BQ29: 0.001759532618 | BR29: 0
A30: 023-024-025 | B30: Procesamiento y conservación de carne y productos cárnicos de bovinos, bufalinos, porcinos y otras carnes n.c.p.; procesamiento y conservación de carne y productos cárnicos de aves de corral y procesamiento y conservación de pescados, crustáceos y moluscos | C30: 0.0006500979364 | D30: 0.0005575436553 | E30: 0.006168886335 | F30: 0.0002725939423 | G30: 0.00292490447 | H30: 0.0006167222888 | I30: 0.0008739717187 | J30: 0.0007726213133 | K30: 0.0007111253975 | L30: 0.0007514920135 | M30: 1.046522564 | N30: 0.01116557568 | O30: 0.0101265716 | P30: 0.0169419425 | Q30: 0.001186740325 | R30: 0.0006458715511 | S30: 0.003089801856 | T30: 0.01127861471 | U30: 0.002099054188 | V30: 0.001259783414 | W30: 0.001189096955 | X30: 0.003032140134 | Y30: 0.000960705373 | Z30: 0.001310445504 | AA30: 0.0008440294007 | AB30: 0.002216037459 | AC30: 0.001754922409 | AD30: 0.001644387269 | AE30: 0.0006830808714 | AF30: 0.001339566923 | AG30: 0.001483827941 | AH30: 0.001283497723 | AI30: 0.001334333621 | AJ30: 0.001019523747 | AK30: 0.0009065991362 | AL30: 0.001121642581 | AM30: 0.0008583999161 | AN30: 0.001437857221 | AO30: 0.0006518603992 | AP30: 0.001231912025 | AQ30: 0.0005485016401 | AR30: 0.007907728256 | AS30: 0.0008355804552 | AT30: 0.0009917919983 | AU30: 0.0009249474223 | AV30: 0.001210819128 | AW30: 0.001118788657 | AX30: 0.000781316742 | AY30: 0.001695901059 | AZ30: 0.002887039714 | BA30: 0.001203748117 | BB30: 0.001550048543 | BC30: 0.04622698181 | BD30: 0.06358035318 | BE30: 0.002743382204 | BF30: 0.001683207255 | BG30: 0.001840515619 | BH30: 0.001126394232 | BI30: 0.0008978622425 | BJ30: 0.000348498922 | BK30: 0.00223705522 | BL30: 0.001222560747 | BM30: 0.002770686518 | BN30: 0.003275107909 | BO30: 0.0009307064164 | BP30: 0.003680765255 | BQ30: 0.002145916959 | BR30: 0
A31: 026 | B31: Elaboración de aceites y grasas de origen vegetal y animal | C31: 0.006779790754 | D31: 0.01043022245 | E31: 0.05024966496 | F31: 0.002505183747 | G31: 0.01736606755 | H31: 0.001120529087 | I31: 0.002053062726 | J31: 0.001339342003 | K31: 0.001207329964 | L31: 0.001607602156 | M31: 0.03154402292 | N31: 1.521565054 | O31: 0.02987542622 | P31: 0.1109408748 | Q31: 0.009290612397 | R31: 0.004718954787 | S31: 0.0399384876 | T31: 0.07310321936 | U31: 0.01353173184 | V31: 0.01163166928 | W31: 0.004770184329 | X31: 0.01115283985 | Y31: 0.004813219328 | Z31: 0.008033785885 | AA31: 0.008141518995 | AB31: 0.07169040518 | AC31: 0.01986065962 | AD31: 0.03120560811 | AE31: 0.003739196143 | AF31: 0.002901578051 | AG31: 0.008536033707 | AH31: 0.003327541214 | AI31: 0.004306726461 | AJ31: 0.004436824707 | AK31: 0.004404802328 | AL31: 0.001603797531 | AM31: 0.001361432192 | AN31: 0.002800045343 | AO31: 0.001761271668 | AP31: 0.002743854024 | AQ31: 0.001060249109 | AR31: 0.008304664039 | AS31: 0.003200875777 | AT31: 0.004028773774 | AU31: 0.002648164274 | AV31: 0.001135247369 | AW31: 0.003717033866 | AX31: 0.002529959715 | AY31: 0.00210059638 | AZ31: 0.003453610988 | BA31: 0.001225128133 | BB31: 0.001353670613 | BC31: 0.008363759561 | BD31: 0.02515079125 | BE31: 0.001676646057 | BF31: 0.00112153863 | BG31: 0.0009999123082 | BH31: 0.0005472568413 | BI31: 0.0004501044262 | BJ31: 0.0002228276986 | BK31: 0.001009305257 | BL31: 0.001388320614 | BM31: 0.001684755273 | BN31: 0.001308118777 | BO31: 0.002666023364 | BP31: 0.001709603059 | BQ31: 0.004796810842 | BR31: 0
A32: 027 | B32: Elaboración de productos lácteos | C32: 0.0005679626935 | D32: 0.0003377135122 | E32: 0.01144137559 | F32: 0.0001179468277 | G32: 0.006577781692 | H32: 0.0001701174513 | I32: 0.0002704495049 | J32: 0.0002194968539 | K32: 0.0002191357339 | L32: 0.0002214781009 | M32: 0.008136841026 | N32: 0.002809761013 | O32: 1.05491604 | P32: 0.03849669454 | Q32: 0.001191511885 | R32: 0.0005252282154 | S32: 0.03293325953 | T32: 0.05948472883 | U32: 0.01285428275 | V32: 0.000566898579 | W32: 0.0004488654695 | X32: 0.001475476875 | Y32: 0.000549274909 | Z32: 0.0009777729691 | AA32: 0.0003431060107 | AB32: 0.0009457229037 | AC32: 0.00162725294 | AD32: 0.0007938357422 | AE32: 0.0003145085091 | AF32: 0.000433815794 | AG32: 0.0005445456532 | AH32: 0.0004688981297 | AI32: 0.0005985182401 | AJ32: 0.0004914644216 | AK32: 0.0004380582547 | AL32: 0.0003263560614 | AM32: 0.0002526419037 | AN32: 0.000418981694 | AO32: 0.0002115778489 | AP32: 0.0003756221031 | AQ32: 0.0002142233313 | AR32: 0.002082469843 | AS32: 0.0003266209498 | AT32: 0.0004334779072 | AU32: 0.0003466613361 | AV32: 0.0003608161589 | AW32: 0.0004509383495 | AX32: 0.00028009003 | AY32: 0.0004665856737 | AZ32: 0.0008407558532 | BA32: 0.0003587175656 | BB32: 0.0004153360346 | BC32: 0.006546935559 | BD32: 0.01913322914 | BE32: 0.0007311494156 | BF32: 0.0004791664319 | BG32: 0.0004900925572 | BH32: 0.0002850504142 | BI32: 0.0002297410969 | BJ32: 9.289381546e-05 | BK32: 0.0005647754584 | BL32: 0.0003225974189 | BM32: 0.0007988676546 | BN32: 0.00147036643 | BO32: 0.0003810333624 | BP32: 0.0009975752459 | BQ32: 0.0006374153688 | BR32: 0
A33: 028-032-035 | B33: Elaboración de productos de molinería, almidones y productos derivados del almidón; elaboración de productos de panadería; elaboración de macarrones, fideos, alcuzcuz, y productos farináceos similares y elaboración de alimentos preparados para animales | C33: 0.007941981661 | D33: 0.002410414018 | E33: 0.2286070086 | F33: 0.0004988663761 | G33: 0.1357474097 | H33: 0.0004011348023 | I33: 0.0006215880533 | J33: 0.0005379665715 | K33: 0.0004983845576 | L33: 0.0005340604995 | M33: 0.1277290816 | N33: 0.009849825084 | O33: 0.1047280103 | P33: 1.109725538 | Q33: 0.003152882493 | R33: 0.007057757385 | S33: 0.07136763707 | T33: 0.07895411255 | U33: 0.0626288037 | V33: 0.002245781538 | W33: 0.001367685035 | X33: 0.02105108596 | Y33: 0.001461455473 | Z33: 0.006907463974 | AA33: 0.001129275662 | AB33: 0.004590451839 | AC33: 0.01651559145 | AD33: 0.003573430252 | AE33: 0.0008550689236 | AF33: 0.0009505217353 | AG33: 0.001539197967 | AH33: 0.001028934604 | AI33: 0.001254022258 | AJ33: 0.001469164835 | AK33: 0.0042321507 | AL33: 0.0006864219855 | AM33: 0.0005491482879 | AN33: 0.0009282901002 | AO33: 0.0005004536367 | AP33: 0.0008469866754 | AQ33: 0.0005372757718 | AR33: 0.003858737425 | AS33: 0.0008747909011 | AT33: 0.001139298076 | AU33: 0.0008625347714 | AV33: 0.0008182493604 | AW33: 0.001083533421 | AX33: 0.000651965846 | AY33: 0.0009772222437 | AZ33: 0.002029201563 | BA33: 0.0007440851846 | BB33: 0.0009229341835 | BC33: 0.01998527177 | BD33: 0.04566716486 | BE33: 0.001629335941 | BF33: 0.0008778443022 | BG33: 0.0009770718503 | BH33: 0.0005446056274 | BI33: 0.0004493182256 | BJ33: 0.0001864894656 | BK33: 0.001045257924 | BL33: 0.0007258536916 | BM33: 0.002195412365 | BN33: 0.001449979692 | BO33: 0.001801603763 | BP33: 0.002334221134 | BQ33: 0.001740476395 | BR33: 0
A34: 029 | B34: Elaboración de productos de café | C34: 5.25503017e-05 | D34: 3.376817529e-05 | E34: 0.0007825427167 | F34: 1.788288107e-05 | G34: 0.0004521026931 | H34: 4.645162924e-05 | I34: 7.039593912e-05 | J34: 5.929381706e-05 | K34: 5.657155425e-05 | L34: 6.213291229e-05 | M34: 0.0005290632145 | N34: 0.0001915415406 | O34: 0.0004573498265 | P34: 0.0005385338355 | Q34: 1.077875573 | R34: 5.504723781e-05 | S34: 0.002499520981 | T34: 0.01192683739 | U34: 0.0002879608735 | V34: 8.473366397e-05 | W34: 8.556476098e-05 | X34: 0.0001481223017 | Y34: 5.269137923e-05 | Z34: 9.898723265e-05 | AA34: 5.7265933e-05 | AB34: 9.635322277e-05 | AC34: 0.0003778418503 | AD34: 9.953759442e-05 | AE34: 5.08549e-05 | AF34: 7.26354548e-05 | AG34: 7.033334336e-05 | AH34: 6.987841178e-05 | AI34: 8.029404837e-05 | AJ34: 5.671469597e-05 | AK34: 5.117065588e-05 | AL34: 9.311618197e-05 | AM34: 6.828726739e-05 | AN34: 0.0001188780999 | AO34: 5.173298189e-05 | AP34: 0.0001009865272 | AQ34: 4.351652992e-05 | AR34: 0.0007041549237 | AS34: 4.88990202e-05 | AT34: 6.481835747e-05 | AU34: 5.700579269e-05 | AV34: 9.730554048e-05 | AW34: 7.420402712e-05 | AX34: 5.740483157e-05 | AY34: 0.0001327591995 | AZ34: 0.0002386850186 | BA34: 9.798325227e-05 | BB34: 0.0001194396715 | BC34: 0.002012266361 | BD34: 0.005992675369 | BE34: 0.0002242653862 | BF34: 0.0001409585158 | BG34: 0.000160053742 | BH34: 9.522951559e-05 | BI34: 7.573133337e-05 | BJ34: 2.9510191e-05 | BK34: 0.0001900428718 | BL34: 9.953037327e-05 | BM34: 0.0002550939112 | BN34: 0.0002083765568 | BO34: 0.0001141836691 | BP34: 0.0003120843999 | BQ34: 0.0001724173141 | BR34: 0
A35: 030-031 | B35: Elaboración de azúcar y elaboración de panela | C35: 0.003627242644 | D35: 0.006410908461 | E35: 0.006632373013 | F35: 0.001560483646 | G35: 0.004668415441 | H35: 0.0007013436389 | I35: 0.001383566646 | J35: 0.0008297072799 | K35: 0.0008183659106 | L35: 0.001166514412 | M35: 0.005367687297 | N35: 0.003454702314 | O35: 0.013899883 | P35: 0.01882508348 | Q35: 0.005754192447 | R35: 1.016162932 | S35: 0.1004533365 | T35: 0.03256357063 | U35: 0.05663592627 | V35: 0.007192672354 | W35: 0.002929649318 | X35: 0.00513769476 | Y35: 0.003295956395 | Z35: 0.005507646485 | AA35: 0.005192732437 | AB35: 0.01712208452 | AC35: 0.01097027999 | AD35: 0.01974666376 | AE35: 0.002544737531 | AF35: 0.002064387845 | AG35: 0.0055083788 | AH35: 0.002353337256 | AI35: 0.002873122609 | AJ35: 0.002972081831 | AK35: 0.002729688571 | AL35: 0.003828862035 | AM35: 0.00110004521 | AN35: 0.002270850295 | AO35: 0.001553019058 | AP35: 0.00223777762 | AQ35: 0.0007106089513 | AR35: 0.004143177788 | AS35: 0.002047186951 | AT35: 0.00252621617 | AU35: 0.001680151465 | AV35: 0.0008115967391 | AW35: 0.002399778759 | AX35: 0.00161624603 | AY35: 0.00134813547 | AZ35: 0.002025851324 | BA35: 0.0007013092765 | BB35: 0.0008209400372 | BC35: 0.004591640635 | BD35: 0.01077178272 | BE35: 0.0008260729396 | BF35: 0.0005988356513 | BG35: 0.0004959099371 | BH35: 0.0002388633076 | BI35: 0.0002354188159 | BJ35: 0.0001120242807 | BK35: 0.0003692810699 | BL35: 0.0007895063648 | BM35: 0.0008059740979 | BN35: 0.0005284559561 | BO35: 0.001544687271 | BP35: 0.0008790370093 | BQ35: 0.002902838975 | BR35: 0
A36: 033 | B36: Elaboración de cacao, chocolate y productos de confitería | C36: 6.832821878e-05 | D36: 2.754704835e-05 | E36: 0.001753197214 | F36: 9.263456463e-06 | G36: 0.001037466761 | H36: 1.555968863e-05 | I36: 2.33160456e-05 | J36: 2.338452466e-05 | K36: 1.918259403e-05 | L36: 2.105249151e-05 | M36: 0.001099128977 | N36: 0.0001369362037 | O36: 0.002330014905 | P36: 0.003400724583 | Q36: 0.0001068630795 | R36: 6.344781354e-05 | S36: 1.005174808 | T36: 0.005511644423 | U36: 0.0006053495141 | V36: 3.984771161e-05 | W36: 3.73429379e-05 | X36: 0.0001841581941 | Y36: 2.830801397e-05 | Z36: 8.746935042e-05 | AA36: 2.496108648e-05 | AB36: 6.693665606e-05 | AC36: 0.0001562690218 | AD36: 5.689187332e-05 | AE36: 2.395286592e-05 | AF36: 2.789269758e-05 | AG36: 3.185744742e-05 | AH36: 2.933311325e-05 | AI36: 3.382278656e-05 | AJ36: 2.883734151e-05 | AK36: 4.539937558e-05 | AL36: 2.11974655e-05 | AM36: 2.168904596e-05 | AN36: 2.678020303e-05 | AO36: 1.423334873e-05 | AP36: 2.476115101e-05 | AQ36: 2.631117135e-05 | AR36: 0.0001218821299 | AS36: 2.036953657e-05 | AT36: 2.728883852e-05 | AU36: 2.300333143e-05 | AV36: 3.818322268e-05 | AW36: 3.251126221e-05 | AX36: 2.032641812e-05 | AY36: 3.765695747e-05 | AZ36: 0.0001503246189 | BA36: 3.466844753e-05 | BB36: 4.684229306e-05 | BC36: 0.001221668387 | BD36: 0.004633770958 | BE36: 8.184704196e-05 | BF36: 3.409312666e-05 | BG36: 5.31325422e-05 | BH36: 2.425783166e-05 | BI36: 2.230719039e-05 | BJ36: 8.260091928e-06 | BK36: 3.958563456e-05 | BL36: 3.088962322e-05 | BM36: 7.563852498e-05 | BN36: 8.065014137e-05 | BO36: 3.180704656e-05 | BP36: 0.000171722488 | BQ36: 0.0001167259793 | BR36: 0
A37: 034 | B37: Procesamiento y conservación de frutas, legumbres, hortalizas y tubérculos; elaboración de otros productos alimenticios (platos preparados y conservados mediante enlatado o congelado, elaboración de sopas y caldos en estado sólidos, polvo o instantáneas entre otros) | C37: 0.001324164109 | D37: 0.0008087160872 | E37: 0.03021450745 | F37: 0.0002469882895 | G37: 0.01769316523 | H37: 0.0001730836862 | I37: 0.0002775615017 | J37: 0.0002186344298 | K37: 0.0002046072917 | L37: 0.0002340709661 | M37: 0.02072127832 | N37: 0.01018600899 | O37: 0.01858373269 | P37: 0.02145001408 | Q37: 0.002953811876 | R37: 0.001153039133 | S37: 0.01556513974 | T37: 1.036155903 | U37: 0.01149514669 | V37: 0.0009187842204 | W37: 0.0005000140694 | X37: 0.003329047676 | Y37: 0.0004599344449 | Z37: 0.001407027714 | AA37: 0.0006104340995 | AB37: 0.002867930591 | AC37: 0.003176100169 | AD37: 0.002005084942 | AE37: 0.0007563196824 | AF37: 0.0003576502457 | AG37: 0.0006718488799 | AH37: 0.0003690115563 | AI37: 0.0004497499887 | AJ37: 0.0004673894141 | AK37: 0.0008581059115 | AL37: 0.0003070274482 | AM37: 0.0002374993817 | AN37: 0.0004600479236 | AO37: 0.0002344289143 | AP37: 0.0003937945107 | AQ37: 0.000175940801 | AR37: 0.001958578273 | AS37: 0.0004884159005 | AT37: 0.001056378783 | AU37: 0.0006163857839 | AV37: 0.0003189888031 | AW37: 0.0004059567141 | AX37: 0.0002825325809 | AY37: 0.0004188574303 | AZ37: 0.0007495446227 | BA37: 0.0002945834735 | BB37: 0.0003560168002 | BC37: 0.006009461129 | BD37: 0.01503378261 | BE37: 0.0006157666307 | BF37: 0.0003701637544 | BG37: 0.0004100727758 | BH37: 0.0002401146763 | BI37: 0.0001935048211 | BJ37: 8.503506527e-05 | BK37: 0.0004720306357 | BL37: 0.0003059083161 | BM37: 0.0007307747623 | BN37: 0.0008621132378 | BO37: 0.0004771204069 | BP37: 0.0008241852808 | BQ37: 0.0006868134564 | BR37: 0
A38: 036 | B38: Elaboración de bebidas (incluido el hielo) y elaboración de productos de tabaco | C38: 0.0003458590478 | D38: 0.000286146639 | E38: 0.00489883854 | F38: 0.0001378672927 | G38: 0.001527912903 | H38: 0.000260530189 | I38: 0.0003717388799 | J38: 0.0004114833918 | K38: 0.000336139119 | L38: 0.0003220020271 | M38: 0.007430140569 | N38: 0.001914853343 | O38: 0.00463536426 | P38: 0.006005156801 | Q38: 0.0008706686799 | R38: 0.0005968696476 | S38: 0.001753379225 | T38: 0.002430289875 | U38: 1.016468444 | V38: 0.0006243268274 | W38: 0.0006546394939 | X38: 0.001039455245 | Y38: 0.0008491808601 | Z38: 0.006259998644 | AA38: 0.0003964109854 | AB38: 0.0008404956302 | AC38: 0.0009703985943 | AD38: 0.0008306394137 | AE38: 0.0004919707422 | AF38: 0.0005518495267 | AG38: 0.0006510728068 | AH38: 0.0006157612092 | AI38: 0.0007158351808 | AJ38: 0.0008580360615 | AK38: 0.0004073654164 | AL38: 0.0003430369831 | AM38: 0.00035325164 | AN38: 0.0004085089267 | AO38: 0.0002332664227 | AP38: 0.000389088285 | AQ38: 0.0004744294526 | AR38: 0.001612523784 | AS38: 0.0003911599406 | AT38: 0.000483668016 | AU38: 0.000418424754 | AV38: 0.001910714281 | AW38: 0.0006165069439 | AX38: 0.0003682019719 | AY38: 0.0006469772696 | AZ38: 0.002252669231 | BA38: 0.0005585005382 | BB38: 0.000781788567 | BC38: 0.02510721867 | BD38: 0.06647746238 | BE38: 0.001394492829 | BF38: 0.0005420641403 | BG38: 0.0007860163221 | BH38: 0.0003732328857 | BI38: 0.0003382787984 | BJ38: 0.000124555636 | BK38: 0.0006051156053 | BL38: 0.0005058992228 | BM38: 0.001117140927 | BN38: 0.0006747921451 | BO38: 0.0004143470165 | BP38: 0.002584405663 | BQ38: 0.001773993944 | BR38: 0
A39: 037 | B39: Preparación, hilatura, tejeduría y acabado de productos textiles; fabricación de otros productos textiles | C39: 0.004074019231 | D39: 0.00512220349 | E39: 0.001889771716 | F39: 0.0005735317566 | G39: 0.001652434009 | H39: 0.001565877312 | I39: 0.001342826104 | J39: 0.0008227897433 | K39: 0.001251336924 | L39: 0.001193926564 | M39: 0.002133549919 | N39: 0.002940977156 | O39: 0.002405266442 | P39: 0.003290424727 | Q39: 0.006697296202 | R39: 0.003501055107 | S39: 0.004440055563 | T39: 0.003435093691 | U39: 0.002875786037 | V39: 1.229985816 | W39: 0.2191935755 | X39: 0.04842636152 | Y39: 0.004700585059 | Z39: 0.02837394268 | AA39: 0.001425285637 | AB39: 0.004332551375 | AC39: 0.005312115095 | AD39: 0.01140090578 | AE39: 0.001439406356 | AF39: 0.005321333325 | AG39: 0.005154620256 | AH39: 0.00393925541 | AI39: 0.009316297011 | AJ39: 0.05178149917 | AK39: 0.009025004595 | AL39: 0.001839663105 | AM39: 0.001129848553 | AN39: 0.002335861467 | AO39: 0.00193937105 | AP39: 0.002363375946 | AQ39: 0.0365884839 | AR39: 0.002554017789 | AS39: 0.004942899273 | AT39: 0.01098247732 | AU39: 0.004512786277 | AV39: 0.002567688399 | AW39: 0.003087433119 | AX39: 0.001577995875 | AY39: 0.002461908108 | AZ39: 0.002372437968 | BA39: 0.002233812053 | BB39: 0.0024541792 | BC39: 0.002859551736 | BD39: 0.002120572536 | BE39: 0.007512429714 | BF39: 0.001088033034 | BG39: 0.001653521537 | BH39: 0.0007033986134 | BI39: 0.0005769496312 | BJ39: 0.0002702169674 | BK39: 0.001181328214 | BL39: 0.00136616683 | BM39: 0.001995862854 | BN39: 0.001291331691 | BO39: 0.00190407582 | BP39: 0.002180753397 | BQ39: 0.005066488313 | BR39: 0
A40: 038 | B40: Confección de prendas de vestir | C40: 0.001920483357 | D40: 0.001332590582 | E40: 0.001528249881 | F40: 0.0003802667801 | G40: 0.001059144 | H40: 0.003642408315 | I40: 0.001741639307 | J40: 0.0005779575586 | K40: 0.001916990874 | L40: 0.001112977589 | M40: 0.001576863418 | N40: 0.001656621999 | O40: 0.001767097477 | P40: 0.002086003169 | Q40: 0.001794439237 | R40: 0.001504457515 | S40: 0.002716586996 | T40: 0.002200561883 | U40: 0.002162670487 | V40: 0.03676368399 | W40: 1.050330488 | X40: 0.03654727712 | Y40: 0.002141401473 | Z40: 0.006417467441 | AA40: 0.001284629564 | AB40: 0.00215326413 | AC40: 0.002309833545 | AD40: 0.004093457758 | AE40: 0.00104405775 | AF40: 0.002625140941 | AG40: 0.00319693699 | AH40: 0.002348039819 | AI40: 0.003334720335 | AJ40: 0.00988718703 | AK40: 0.003064684317 | AL40: 0.001354868704 | AM40: 0.001297630388 | AN40: 0.00278529488 | AO40: 0.002312815889 | AP40: 0.003170961769 | AQ40: 0.005957417314 | AR40: 0.003079103459 | AS40: 0.001886260446 | AT40: 0.003201674861 | AU40: 0.001918883183 | AV40: 0.00185807981 | AW40: 0.001913010725 | AX40: 0.001449342281 | AY40: 0.001912268961 | AZ40: 0.003443447698 | BA40: 0.00444986348 | BB40: 0.004513868615 | BC40: 0.005835477683 | BD40: 0.003332749195 | BE40: 0.002255199608 | BF40: 0.0009496844103 | BG40: 0.001019727442 | BH40: 0.0004354683337 | BI40: 0.0003511190661 | BJ40: 0.0002699081942 | BK40: 0.001597923127 | BL40: 0.002604161762 | BM40: 0.001293019423 | BN40: 0.001531112502 | BO40: 0.002432617713 | BP40: 0.003624761464 | BQ40: 0.0009827043615 | BR40: 0
A41: 039 | B41: Curtido y recurtido de cueros; fabricación de calzado; fabricación de artículos de viaje, maletas, bolsos de mano y artículos similares, y fabricación de artículos de talabartería y guarnicionería; adobo y teñido de pieles | C41: 0.0005915662704 | D41: 0.0004236415351 | E41: 0.001108542307 | F41: 0.0002820019058 | G41: 0.0004917754334 | H41: 0.0006834831782 | I41: 0.0006930563195 | J41: 0.0003750383916 | K41: 0.0008012835316 | L41: 0.0007835343631 | M41: 0.0009216149956 | N41: 0.0008574049733 | O41: 0.0009544385502 | P41: 0.0008730507175 | Q41: 0.000568314182 | R41: 0.0005395384753 | S41: 0.001216358815 | T41: 0.0009237252364 | U41: 0.0009641750286 | V41: 0.008325349345 | W41: 0.00992536676 | X41: 1.180705325 | Y41: 0.001425043834 | Z41: 0.002331359517 | AA41: 0.0005122523868 | AB41: 0.0008940827639 | AC41: 0.001270578977 | AD41: 0.001484158282 | AE41: 0.0004623234798 | AF41: 0.001135453106 | AG41: 0.001340495849 | AH41: 0.001301638768 | AI41: 0.001811752659 | AJ41: 0.005185492996 | AK41: 0.003449310654 | AL41: 0.000528033277 | AM41: 0.0005414456394 | AN41: 0.0008756406235 | AO41: 0.0006982042576 | AP41: 0.001120717482 | AQ41: 0.001379882957 | AR41: 0.001231476873 | AS41: 0.0009182688701 | AT41: 0.001190420079 | AU41: 0.0007879258487 | AV41: 0.001380615827 | AW41: 0.005500670857 | AX41: 0.0008339401751 | AY41: 0.001166948338 | AZ41: 0.0009469823008 | BA41: 0.001242950622 | BB41: 0.0009774577653 | BC41: 0.001092420283 | BD41: 0.0007962091471 | BE41: 0.0012777172 | BF41: 0.0004336682151 | BG41: 0.0004840698228 | BH41: 0.0002510221849 | BI41: 0.000171823432 | BJ41: 9.252761098e-05 | BK41: 0.0006334876344 | BL41: 0.001115608457 | BM41: 0.0004993950156 | BN41: 0.0017477142 | BO41: 0.001873419616 | BP41: 0.002929582414 | BQ41: 0.0012164608 | BR41: 0
A42: 040 | B42: Transformación de la madera y fabricación de productos de madera y de corcho, excepto muebles; fabricación de artículos de cestería y espartería | C42: 0.00411260855 | D42: 0.001695161669 | E42: 0.002940204026 | F42: 0.0004865493063 | G42: 0.0008895031677 | H42: 0.0002863446857 | I42: 0.0004338247308 | J42: 0.0005716459329 | K42: 0.0005916615778 | L42: 0.0004440596461 | M42: 0.00218420438 | N42: 0.002292077612 | O42: 0.002245578641 | P42: 0.002443112595 | Q42: 0.001864355999 | R42: 0.002446677701 | S42: 0.003546940943 | T42: 0.002253548055 | U42: 0.001708125095 | V42: 0.001608003802 | W42: 0.00406906054 | X42: 0.001656553847 | Y42: 1.206879902 | Z42: 0.0350165953 | AA42: 0.0007360960668 | AB42: 0.002635677197 | AC42: 0.002494861922 | AD42: 0.004082305952 | AE42: 0.0005017172819 | AF42: 0.002702293645 | AG42: 0.006311237907 | AH42: 0.00241218716 | AI42: 0.003255086351 | AJ42: 0.1110920602 | AK42: 0.003158961326 | AL42: 0.001033739339 | AM42: 0.0005219270847 | AN42: 0.001764562097 | AO42: 0.0009684729022 | AP42: 0.001085677485 | AQ42: 0.000654502846 | AR42: 0.001512520742 | AS42: 0.01710945667 | AT42: 0.0110952522 | AU42: 0.009793781309 | AV42: 0.0008063240582 | AW42: 0.001315848467 | AX42: 0.0005901047064 | AY42: 0.0005781658587 | AZ42: 0.000586829822 | BA42: 0.0004874596502 | BB42: 0.0006399261552 | BC42: 0.001015335907 | BD42: 0.001003375956 | BE42: 0.002003380637 | BF42: 0.000594984047 | BG42: 0.0004849688463 | BH42: 0.0003010369119 | BI42: 0.0002389468405 | BJ42: 0.0002974287377 | BK42: 0.001969611391 | BL42: 0.0005833005398 | BM42: 0.002057241768 | BN42: 0.0009073483516 | BO42: 0.001015405141 | BP42: 0.001020685514 | BQ42: 0.0009622449959 | BR42: 0
